Workbook

Sheet Worksheet
F1: adjust difficulty here. Aim for a spread. | G1: Number Topics: Revision Questions | I1: Answers (by default this column will not print)
A2: Include questions on these NUMBER topics (if you only choose a limited number of topics, some questions may appear blank) | G2: No calculators: write working whenever you need to. Use another sheet if you need more space
A3: Whole Numbers, Numerals, Count, Order | B3: TRUE | C3: Fractions | D3: TRUE | F3: =IF(O3=1,"Easy",IF(O3=2,"Medium","Hard")) -> Easy | G3: 1 | H3: What is half of 42 ? | I3: 21 | N3: =CONCATENATE(TRUE,F3,COUNTIF($F$3:F3,F3)) -> TRUEEasy1 | O3: 1 | P3: =VLOOKUP(N3,Questions,20,FALSE) -> What is half of 48 ? | Q3: =VLOOKUP(N3,Questions,30,FALSE) -> 24
A4: Add and Subtract | B4: TRUE | C4: Decimals | D4: TRUE | F4: =IF(O4=1,"Easy",IF(O4=2,"Medium","Hard")) -> Easy | G4: 2 | H4: Write the number "four thousand, and eighty seven" in figures | I4: 4087 | N4: =CONCATENATE(TRUE,F4,COUNTIF($F$3:F4,F4)) -> TRUEEasy2 | O4: 1 | P4: Write the number "eight thousand, and thirty one" in figures | Q4: 8031
A5: Multiply | B5: TRUE | C5: Percentages | D5: TRUE | F5: Easy | G5: 3 | H5: Continue the pattern for three more numbers: 24.5, 24.6, 24.7, 24.8, ____, ____, ____ | I5: 24.9, 25, 25.1 | N5: =CONCATENATE(TRUE,F5,COUNTIF($F$3:F5,F5)) -> TRUEEasy3 | O5: 1 | P5: Continue the pattern for three more numbers: 2.5, 2.6, 2.7, 2.8, ____, ____, ____ | Q5: 2.9, 3, 3.1
A6: Divide | B6: TRUE | C6: Rounding | D6: TRUE | F6: Easy | G6: 4 | H6: Multiply by writing down a sum: 476 × 3 | I6: 1,428 | N6: =CONCATENATE(TRUE,F6,COUNTIF($F$3:F6,F6)) -> TRUEEasy4 | O6: 1 | P6: Multiply by writing down a sum: 249 × 4 | Q6: 996
A7: Choose the Operation | B7: TRUE | C7: Negative Numbers | D7: TRUE | F7: Easy | G7: 5 | H7: Write these numbers in order from smallest to biggest: 5, 4.9, 4, 9.4 | I7: 4, 4.9, 5, 9.4 | N7: =CONCATENATE(TRUE,F7,COUNTIF($F$3:F7,F7)) -> TRUEEasy5 | O7: 1 | P7: Write these numbers in order from smallest to biggest: 8, 7.1, 7, 1.7 | Q7: 1.7, 7, 7.1, 8
A8: =IF(OR('SYSTEM FORMULAE'!A3<20,'SYSTEM FORMULAE'!U1<'SYSTEM FORMULAE'!T1,'SYSTEM FORMULAE'!U2<'SYSTEM FORMULAE'!T2,'SYSTEM FORMULAE'!U3<'SYSTEM FORMULAE'!T3),"there are not enough potential questions. Please choose more topics","") ->  | F8: Medium | G8: 6 | H8: Continue the pattern for three more numbers: 30.2, 30.4, 30.6, 30.8, ____, ____, ____ | I8: 31, 31.2, 31.4 | N8: =CONCATENATE(TRUE,F8,COUNTIF($F$3:F8,F8)) -> TRUEMedium1 | O8: 2 | P8: Continue the pattern for three more numbers: 33.2, 33.4, 33.6, 33.8, ____, ____, ____ | Q8: 34, 34.2, 34.4
A9: Optionally include additional questions on these (selected) ALGEBRA topics | F9: Medium | G9: 7 | H9: Write the fraction 5/35 in its simplest form | I9: 1/7 | N9: =CONCATENATE(TRUE,F9,COUNTIF($F$3:F9,F9)) -> TRUEMedium2 | O9: 2 | P9: Write the fraction 15/25 in its simplest form | Q9: 3/5
A10: Substitution | B10: FALSE | C10: Equations and Inequations | D10: FALSE | F10: Medium | G10: 8 | H10: What is 0.6 as a percentage? | I10: 60% | N10: =CONCATENATE(TRUE,F10,COUNTIF($F$3:F10,F10)) -> TRUEMedium3 | O10: 2 | P10: What is 0.8 as a percentage? | Q10: 80%
F11: Medium | G11: 9 | H11: Fractions. What is 7/10 of 40 ? | I11: 28 | N11: =CONCATENATE(TRUE,F11,COUNTIF($F$3:F11,F11)) -> TRUEMedium4 | O11: 2 | P11: Fractions. What is 3/10 of 50 ? | Q11: 15
F12: Medium | G12: 10 | H12: Round 776.95 to the nearest whole number | I12: 777 | N12: =CONCATENATE(TRUE,F12,COUNTIF($F$3:F12,F12)) -> TRUEMedium5 | O12: 2 | P12: Round 852.22 to the nearest whole number | Q12: 852
F13: Medium | G13: 11 | H13: What is half of 9000 ? | I13: 4500 | N13: =CONCATENATE(TRUE,F13,COUNTIF($F$3:F13,F13)) -> TRUEMedium6 | O13: 2 | P13: What is half of 5000 ? | Q13: 2500
F14: Medium | G14: 12 | H14: Take away by writing down a sum: 82.76 – 42.59 | I14: 40.17 | N14: =CONCATENATE(TRUE,F14,COUNTIF($F$3:F14,F14)) -> TRUEMedium7 | O14: 2 | P14: Take away by writing down a sum: 29.99 – 19.26 | Q14: 10.73
F15: Medium | G15: 13 | H15: Barry is saving money to buy a new car. The car costs £2000 . So far, Barry has saved £1400. How much more money does he need? | I15: £600 | N15: =CONCATENATE(TRUE,F15,COUNTIF($F$3:F15,F15)) -> TRUEMedium8 | O15: 2 | P15: Murray is saving money to buy a new car. The car costs £2000 . So far, Murray has saved £1100. How much more money does he need? | Q15: £900
F16: Medium | G16: 14 | H16: Circle the number that is a multiple of 10: 23 30 22 20 | I16: 30 | N16: =CONCATENATE(TRUE,F16,COUNTIF($F$3:F16,F16)) -> TRUEMedium9 | O16: 2 | P16: Circle the number that is a multiple of 10: 7 14 13 18 | Q16: 18
F17: Medium | G17: 15 | H17: What number is half way between 9.6 and 9.7 ? | I17: 9.65 | N17: =CONCATENATE(TRUE,F17,COUNTIF($F$3:F17,F17)) -> TRUEMedium10 | O17: 2 | P17: What number is half way between 7.3 and 7.4 ? | Q17: 7.35
F18: Medium | G18: 16 | H18: What is 1/10 as a percentage? | I18: 10% | N18: =CONCATENATE(TRUE,F18,COUNTIF($F$3:F18,F18)) -> TRUEMedium11 | O18: 2 | P18: What is 1/10 as a percentage? | Q18: 10%
F19: Hard | G19: 17 | H19: Take away the fraction: 1 – 3/5 | I19: 2/5 | N19: =CONCATENATE(TRUE,F19,COUNTIF($F$3:F19,F19)) -> TRUEHard1 | O19: 3 | P19: Take away the fraction: 1 – 3/5 | Q19: 2/5
F20: Hard | G20: 18 | H20: In the number 518,724 , what does the 7 stand for? | I20: 700 | N20: =CONCATENATE(TRUE,F20,COUNTIF($F$3:F20,F20)) -> TRUEHard2 | O20: 3 | P20: In the number 472,569 , what does the 4 stand for? | Q20: 400,000
F21: Hard | G21: 19 | H21: Continue the pattern for three more numbers: 24.25, 24.2, 24.15, 24.1, ____, ____, ____ | I21: 24.05, 24, 23.95 | N21: =CONCATENATE(TRUE,F21,COUNTIF($F$3:F21,F21)) -> TRUEHard3 | O21: 3 | P21: Continue the pattern for three more numbers: 38.25, 38.2, 38.15, 38.1, ____, ____, ____ | Q21: 38.05, 38, 37.95
F22: Hard | G22: 20 | H22: Fill in the missing number: 373 + ____ = 1000 | I22: 627 | N22: =CONCATENATE(TRUE,F22,COUNTIF($F$3:F22,F22)) -> TRUEHard4 | O22: 3 | P22: Fill in the missing number: 723 + ____ = 1000 | Q22: 277

Sheet SYSTEM FORMULAE
A1: Possible topics | B1: Num | C1: +- | D1: Mult | E1: Divide | G1: shade a fraction | S1: hard | T1: =COUNTIF(Worksheet!$F$3:$F$22,S1) -> 4 | U1: =COUNTIF(AH$5:AH$726,"TRUEHard") -> 118
B2: Choose | C2: Frac | D2: Dec | E2: % | G2: identify a shaded fraction | S2: medium | T2: =COUNTIF(Worksheet!$F$3:$F$22,S2) -> 11 | U2: =COUNTIF(AH$5:AH$726,"TRUEMedium") -> 156
A3: =COUNTIF(AE5:AE726,TRUE) -> 353 | B3: Neg | C3: Round | D3: Alg | E3: Eqn | G3: decimal on number line | S3: easy | T3: =COUNTIF(Worksheet!$F$3:$F$22,S3) -> 5 | U3: =COUNTIF(AH$5:AH$726,"TRUEEasy") -> 79
A4: allow inclusion? | B4: rand() | C4: topic | D4: difficulty | U4: Answers
A5: =CONCATENATE(AE5,D5,AG5) -> TRUEEasy1 | B5: =RAND() -> 0.2886182164 | C5: Divide | D5: Easy | E5: 110 | F5: What is half of | G5: =RANDBETWEEN(2,4)*20+RANDBETWEEN(1,4)*2 -> 48 | H5: ? | T5: =CONCATENATE(F5," ",G5," ",H5," ",I5," ",J5," ",K5," ",L5," ",M5," ",N5," ",O5," ",P5," ",Q5," ",R5) -> What is half of 48 ? | U5: =G5/2 -> 24 | AD5: =IF(OR(ISNA(U5),ISNA(V5),ISNA(W5),ISNA(X5),ISNA(Y5),ISNA(Z5),ISNA(AA5),ISNA(AB5),ISNA(AC5)),NA(),CONCATENATE(U5,V5,W5,X5,Y5,Z5,AA5,AB5)) -> 24 | AE5: =IF(ISNA(AD5),FALSE,IF(C5=$B$1,Worksheet!$B$3,IF(C5=$C$1,Worksheet!$B$4,IF(C5=$D$1,Worksheet!$B$5,IF(C5=$E$1,Worksheet!$B$6,IF(C5=$B$2,Worksheet!$B$7,IF(C5=$C$2,Worksheet!$D$3,IF(C5=$D$2,Worksheet!$D$4,IF(C5=$E$2,Worksheet!$D$5,IF(C5=$C$3,Worksheet!$D$6,IF(C5=$B$3,Worksheet!$D$7,IF(C5=$D$3,Worksheet!$B$10,IF(C5=$E$3,Worksheet!$D$10,FALSE))))))))))))) -> TRUE | AF5: =IF(AE5,D5,"") -> Easy | AG5: =IF(AE5,COUNTIF($AF$5:AF5,AF5),"X") -> 1 | AH5: =CONCATENATE(AE5,AF5) -> TRUEEasy
A6: =CONCATENATE(AE6,D6,AG6) -> TRUEEasy2 | B6: =RAND() -> 0.04771254307 | C6: Num | D6: Easy | E6: 1 | F6: Write the number " | G6: =CHOOSE(RANDBETWEEN(1,9),"one","two","three","four","five","six","seven","eight","nine") -> eight | H6: thousand, and | I6: =CHOOSE(S6,CHOOSE(RANDBETWEEN(1,10),"ten","eleven","twelve","thirteen","fourteen","fifteen","sixteen","seventeen","eighteen","nineteen"),"twenty","thirty","forty","fifty","sixty","seventy","eighty","ninety") -> thirty | J6: =IF(S6=1,"",CHOOSE(RANDBETWEEN(1,9),"one","two","three","four","five","six","seven","eight","nine")) -> one | K6: " in figures | S6: =RANDBETWEEN(1,9) -> 3 | T6: =CONCATENATE(F6,"",G6," ",H6," ",I6," ",J6,"",K6," ",L6," ",M6," ",N6," ",O6," ",P6," ",Q6," ",R6) -> Write the number "eight thousand, and thirty one" in figures | U6: =IF(G6="one",1,IF(G6="two",2,IF(G6="three",3,IF(G6="four",4,IF(G6="five",5,IF(G6="six",6,IF(G6="seven",7,IF(G6="eight",8,9)))))))) -> 8 | V6: 0 | W6: =S6 -> 3 | X6: =IF(S6=1,IF(I6="ten",0,IF(I6="eleven",1,IF(I6="twelve",2,IF(I6="thirteen",3,IF(I6="fourteen",4,IF(I6="fifteen",5,IF(I6="sixteen",6,IF(I6="seventeen",7,IF(I6="eighteen",8,9))))))))),"") ->  | Y6: =IF(S6<>1,IF(J6="one",1,IF(J6="two",2,IF(J6="three",3,IF(J6="four",4,IF(J6="five",5,IF(J6="six",6,IF(J6="seven",7,IF(J6="eight",8,9)))))))),"") -> 1 | AD6: =IF(OR(ISNA(U6),ISNA(V6),ISNA(W6),ISNA(X6),ISNA(Y6),ISNA(Z6),ISNA(AA6),ISNA(AB6),ISNA(AC6)),NA(),CONCATENATE(U6,V6,W6,X6,Y6,Z6,AA6,AB6)) -> 8031 | AE6: =IF(ISNA(AD6),FALSE,IF(C6=$B$1,Worksheet!$B$3,IF(C6=$C$1,Worksheet!$B$4,IF(C6=$D$1,Worksheet!$B$5,IF(C6=$E$1,Worksheet!$B$6,IF(C6=$B$2,Worksheet!$B$7,IF(C6=$C$2,Worksheet!$D$3,IF(C6=$D$2,Worksheet!$D$4,IF(C6=$E$2,Worksheet!$D$5,IF(C6=$C$3,Worksheet!$D$6,IF(C6=$B$3,Worksheet!$D$7,IF(C6=$D$3,Worksheet!$B$10,IF(C6=$E$3,Worksheet!$D$10,FALSE))))))))))))) -> TRUE | AF6: =IF(AE6,D6,"") -> Easy | AG6: =IF(AE6,COUNTIF($AF$5:AF6,AF6),"X") -> 2 | AH6: =CONCATENATE(AE6,AF6) -> TRUEEasy
A7: =CONCATENATE(AE7,D7,AG7) -> TRUEMedium1 | B7: =RAND() -> 0.2467433596 | C7: Dec | D7: Medium | E7: 206 | F7: Continue the pattern for three more numbers: | G7: =2*RANDBETWEEN(50,200)/10 -> 33.2 | H7: =G7+S7 -> 33.4 | I7: =H7+S7 -> 33.6 | J7: =I7+S7 -> 33.8 | K7: ____ | L7: ____ | M7: ____ | S7: 0.2 | T7: =CONCATENATE(F7," ",G7,", ",H7,", ",I7,", ",J7,", ",K7,", ",L7,", ",M7," ",N7," ",O7," ",P7," ",Q7," ",R7) -> Continue the pattern for three more numbers: 33.2, 33.4, 33.6, 33.8, ____, ____, ____ | U7: =J7+S7 -> 34 | V7: =U7+S7 -> 34.2 | W7: =V7+S7 -> 34.4 | AD7: =IF(OR(ISNA(U7),ISNA(V7),ISNA(W7),ISNA(X7),ISNA(Y7),ISNA(Z7),ISNA(AA7),ISNA(AB7),ISNA(AC7)),NA(),CONCATENATE(U7,", ",V7,", ",W7,X7,Y7,Z7,AA7,AB7)) -> 34, 34.2, 34.4 | AE7: =IF(ISNA(AD7),FALSE,IF(C7=$B$1,Worksheet!$B$3,IF(C7=$C$1,Worksheet!$B$4,IF(C7=$D$1,Worksheet!$B$5,IF(C7=$E$1,Worksheet!$B$6,IF(C7=$B$2,Worksheet!$B$7,IF(C7=$C$2,Worksheet!$D$3,IF(C7=$D$2,Worksheet!$D$4,IF(C7=$E$2,Worksheet!$D$5,IF(C7=$C$3,Worksheet!$D$6,IF(C7=$B$3,Worksheet!$D$7,IF(C7=$D$3,Worksheet!$B$10,IF(C7=$E$3,Worksheet!$D$10,FALSE))))))))))))) -> TRUE | AF7: =IF(AE7,D7,"") -> Medium | AG7: =IF(AE7,COUNTIF($AF$5:AF7,AF7),"X") -> 1 | AH7: =CONCATENATE(AE7,AF7) -> TRUEMedium
A8: =CONCATENATE(AE8,D8,AG8) -> TRUEMedium2 | B8: =RAND() -> 0.6572096511 | C8: Frac | D8: Medium | E8: 179 | F8: Write the fraction | G8: =5*RANDBETWEEN(1,I8/5-1) -> 15 | H8: / | I8: =5*RANDBETWEEN(3,8) -> 25 | J8: in its simplest form | T8: =CONCATENATE(F8," ",G8,"",H8,"",I8," ",J8," ",K8," ",L8," ",M8," ",N8," ",O8," ",P8," ",Q8," ",R8) -> Write the fraction 15/25 in its simplest form | U8: =G8/GCD(G8,I8) -> 3 | V8: / | W8: =I8/GCD(G8,I8) -> 5 | AD8: =IF(OR(ISNA(U8),ISNA(V8),ISNA(W8),ISNA(X8),ISNA(Y8),ISNA(Z8),ISNA(AA8),ISNA(AB8),ISNA(AC8)),NA(),CONCATENATE(U8,V8,W8,X8,Y8,Z8,AA8,AB8)) -> 3/5 | AE8: =IF(ISNA(AD8),FALSE,IF(C8=$B$1,Worksheet!$B$3,IF(C8=$C$1,Worksheet!$B$4,IF(C8=$D$1,Worksheet!$B$5,IF(C8=$E$1,Worksheet!$B$6,IF(C8=$B$2,Worksheet!$B$7,IF(C8=$C$2,Worksheet!$D$3,IF(C8=$D$2,Worksheet!$D$4,IF(C8=$E$2,Worksheet!$D$5,IF(C8=$C$3,Worksheet!$D$6,IF(C8=$B$3,Worksheet!$D$7,IF(C8=$D$3,Worksheet!$B$10,IF(C8=$E$3,Worksheet!$D$10,FALSE))))))))))))) -> TRUE | AF8: =IF(AE8,D8,"") -> Medium | AG8: =IF(AE8,COUNTIF($AF$5:AF8,AF8),"X") -> 2 | AH8: =CONCATENATE(AE8,AF8) -> TRUEMedium
A9: =CONCATENATE(AE9,D9,AG9) -> TRUEMedium3 | B9: =RAND() -> 0.3105147617 | C9: % | D9: Medium | E9: 305 | F9: What is | G9: =RANDBETWEEN(1,9)/10 -> 0.8 | H9: as a percentage? | T9: =CONCATENATE(F9," ",G9," ",H9," ",I9," ",J9," ",K9," ",L9," ",M9," ",N9," ",O9," ",P9," ",Q9," ",R9) -> What is 0.8 as a percentage? | U9: =G9*100 -> 80 | V9: % | AD9: =IF(OR(ISNA(U9),ISNA(V9),ISNA(W9),ISNA(X9),ISNA(Y9),ISNA(Z9),ISNA(AA9),ISNA(AB9),ISNA(AC9)),NA(),CONCATENATE(U9,V9,W9,X9,Y9,Z9,AA9,AB9)) -> 80% | AE9: =IF(ISNA(AD9),FALSE,IF(C9=$B$1,Worksheet!$B$3,IF(C9=$C$1,Worksheet!$B$4,IF(C9=$D$1,Worksheet!$B$5,IF(C9=$E$1,Worksheet!$B$6,IF(C9=$B$2,Worksheet!$B$7,IF(C9=$C$2,Worksheet!$D$3,IF(C9=$D$2,Worksheet!$D$4,IF(C9=$E$2,Worksheet!$D$5,IF(C9=$C$3,Worksheet!$D$6,IF(C9=$B$3,Worksheet!$D$7,IF(C9=$D$3,Worksheet!$B$10,IF(C9=$E$3,Worksheet!$D$10,FALSE))))))))))))) -> TRUE | AF9: =IF(AE9,D9,"") -> Medium | AG9: =IF(AE9,COUNTIF($AF$5:AF9,AF9),"X") -> 3 | AH9: =CONCATENATE(AE9,AF9) -> TRUEMedium
A10: =CONCATENATE(AE10,D10,AG10) -> TRUEEasy3 | B10: =RAND() -> 0.6098733266 | C10: Dec | D10: Easy | E10: 202 | F10: Continue the pattern for three more numbers: | G10: =RANDBETWEEN(1,40)+RANDBETWEEN(4,6)*0.1 -> 2.5 | H10: =G10+S10 -> 2.6 | I10: =H10+S10 -> 2.7 | J10: =I10+S10 -> 2.8 | K10: ____ | L10: ____ | M10: ____ | S10: 0.1 | T10: =CONCATENATE(F10," ",G10,", ",H10,", ",I10,", ",J10,", ",K10,", ",L10,", ",M10," ",N10," ",O10," ",P10," ",Q10," ",R10) -> Continue the pattern for three more numbers: 2.5, 2.6, 2.7, 2.8, ____, ____, ____ | U10: =J10+S10 -> 2.9 | V10: =U10+S10 -> 3 | W10: =V10+S10 -> 3.1 | AD10: =IF(OR(ISNA(U10),ISNA(V10),ISNA(W10),ISNA(X10),ISNA(Y10),ISNA(Z10),ISNA(AA10),ISNA(AB10),ISNA(AC10)),NA(),CONCATENATE(U10,", ",V10,", ",W10,X10,Y10,Z10,AA10,AB10)) -> 2.9, 3, 3.1 | AE10: =IF(ISNA(AD10),FALSE,IF(C10=$B$1,Worksheet!$B$3,IF(C10=$C$1,Worksheet!$B$4,IF(C10=$D$1,Worksheet!$B$5,IF(C10=$E$1,Worksheet!$B$6,IF(C10=$B$2,Worksheet!$B$7,IF(C10=$C$2,Worksheet!$D$3,IF(C10=$D$2,Worksheet!$D$4,IF(C10=$E$2,Worksheet!$D$5,IF(C10=$C$3,Worksheet!$D$6,IF(C10=$B$3,Worksheet!$D$7,IF(C10=$D$3,Worksheet!$B$10,IF(C10=$E$3,Worksheet!$D$10,FALSE))))))))))))) -> TRUE | AF10: =IF(AE10,D10,"") -> Easy | AG10: =IF(AE10,COUNTIF($AF$5:AF10,AF10),"X") -> 3 | AH10: =CONCATENATE(AE10,AF10) -> TRUEEasy
A11: =CONCATENATE(AE11,D11,AG11) -> TRUEHard1 | B11: =RAND() -> 0.8236557189 | C11: Frac | D11: Hard | E11: 199 | F11: Take away the fraction: | G11: 1 | H11: – | I11: =RANDBETWEEN(1,4) -> 3 | J11: /5 | T11: =CONCATENATE(F11," ",G11," ",H11," ",I11,"",J11," ",K11," ",L11," ",M11," ",N11," ",O11," ",P11," ",Q11," ",R11) -> Take away the fraction: 1 – 3/5 | U11: =5-I11 -> 2 | V11: /5 | AD11: =IF(OR(ISNA(U11),ISNA(V11),ISNA(W11),ISNA(X11),ISNA(Y11),ISNA(Z11),ISNA(AA11),ISNA(AB11),ISNA(AC11)),NA(),CONCATENATE(U11,V11,W11,X11,Y11,Z11,AA11,AB11)) -> 2/5 | AE11: =IF(ISNA(AD11),FALSE,IF(C11=$B$1,Worksheet!$B$3,IF(C11=$C$1,Worksheet!$B$4,IF(C11=$D$1,Worksheet!$B$5,IF(C11=$E$1,Worksheet!$B$6,IF(C11=$B$2,Worksheet!$B$7,IF(C11=$C$2,Worksheet!$D$3,IF(C11=$D$2,Worksheet!$D$4,IF(C11=$E$2,Worksheet!$D$5,IF(C11=$C$3,Worksheet!$D$6,IF(C11=$B$3,Worksheet!$D$7,IF(C11=$D$3,Worksheet!$B$10,IF(C11=$E$3,Worksheet!$D$10,FALSE))))))))))))) -> TRUE | AF11: =IF(AE11,D11,"") -> Hard | AG11: =IF(AE11,COUNTIF($AF$5:AF11,AF11),"X") -> 1 | AH11: =CONCATENATE(AE11,AF11) -> TRUEHard
A12: =CONCATENATE(AE12,D12,AG12) -> TRUEHard2 | B12: =RAND() -> 0.302733089 | C12: Num | D12: Hard | E12: 10 | F12: In the number | G12: =RANDBETWEEN(1,9) -> 4 | H12: =SMALL(IF(G12={1,2,3,4,5,6,7,8,9},"",{1,2,3,4,5,6,7,8,9}),RANDBETWEEN(1,8)) -> 7 | I12: =SMALL(IF(G12={1,2,3,4,5,6,7,8,9},"",IF(H12={1,2,3,4,5,6,7,8,9},"",{1,2,3,4,5,6,7,8,9})),RANDBETWEEN(1,7)) -> 2 | J12: =SMALL(IF(G12={1,2,3,4,5,6,7,8,9},"",IF(H12={1,2,3,4,5,6,7,8,9},"",IF(I12={1,2,3,4,5,6,7,8,9},"",{1,2,3,4,5,6,7,8,9}))),RANDBETWEEN(1,6)) -> 5 | K12: =SMALL(IF(G12={1,2,3,4,5,6,7,8,9},"",IF(H12={1,2,3,4,5,6,7,8,9},"",IF(I12={1,2,3,4,5,6,7,8,9},"",IF(J12={1,2,3,4,5,6,7,8,9},"",{1,2,3,4,5,6,7,8,9})))),RANDBETWEEN(1,5)) -> 6 | L12: =SMALL(IF(G12={1,2,3,4,5,6,7,8,9},"",IF(H12={1,2,3,4,5,6,7,8,9},"",IF(I12={1,2,3,4,5,6,7,8,9},"",IF(J12={1,2,3,4,5,6,7,8,9},"",IF(K12={1,2,3,4,5,6,7,8,9},"",{1,2,3,4,5,6,7,8,9}))))),RANDBETWEEN(1,4)) -> 9 | M12: , what does the | N12: =CHOOSE(S12,J12,I12,H12,G12) -> 4 | O12: stand for? | S12: =RANDBETWEEN(1,4) -> 4 | T12: =CONCATENATE(F12," ",G12,"",H12,"",I12,",",J12,"",K12,"",L12," ",M12," ",N12," ",O12," ",P12," ",Q12," ",R12) -> In the number 472,569 , what does the 4 stand for? | U12: =TEXT(N12*10^(1+S12),"#,###") -> 400,000 | AD12: =IF(OR(ISNA(U12),ISNA(V12),ISNA(W12),ISNA(X12),ISNA(Y12),ISNA(Z12),ISNA(AA12),ISNA(AB12),ISNA(AC12)),NA(),CONCATENATE(U12,V12,W12,X12,Y12,Z12,AA12,AB12)) -> 400,000 | AE12: =IF(ISNA(AD12),FALSE,IF(C12=$B$1,Worksheet!$B$3,IF(C12=$C$1,Worksheet!$B$4,IF(C12=$D$1,Worksheet!$B$5,IF(C12=$E$1,Worksheet!$B$6,IF(C12=$B$2,Worksheet!$B$7,IF(C12=$C$2,Worksheet!$D$3,IF(C12=$D$2,Worksheet!$D$4,IF(C12=$E$2,Worksheet!$D$5,IF(C12=$C$3,Worksheet!$D$6,IF(C12=$B$3,Worksheet!$D$7,IF(C12=$D$3,Worksheet!$B$10,IF(C12=$E$3,Worksheet!$D$10,FALSE))))))))))))) -> TRUE | AF12: =IF(AE12,D12,"") -> Hard | AG12: =IF(AE12,COUNTIF($AF$5:AF12,AF12),"X") -> 2 | AH12: =CONCATENATE(AE12,AF12) -> TRUEHard
A13: =CONCATENATE(AE13,D13,AG13) -> TRUEMedium4 | B13: =RAND() -> 0.2208087349 | C13: Frac | D13: Medium | E13: 154 | F13: Fractions. What is | G13: =CHOOSE(RANDBETWEEN(1,3),"3/10","7/10","9/10") -> 3/10 | H13: of | I13: =10*RANDBETWEEN(2,5) -> 50 | J13: ? | T13: =CONCATENATE(F13," ",G13," ",H13," ",I13," ",J13," ",K13," ",L13," ",M13," ",N13," ",O13," ",P13," ",Q13," ",R13) -> Fractions. What is 3/10 of 50 ? | U13: =I13/10*IF(G13="3/10",3,IF(G13="7/10",7,9)) -> 15 | Y13: =IF(INT(U13)<>U13,NA(),"") ->  | AD13: =IF(OR(ISNA(U13),ISNA(V13),ISNA(W13),ISNA(X13),ISNA(Y13),ISNA(Z13),ISNA(AA13),ISNA(AB13),ISNA(AC13)),NA(),CONCATENATE(U13,V13,W13,X13,Y13,Z13,AA13,AB13)) -> 15 | AE13: =IF(ISNA(AD13),FALSE,IF(C13=$B$1,Worksheet!$B$3,IF(C13=$C$1,Worksheet!$B$4,IF(C13=$D$1,Worksheet!$B$5,IF(C13=$E$1,Worksheet!$B$6,IF(C13=$B$2,Worksheet!$B$7,IF(C13=$C$2,Worksheet!$D$3,IF(C13=$D$2,Worksheet!$D$4,IF(C13=$E$2,Worksheet!$D$5,IF(C13=$C$3,Worksheet!$D$6,IF(C13=$B$3,Worksheet!$D$7,IF(C13=$D$3,Worksheet!$B$10,IF(C13=$E$3,Worksheet!$D$10,FALSE))))))))))))) -> TRUE | AF13: =IF(AE13,D13,"") -> Medium | AG13: =IF(AE13,COUNTIF($AF$5:AF13,AF13),"X") -> 4 | AH13: =CONCATENATE(AE13,AF13) -> TRUEMedium
A14: =CONCATENATE(AE14,D14,AG14) -> TRUEEasy4 | B14: =RAND() -> 0.2543280694 | C14: Mult | D14: Easy | E14: 104 | F14: Multiply by writing down a sum: | G14: =RANDBETWEEN(101,500) -> 249 | H14: × | I14: =RANDBETWEEN(2,5) -> 4 | T14: =CONCATENATE(F14," ",G14," ",H14," ",I14," ",J14," ",K14," ",L14," ",M14," ",N14," ",O14," ",P14," ",Q14," ",R14) -> Multiply by writing down a sum: 249 × 4 | U14: =TEXT(G14*I14,"#,###") -> 996 | AD14: =IF(OR(ISNA(U14),ISNA(V14),ISNA(W14),ISNA(X14),ISNA(Y14),ISNA(Z14),ISNA(AA14),ISNA(AB14),ISNA(AC14)),NA(),CONCATENATE(U14,V14,W14,X14,Y14,Z14,AA14,AB14)) -> 996 | AE14: =IF(ISNA(AD14),FALSE,IF(C14=$B$1,Worksheet!$B$3,IF(C14=$C$1,Worksheet!$B$4,IF(C14=$D$1,Worksheet!$B$5,IF(C14=$E$1,Worksheet!$B$6,IF(C14=$B$2,Worksheet!$B$7,IF(C14=$C$2,Worksheet!$D$3,IF(C14=$D$2,Worksheet!$D$4,IF(C14=$E$2,Worksheet!$D$5,IF(C14=$C$3,Worksheet!$D$6,IF(C14=$B$3,Worksheet!$D$7,IF(C14=$D$3,Worksheet!$B$10,IF(C14=$E$3,Worksheet!$D$10,FALSE))))))))))))) -> TRUE | AF14: =IF(AE14,D14,"") -> Easy | AG14: =IF(AE14,COUNTIF($AF$5:AF14,AF14),"X") -> 4 | AH14: =CONCATENATE(AE14,AF14) -> TRUEEasy
A15: =CONCATENATE(AE15,D15,AG15) -> TRUEMedium5 | B15: =RAND() -> 0.3418399869 | C15: Round | D15: Medium | E15: 339 | F15: Round | G15: =RANDBETWEEN(11,999)+RANDBETWEEN(1,99)/100 -> 852.22 | H15: to the nearest whole number | T15: =CONCATENATE(F15," ",G15," ",H15," ",I15," ",J15," ",K15," ",L15," ",M15," ",N15," ",O15," ",P15," ",Q15," ",R15) -> Round 852.22 to the nearest whole number | U15: =MROUND(G15,1) -> 852 | AD15: =IF(OR(ISNA(U15),ISNA(V15),ISNA(W15),ISNA(X15),ISNA(Y15),ISNA(Z15),ISNA(AA15),ISNA(AB15),ISNA(AC15)),NA(),CONCATENATE(U15,V15,W15,X15,Y15,Z15,AA15,AB15)) -> 852 | AE15: =IF(ISNA(AD15),FALSE,IF(C15=$B$1,Worksheet!$B$3,IF(C15=$C$1,Worksheet!$B$4,IF(C15=$D$1,Worksheet!$B$5,IF(C15=$E$1,Worksheet!$B$6,IF(C15=$B$2,Worksheet!$B$7,IF(C15=$C$2,Worksheet!$D$3,IF(C15=$D$2,Worksheet!$D$4,IF(C15=$E$2,Worksheet!$D$5,IF(C15=$C$3,Worksheet!$D$6,IF(C15=$B$3,Worksheet!$D$7,IF(C15=$D$3,Worksheet!$B$10,IF(C15=$E$3,Worksheet!$D$10,FALSE))))))))))))) -> TRUE | AF15: =IF(AE15,D15,"") -> Medium | AG15: =IF(AE15,COUNTIF($AF$5:AF15,AF15),"X") -> 5 | AH15: =CONCATENATE(AE15,AF15) -> TRUEMedium
A16: =CONCATENATE(AE16,D16,AG16) -> TRUEMedium6 | B16: =RAND() -> 0.2323184622 | C16: Divide | D16: Medium | E16: 116 | F16: What is half of | G16: =RANDBETWEEN(1,4)*2000+1000 -> 5000 | H16: ? | T16: =CONCATENATE(F16," ",G16," ",H16," ",I16," ",J16," ",K16," ",L16," ",M16," ",N16," ",O16," ",P16," ",Q16," ",R16) -> What is half of 5000 ? | U16: =G16/2 -> 2500 | AD16: =IF(OR(ISNA(U16),ISNA(V16),ISNA(W16),ISNA(X16),ISNA(Y16),ISNA(Z16),ISNA(AA16),ISNA(AB16),ISNA(AC16)),NA(),CONCATENATE(U16,V16,W16,X16,Y16,Z16,AA16,AB16)) -> 2500 | AE16: =IF(ISNA(AD16),FALSE,IF(C16=$B$1,Worksheet!$B$3,IF(C16=$C$1,Worksheet!$B$4,IF(C16=$D$1,Worksheet!$B$5,IF(C16=$E$1,Worksheet!$B$6,IF(C16=$B$2,Worksheet!$B$7,IF(C16=$C$2,Worksheet!$D$3,IF(C16=$D$2,Worksheet!$D$4,IF(C16=$E$2,Worksheet!$D$5,IF(C16=$C$3,Worksheet!$D$6,IF(C16=$B$3,Worksheet!$D$7,IF(C16=$D$3,Worksheet!$B$10,IF(C16=$E$3,Worksheet!$D$10,FALSE))))))))))))) -> TRUE | AF16: =IF(AE16,D16,"") -> Medium | AG16: =IF(AE16,COUNTIF($AF$5:AF16,AF16),"X") -> 6 | AH16: =CONCATENATE(AE16,AF16) -> TRUEMedium
A17: =CONCATENATE(AE17,D17,AG17) -> TRUEEasy5 | B17: =RAND() -> 0.4090980122 | C17: Dec | D17: Easy | E17: 232 | F17: Write these numbers in order from | G17: =CHOOSE(RANDBETWEEN(1,2),"smallest to biggest:","biggest to smallest:") -> smallest to biggest: | H17: =S17+1 -> 8 | I17: =S17+R17/10 -> 7.1 | J17: =S17 -> 7 | K17: =R17+S17/10 -> 1.7 | R17: =SMALL(IF(S17={1,2,3,4,5,6,7,8,9},"",{1,2,3,4,5,6,7,8,9}),RANDBETWEEN(1,8)) -> 1 | S17: =RANDBETWEEN(1,9) -> 7 | T17: =CONCATENATE(F17," ",G17," ",H17,", ",I17,", ",J17,", ",K17," ",L17," ",M17," ",N17) -> Write these numbers in order from smallest to biggest: 8, 7.1, 7, 1.7 | U17: =IF($G17="smallest to biggest:",LARGE($H17:$K17,4),LARGE($H17:$K17,1)) -> 1.7 | V17: =IF($G17="smallest to biggest:",LARGE($H17:$K17,3),LARGE($H17:$K17,2)) -> 7 | W17: =IF($G17="smallest to biggest:",LARGE($H17:$K17,2),LARGE($H17:$K17,3)) -> 7.1 | X17: =IF($G17="smallest to biggest:",LARGE($H17:$K17,1),LARGE($H17:$K17,4)) -> 8 | Z17: =IF(OR(H17=I17,H17=J17,H17=K17,I17=J17,I17=K17,J17=K17),NA(),"") ->  | AD17: =IF(OR(ISNA(U17),ISNA(V17),ISNA(W17),ISNA(X17),ISNA(Y17),ISNA(Z17),ISNA(AA17),ISNA(AB17),ISNA(AC17)),NA(),CONCATENATE(U17,", ",V17,", ",W17,", ",X17,Y17,Z17,AA17,AB17)) -> 1.7, 7, 7.1, 8 | AE17: =IF(ISNA(AD17),FALSE,IF(C17=$B$1,Worksheet!$B$3,IF(C17=$C$1,Worksheet!$B$4,IF(C17=$D$1,Worksheet!$B$5,IF(C17=$E$1,Worksheet!$B$6,IF(C17=$B$2,Worksheet!$B$7,IF(C17=$C$2,Worksheet!$D$3,IF(C17=$D$2,Worksheet!$D$4,IF(C17=$E$2,Worksheet!$D$5,IF(C17=$C$3,Worksheet!$D$6,IF(C17=$B$3,Worksheet!$D$7,IF(C17=$D$3,Worksheet!$B$10,IF(C17=$E$3,Worksheet!$D$10,FALSE))))))))))))) -> TRUE | AF17: =IF(AE17,D17,"") -> Easy | AG17: =IF(AE17,COUNTIF($AF$5:AF17,AF17),"X") -> 5 | AH17: =CONCATENATE(AE17,AF17) -> TRUEEasy
A18: =CONCATENATE(AE18,D18,AG18) -> TRUEMedium7 | B18: =RAND() -> 0.7680783188 | C18: Dec | D18: Medium | E18: 285 | F18: Take away by writing down a sum: | G18: =RANDBETWEEN(20,99)+RANDBETWEEN(1,9)/100+RANDBETWEEN(1,9)/10 -> 29.99 | H18: – | I18: =RANDBETWEEN(10,INT(G18)-1)+RANDBETWEEN(0,9)/10+RANDBETWEEN(1,9)/100 -> 19.26 | T18: =CONCATENATE(F18," ",G18," ",H18," ",I18," ",J18," ",K18," ",L18," ",M18," ",N18," ",O18," ",P18," ",Q18," ",R18) -> Take away by writing down a sum: 29.99 – 19.26 | U18: =G18-I18 -> 10.73 | AD18: =IF(OR(ISNA(U18),ISNA(V18),ISNA(W18),ISNA(X18),ISNA(Y18),ISNA(Z18),ISNA(AA18),ISNA(AB18),ISNA(AC18)),NA(),CONCATENATE(U18,V18,W18,X18,Y18,Z18,AA18,AB18)) -> 10.73 | AE18: =IF(ISNA(AD18),FALSE,IF(C18=$B$1,Worksheet!$B$3,IF(C18=$C$1,Worksheet!$B$4,IF(C18=$D$1,Worksheet!$B$5,IF(C18=$E$1,Worksheet!$B$6,IF(C18=$B$2,Worksheet!$B$7,IF(C18=$C$2,Worksheet!$D$3,IF(C18=$D$2,Worksheet!$D$4,IF(C18=$E$2,Worksheet!$D$5,IF(C18=$C$3,Worksheet!$D$6,IF(C18=$B$3,Worksheet!$D$7,IF(C18=$D$3,Worksheet!$B$10,IF(C18=$E$3,Worksheet!$D$10,FALSE))))))))))))) -> TRUE | AF18: =IF(AE18,D18,"") -> Medium | AG18: =IF(AE18,COUNTIF($AF$5:AF18,AF18),"X") -> 7 | AH18: =CONCATENATE(AE18,AF18) -> TRUEMedium
A19: =CONCATENATE(AE19,D19,AG19) -> TRUEMedium8 | B19: =RAND() -> 0.3885129754 | C19: Choose | D19: Medium | E19: 146 | F19: =CHOOSE(RANDBETWEEN(1,5),"Ben","Daniel","Murray","Barry","Ryan") -> Murray | G19: is saving money to buy a new car. The car costs £ | H19: =RANDBETWEEN(2,5)*1000 -> 2000 | I19: . So far, | J19: =F19 -> Murray | K19: has saved £ | L19: =RANDBETWEEN(11,H19/100-1)*100 -> 1100 | M19: . How much more money does he need? | T19: =CONCATENATE(F19," ",G19,"",H19," ",I19," ",J19," ",K19,"",L19,"",M19," ",N19," ",O19," ",P19," ",Q19," ",R19) -> Murray is saving money to buy a new car. The car costs £2000 . So far, Murray has saved £1100. How much more money does he need? | U19: £ | V19: =H19-L19 -> 900 | AD19: =IF(OR(ISNA(U19),ISNA(V19),ISNA(W19),ISNA(X19),ISNA(Y19),ISNA(Z19),ISNA(AA19),ISNA(AB19),ISNA(AC19)),NA(),CONCATENATE(U19,V19,W19,X19,Y19,Z19,AA19,AB19)) -> £900 | AE19: =IF(ISNA(AD19),FALSE,IF(C19=$B$1,Worksheet!$B$3,IF(C19=$C$1,Worksheet!$B$4,IF(C19=$D$1,Worksheet!$B$5,IF(C19=$E$1,Worksheet!$B$6,IF(C19=$B$2,Worksheet!$B$7,IF(C19=$C$2,Worksheet!$D$3,IF(C19=$D$2,Worksheet!$D$4,IF(C19=$E$2,Worksheet!$D$5,IF(C19=$C$3,Worksheet!$D$6,IF(C19=$B$3,Worksheet!$D$7,IF(C19=$D$3,Worksheet!$B$10,IF(C19=$E$3,Worksheet!$D$10,FALSE))))))))))))) -> TRUE | AF19: =IF(AE19,D19,"") -> Medium | AG19: =IF(AE19,COUNTIF($AF$5:AF19,AF19),"X") -> 8 | AH19: =CONCATENATE(AE19,AF19) -> TRUEMedium
A20: =CONCATENATE(AE20,D20,AG20) -> TRUEEasy6 | B20: =RAND() -> 0.2511281215 | C20: Neg | D20: Easy | E20: 351 | F20: Circle the number that is SMALLEST: | G20: 0 | H20: =I20+1 -> -1 | I20: =RANDBETWEEN(-8,-2) -> -2 | T20: =CONCATENATE(F20," ",G20,", ",H20,", ",I20,", ",J20," ",K20," ",L20," ",M20," ",N20," ",O20," ",P20," ",Q20," ",R20) -> Circle the number that is SMALLEST: 0, -1, -2, | U20: =MIN(G20:I20) -> -2 | AC20: =IF(ISERROR(T20),NA(),"") ->  | AD20: =IF(OR(ISNA(U20),ISNA(V20),ISNA(W20),ISNA(X20),ISNA(Y20),ISNA(Z20),ISNA(AA20),ISNA(AB20),ISNA(AC20)),NA(),CONCATENATE(U20,V20,W20,X20,Y20,Z20,AA20,AB20)) -> -2 | AE20: =IF(ISNA(AD20),FALSE,IF(C20=$B$1,Worksheet!$B$3,IF(C20=$C$1,Worksheet!$B$4,IF(C20=$D$1,Worksheet!$B$5,IF(C20=$E$1,Worksheet!$B$6,IF(C20=$B$2,Worksheet!$B$7,IF(C20=$C$2,Worksheet!$D$3,IF(C20=$D$2,Worksheet!$D$4,IF(C20=$E$2,Worksheet!$D$5,IF(C20=$C$3,Worksheet!$D$6,IF(C20=$B$3,Worksheet!$D$7,IF(C20=$D$3,Worksheet!$B$10,IF(C20=$E$3,Worksheet!$D$10,FALSE))))))))))))) -> TRUE | AF20: =IF(AE20,D20,"") -> Easy | AG20: =IF(AE20,COUNTIF($AF$5:AF20,AF20),"X") -> 6 | AH20: =CONCATENATE(AE20,AF20) -> TRUEEasy
A21: =CONCATENATE(AE21,D21,AG21) -> TRUEMedium9 | B21: =RAND() -> 0.03732271194 | C21: Mult | D21: Medium | E21: 81 | F21: Circle the number that is a multiple of 10: | G21: =IF($S21=1,RANDBETWEEN(2,10)*3,RANDBETWEEN(1,9)*3+RANDBETWEEN(1,2)) -> 7 | H21: =IF($S21=2,RANDBETWEEN(2,10)*3,RANDBETWEEN(1,9)*3+RANDBETWEEN(1,2)) -> 14 | I21: =IF($S21=3,RANDBETWEEN(2,10)*3,RANDBETWEEN(1,9)*3+RANDBETWEEN(1,2)) -> 13 | J21: =IF($S21=4,RANDBETWEEN(2,10)*3,RANDBETWEEN(1,9)*3+RANDBETWEEN(1,2)) -> 18 | S21: =RANDBETWEEN(1,4) -> 4 | T21: =CONCATENATE(F21," ",G21," ",H21," ",I21," ",J21," ",K21," ",L21," ",M21," ",N21," ",O21," ",P21," ",Q21," ",R21) -> Circle the number that is a multiple of 10: 7 14 13 18 | U21: =IF(S21=1,G21,IF(S21=2,H21,IF(S21=3,I21,J21))) -> 18 | V21: =IF(OR(G21=H21,G21=I21,G21=J21,H21=I21,H21=J21,I21=J21),NA(),"") ->  | AD21: =IF(OR(ISNA(U21),ISNA(V21),ISNA(W21),ISNA(X21),ISNA(Y21),ISNA(Z21),ISNA(AA21),ISNA(AB21),ISNA(AC21)),NA(),CONCATENATE(U21,V21,W21,X21,Y21,Z21,AA21,AB21)) -> 18 | AE21: =IF(ISNA(AD21),FALSE,IF(C21=$B$1,Worksheet!$B$3,IF(C21=$C$1,Worksheet!$B$4,IF(C21=$D$1,Worksheet!$B$5,IF(C21=$E$1,Worksheet!$B$6,IF(C21=$B$2,Worksheet!$B$7,IF(C21=$C$2,Worksheet!$D$3,IF(C21=$D$2,Worksheet!$D$4,IF(C21=$E$2,Worksheet!$D$5,IF(C21=$C$3,Worksheet!$D$6,IF(C21=$B$3,Worksheet!$D$7,IF(C21=$D$3,Worksheet!$B$10,IF(C21=$E$3,Worksheet!$D$10,FALSE))))))))))))) -> TRUE | AF21: =IF(AE21,D21,"") -> Medium | AG21: =IF(AE21,COUNTIF($AF$5:AF21,AF21),"X") -> 9 | AH21: =CONCATENATE(AE21,AF21) -> TRUEMedium
A22: =CONCATENATE(AE22,D22,AG22) -> TRUEEasy7 | B22: =RAND() -> 0.2741630049 | C22: Neg | D22: Easy | E22: 354 | F22: Continue the pattern for three more numbers: | G22: =RANDBETWEEN(2,4) -> 3 | H22: =G22+S22 -> 2 | I22: =H22+S22 -> 1 | J22: =I22+S22 -> 0 | K22: ____ | L22: ____ | M22: ____ | S22: -1 | T22: =CONCATENATE(F22," ",G22,", ",H22,", ",I22,", ",J22,", ",K22,", ",L22,", ",M22," ",N22," ",O22," ",P22," ",Q22," ",R22) -> Continue the pattern for three more numbers: 3, 2, 1, 0, ____, ____, ____ | U22: =J22+S22 -> -1 | V22: =U22+S22 -> -2 | W22: =V22+S22 -> -3 | AD22: =IF(OR(ISNA(U22),ISNA(V22),ISNA(W22),ISNA(X22),ISNA(Y22),ISNA(Z22),ISNA(AA22),ISNA(AB22),ISNA(AC22)),NA(),CONCATENATE(U22,", ",V22,", ",W22,X22,Y22,Z22,AA22,AB22)) -> -1, -2, -3 | AE22: =IF(ISNA(AD22),FALSE,IF(C22=$B$1,Worksheet!$B$3,IF(C22=$C$1,Worksheet!$B$4,IF(C22=$D$1,Worksheet!$B$5,IF(C22=$E$1,Worksheet!$B$6,IF(C22=$B$2,Worksheet!$B$7,IF(C22=$C$2,Worksheet!$D$3,IF(C22=$D$2,Worksheet!$D$4,IF(C22=$E$2,Worksheet!$D$5,IF(C22=$C$3,Worksheet!$D$6,IF(C22=$B$3,Worksheet!$D$7,IF(C22=$D$3,Worksheet!$B$10,IF(C22=$E$3,Worksheet!$D$10,FALSE))))))))))))) -> TRUE | AF22: =IF(AE22,D22,"") -> Easy | AG22: =IF(AE22,COUNTIF($AF$5:AF22,AF22),"X") -> 7 | AH22: =CONCATENATE(AE22,AF22) -> TRUEEasy
A23: =CONCATENATE(AE23,D23,AG23) -> TRUEMedium10 | B23: =RAND() -> 0.7543084519 | C23: Dec | D23: Medium | E23: 250 | F23: What number is half way between | G23: =RANDBETWEEN(1,9)+RANDBETWEEN(0,9)/10 -> 7.3 | H23: and | I23: =G23+0.1 -> 7.4 | J23: ? | T23: =CONCATENATE(F23," ",G23," ",H23," ",I23," ",J23," ",K23," ",L23," ",M23," ",N23," ",O23," ",P23," ",Q23," ",R23) -> What number is half way between 7.3 and 7.4 ? | U23: =G23+0.05 -> 7.35 | AD23: =IF(OR(ISNA(U23),ISNA(V23),ISNA(W23),ISNA(X23),ISNA(Y23),ISNA(Z23),ISNA(AA23),ISNA(AB23),ISNA(AC23)),NA(),CONCATENATE(U23,V23,W23,X23,Y23,Z23,AA23,AB23)) -> 7.35 | AE23: =IF(ISNA(AD23),FALSE,IF(C23=$B$1,Worksheet!$B$3,IF(C23=$C$1,Worksheet!$B$4,IF(C23=$D$1,Worksheet!$B$5,IF(C23=$E$1,Worksheet!$B$6,IF(C23=$B$2,Worksheet!$B$7,IF(C23=$C$2,Worksheet!$D$3,IF(C23=$D$2,Worksheet!$D$4,IF(C23=$E$2,Worksheet!$D$5,IF(C23=$C$3,Worksheet!$D$6,IF(C23=$B$3,Worksheet!$D$7,IF(C23=$D$3,Worksheet!$B$10,IF(C23=$E$3,Worksheet!$D$10,FALSE))))))))))))) -> TRUE | AF23: =IF(AE23,D23,"") -> Medium | AG23: =IF(AE23,COUNTIF($AF$5:AF23,AF23),"X") -> 10 | AH23: =CONCATENATE(AE23,AF23) -> TRUEMedium
A24: =CONCATENATE(AE24,D24,AG24) -> TRUEEasy8 | B24: =RAND() -> 0.3019603311 | C24: Dec | D24: Easy | E24: 236 | F24: Add: | G24: =RANDBETWEEN(11,90)+RANDBETWEEN(1,8)/10 -> 25.6 | H24: + | I24: 0.1 | T24: =CONCATENATE(F24," ",G24," ",H24," ",I24," ",J24," ",K24," ",L24," ",M24," ",N24," ",O24," ",P24," ",Q24," ",R24) -> Add: 25.6 + 0.1 | U24: =G24+0.1 -> 25.7 | AD24: =IF(OR(ISNA(U24),ISNA(V24),ISNA(W24),ISNA(X24),ISNA(Y24),ISNA(Z24),ISNA(AA24),ISNA(AB24),ISNA(AC24)),NA(),CONCATENATE(U24,V24,W24,X24,Y24,Z24,AA24,AB24)) -> 25.7 | AE24: =IF(ISNA(AD24),FALSE,IF(C24=$B$1,Worksheet!$B$3,IF(C24=$C$1,Worksheet!$B$4,IF(C24=$D$1,Worksheet!$B$5,IF(C24=$E$1,Worksheet!$B$6,IF(C24=$B$2,Worksheet!$B$7,IF(C24=$C$2,Worksheet!$D$3,IF(C24=$D$2,Worksheet!$D$4,IF(C24=$E$2,Worksheet!$D$5,IF(C24=$C$3,Worksheet!$D$6,IF(C24=$B$3,Worksheet!$D$7,IF(C24=$D$3,Worksheet!$B$10,IF(C24=$E$3,Worksheet!$D$10,FALSE))))))))))))) -> TRUE | AF24: =IF(AE24,D24,"") -> Easy | AG24: =IF(AE24,COUNTIF($AF$5:AF24,AF24),"X") -> 8 | AH24: =CONCATENATE(AE24,AF24) -> TRUEEasy
A25: =CONCATENATE(AE25,D25,AG25) -> TRUEHard3 | B25: =RAND() -> 0.8315600237 | C25: Dec | D25: Hard | E25: 257 | F25: Continue the pattern for three more numbers: | G25: =RANDBETWEEN(6,40)+0.25 -> 38.25 | H25: =G25+S25 -> 38.2 | I25: =H25+S25 -> 38.15 | J25: =I25+S25 -> 38.1 | K25: ____ | L25: ____ | M25: ____ | S25: -0.05 | T25: =CONCATENATE(F25," ",G25,", ",H25,", ",I25,", ",J25,", ",K25,", ",L25,", ",M25," ",N25," ",O25," ",P25," ",Q25," ",R25) -> Continue the pattern for three more numbers: 38.25, 38.2, 38.15, 38.1, ____, ____, ____ | U25: =J25+S25 -> 38.05 | V25: =U25+S25 -> 38 | W25: =V25+S25 -> 37.95 | AD25: =IF(OR(ISNA(U25),ISNA(V25),ISNA(W25),ISNA(X25),ISNA(Y25),ISNA(Z25),ISNA(AA25),ISNA(AB25),ISNA(AC25)),NA(),CONCATENATE(U25,", ",V25,", ",W25,X25,Y25,Z25,AA25,AB25)) -> 38.05, 38, 37.95 | AE25: =IF(ISNA(AD25),FALSE,IF(C25=$B$1,Worksheet!$B$3,IF(C25=$C$1,Worksheet!$B$4,IF(C25=$D$1,Worksheet!$B$5,IF(C25=$E$1,Worksheet!$B$6,IF(C25=$B$2,Worksheet!$B$7,IF(C25=$C$2,Worksheet!$D$3,IF(C25=$D$2,Worksheet!$D$4,IF(C25=$E$2,Worksheet!$D$5,IF(C25=$C$3,Worksheet!$D$6,IF(C25=$B$3,Worksheet!$D$7,IF(C25=$D$3,Worksheet!$B$10,IF(C25=$E$3,Worksheet!$D$10,FALSE))))))))))))) -> TRUE | AF25: =IF(AE25,D25,"") -> Hard | AG25: =IF(AE25,COUNTIF($AF$5:AF25,AF25),"X") -> 3 | AH25: =CONCATENATE(AE25,AF25) -> TRUEHard
A26: =CONCATENATE(AE26,D26,AG26) -> TRUEEasy9 | B26: =RAND() -> 0.200119904 | C26: Divide | D26: Easy | E26: 118 | F26: Divide: | G26: =U26*I26 -> 40 | H26: ÷ | I26: =RANDBETWEEN(3,5) -> 5 | T26: =CONCATENATE(F26," ",G26," ",H26," ",I26," ",J26," ",K26," ",L26," ",M26," ",N26," ",O26," ",P26," ",Q26," ",R26) -> Divide: 40 ÷ 5 | U26: =RANDBETWEEN(6,9) -> 8 | AD26: =IF(OR(ISNA(U26),ISNA(V26),ISNA(W26),ISNA(X26),ISNA(Y26),ISNA(Z26),ISNA(AA26),ISNA(AB26),ISNA(AC26)),NA(),CONCATENATE(U26,V26,W26,X26,Y26,Z26,AA26,AB26)) -> 8 | AE26: =IF(ISNA(AD26),FALSE,IF(C26=$B$1,Worksheet!$B$3,IF(C26=$C$1,Worksheet!$B$4,IF(C26=$D$1,Worksheet!$B$5,IF(C26=$E$1,Worksheet!$B$6,IF(C26=$B$2,Worksheet!$B$7,IF(C26=$C$2,Worksheet!$D$3,IF(C26=$D$2,Worksheet!$D$4,IF(C26=$E$2,Worksheet!$D$5,IF(C26=$C$3,Worksheet!$D$6,IF(C26=$B$3,Worksheet!$D$7,IF(C26=$D$3,Worksheet!$B$10,IF(C26=$E$3,Worksheet!$D$10,FALSE))))))))))))) -> TRUE | AF26: =IF(AE26,D26,"") -> Easy | AG26: =IF(AE26,COUNTIF($AF$5:AF26,AF26),"X") -> 9 | AH26: =CONCATENATE(AE26,AF26) -> TRUEEasy
A27: =CONCATENATE(AE27,D27,AG27) -> TRUEMedium11 | B27: =RAND() -> 0.6171086785 | C27: % | D27: Medium | E27: 316 | F27: What is | G27: 1/10 | H27: as a percentage? | T27: =CONCATENATE(F27," ",G27," ",H27," ",I27," ",J27," ",K27," ",L27," ",M27," ",N27," ",O27," ",P27," ",Q27," ",R27) -> What is 1/10 as a percentage? | U27: 10 | V27: % | AD27: =IF(OR(ISNA(U27),ISNA(V27),ISNA(W27),ISNA(X27),ISNA(Y27),ISNA(Z27),ISNA(AA27),ISNA(AB27),ISNA(AC27)),NA(),CONCATENATE(U27,V27,W27,X27,Y27,Z27,AA27,AB27)) -> 10% | AE27: =IF(ISNA(AD27),FALSE,IF(C27=$B$1,Worksheet!$B$3,IF(C27=$C$1,Worksheet!$B$4,IF(C27=$D$1,Worksheet!$B$5,IF(C27=$E$1,Worksheet!$B$6,IF(C27=$B$2,Worksheet!$B$7,IF(C27=$C$2,Worksheet!$D$3,IF(C27=$D$2,Worksheet!$D$4,IF(C27=$E$2,Worksheet!$D$5,IF(C27=$C$3,Worksheet!$D$6,IF(C27=$B$3,Worksheet!$D$7,IF(C27=$D$3,Worksheet!$B$10,IF(C27=$E$3,Worksheet!$D$10,FALSE))))))))))))) -> TRUE | AF27: =IF(AE27,D27,"") -> Medium | AG27: =IF(AE27,COUNTIF($AF$5:AF27,AF27),"X") -> 11 | AH27: =CONCATENATE(AE27,AF27) -> TRUEMedium
A28: =CONCATENATE(AE28,D28,AG28) -> TRUEHard4 | B28: =RAND() -> 0.7252765913 | C28: +- | D28: Hard | E28: 30 | F28: Fill in the missing number: | G28: =RANDBETWEEN(1,8)*100+RANDBETWEEN(1,8)*10+RANDBETWEEN(1,9) -> 723 | H28: + ____ = | I28: 1000 | T28: =CONCATENATE(F28," ",G28," ",H28," ",I28," ",J28," ",K28," ",L28," ",M28," ",N28," ",O28," ",P28," ",Q28," ",R28) -> Fill in the missing number: 723 + ____ = 1000 | U28: =I28-G28 -> 277 | AD28: =IF(OR(ISNA(U28),ISNA(V28),ISNA(W28),ISNA(X28),ISNA(Y28),ISNA(Z28),ISNA(AA28),ISNA(AB28),ISNA(AC28)),NA(),CONCATENATE(U28,V28,W28,X28,Y28,Z28,AA28,AB28)) -> 277 | AE28: =IF(ISNA(AD28),FALSE,IF(C28=$B$1,Worksheet!$B$3,IF(C28=$C$1,Worksheet!$B$4,IF(C28=$D$1,Worksheet!$B$5,IF(C28=$E$1,Worksheet!$B$6,IF(C28=$B$2,Worksheet!$B$7,IF(C28=$C$2,Worksheet!$D$3,IF(C28=$D$2,Worksheet!$D$4,IF(C28=$E$2,Worksheet!$D$5,IF(C28=$C$3,Worksheet!$D$6,IF(C28=$B$3,Worksheet!$D$7,IF(C28=$D$3,Worksheet!$B$10,IF(C28=$E$3,Worksheet!$D$10,FALSE))))))))))))) -> TRUE | AF28: =IF(AE28,D28,"") -> Hard | AG28: =IF(AE28,COUNTIF($AF$5:AF28,AF28),"X") -> 4 | AH28: =CONCATENATE(AE28,AF28) -> TRUEHard
A29: =CONCATENATE(AE29,D29,AG29) -> TRUEHard5 | B29: =RAND() -> 0.8210960842 | C29: % | D29: Hard | E29: 330 | F29: A boy is | G29: =RANDBETWEEN(12,18)*10 -> 140 | H29: cm tall. He grows 10% taller. What height is he now? | T29: =CONCATENATE(F29," ",G29," ",H29," ",I29," ",J29," ",K29," ",L29," ",M29," ",N29," ",O29," ",P29," ",Q29," ",R29) -> A boy is 140 cm tall. He grows 10% taller. What height is he now? | U29: =G29*1.1 -> 154 | V29: cm | AD29: =IF(OR(ISNA(U29),ISNA(V29),ISNA(W29),ISNA(X29),ISNA(Y29),ISNA(Z29),ISNA(AA29),ISNA(AB29),ISNA(AC29)),NA(),CONCATENATE(U29,V29,W29,X29,Y29,Z29,AA29,AB29)) -> 154cm | AE29: =IF(ISNA(AD29),FALSE,IF(C29=$B$1,Worksheet!$B$3,IF(C29=$C$1,Worksheet!$B$4,IF(C29=$D$1,Worksheet!$B$5,IF(C29=$E$1,Worksheet!$B$6,IF(C29=$B$2,Worksheet!$B$7,IF(C29=$C$2,Worksheet!$D$3,IF(C29=$D$2,Worksheet!$D$4,IF(C29=$E$2,Worksheet!$D$5,IF(C29=$C$3,Worksheet!$D$6,IF(C29=$B$3,Worksheet!$D$7,IF(C29=$D$3,Worksheet!$B$10,IF(C29=$E$3,Worksheet!$D$10,FALSE))))))))))))) -> TRUE | AF29: =IF(AE29,D29,"") -> Hard | AG29: =IF(AE29,COUNTIF($AF$5:AF29,AF29),"X") -> 5 | AH29: =CONCATENATE(AE29,AF29) -> TRUEHard
A30: =CONCATENATE(AE30,D30,AG30) -> FALSEMediumX | B30: =RAND() -> 0.4688932994 | C30: Alg | D30: Medium | E30: 366 | F30: Algebra. If | G30: =CHOOSE(RANDBETWEEN(1,3),"a","x","p") -> a | H30: = | I30: =RANDBETWEEN(2,10) -> 8 | J30: and | K30: =IF(G30="x","y",IF(G30="a","b","q")) -> b | L30: = | M30: =RANDBETWEEN(2,5) -> 3 | N30: , what is | O30: =RANDBETWEEN(2,5) -> 2 | P30: =CONCATENATE(G30," + ") -> a + | Q30: =RANDBETWEEN(2,5) -> 5 | R30: =CONCATENATE(K30," ?") -> b ? | T30: =CONCATENATE(F30," ",G30," ",H30," ",I30," ",J30," ",K30," ",L30," ",M30," ",N30," ",O30,"",P30," ",Q30,"",R30) -> Algebra. If a = 8 and b = 3 , what is 2a + 5b ? | U30: =O30*I30+Q30*M30 -> 31 | W30: =IF(U30<0,NA(),"") ->  | AD30: =IF(OR(ISNA(U30),ISNA(V30),ISNA(W30),ISNA(X30),ISNA(Y30),ISNA(Z30),ISNA(AA30),ISNA(AB30),ISNA(AC30)),NA(),CONCATENATE(U30,V30,W30,X30,Y30,Z30,AA30,AB30)) -> 31 | AE30: =IF(ISNA(AD30),FALSE,IF(C30=$B$1,Worksheet!$B$3,IF(C30=$C$1,Worksheet!$B$4,IF(C30=$D$1,Worksheet!$B$5,IF(C30=$E$1,Worksheet!$B$6,IF(C30=$B$2,Worksheet!$B$7,IF(C30=$C$2,Worksheet!$D$3,IF(C30=$D$2,Worksheet!$D$4,IF(C30=$E$2,Worksheet!$D$5,IF(C30=$C$3,Worksheet!$D$6,IF(C30=$B$3,Worksheet!$D$7,IF(C30=$D$3,Worksheet!$B$10,IF(C30=$E$3,Worksheet!$D$10,FALSE))))))))))))) -> FALSE | AF30: =IF(AE30,D30,"") ->  | AG30: =IF(AE30,COUNTIF($AF$5:AF30,AF30),"X") -> X | AH30: =CONCATENATE(AE30,AF30) -> FALSE
A31: =CONCATENATE(AE31,D31,AG31) -> TRUEMedium12 | B31: =RAND() -> 0.04857600645 | C31: % | D31: Medium | E31: 294 | F31: Write | G31: =RANDBETWEEN(1,9) -> 3 | H31: % as a decimal | T31: =CONCATENATE(F31," ",G31,"",H31," ",I31," ",J31," ",K31," ",L31," ",M31," ",N31," ",O31," ",P31," ",Q31," ",R31) -> Write 3% as a decimal | U31: =G31/100 -> 0.03 | W31: =IF(G33=G31,NA(),"") ->  | AD31: =IF(OR(ISNA(U31),ISNA(V31),ISNA(W31),ISNA(X31),ISNA(Y31),ISNA(Z31),ISNA(AA31),ISNA(AB31),ISNA(AC31)),NA(),CONCATENATE(U31,V31,W31,X31,Y31,Z31,AA31,AB31)) -> 0.03 | AE31: =IF(ISNA(AD31),FALSE,IF(C31=$B$1,Worksheet!$B$3,IF(C31=$C$1,Worksheet!$B$4,IF(C31=$D$1,Worksheet!$B$5,IF(C31=$E$1,Worksheet!$B$6,IF(C31=$B$2,Worksheet!$B$7,IF(C31=$C$2,Worksheet!$D$3,IF(C31=$D$2,Worksheet!$D$4,IF(C31=$E$2,Worksheet!$D$5,IF(C31=$C$3,Worksheet!$D$6,IF(C31=$B$3,Worksheet!$D$7,IF(C31=$D$3,Worksheet!$B$10,IF(C31=$E$3,Worksheet!$D$10,FALSE))))))))))))) -> TRUE | AF31: =IF(AE31,D31,"") -> Medium | AG31: =IF(AE31,COUNTIF($AF$5:AF31,AF31),"X") -> 12 | AH31: =CONCATENATE(AE31,AF31) -> TRUEMedium
A32: =CONCATENATE(AE32,D32,AG32) -> TRUEHard6 | B32: =RAND() -> 0.3729481654 | C32: Frac | D32: Hard | E32: 159 | F32: Fractions. What is | G32: =CHOOSE(RANDBETWEEN(1,5),"2/9","4/9","5/9","7/9","8/9") -> 8/9 | H32: of | I32: =9*RANDBETWEEN(4,11) -> 63 | J32: ? | T32: =CONCATENATE(F32," ",G32," ",H32," ",I32," ",J32," ",K32," ",L32," ",M32," ",N32," ",O32," ",P32," ",Q32," ",R32) -> Fractions. What is 8/9 of 63 ? | U32: =I32/9*IF(G32="2/9",2,IF(G32="4/9",4,IF(G32="5/9",5,IF(G32="7/9",7,8)))) -> 56 | Y32: =IF(INT(U32)<>U32,NA(),"") ->  | AD32: =IF(OR(ISNA(U32),ISNA(V32),ISNA(W32),ISNA(X32),ISNA(Y32),ISNA(Z32),ISNA(AA32),ISNA(AB32),ISNA(AC32)),NA(),CONCATENATE(U32,V32,W32,X32,Y32,Z32,AA32,AB32)) -> 56 | AE32: =IF(ISNA(AD32),FALSE,IF(C32=$B$1,Worksheet!$B$3,IF(C32=$C$1,Worksheet!$B$4,IF(C32=$D$1,Worksheet!$B$5,IF(C32=$E$1,Worksheet!$B$6,IF(C32=$B$2,Worksheet!$B$7,IF(C32=$C$2,Worksheet!$D$3,IF(C32=$D$2,Worksheet!$D$4,IF(C32=$E$2,Worksheet!$D$5,IF(C32=$C$3,Worksheet!$D$6,IF(C32=$B$3,Worksheet!$D$7,IF(C32=$D$3,Worksheet!$B$10,IF(C32=$E$3,Worksheet!$D$10,FALSE))))))))))))) -> TRUE | AF32: =IF(AE32,D32,"") -> Hard | AG32: =IF(AE32,COUNTIF($AF$5:AF32,AF32),"X") -> 6 | AH32: =CONCATENATE(AE32,AF32) -> TRUEHard
A33: =CONCATENATE(AE33,D33,AG33) -> FALSEHardX | B33: =RAND() -> 0.3472173318 | C33: Alg | D33: Hard | E33: 371 | F33: Algebra. If | G33: =CHOOSE(RANDBETWEEN(1,3),"a","x","p") -> p | H33: = | I33: =RANDBETWEEN(2,10) -> 2 | J33: and | K33: =IF(G33="x","y",IF(G33="a","b","q")) -> q | L33: = | M33: =RANDBETWEEN(2,10) -> 10 | N33: , what is | O33: =RANDBETWEEN(2,10) -> 4 | P33: =CONCATENATE(G33," – ") -> p – | Q33: =RANDBETWEEN(2,10) -> 5 | R33: =CONCATENATE(K33," ?") -> q ? | T33: =CONCATENATE(F33," ",G33," ",H33," ",I33," ",J33," ",K33," ",L33," ",M33," ",N33," ",O33,"",P33," ",Q33,"",R33) -> Algebra. If p = 2 and q = 10 , what is 4p – 5q ? | U33: =O33*I33-Q33*M33 -> -42 | W33: =IF(U33<0,NA(),"") ->  | AD33: =IF(OR(ISNA(U33),ISNA(V33),ISNA(W33),ISNA(X33),ISNA(Y33),ISNA(Z33),ISNA(AA33),ISNA(AB33),ISNA(AC33)),NA(),CONCATENATE(U33,V33,W33,X33,Y33,Z33,AA33,AB33)) ->  | AE33: =IF(ISNA(AD33),FALSE,IF(C33=$B$1,Worksheet!$B$3,IF(C33=$C$1,Worksheet!$B$4,IF(C33=$D$1,Worksheet!$B$5,IF(C33=$E$1,Worksheet!$B$6,IF(C33=$B$2,Worksheet!$B$7,IF(C33=$C$2,Worksheet!$D$3,IF(C33=$D$2,Worksheet!$D$4,IF(C33=$E$2,Worksheet!$D$5,IF(C33=$C$3,Worksheet!$D$6,IF(C33=$B$3,Worksheet!$D$7,IF(C33=$D$3,Worksheet!$B$10,IF(C33=$E$3,Worksheet!$D$10,FALSE))))))))))))) -> FALSE | AF33: =IF(AE33,D33,"") ->  | AG33: =IF(AE33,COUNTIF($AF$5:AF33,AF33),"X") -> X | AH33: =CONCATENATE(AE33,AF33) -> FALSE
A34: =CONCATENATE(AE34,D34,AG34) -> TRUEMedium13 | B34: =RAND() -> 0.6804535157 | C34: % | D34: Medium | E34: 312 | F34: What is | G34: 1/2 | H34: as a percentage? | T34: =CONCATENATE(F34," ",G34," ",H34," ",I34," ",J34," ",K34," ",L34," ",M34," ",N34," ",O34," ",P34," ",Q34," ",R34) -> What is 1/2 as a percentage? | U34: 50 | V34: % | AD34: =IF(OR(ISNA(U34),ISNA(V34),ISNA(W34),ISNA(X34),ISNA(Y34),ISNA(Z34),ISNA(AA34),ISNA(AB34),ISNA(AC34)),NA(),CONCATENATE(U34,V34,W34,X34,Y34,Z34,AA34,AB34)) -> 50% | AE34: =IF(ISNA(AD34),FALSE,IF(C34=$B$1,Worksheet!$B$3,IF(C34=$C$1,Worksheet!$B$4,IF(C34=$D$1,Worksheet!$B$5,IF(C34=$E$1,Worksheet!$B$6,IF(C34=$B$2,Worksheet!$B$7,IF(C34=$C$2,Worksheet!$D$3,IF(C34=$D$2,Worksheet!$D$4,IF(C34=$E$2,Worksheet!$D$5,IF(C34=$C$3,Worksheet!$D$6,IF(C34=$B$3,Worksheet!$D$7,IF(C34=$D$3,Worksheet!$B$10,IF(C34=$E$3,Worksheet!$D$10,FALSE))))))))))))) -> TRUE | AF34: =IF(AE34,D34,"") -> Medium | AG34: =IF(AE34,COUNTIF($AF$5:AF34,AF34),"X") -> 13 | AH34: =CONCATENATE(AE34,AF34) -> TRUEMedium
A35: =CONCATENATE(AE35,D35,AG35) -> TRUEEasy10 | B35: =RAND() -> 0.3665260874 | C35: Num | D35: Easy | E35: 20 | F35: Fill in the missing numbers: | G35: =RANDBETWEEN(2,8)*1000+700+RANDBETWEEN(1,99) -> 3768 | H35: =G35+S35 -> 3868 | I35: _____ | J35: _____ | K35: =H35+3*S35 -> 4168 | L35: =K35+S35 -> 4268 | S35: 100 | T35: =CONCATENATE(F35," ",G35,", ",H35,", ",I35,", ",J35,", ",K35,", ",L35,", ",M35," ",N35," ",O35," ",P35," ",Q35," ",R35) -> Fill in the missing numbers: 3768, 3868, _____, _____, 4168, 4268, | U35: =H35+S35 -> 3968 | V35: , | W35: =U35+S35 -> 4068 | AD35: =IF(OR(ISNA(U35),ISNA(V35),ISNA(W35),ISNA(X35),ISNA(Y35),ISNA(Z35),ISNA(AA35),ISNA(AB35),ISNA(AC35)),NA(),CONCATENATE(U35,V35,W35,X35,Y35,Z35,AA35,AB35)) -> 3968, 4068 | AE35: =IF(ISNA(AD35),FALSE,IF(C35=$B$1,Worksheet!$B$3,IF(C35=$C$1,Worksheet!$B$4,IF(C35=$D$1,Worksheet!$B$5,IF(C35=$E$1,Worksheet!$B$6,IF(C35=$B$2,Worksheet!$B$7,IF(C35=$C$2,Worksheet!$D$3,IF(C35=$D$2,Worksheet!$D$4,IF(C35=$E$2,Worksheet!$D$5,IF(C35=$C$3,Worksheet!$D$6,IF(C35=$B$3,Worksheet!$D$7,IF(C35=$D$3,Worksheet!$B$10,IF(C35=$E$3,Worksheet!$D$10,FALSE))))))))))))) -> TRUE | AF35: =IF(AE35,D35,"") -> Easy | AG35: =IF(AE35,COUNTIF($AF$5:AF35,AF35),"X") -> 10 | AH35: =CONCATENATE(AE35,AF35) -> TRUEEasy
A36: =CONCATENATE(AE36,D36,AG36) -> TRUEHard7 | B36: =RAND() -> 0.3518754195 | C36: % | D36: Hard | E36: 331 | F36: A chocolate bar | G36: =RANDBETWEEN(5,10)*5 -> 35 | H36: grams. It is made 20g bigger. What weight is it now? | T36: =CONCATENATE(F36," ",G36," ",H36," ",I36," ",J36," ",K36," ",L36," ",M36," ",N36," ",O36," ",P36," ",Q36," ",R36) -> A chocolate bar 35 grams. It is made 20g bigger. What weight is it now? | U36: =G36*1.2 -> 42 | V36: cm | AD36: =IF(OR(ISNA(U36),ISNA(V36),ISNA(W36),ISNA(X36),ISNA(Y36),ISNA(Z36),ISNA(AA36),ISNA(AB36),ISNA(AC36)),NA(),CONCATENATE(U36,V36,W36,X36,Y36,Z36,AA36,AB36)) -> 42cm | AE36: =IF(ISNA(AD36),FALSE,IF(C36=$B$1,Worksheet!$B$3,IF(C36=$C$1,Worksheet!$B$4,IF(C36=$D$1,Worksheet!$B$5,IF(C36=$E$1,Worksheet!$B$6,IF(C36=$B$2,Worksheet!$B$7,IF(C36=$C$2,Worksheet!$D$3,IF(C36=$D$2,Worksheet!$D$4,IF(C36=$E$2,Worksheet!$D$5,IF(C36=$C$3,Worksheet!$D$6,IF(C36=$B$3,Worksheet!$D$7,IF(C36=$D$3,Worksheet!$B$10,IF(C36=$E$3,Worksheet!$D$10,FALSE))))))))))))) -> TRUE | AF36: =IF(AE36,D36,"") -> Hard | AG36: =IF(AE36,COUNTIF($AF$5:AF36,AF36),"X") -> 7 | AH36: =CONCATENATE(AE36,AF36) -> TRUEHard
A37: =CONCATENATE(AE37,D37,AG37) -> TRUEEasy11 | B37: =RAND() -> 0.5455793266 | C37: Dec | D37: Easy | E37: 216 | F37: Write the fraction | G37: =RANDBETWEEN(1,9)*10+RANDBETWEEN(1,9) -> 23 | H37: /100 | I37: as a decimal | T37: =CONCATENATE(F37," ",G37,"",H37," ",I37," ",J37," ",K37," ",L37," ",M37," ",N37," ",O37," ",P37," ",Q37," ",R37) -> Write the fraction 23/100 as a decimal | U37: =G37/100 -> 0.23 | AD37: =IF(OR(ISNA(U37),ISNA(V37),ISNA(W37),ISNA(X37),ISNA(Y37),ISNA(Z37),ISNA(AA37),ISNA(AB37),ISNA(AC37)),NA(),CONCATENATE(U37,V37,W37,X37,Y37,Z37,AA37,AB37)) -> 0.23 | AE37: =IF(ISNA(AD37),FALSE,IF(C37=$B$1,Worksheet!$B$3,IF(C37=$C$1,Worksheet!$B$4,IF(C37=$D$1,Worksheet!$B$5,IF(C37=$E$1,Worksheet!$B$6,IF(C37=$B$2,Worksheet!$B$7,IF(C37=$C$2,Worksheet!$D$3,IF(C37=$D$2,Worksheet!$D$4,IF(C37=$E$2,Worksheet!$D$5,IF(C37=$C$3,Worksheet!$D$6,IF(C37=$B$3,Worksheet!$D$7,IF(C37=$D$3,Worksheet!$B$10,IF(C37=$E$3,Worksheet!$D$10,FALSE))))))))))))) -> TRUE | AF37: =IF(AE37,D37,"") -> Easy | AG37: =IF(AE37,COUNTIF($AF$5:AF37,AF37),"X") -> 11 | AH37: =CONCATENATE(AE37,AF37) -> TRUEEasy
A38: =CONCATENATE(AE38,D38,AG38) -> TRUEHard8 | B38: =RAND() -> 0.5660576142 | C38: +- | D38: Hard | E38: 52 | F38: Take away by writing down a sum: | G38: =RANDBETWEEN(2,9)*10000 -> 90000 | H38: – | I38: =RANDBETWEEN(10001,G38) -> 77954 | T38: =CONCATENATE(F38," ",G38," ",H38," ",I38," ",J38," ",K38," ",L38," ",M38," ",N38," ",O38," ",P38," ",Q38," ",R38) -> Take away by writing down a sum: 90000 – 77954 | U38: =G38-I38 -> 12046 | AD38: =IF(OR(ISNA(U38),ISNA(V38),ISNA(W38),ISNA(X38),ISNA(Y38),ISNA(Z38),ISNA(AA38),ISNA(AB38),ISNA(AC38)),NA(),CONCATENATE(U38,V38,W38,X38,Y38,Z38,AA38,AB38)) -> 12046 | AE38: =IF(ISNA(AD38),FALSE,IF(C38=$B$1,Worksheet!$B$3,IF(C38=$C$1,Worksheet!$B$4,IF(C38=$D$1,Worksheet!$B$5,IF(C38=$E$1,Worksheet!$B$6,IF(C38=$B$2,Worksheet!$B$7,IF(C38=$C$2,Worksheet!$D$3,IF(C38=$D$2,Worksheet!$D$4,IF(C38=$E$2,Worksheet!$D$5,IF(C38=$C$3,Worksheet!$D$6,IF(C38=$B$3,Worksheet!$D$7,IF(C38=$D$3,Worksheet!$B$10,IF(C38=$E$3,Worksheet!$D$10,FALSE))))))))))))) -> TRUE | AF38: =IF(AE38,D38,"") -> Hard | AG38: =IF(AE38,COUNTIF($AF$5:AF38,AF38),"X") -> 8 | AH38: =CONCATENATE(AE38,AF38) -> TRUEHard
A39: =CONCATENATE(AE39,D39,AG39) -> TRUEMedium14 | B39: =RAND() -> 0.4658748618 | C39: Neg | D39: Medium | E39: 346 | F39: Add: | G39: (– | H39: =RANDBETWEEN(1,10) -> 3 | I39: ) + | J39: =RANDBETWEEN(1,10) -> 3 | T39: =CONCATENATE(F39," ",G39,"",H39,"",I39,"",J39,"",K39," ",L39," ",M39," ",N39," ",O39," ",P39," ",Q39," ",R39) -> Add: (–3) + 3 | U39: =J39-H39 -> 0 | AC39: =IF(ISERROR(T39),NA(),"") ->  | AD39: =IF(OR(ISNA(U39),ISNA(V39),ISNA(W39),ISNA(X39),ISNA(Y39),ISNA(Z39),ISNA(AA39),ISNA(AB39),ISNA(AC39)),NA(),CONCATENATE(U39,V39,W39,X39,Y39,Z39,AA39,AB39)) -> 0 | AE39: =IF(ISNA(AD39),FALSE,IF(C39=$B$1,Worksheet!$B$3,IF(C39=$C$1,Worksheet!$B$4,IF(C39=$D$1,Worksheet!$B$5,IF(C39=$E$1,Worksheet!$B$6,IF(C39=$B$2,Worksheet!$B$7,IF(C39=$C$2,Worksheet!$D$3,IF(C39=$D$2,Worksheet!$D$4,IF(C39=$E$2,Worksheet!$D$5,IF(C39=$C$3,Worksheet!$D$6,IF(C39=$B$3,Worksheet!$D$7,IF(C39=$D$3,Worksheet!$B$10,IF(C39=$E$3,Worksheet!$D$10,FALSE))))))))))))) -> TRUE | AF39: =IF(AE39,D39,"") -> Medium | AG39: =IF(AE39,COUNTIF($AF$5:AF39,AF39),"X") -> 14 | AH39: =CONCATENATE(AE39,AF39) -> TRUEMedium
A40: =CONCATENATE(AE40,D40,AG40) -> TRUEMedium15 | B40: =RAND() -> 0.5245612996 | C40: Dec | D40: Medium | E40: 235 | F40: Take away: | G40: =RANDBETWEEN(11,90) -> 38 | H40: – | I40: 0.1 | T40: =CONCATENATE(F40," ",G40," ",H40," ",I40," ",J40," ",K40," ",L40," ",M40," ",N40," ",O40," ",P40," ",Q40," ",R40) -> Take away: 38 – 0.1 | U40: =G40-0.1 -> 37.9 | AD40: =IF(OR(ISNA(U40),ISNA(V40),ISNA(W40),ISNA(X40),ISNA(Y40),ISNA(Z40),ISNA(AA40),ISNA(AB40),ISNA(AC40)),NA(),CONCATENATE(U40,V40,W40,X40,Y40,Z40,AA40,AB40)) -> 37.9 | AE40: =IF(ISNA(AD40),FALSE,IF(C40=$B$1,Worksheet!$B$3,IF(C40=$C$1,Worksheet!$B$4,IF(C40=$D$1,Worksheet!$B$5,IF(C40=$E$1,Worksheet!$B$6,IF(C40=$B$2,Worksheet!$B$7,IF(C40=$C$2,Worksheet!$D$3,IF(C40=$D$2,Worksheet!$D$4,IF(C40=$E$2,Worksheet!$D$5,IF(C40=$C$3,Worksheet!$D$6,IF(C40=$B$3,Worksheet!$D$7,IF(C40=$D$3,Worksheet!$B$10,IF(C40=$E$3,Worksheet!$D$10,FALSE))))))))))))) -> TRUE | AF40: =IF(AE40,D40,"") -> Medium | AG40: =IF(AE40,COUNTIF($AF$5:AF40,AF40),"X") -> 15 | AH40: =CONCATENATE(AE40,AF40) -> TRUEMedium
A41: =CONCATENATE(AE41,D41,AG41) -> TRUEMedium16 | B41: =RAND() -> 0.8115873326 | C41: % | D41: Medium | E41: 295 | F41: Write | G41: =RANDBETWEEN(1,9)*10 -> 80 | H41: % as a decimal | T41: =CONCATENATE(F41," ",G41,"",H41," ",I41," ",J41," ",K41," ",L41," ",M41," ",N41," ",O41," ",P41," ",Q41," ",R41) -> Write 80% as a decimal | U41: =G41/100 -> 0.8 | V41: or | W41: =TEXT(U41,"0.00") -> 0.80 | AD41: =IF(OR(ISNA(U41),ISNA(V41),ISNA(W41),ISNA(X41),ISNA(Y41),ISNA(Z41),ISNA(AA41),ISNA(AB41),ISNA(AC41)),NA(),CONCATENATE(U41,V41,W41,X41,Y41,Z41,AA41,AB41)) -> 0.8 or 0.80 | AE41: =IF(ISNA(AD41),FALSE,IF(C41=$B$1,Worksheet!$B$3,IF(C41=$C$1,Worksheet!$B$4,IF(C41=$D$1,Worksheet!$B$5,IF(C41=$E$1,Worksheet!$B$6,IF(C41=$B$2,Worksheet!$B$7,IF(C41=$C$2,Worksheet!$D$3,IF(C41=$D$2,Worksheet!$D$4,IF(C41=$E$2,Worksheet!$D$5,IF(C41=$C$3,Worksheet!$D$6,IF(C41=$B$3,Worksheet!$D$7,IF(C41=$D$3,Worksheet!$B$10,IF(C41=$E$3,Worksheet!$D$10,FALSE))))))))))))) -> TRUE | AF41: =IF(AE41,D41,"") -> Medium | AG41: =IF(AE41,COUNTIF($AF$5:AF41,AF41),"X") -> 16 | AH41: =CONCATENATE(AE41,AF41) -> TRUEMedium
A42: =CONCATENATE(AE42,D42,AG42) -> TRUEHard9 | B42: =RAND() -> 0.01358554247 | C42: Frac | D42: Hard | E42: 201 | F42: Take away the fraction: | G42: 1 | H42: – | I42: =CHOOSE(RANDBETWEEN(1,4),1,3,5,7) -> 5 | J42: /8 | T42: =CONCATENATE(F42," ",G42," ",H42," ",I42,"",J42," ",K42," ",L42," ",M42," ",N42," ",O42," ",P42," ",Q42," ",R42) -> Take away the fraction: 1 – 5/8 | U42: =8-I42 -> 3 | V42: /8 | AD42: =IF(OR(ISNA(U42),ISNA(V42),ISNA(W42),ISNA(X42),ISNA(Y42),ISNA(Z42),ISNA(AA42),ISNA(AB42),ISNA(AC42)),NA(),CONCATENATE(U42,V42,W42,X42,Y42,Z42,AA42,AB42)) -> 3/8 | AE42: =IF(ISNA(AD42),FALSE,IF(C42=$B$1,Worksheet!$B$3,IF(C42=$C$1,Worksheet!$B$4,IF(C42=$D$1,Worksheet!$B$5,IF(C42=$E$1,Worksheet!$B$6,IF(C42=$B$2,Worksheet!$B$7,IF(C42=$C$2,Worksheet!$D$3,IF(C42=$D$2,Worksheet!$D$4,IF(C42=$E$2,Worksheet!$D$5,IF(C42=$C$3,Worksheet!$D$6,IF(C42=$B$3,Worksheet!$D$7,IF(C42=$D$3,Worksheet!$B$10,IF(C42=$E$3,Worksheet!$D$10,FALSE))))))))))))) -> TRUE | AF42: =IF(AE42,D42,"") -> Hard | AG42: =IF(AE42,COUNTIF($AF$5:AF42,AF42),"X") -> 9 | AH42: =CONCATENATE(AE42,AF42) -> TRUEHard
A43: =CONCATENATE(AE43,D43,AG43) -> TRUEEasy12 | B43: =RAND() -> 0.06282083038 | C43: Dec | D43: Easy | E43: 233 | F43: Write these numbers in order from | G43: =CHOOSE(RANDBETWEEN(1,2),"smallest to biggest:","biggest to smallest:") -> smallest to biggest: | H43: =S43 -> 6 | I43: =R43+S43/10 -> 4.6 | J43: =S43+R43/10 -> 6.4 | K43: =S43+1 -> 7 | R43: =SMALL(IF(S43={1,2,3,4,5,6,7,8,9},"",{1,2,3,4,5,6,7,8,9}),RANDBETWEEN(1,8)) -> 4 | S43: =RANDBETWEEN(1,9) -> 6 | T43: =CONCATENATE(F43," ",G43," ",H43,", ",I43,", ",J43,", ",K43," ",L43," ",M43," ",N43) -> Write these numbers in order from smallest to biggest: 6, 4.6, 6.4, 7 | U43: =IF($G43="smallest to biggest:",LARGE($H43:$K43,4),LARGE($H43:$K43,1)) -> 4.6 | V43: =IF($G43="smallest to biggest:",LARGE($H43:$K43,3),LARGE($H43:$K43,2)) -> 6 | W43: =IF($G43="smallest to biggest:",LARGE($H43:$K43,2),LARGE($H43:$K43,3)) -> 6.4 | X43: =IF($G43="smallest to biggest:",LARGE($H43:$K43,1),LARGE($H43:$K43,4)) -> 7 | Z43: =IF(OR(H43=I43,H43=J43,H43=K43,I43=J43,I43=K43,J43=K43),NA(),"") ->  | AD43: =IF(OR(ISNA(U43),ISNA(V43),ISNA(W43),ISNA(X43),ISNA(Y43),ISNA(Z43),ISNA(AA43),ISNA(AB43),ISNA(AC43)),NA(),CONCATENATE(U43,", ",V43,", ",W43,", ",X43,Y43,Z43,AA43,AB43)) -> 4.6, 6, 6.4, 7 | AE43: =IF(ISNA(AD43),FALSE,IF(C43=$B$1,Worksheet!$B$3,IF(C43=$C$1,Worksheet!$B$4,IF(C43=$D$1,Worksheet!$B$5,IF(C43=$E$1,Worksheet!$B$6,IF(C43=$B$2,Worksheet!$B$7,IF(C43=$C$2,Worksheet!$D$3,IF(C43=$D$2,Worksheet!$D$4,IF(C43=$E$2,Worksheet!$D$5,IF(C43=$C$3,Worksheet!$D$6,IF(C43=$B$3,Worksheet!$D$7,IF(C43=$D$3,Worksheet!$B$10,IF(C43=$E$3,Worksheet!$D$10,FALSE))))))))))))) -> TRUE | AF43: =IF(AE43,D43,"") -> Easy | AG43: =IF(AE43,COUNTIF($AF$5:AF43,AF43),"X") -> 12 | AH43: =CONCATENATE(AE43,AF43) -> TRUEEasy
A44: =CONCATENATE(AE44,D44,AG44) -> TRUEMedium17 | B44: =RAND() -> 0.9585162993 | C44: +- | D44: Medium | E44: 51 | F44: Take away by writing down a sum: | G44: =RANDBETWEEN(2,9)*1000+RANDBETWEEN(1,999) -> 4313 | H44: – | I44: =RANDBETWEEN(1001,G44) -> 1808 | T44: =CONCATENATE(F44," ",G44," ",H44," ",I44," ",J44," ",K44," ",L44," ",M44," ",N44," ",O44," ",P44," ",Q44," ",R44) -> Take away by writing down a sum: 4313 – 1808 | U44: =G44-I44 -> 2505 | AD44: =IF(OR(ISNA(U44),ISNA(V44),ISNA(W44),ISNA(X44),ISNA(Y44),ISNA(Z44),ISNA(AA44),ISNA(AB44),ISNA(AC44)),NA(),CONCATENATE(U44,V44,W44,X44,Y44,Z44,AA44,AB44)) -> 2505 | AE44: =IF(ISNA(AD44),FALSE,IF(C44=$B$1,Worksheet!$B$3,IF(C44=$C$1,Worksheet!$B$4,IF(C44=$D$1,Worksheet!$B$5,IF(C44=$E$1,Worksheet!$B$6,IF(C44=$B$2,Worksheet!$B$7,IF(C44=$C$2,Worksheet!$D$3,IF(C44=$D$2,Worksheet!$D$4,IF(C44=$E$2,Worksheet!$D$5,IF(C44=$C$3,Worksheet!$D$6,IF(C44=$B$3,Worksheet!$D$7,IF(C44=$D$3,Worksheet!$B$10,IF(C44=$E$3,Worksheet!$D$10,FALSE))))))))))))) -> TRUE | AF44: =IF(AE44,D44,"") -> Medium | AG44: =IF(AE44,COUNTIF($AF$5:AF44,AF44),"X") -> 17 | AH44: =CONCATENATE(AE44,AF44) -> TRUEMedium
A45: =CONCATENATE(AE45,D45,AG45) -> TRUEMedium18 | B45: =RAND() -> 0.554797967 | C45: +- | D45: Medium | E45: 29 | F45: Fill in the missing number: | G45: ____ + | H45: =RANDBETWEEN(1,9)*100+RANDBETWEEN(1,8)*10+RANDBETWEEN(1,9) -> 321 | I45: = | J45: =INT((H45+100)/100)*100 -> 400 | T45: =CONCATENATE(F45," ",G45," ",H45," ",I45," ",J45," ",K45," ",L45," ",M45," ",N45," ",O45," ",P45," ",Q45," ",R45) -> Fill in the missing number: ____ + 321 = 400 | U45: =J45-H45 -> 79 | AD45: =IF(OR(ISNA(U45),ISNA(V45),ISNA(W45),ISNA(X45),ISNA(Y45),ISNA(Z45),ISNA(AA45),ISNA(AB45),ISNA(AC45)),NA(),CONCATENATE(U45,V45,W45,X45,Y45,Z45,AA45,AB45)) -> 79 | AE45: =IF(ISNA(AD45),FALSE,IF(C45=$B$1,Worksheet!$B$3,IF(C45=$C$1,Worksheet!$B$4,IF(C45=$D$1,Worksheet!$B$5,IF(C45=$E$1,Worksheet!$B$6,IF(C45=$B$2,Worksheet!$B$7,IF(C45=$C$2,Worksheet!$D$3,IF(C45=$D$2,Worksheet!$D$4,IF(C45=$E$2,Worksheet!$D$5,IF(C45=$C$3,Worksheet!$D$6,IF(C45=$B$3,Worksheet!$D$7,IF(C45=$D$3,Worksheet!$B$10,IF(C45=$E$3,Worksheet!$D$10,FALSE))))))))))))) -> TRUE | AF45: =IF(AE45,D45,"") -> Medium | AG45: =IF(AE45,COUNTIF($AF$5:AF45,AF45),"X") -> 18 | AH45: =CONCATENATE(AE45,AF45) -> TRUEMedium
A46: =CONCATENATE(AE46,D46,AG46) -> TRUEMedium19 | B46: =RAND() -> 0.5392750507 | C46: Num | D46: Medium | E46: 210 | F46: Continue the pattern for three more numbers: | G46: =RANDBETWEEN(11,95)*1000+400+RANDBETWEEN(1,99) -> 22457 | H46: =G46+S46 -> 22357 | I46: =H46+S46 -> 22257 | J46: =I46+S46 -> 22157 | K46: ____ | L46: ____ | M46: ____ | S46: -100 | T46: =CONCATENATE(F46," ",G46,", ",H46,", ",I46,", ",J46,", ",K46,", ",L46,", ",M46," ",N46," ",O46," ",P46," ",Q46," ",R46) -> Continue the pattern for three more numbers: 22457, 22357, 22257, 22157, ____, ____, ____ | U46: =J46+S46 -> 22057 | V46: =U46+S46 -> 21957 | W46: =V46+S46 -> 21857 | AD46: =IF(OR(ISNA(U46),ISNA(V46),ISNA(W46),ISNA(X46),ISNA(Y46),ISNA(Z46),ISNA(AA46),ISNA(AB46),ISNA(AC46)),NA(),CONCATENATE(U46,", ",V46,", ",W46,X46,Y46,Z46,AA46,AB46)) -> 22057, 21957, 21857 | AE46: =IF(ISNA(AD46),FALSE,IF(C46=$B$1,Worksheet!$B$3,IF(C46=$C$1,Worksheet!$B$4,IF(C46=$D$1,Worksheet!$B$5,IF(C46=$E$1,Worksheet!$B$6,IF(C46=$B$2,Worksheet!$B$7,IF(C46=$C$2,Worksheet!$D$3,IF(C46=$D$2,Worksheet!$D$4,IF(C46=$E$2,Worksheet!$D$5,IF(C46=$C$3,Worksheet!$D$6,IF(C46=$B$3,Worksheet!$D$7,IF(C46=$D$3,Worksheet!$B$10,IF(C46=$E$3,Worksheet!$D$10,FALSE))))))))))))) -> TRUE | AF46: =IF(AE46,D46,"") -> Medium | AG46: =IF(AE46,COUNTIF($AF$5:AF46,AF46),"X") -> 19 | AH46: =CONCATENATE(AE46,AF46) -> TRUEMedium
A47: =CONCATENATE(AE47,D47,AG47) -> TRUEHard10 | B47: =RAND() -> 0.7936883732 | C47: Mult | D47: Hard | E47: 106 | F47: Multiply by writing down a sum: | G47: =RANDBETWEEN(300,999) -> 364 | H47: × | I47: =RANDBETWEEN(6,9) -> 9 | T47: =CONCATENATE(F47," ",G47," ",H47," ",I47," ",J47," ",K47," ",L47," ",M47," ",N47," ",O47," ",P47," ",Q47," ",R47) -> Multiply by writing down a sum: 364 × 9 | U47: =TEXT(G47*I47,"#,###") -> 3,276 | AD47: =IF(OR(ISNA(U47),ISNA(V47),ISNA(W47),ISNA(X47),ISNA(Y47),ISNA(Z47),ISNA(AA47),ISNA(AB47),ISNA(AC47)),NA(),CONCATENATE(U47,V47,W47,X47,Y47,Z47,AA47,AB47)) -> 3,276 | AE47: =IF(ISNA(AD47),FALSE,IF(C47=$B$1,Worksheet!$B$3,IF(C47=$C$1,Worksheet!$B$4,IF(C47=$D$1,Worksheet!$B$5,IF(C47=$E$1,Worksheet!$B$6,IF(C47=$B$2,Worksheet!$B$7,IF(C47=$C$2,Worksheet!$D$3,IF(C47=$D$2,Worksheet!$D$4,IF(C47=$E$2,Worksheet!$D$5,IF(C47=$C$3,Worksheet!$D$6,IF(C47=$B$3,Worksheet!$D$7,IF(C47=$D$3,Worksheet!$B$10,IF(C47=$E$3,Worksheet!$D$10,FALSE))))))))))))) -> TRUE | AF47: =IF(AE47,D47,"") -> Hard | AG47: =IF(AE47,COUNTIF($AF$5:AF47,AF47),"X") -> 10 | AH47: =CONCATENATE(AE47,AF47) -> TRUEHard
A48: =CONCATENATE(AE48,D48,AG48) -> TRUEEasy13 | B48: =RAND() -> 0.7394008693 | C48: Neg | D48: Easy | E48: 355 | F48: Continue the pattern for three more numbers: | G48: =RANDBETWEEN(-5,-3) -> -5 | H48: =G48+S48 -> -4 | I48: =H48+S48 -> -3 | J48: =I48+S48 -> -2 | K48: ____ | L48: ____ | M48: ____ | S48: 1 | T48: =CONCATENATE(F48," ",G48,", ",H48,", ",I48,", ",J48,", ",K48,", ",L48,", ",M48," ",N48," ",O48," ",P48," ",Q48," ",R48) -> Continue the pattern for three more numbers: -5, -4, -3, -2, ____, ____, ____ | U48: =J48+S48 -> -1 | V48: =U48+S48 -> 0 | W48: =V48+S48 -> 1 | AD48: =IF(OR(ISNA(U48),ISNA(V48),ISNA(W48),ISNA(X48),ISNA(Y48),ISNA(Z48),ISNA(AA48),ISNA(AB48),ISNA(AC48)),NA(),CONCATENATE(U48,", ",V48,", ",W48,X48,Y48,Z48,AA48,AB48)) -> -1, 0, 1 | AE48: =IF(ISNA(AD48),FALSE,IF(C48=$B$1,Worksheet!$B$3,IF(C48=$C$1,Worksheet!$B$4,IF(C48=$D$1,Worksheet!$B$5,IF(C48=$E$1,Worksheet!$B$6,IF(C48=$B$2,Worksheet!$B$7,IF(C48=$C$2,Worksheet!$D$3,IF(C48=$D$2,Worksheet!$D$4,IF(C48=$E$2,Worksheet!$D$5,IF(C48=$C$3,Worksheet!$D$6,IF(C48=$B$3,Worksheet!$D$7,IF(C48=$D$3,Worksheet!$B$10,IF(C48=$E$3,Worksheet!$D$10,FALSE))))))))))))) -> TRUE | AF48: =IF(AE48,D48,"") -> Easy | AG48: =IF(AE48,COUNTIF($AF$5:AF48,AF48),"X") -> 13 | AH48: =CONCATENATE(AE48,AF48) -> TRUEEasy
A49: =CONCATENATE(AE49,D49,AG49) -> TRUEMedium20 | B49: =RAND() -> 0.7919608859 | C49: Divide | D49: Medium | E49: 112 | F49: What is half of | G49: =RANDBETWEEN(5,6)*20+RANDBETWEEN(1,4)*2 -> 108 | H49: ? | T49: =CONCATENATE(F49," ",G49," ",H49," ",I49," ",J49," ",K49," ",L49," ",M49," ",N49," ",O49," ",P49," ",Q49," ",R49) -> What is half of 108 ? | U49: =G49/2 -> 54 | AD49: =IF(OR(ISNA(U49),ISNA(V49),ISNA(W49),ISNA(X49),ISNA(Y49),ISNA(Z49),ISNA(AA49),ISNA(AB49),ISNA(AC49)),NA(),CONCATENATE(U49,V49,W49,X49,Y49,Z49,AA49,AB49)) -> 54 | AE49: =IF(ISNA(AD49),FALSE,IF(C49=$B$1,Worksheet!$B$3,IF(C49=$C$1,Worksheet!$B$4,IF(C49=$D$1,Worksheet!$B$5,IF(C49=$E$1,Worksheet!$B$6,IF(C49=$B$2,Worksheet!$B$7,IF(C49=$C$2,Worksheet!$D$3,IF(C49=$D$2,Worksheet!$D$4,IF(C49=$E$2,Worksheet!$D$5,IF(C49=$C$3,Worksheet!$D$6,IF(C49=$B$3,Worksheet!$D$7,IF(C49=$D$3,Worksheet!$B$10,IF(C49=$E$3,Worksheet!$D$10,FALSE))))))))))))) -> TRUE | AF49: =IF(AE49,D49,"") -> Medium | AG49: =IF(AE49,COUNTIF($AF$5:AF49,AF49),"X") -> 20 | AH49: =CONCATENATE(AE49,AF49) -> TRUEMedium
A50: =CONCATENATE(AE50,D50,AG50) -> TRUEEasy14 | B50: =RAND() -> 0.01245442331 | C50: +- | D50: Easy | E50: 40 | F50: Take away: | G50: =RANDBETWEEN(3,9)*100 -> 900 | H50: – | I50: =RANDBETWEEN(6,9)*10 -> 70 | T50: =CONCATENATE(F50," ",G50," ",H50," ",I50," ",J50," ",K50," ",L50," ",M50," ",N50," ",O50," ",P50," ",Q50," ",R50) -> Take away: 900 – 70 | U50: =G50-I50 -> 830 | AD50: =IF(OR(ISNA(U50),ISNA(V50),ISNA(W50),ISNA(X50),ISNA(Y50),ISNA(Z50),ISNA(AA50),ISNA(AB50),ISNA(AC50)),NA(),CONCATENATE(U50,V50,W50,X50,Y50,Z50,AA50,AB50)) -> 830 | AE50: =IF(ISNA(AD50),FALSE,IF(C50=$B$1,Worksheet!$B$3,IF(C50=$C$1,Worksheet!$B$4,IF(C50=$D$1,Worksheet!$B$5,IF(C50=$E$1,Worksheet!$B$6,IF(C50=$B$2,Worksheet!$B$7,IF(C50=$C$2,Worksheet!$D$3,IF(C50=$D$2,Worksheet!$D$4,IF(C50=$E$2,Worksheet!$D$5,IF(C50=$C$3,Worksheet!$D$6,IF(C50=$B$3,Worksheet!$D$7,IF(C50=$D$3,Worksheet!$B$10,IF(C50=$E$3,Worksheet!$D$10,FALSE))))))))))))) -> TRUE | AF50: =IF(AE50,D50,"") -> Easy | AG50: =IF(AE50,COUNTIF($AF$5:AF50,AF50),"X") -> 14 | AH50: =CONCATENATE(AE50,AF50) -> TRUEEasy
A51: =CONCATENATE(AE51,D51,AG51) -> TRUEEasy15 | B51: =RAND() -> 0.4804315685 | C51: Frac | D51: Easy | E51: 149 | F51: Fractions. What is | G51: 1/ | H51: =CHOOSE(RANDBETWEEN(1,4),3,4,5,10) -> 3 | I51: of | J51: =H51*RANDBETWEEN(2,10) -> 15 | K51: ? | T51: =CONCATENATE(F51," ",G51,"",H51," ",I51," ",J51,"",K51," ",L51," ",M51," ",N51," ",O51," ",P51," ",Q51," ",R51) -> Fractions. What is 1/3 of 15? | U51: =J51/H51 -> 5 | W51: =IF(AND(H51=H50,J51=J50),NA(),"") ->  | Y51: =IF(INT(U51)<>U51,NA(),"") ->  | AD51: =IF(OR(ISNA(U51),ISNA(V51),ISNA(W51),ISNA(X51),ISNA(Y51),ISNA(Z51),ISNA(AA51),ISNA(AB51),ISNA(AC51)),NA(),CONCATENATE(U51,V51,W51,X51,Y51,Z51,AA51,AB51)) -> 5 | AE51: =IF(ISNA(AD51),FALSE,IF(C51=$B$1,Worksheet!$B$3,IF(C51=$C$1,Worksheet!$B$4,IF(C51=$D$1,Worksheet!$B$5,IF(C51=$E$1,Worksheet!$B$6,IF(C51=$B$2,Worksheet!$B$7,IF(C51=$C$2,Worksheet!$D$3,IF(C51=$D$2,Worksheet!$D$4,IF(C51=$E$2,Worksheet!$D$5,IF(C51=$C$3,Worksheet!$D$6,IF(C51=$B$3,Worksheet!$D$7,IF(C51=$D$3,Worksheet!$B$10,IF(C51=$E$3,Worksheet!$D$10,FALSE))))))))))))) -> TRUE | AF51: =IF(AE51,D51,"") -> Easy | AG51: =IF(AE51,COUNTIF($AF$5:AF51,AF51),"X") -> 15 | AH51: =CONCATENATE(AE51,AF51) -> TRUEEasy
A52: =CONCATENATE(AE52,D52,AG52) -> TRUEHard11 | B52: =RAND() -> 0.9703070375 | C52: Mult | D52: Hard | E52: 84 | F52: Circle the number that is a multiple of 7: | G52: =IF($S52=1,RANDBETWEEN(2,10)*7,RANDBETWEEN(1,9)*7+RANDBETWEEN(1,6)) -> 40 | H52: =IF($S52=2,RANDBETWEEN(2,10)*7,RANDBETWEEN(1,9)*7+RANDBETWEEN(1,6)) -> 27 | I52: =IF($S52=3,RANDBETWEEN(2,10)*7,RANDBETWEEN(1,9)*7+RANDBETWEEN(1,6)) -> 60 | J52: =IF($S52=4,RANDBETWEEN(2,10)*7,RANDBETWEEN(1,9)*7+RANDBETWEEN(1,6)) -> 28 | S52: =RANDBETWEEN(1,4) -> 4 | T52: =CONCATENATE(F52," ",G52," ",H52," ",I52," ",J52," ",K52," ",L52," ",M52," ",N52," ",O52," ",P52," ",Q52," ",R52) -> Circle the number that is a multiple of 7: 40 27 60 28 | U52: =IF(S52=1,G52,IF(S52=2,H52,IF(S52=3,I52,J52))) -> 28 | V52: =IF(OR(G52=H52,G52=I52,G52=J52,H52=I52,H52=J52,I52=J52),NA(),"") ->  | AD52: =IF(OR(ISNA(U52),ISNA(V52),ISNA(W52),ISNA(X52),ISNA(Y52),ISNA(Z52),ISNA(AA52),ISNA(AB52),ISNA(AC52)),NA(),CONCATENATE(U52,V52,W52,X52,Y52,Z52,AA52,AB52)) -> 28 | AE52: =IF(ISNA(AD52),FALSE,IF(C52=$B$1,Worksheet!$B$3,IF(C52=$C$1,Worksheet!$B$4,IF(C52=$D$1,Worksheet!$B$5,IF(C52=$E$1,Worksheet!$B$6,IF(C52=$B$2,Worksheet!$B$7,IF(C52=$C$2,Worksheet!$D$3,IF(C52=$D$2,Worksheet!$D$4,IF(C52=$E$2,Worksheet!$D$5,IF(C52=$C$3,Worksheet!$D$6,IF(C52=$B$3,Worksheet!$D$7,IF(C52=$D$3,Worksheet!$B$10,IF(C52=$E$3,Worksheet!$D$10,FALSE))))))))))))) -> TRUE | AF52: =IF(AE52,D52,"") -> Hard | AG52: =IF(AE52,COUNTIF($AF$5:AF52,AF52),"X") -> 11 | AH52: =CONCATENATE(AE52,AF52) -> TRUEHard
A53: =CONCATENATE(AE53,D53,AG53) -> TRUEEasy16 | B53: =RAND() -> 0.8904284466 | C53: % | D53: Easy | E53: 317 | F53: What is | G53: 50 | H53: % of £ | I53: =2*RANDBETWEEN(3,15) -> 26 | J53: ? | T53: =CONCATENATE(F53," ",G53,"",H53,"",I53," ",J53," ",K53," ",L53," ",M53," ",N53," ",O53," ",P53," ",Q53," ",R53) -> What is 50% of £26 ? | U53: £ | V53: =I53/2 -> 13 | AD53: =IF(OR(ISNA(U53),ISNA(V53),ISNA(W53),ISNA(X53),ISNA(Y53),ISNA(Z53),ISNA(AA53),ISNA(AB53),ISNA(AC53)),NA(),CONCATENATE(U53,V53,W53,X53,Y53,Z53,AA53,AB53)) -> £13 | AE53: =IF(ISNA(AD53),FALSE,IF(C53=$B$1,Worksheet!$B$3,IF(C53=$C$1,Worksheet!$B$4,IF(C53=$D$1,Worksheet!$B$5,IF(C53=$E$1,Worksheet!$B$6,IF(C53=$B$2,Worksheet!$B$7,IF(C53=$C$2,Worksheet!$D$3,IF(C53=$D$2,Worksheet!$D$4,IF(C53=$E$2,Worksheet!$D$5,IF(C53=$C$3,Worksheet!$D$6,IF(C53=$B$3,Worksheet!$D$7,IF(C53=$D$3,Worksheet!$B$10,IF(C53=$E$3,Worksheet!$D$10,FALSE))))))))))))) -> TRUE | AF53: =IF(AE53,D53,"") -> Easy | AG53: =IF(AE53,COUNTIF($AF$5:AF53,AF53),"X") -> 16 | AH53: =CONCATENATE(AE53,AF53) -> TRUEEasy
A54: =CONCATENATE(AE54,D54,AG54) -> TRUEHard12 | B54: =RAND() -> 0.6975236957 | C54: Mult | D54: Hard | E54: 100 | F54: Multiply: | G54: =RANDBETWEEN(11,15) -> 14 | H54: × | I54: =RANDBETWEEN(2,5)*10 -> 50 | T54: =CONCATENATE(F54," ",G54," ",H54," ",I54," ",J54," ",K54," ",L54," ",M54," ",N54," ",O54," ",P54," ",Q54," ",R54) -> Multiply: 14 × 50 | U54: =TEXT(G54*I54,"#,###") -> 700 | AD54: =IF(OR(ISNA(U54),ISNA(V54),ISNA(W54),ISNA(X54),ISNA(Y54),ISNA(Z54),ISNA(AA54),ISNA(AB54),ISNA(AC54)),NA(),CONCATENATE(U54,V54,W54,X54,Y54,Z54,AA54,AB54)) -> 700 | AE54: =IF(ISNA(AD54),FALSE,IF(C54=$B$1,Worksheet!$B$3,IF(C54=$C$1,Worksheet!$B$4,IF(C54=$D$1,Worksheet!$B$5,IF(C54=$E$1,Worksheet!$B$6,IF(C54=$B$2,Worksheet!$B$7,IF(C54=$C$2,Worksheet!$D$3,IF(C54=$D$2,Worksheet!$D$4,IF(C54=$E$2,Worksheet!$D$5,IF(C54=$C$3,Worksheet!$D$6,IF(C54=$B$3,Worksheet!$D$7,IF(C54=$D$3,Worksheet!$B$10,IF(C54=$E$3,Worksheet!$D$10,FALSE))))))))))))) -> TRUE | AF54: =IF(AE54,D54,"") -> Hard | AG54: =IF(AE54,COUNTIF($AF$5:AF54,AF54),"X") -> 12 | AH54: =CONCATENATE(AE54,AF54) -> TRUEHard
A55: =CONCATENATE(AE55,D55,AG55) -> TRUEMedium21 | B55: =RAND() -> 0.4317866422 | C55: Num | D55: Medium | E55: 21 | F55: Fill in the missing numbers: | G55: =RANDBETWEEN(2,9)*1000+200+RANDBETWEEN(1,99) -> 7255 | H55: =G55+S55 -> 7155 | I55: _____ | J55: _____ | K55: =H55+3*S55 -> 6855 | L55: =K55+S55 -> 6755 | S55: -100 | T55: =CONCATENATE(F55," ",G55,", ",H55,", ",I55,", ",J55,", ",K55,", ",L55,", ",M55," ",N55," ",O55," ",P55," ",Q55," ",R55) -> Fill in the missing numbers: 7255, 7155, _____, _____, 6855, 6755, | U55: =H55+S55 -> 7055 | V55: , | W55: =U55+S55 -> 6955 | AD55: =IF(OR(ISNA(U55),ISNA(V55),ISNA(W55),ISNA(X55),ISNA(Y55),ISNA(Z55),ISNA(AA55),ISNA(AB55),ISNA(AC55)),NA(),CONCATENATE(U55,V55,W55,X55,Y55,Z55,AA55,AB55)) -> 7055, 6955 | AE55: =IF(ISNA(AD55),FALSE,IF(C55=$B$1,Worksheet!$B$3,IF(C55=$C$1,Worksheet!$B$4,IF(C55=$D$1,Worksheet!$B$5,IF(C55=$E$1,Worksheet!$B$6,IF(C55=$B$2,Worksheet!$B$7,IF(C55=$C$2,Worksheet!$D$3,IF(C55=$D$2,Worksheet!$D$4,IF(C55=$E$2,Worksheet!$D$5,IF(C55=$C$3,Worksheet!$D$6,IF(C55=$B$3,Worksheet!$D$7,IF(C55=$D$3,Worksheet!$B$10,IF(C55=$E$3,Worksheet!$D$10,FALSE))))))))))))) -> TRUE | AF55: =IF(AE55,D55,"") -> Medium | AG55: =IF(AE55,COUNTIF($AF$5:AF55,AF55),"X") -> 21 | AH55: =CONCATENATE(AE55,AF55) -> TRUEMedium
A56: =CONCATENATE(AE56,D56,AG56) -> TRUEHard13 | B56: =RAND() -> 0.237783241 | C56: Neg | D56: Hard | E56: 358 | F56: Continue the pattern for three more numbers: | G56: =RANDBETWEEN(-5,-3)*2-1 -> -9 | H56: =G56+S56 -> -7 | I56: =H56+S56 -> -5 | J56: =I56+S56 -> -3 | K56: ____ | L56: ____ | M56: ____ | S56: 2 | T56: =CONCATENATE(F56," ",G56,", ",H56,", ",I56,", ",J56,", ",K56,", ",L56,", ",M56," ",N56," ",O56," ",P56," ",Q56," ",R56) -> Continue the pattern for three more numbers: -9, -7, -5, -3, ____, ____, ____ | U56: =J56+S56 -> -1 | V56: =U56+S56 -> 1 | W56: =V56+S56 -> 3 | AD56: =IF(OR(ISNA(U56),ISNA(V56),ISNA(W56),ISNA(X56),ISNA(Y56),ISNA(Z56),ISNA(AA56),ISNA(AB56),ISNA(AC56)),NA(),CONCATENATE(U56,", ",V56,", ",W56,X56,Y56,Z56,AA56,AB56)) -> -1, 1, 3 | AE56: =IF(ISNA(AD56),FALSE,IF(C56=$B$1,Worksheet!$B$3,IF(C56=$C$1,Worksheet!$B$4,IF(C56=$D$1,Worksheet!$B$5,IF(C56=$E$1,Worksheet!$B$6,IF(C56=$B$2,Worksheet!$B$7,IF(C56=$C$2,Worksheet!$D$3,IF(C56=$D$2,Worksheet!$D$4,IF(C56=$E$2,Worksheet!$D$5,IF(C56=$C$3,Worksheet!$D$6,IF(C56=$B$3,Worksheet!$D$7,IF(C56=$D$3,Worksheet!$B$10,IF(C56=$E$3,Worksheet!$D$10,FALSE))))))))))))) -> TRUE | AF56: =IF(AE56,D56,"") -> Hard | AG56: =IF(AE56,COUNTIF($AF$5:AF56,AF56),"X") -> 13 | AH56: =CONCATENATE(AE56,AF56) -> TRUEHard
A57: =CONCATENATE(AE57,D57,AG57) -> TRUEHard14 | B57: =RAND() -> 0.9683351765 | C57: Frac | D57: Hard | E57: 162 | F57: Fractions. What is | G57: =CHOOSE(RANDBETWEEN(1,3),"2/5","3/5","4/5") -> 3/5 | H57: of | I57: =5*RANDBETWEEN(2,10)*10 -> 150 | J57: ? | T57: =CONCATENATE(F57," ",G57," ",H57," ",I57," ",J57," ",K57," ",L57," ",M57," ",N57," ",O57," ",P57," ",Q57," ",R57) -> Fractions. What is 3/5 of 150 ? | U57: =I57/5*IF(G57="2/5",2,IF(G57="3/5",3,4)) -> 90 | Y57: =IF(INT(U57)<>U57,NA(),"") ->  | AD57: =IF(OR(ISNA(U57),ISNA(V57),ISNA(W57),ISNA(X57),ISNA(Y57),ISNA(Z57),ISNA(AA57),ISNA(AB57),ISNA(AC57)),NA(),CONCATENATE(U57,V57,W57,X57,Y57,Z57,AA57,AB57)) -> 90 | AE57: =IF(ISNA(AD57),FALSE,IF(C57=$B$1,Worksheet!$B$3,IF(C57=$C$1,Worksheet!$B$4,IF(C57=$D$1,Worksheet!$B$5,IF(C57=$E$1,Worksheet!$B$6,IF(C57=$B$2,Worksheet!$B$7,IF(C57=$C$2,Worksheet!$D$3,IF(C57=$D$2,Worksheet!$D$4,IF(C57=$E$2,Worksheet!$D$5,IF(C57=$C$3,Worksheet!$D$6,IF(C57=$B$3,Worksheet!$D$7,IF(C57=$D$3,Worksheet!$B$10,IF(C57=$E$3,Worksheet!$D$10,FALSE))))))))))))) -> TRUE | AF57: =IF(AE57,D57,"") -> Hard | AG57: =IF(AE57,COUNTIF($AF$5:AF57,AF57),"X") -> 14 | AH57: =CONCATENATE(AE57,AF57) -> TRUEHard
A58: =CONCATENATE(AE58,D58,AG58) -> FALSEHardX | B58: =RAND() -> 0.7075345679 | C58: Alg | D58: Hard | E58: 377 | F58: Fill in the box with one of the symbols < > or = : | H58: =RANDBETWEEN(1,1000) -> 954 | I58: _____ | J58: =H58+RANDBETWEEN(-2,2) -> 956 | T58: =CONCATENATE(F58," ",G58," ",H58," ",I58," ",J58," ",K58," ",L58," ",M58," ",N58," ",O58," ",P58," ",Q58," ",R58) -> Fill in the box with one of the symbols < > or = : 954 _____ 956 | U58: =IF(J58>H58,"<",IF(H58>J58,">","=")) -> < | AD58: =IF(OR(ISNA(U58),ISNA(V58),ISNA(W58),ISNA(X58),ISNA(Y58),ISNA(Z58),ISNA(AA58),ISNA(AB58),ISNA(AC58)),NA(),CONCATENATE(U58,V58,W58,X58,Y58,Z58,AA58,AB58)) -> < | AE58: =IF(ISNA(AD58),FALSE,IF(C58=$B$1,Worksheet!$B$3,IF(C58=$C$1,Worksheet!$B$4,IF(C58=$D$1,Worksheet!$B$5,IF(C58=$E$1,Worksheet!$B$6,IF(C58=$B$2,Worksheet!$B$7,IF(C58=$C$2,Worksheet!$D$3,IF(C58=$D$2,Worksheet!$D$4,IF(C58=$E$2,Worksheet!$D$5,IF(C58=$C$3,Worksheet!$D$6,IF(C58=$B$3,Worksheet!$D$7,IF(C58=$D$3,Worksheet!$B$10,IF(C58=$E$3,Worksheet!$D$10,FALSE))))))))))))) -> FALSE | AF58: =IF(AE58,D58,"") ->  | AG58: =IF(AE58,COUNTIF($AF$5:AF58,AF58),"X") -> X | AH58: =CONCATENATE(AE58,AF58) -> FALSE
A59: =CONCATENATE(AE59,D59,AG59) -> TRUEHard15 | B59: =RAND() -> 0.4567218915 | C59: % | D59: Hard | E59: 323 | F59: What is | G59: 25 | H59: % of £ | I59: =4*RANDBETWEEN(1,10)*10^RANDBETWEEN(1,2) -> 280 | J59: ? | T59: =CONCATENATE(F59," ",G59,"",H59,"",I59," ",J59," ",K59," ",L59," ",M59," ",N59," ",O59," ",P59," ",Q59," ",R59) -> What is 25% of £280 ? | U59: £ | V59: =I59/4 -> 70 | AD59: =IF(OR(ISNA(U59),ISNA(V59),ISNA(W59),ISNA(X59),ISNA(Y59),ISNA(Z59),ISNA(AA59),ISNA(AB59),ISNA(AC59)),NA(),CONCATENATE(U59,V59,W59,X59,Y59,Z59,AA59,AB59)) -> £70 | AE59: =IF(ISNA(AD59),FALSE,IF(C59=$B$1,Worksheet!$B$3,IF(C59=$C$1,Worksheet!$B$4,IF(C59=$D$1,Worksheet!$B$5,IF(C59=$E$1,Worksheet!$B$6,IF(C59=$B$2,Worksheet!$B$7,IF(C59=$C$2,Worksheet!$D$3,IF(C59=$D$2,Worksheet!$D$4,IF(C59=$E$2,Worksheet!$D$5,IF(C59=$C$3,Worksheet!$D$6,IF(C59=$B$3,Worksheet!$D$7,IF(C59=$D$3,Worksheet!$B$10,IF(C59=$E$3,Worksheet!$D$10,FALSE))))))))))))) -> TRUE | AF59: =IF(AE59,D59,"") -> Hard | AG59: =IF(AE59,COUNTIF($AF$5:AF59,AF59),"X") -> 15 | AH59: =CONCATENATE(AE59,AF59) -> TRUEHard
A60: =CONCATENATE(AE60,D60,AG60) -> TRUEMedium22 | B60: =RAND() -> 0.1593831847 | C60: Neg | D60: Medium | E60: 352 | F60: Take away: | G60: =RANDBETWEEN(1,10) -> 10 | H60: – | I60: =RANDBETWEEN(G60+1,20) -> 20 | T60: =CONCATENATE(F60," ",G60," ",H60," ",I60,"",J60,"",K60," ",L60," ",M60," ",N60," ",O60," ",P60," ",Q60," ",R60) -> Take away: 10 – 20 | U60: =G60-I60 -> -10 | AC60: =IF(ISERROR(T60),NA(),"") ->  | AD60: =IF(OR(ISNA(U60),ISNA(V60),ISNA(W60),ISNA(X60),ISNA(Y60),ISNA(Z60),ISNA(AA60),ISNA(AB60),ISNA(AC60)),NA(),CONCATENATE(U60,V60,W60,X60,Y60,Z60,AA60,AB60)) -> -10 | AE60: =IF(ISNA(AD60),FALSE,IF(C60=$B$1,Worksheet!$B$3,IF(C60=$C$1,Worksheet!$B$4,IF(C60=$D$1,Worksheet!$B$5,IF(C60=$E$1,Worksheet!$B$6,IF(C60=$B$2,Worksheet!$B$7,IF(C60=$C$2,Worksheet!$D$3,IF(C60=$D$2,Worksheet!$D$4,IF(C60=$E$2,Worksheet!$D$5,IF(C60=$C$3,Worksheet!$D$6,IF(C60=$B$3,Worksheet!$D$7,IF(C60=$D$3,Worksheet!$B$10,IF(C60=$E$3,Worksheet!$D$10,FALSE))))))))))))) -> TRUE | AF60: =IF(AE60,D60,"") -> Medium | AG60: =IF(AE60,COUNTIF($AF$5:AF60,AF60),"X") -> 22 | AH60: =CONCATENATE(AE60,AF60) -> TRUEMedium
A61: =CONCATENATE(AE61,D61,AG61) -> TRUEHard16 | B61: =RAND() -> 0.8063791001 | C61: Mult | D61: Hard | E61: 108 | F61: Multiply by writing down a sum: | G61: =RANDBETWEEN(300,999) -> 479 | H61: × | I61: =RANDBETWEEN(6,9) -> 6 | T61: =CONCATENATE(F61," ",G61," ",H61," ",I61," ",J61," ",K61," ",L61," ",M61," ",N61," ",O61," ",P61," ",Q61," ",R61) -> Multiply by writing down a sum: 479 × 6 | U61: =TEXT(G61*I61,"#,###") -> 2,874 | AD61: =IF(OR(ISNA(U61),ISNA(V61),ISNA(W61),ISNA(X61),ISNA(Y61),ISNA(Z61),ISNA(AA61),ISNA(AB61),ISNA(AC61)),NA(),CONCATENATE(U61,V61,W61,X61,Y61,Z61,AA61,AB61)) -> 2,874 | AE61: =IF(ISNA(AD61),FALSE,IF(C61=$B$1,Worksheet!$B$3,IF(C61=$C$1,Worksheet!$B$4,IF(C61=$D$1,Worksheet!$B$5,IF(C61=$E$1,Worksheet!$B$6,IF(C61=$B$2,Worksheet!$B$7,IF(C61=$C$2,Worksheet!$D$3,IF(C61=$D$2,Worksheet!$D$4,IF(C61=$E$2,Worksheet!$D$5,IF(C61=$C$3,Worksheet!$D$6,IF(C61=$B$3,Worksheet!$D$7,IF(C61=$D$3,Worksheet!$B$10,IF(C61=$E$3,Worksheet!$D$10,FALSE))))))))))))) -> TRUE | AF61: =IF(AE61,D61,"") -> Hard | AG61: =IF(AE61,COUNTIF($AF$5:AF61,AF61),"X") -> 16 | AH61: =CONCATENATE(AE61,AF61) -> TRUEHard
A62: =CONCATENATE(AE62,D62,AG62) -> TRUEMedium23 | B62: =RAND() -> 0.9421688938 | C62: Frac | D62: Medium | E62: 152 | F62: Fractions. What is | G62: =CHOOSE(RANDBETWEEN(1,3),"2/5","3/5","4/5") -> 3/5 | H62: of | I62: =5*RANDBETWEEN(2,10) -> 40 | J62: ? | T62: =CONCATENATE(F62," ",G62," ",H62," ",I62," ",J62," ",K62," ",L62," ",M62," ",N62," ",O62," ",P62," ",Q62," ",R62) -> Fractions. What is 3/5 of 40 ? | U62: =I62/5*IF(G62="2/5",2,IF(G62="3/5",3,4)) -> 24 | Y62: =IF(INT(U62)<>U62,NA(),"") ->  | AD62: =IF(OR(ISNA(U62),ISNA(V62),ISNA(W62),ISNA(X62),ISNA(Y62),ISNA(Z62),ISNA(AA62),ISNA(AB62),ISNA(AC62)),NA(),CONCATENATE(U62,V62,W62,X62,Y62,Z62,AA62,AB62)) -> 24 | AE62: =IF(ISNA(AD62),FALSE,IF(C62=$B$1,Worksheet!$B$3,IF(C62=$C$1,Worksheet!$B$4,IF(C62=$D$1,Worksheet!$B$5,IF(C62=$E$1,Worksheet!$B$6,IF(C62=$B$2,Worksheet!$B$7,IF(C62=$C$2,Worksheet!$D$3,IF(C62=$D$2,Worksheet!$D$4,IF(C62=$E$2,Worksheet!$D$5,IF(C62=$C$3,Worksheet!$D$6,IF(C62=$B$3,Worksheet!$D$7,IF(C62=$D$3,Worksheet!$B$10,IF(C62=$E$3,Worksheet!$D$10,FALSE))))))))))))) -> TRUE | AF62: =IF(AE62,D62,"") -> Medium | AG62: =IF(AE62,COUNTIF($AF$5:AF62,AF62),"X") -> 23 | AH62: =CONCATENATE(AE62,AF62) -> TRUEMedium
A63: =CONCATENATE(AE63,D63,AG63) -> TRUEHard17 | B63: =RAND() -> 0.2120311229 | C63: Mult | D63: Hard | E63: 86 | F63: Circle the number that is a multiple of 9: | G63: =IF($S63=1,RANDBETWEEN(2,10)*9,RANDBETWEEN(1,9)*9+RANDBETWEEN(1,8)) -> 72 | H63: =IF($S63=2,RANDBETWEEN(2,10)*9,RANDBETWEEN(1,9)*9+RANDBETWEEN(1,8)) -> 31 | I63: =IF($S63=3,RANDBETWEEN(2,10)*9,RANDBETWEEN(1,9)*9+RANDBETWEEN(1,8)) -> 43 | J63: =IF($S63=4,RANDBETWEEN(2,10)*9,RANDBETWEEN(1,9)*9+RANDBETWEEN(1,8)) -> 25 | S63: =RANDBETWEEN(1,4) -> 1 | T63: =CONCATENATE(F63," ",G63," ",H63," ",I63," ",J63," ",K63," ",L63," ",M63," ",N63," ",O63," ",P63," ",Q63," ",R63) -> Circle the number that is a multiple of 9: 72 31 43 25 | U63: =IF(S63=1,G63,IF(S63=2,H63,IF(S63=3,I63,J63))) -> 72 | V63: =IF(OR(G63=H63,G63=I63,G63=J63,H63=I63,H63=J63,I63=J63),NA(),"") ->  | AD63: =IF(OR(ISNA(U63),ISNA(V63),ISNA(W63),ISNA(X63),ISNA(Y63),ISNA(Z63),ISNA(AA63),ISNA(AB63),ISNA(AC63)),NA(),CONCATENATE(U63,V63,W63,X63,Y63,Z63,AA63,AB63)) -> 72 | AE63: =IF(ISNA(AD63),FALSE,IF(C63=$B$1,Worksheet!$B$3,IF(C63=$C$1,Worksheet!$B$4,IF(C63=$D$1,Worksheet!$B$5,IF(C63=$E$1,Worksheet!$B$6,IF(C63=$B$2,Worksheet!$B$7,IF(C63=$C$2,Worksheet!$D$3,IF(C63=$D$2,Worksheet!$D$4,IF(C63=$E$2,Worksheet!$D$5,IF(C63=$C$3,Worksheet!$D$6,IF(C63=$B$3,Worksheet!$D$7,IF(C63=$D$3,Worksheet!$B$10,IF(C63=$E$3,Worksheet!$D$10,FALSE))))))))))))) -> TRUE | AF63: =IF(AE63,D63,"") -> Hard | AG63: =IF(AE63,COUNTIF($AF$5:AF63,AF63),"X") -> 17 | AH63: =CONCATENATE(AE63,AF63) -> TRUEHard
A64: =CONCATENATE(AE64,D64,AG64) -> FALSEMediumX | B64: =RAND() -> 0.05241088847 | C64: Alg | D64: Medium | E64: 367 | F64: Algebra. If | G64: =CHOOSE(RANDBETWEEN(1,3),"a","x","p") -> x | H64: = | I64: =RANDBETWEEN(2,10) -> 7 | J64: and | K64: =IF(G64="x","y",IF(G64="a","b","q")) -> y | L64: = | M64: =RANDBETWEEN(2,5) -> 5 | N64: , what is | O64: =RANDBETWEEN(2,5) -> 3 | P64: =CONCATENATE(G64," + ") -> x + | Q64: =RANDBETWEEN(2,5) -> 4 | R64: =CONCATENATE(K64," ?") -> y ? | T64: =CONCATENATE(F64," ",G64," ",H64," ",I64," ",J64," ",K64," ",L64," ",M64," ",N64," ",O64,"",P64," ",Q64,"",R64) -> Algebra. If x = 7 and y = 5 , what is 3x + 4y ? | U64: =O64*I64+Q64*M64 -> 41 | W64: =IF(U64<0,NA(),"") ->  | AD64: =IF(OR(ISNA(U64),ISNA(V64),ISNA(W64),ISNA(X64),ISNA(Y64),ISNA(Z64),ISNA(AA64),ISNA(AB64),ISNA(AC64)),NA(),CONCATENATE(U64,V64,W64,X64,Y64,Z64,AA64,AB64)) -> 41 | AE64: =IF(ISNA(AD64),FALSE,IF(C64=$B$1,Worksheet!$B$3,IF(C64=$C$1,Worksheet!$B$4,IF(C64=$D$1,Worksheet!$B$5,IF(C64=$E$1,Worksheet!$B$6,IF(C64=$B$2,Worksheet!$B$7,IF(C64=$C$2,Worksheet!$D$3,IF(C64=$D$2,Worksheet!$D$4,IF(C64=$E$2,Worksheet!$D$5,IF(C64=$C$3,Worksheet!$D$6,IF(C64=$B$3,Worksheet!$D$7,IF(C64=$D$3,Worksheet!$B$10,IF(C64=$E$3,Worksheet!$D$10,FALSE))))))))))))) -> FALSE | AF64: =IF(AE64,D64,"") ->  | AG64: =IF(AE64,COUNTIF($AF$5:AF64,AF64),"X") -> X | AH64: =CONCATENATE(AE64,AF64) -> FALSE
A65: =CONCATENATE(AE65,D65,AG65) -> TRUEHard18 | B65: =RAND() -> 0.8104037466 | C65: Frac | D65: Hard | E65: 160 | F65: Fractions. What is | G65: 2/3 | H65: of | I65: =3*RANDBETWEEN(2,10)*10 -> 90 | J65: ? | T65: =CONCATENATE(F65," ",G65," ",H65," ",I65," ",J65," ",K65," ",L65," ",M65," ",N65," ",O65," ",P65," ",Q65," ",R65) -> Fractions. What is 2/3 of 90 ? | U65: =I65/3*2 -> 60 | Y65: =IF(INT(U65)<>U65,NA(),"") ->  | AD65: =IF(OR(ISNA(U65),ISNA(V65),ISNA(W65),ISNA(X65),ISNA(Y65),ISNA(Z65),ISNA(AA65),ISNA(AB65),ISNA(AC65)),NA(),CONCATENATE(U65,V65,W65,X65,Y65,Z65,AA65,AB65)) -> 60 | AE65: =IF(ISNA(AD65),FALSE,IF(C65=$B$1,Worksheet!$B$3,IF(C65=$C$1,Worksheet!$B$4,IF(C65=$D$1,Worksheet!$B$5,IF(C65=$E$1,Worksheet!$B$6,IF(C65=$B$2,Worksheet!$B$7,IF(C65=$C$2,Worksheet!$D$3,IF(C65=$D$2,Worksheet!$D$4,IF(C65=$E$2,Worksheet!$D$5,IF(C65=$C$3,Worksheet!$D$6,IF(C65=$B$3,Worksheet!$D$7,IF(C65=$D$3,Worksheet!$B$10,IF(C65=$E$3,Worksheet!$D$10,FALSE))))))))))))) -> TRUE | AF65: =IF(AE65,D65,"") -> Hard | AG65: =IF(AE65,COUNTIF($AF$5:AF65,AF65),"X") -> 18 | AH65: =CONCATENATE(AE65,AF65) -> TRUEHard
A66: =CONCATENATE(AE66,D66,AG66) -> TRUEMedium24 | B66: =RAND() -> 0.1260104939 | C66: Choose | D66: Medium | E66: 144 | F66: Last year, | G66: =CHOOSE(RANDBETWEEN(1,5),"Sarah","Caitlin","Emma","Georgia","Andrea") -> Caitlin | H66: sent | I66: =RANDBETWEEN(500,2000) -> 1338 | J66: texts. This year she sent | K66: =RANDBETWEEN(I66+100,2500) -> 1572 | L66: texts. How many did she send in total? Write down a sum. | T66: =CONCATENATE(F66," ",G66," ",H66," ",I66," ",J66," ",K66," ",L66," ",M66," ",N66," ",O66," ",P66," ",Q66," ",R66) -> Last year, Caitlin sent 1338 texts. This year she sent 1572 texts. How many did she send in total? Write down a sum. | U66: =I66+K66 -> 2910 | AD66: =IF(OR(ISNA(U66),ISNA(V66),ISNA(W66),ISNA(X66),ISNA(Y66),ISNA(Z66),ISNA(AA66),ISNA(AB66),ISNA(AC66)),NA(),CONCATENATE(U66,V66,W66,X66,Y66,Z66,AA66,AB66)) -> 2910 | AE66: =IF(ISNA(AD66),FALSE,IF(C66=$B$1,Worksheet!$B$3,IF(C66=$C$1,Worksheet!$B$4,IF(C66=$D$1,Worksheet!$B$5,IF(C66=$E$1,Worksheet!$B$6,IF(C66=$B$2,Worksheet!$B$7,IF(C66=$C$2,Worksheet!$D$3,IF(C66=$D$2,Worksheet!$D$4,IF(C66=$E$2,Worksheet!$D$5,IF(C66=$C$3,Worksheet!$D$6,IF(C66=$B$3,Worksheet!$D$7,IF(C66=$D$3,Worksheet!$B$10,IF(C66=$E$3,Worksheet!$D$10,FALSE))))))))))))) -> TRUE | AF66: =IF(AE66,D66,"") -> Medium | AG66: =IF(AE66,COUNTIF($AF$5:AF66,AF66),"X") -> 24 | AH66: =CONCATENATE(AE66,AF66) -> TRUEMedium
A67: =CONCATENATE(AE67,D67,AG67) -> TRUEEasy17 | B67: =RAND() -> 0.4540881608 | C67: Mult | D67: Easy | E67: 55 | F67: Write out all the numbers in the | G67: =RANDBETWEEN(6,9) -> 8 | H67: times table: | I67: =CONCATENATE(G67,", ",G67*2,", ",G67*3) -> 8, 16, 24 | J67: , ___, ___, ___, ___, ___, ___, ___ | T67: =CONCATENATE(F67," ",G67," ",H67," ",I67," ",J67," ",K67," ",L67," ",M67," ",N67," ",O67," ",P67," ",Q67," ",R67) -> Write out all the numbers in the 8 times table: 8, 16, 24 , ___, ___, ___, ___, ___, ___, ___ | U67: =CONCATENATE(G67*4,", ",G67*5,", ",G67*6,", ",G67*7,", ",G67*8,", ",G67*9,", ",G67*10) -> 32, 40, 48, 56, 64, 72, 80 | AD67: =IF(OR(ISNA(U67),ISNA(V67),ISNA(W67),ISNA(X67),ISNA(Y67),ISNA(Z67),ISNA(AA67),ISNA(AB67),ISNA(AC67)),NA(),CONCATENATE(U67,V67,W67,X67,Y67,Z67,AA67,AB67)) -> 32, 40, 48, 56, 64, 72, 80 | AE67: =IF(ISNA(AD67),FALSE,IF(C67=$B$1,Worksheet!$B$3,IF(C67=$C$1,Worksheet!$B$4,IF(C67=$D$1,Worksheet!$B$5,IF(C67=$E$1,Worksheet!$B$6,IF(C67=$B$2,Worksheet!$B$7,IF(C67=$C$2,Worksheet!$D$3,IF(C67=$D$2,Worksheet!$D$4,IF(C67=$E$2,Worksheet!$D$5,IF(C67=$C$3,Worksheet!$D$6,IF(C67=$B$3,Worksheet!$D$7,IF(C67=$D$3,Worksheet!$B$10,IF(C67=$E$3,Worksheet!$D$10,FALSE))))))))))))) -> TRUE | AF67: =IF(AE67,D67,"") -> Easy | AG67: =IF(AE67,COUNTIF($AF$5:AF67,AF67),"X") -> 17 | AH67: =CONCATENATE(AE67,AF67) -> TRUEEasy
A68: =CONCATENATE(AE68,D68,AG68) -> TRUEMedium25 | B68: =RAND() -> 0.2422734328 | C68: Dec | D68: Medium | E68: 247 | F68: Take away: | G68: =RANDBETWEEN(3,9) -> 8 | H68: – | I68: =RANDBETWEEN(1,ROUNDDOWN(G68,0)-1)+RANDBETWEEN(6,9)/10 -> 4.9 | T68: =CONCATENATE(F68," ",G68," ",H68," ",I68," ",J68," ",K68," ",L68," ",M68," ",N68," ",O68," ",P68," ",Q68," ",R68) -> Take away: 8 – 4.9 | U68: =G68-I68 -> 3.1 | AD68: =IF(OR(ISNA(U68),ISNA(V68),ISNA(W68),ISNA(X68),ISNA(Y68),ISNA(Z68),ISNA(AA68),ISNA(AB68),ISNA(AC68)),NA(),CONCATENATE(U68,V68,W68,X68,Y68,Z68,AA68,AB68)) -> 3.1 | AE68: =IF(ISNA(AD68),FALSE,IF(C68=$B$1,Worksheet!$B$3,IF(C68=$C$1,Worksheet!$B$4,IF(C68=$D$1,Worksheet!$B$5,IF(C68=$E$1,Worksheet!$B$6,IF(C68=$B$2,Worksheet!$B$7,IF(C68=$C$2,Worksheet!$D$3,IF(C68=$D$2,Worksheet!$D$4,IF(C68=$E$2,Worksheet!$D$5,IF(C68=$C$3,Worksheet!$D$6,IF(C68=$B$3,Worksheet!$D$7,IF(C68=$D$3,Worksheet!$B$10,IF(C68=$E$3,Worksheet!$D$10,FALSE))))))))))))) -> TRUE | AF68: =IF(AE68,D68,"") -> Medium | AG68: =IF(AE68,COUNTIF($AF$5:AF68,AF68),"X") -> 25 | AH68: =CONCATENATE(AE68,AF68) -> TRUEMedium
A69: =CONCATENATE(AE69,D69,AG69) -> TRUEMedium26 | B69: =RAND() -> 0.5563493554 | C69: Frac | D69: Medium | E69: 150 | F69: Fractions. What is | G69: 2/3 | H69: of | I69: =3*RANDBETWEEN(2,10) -> 24 | J69: ? | T69: =CONCATENATE(F69," ",G69," ",H69," ",I69," ",J69," ",K69," ",L69," ",M69," ",N69," ",O69," ",P69," ",Q69," ",R69) -> Fractions. What is 2/3 of 24 ? | U69: =I69/3*2 -> 16 | Y69: =IF(INT(U69)<>U69,NA(),"") ->  | AD69: =IF(OR(ISNA(U69),ISNA(V69),ISNA(W69),ISNA(X69),ISNA(Y69),ISNA(Z69),ISNA(AA69),ISNA(AB69),ISNA(AC69)),NA(),CONCATENATE(U69,V69,W69,X69,Y69,Z69,AA69,AB69)) -> 16 | AE69: =IF(ISNA(AD69),FALSE,IF(C69=$B$1,Worksheet!$B$3,IF(C69=$C$1,Worksheet!$B$4,IF(C69=$D$1,Worksheet!$B$5,IF(C69=$E$1,Worksheet!$B$6,IF(C69=$B$2,Worksheet!$B$7,IF(C69=$C$2,Worksheet!$D$3,IF(C69=$D$2,Worksheet!$D$4,IF(C69=$E$2,Worksheet!$D$5,IF(C69=$C$3,Worksheet!$D$6,IF(C69=$B$3,Worksheet!$D$7,IF(C69=$D$3,Worksheet!$B$10,IF(C69=$E$3,Worksheet!$D$10,FALSE))))))))))))) -> TRUE | AF69: =IF(AE69,D69,"") -> Medium | AG69: =IF(AE69,COUNTIF($AF$5:AF69,AF69),"X") -> 26 | AH69: =CONCATENATE(AE69,AF69) -> TRUEMedium
A70: =CONCATENATE(AE70,D70,AG70) -> TRUEHard19 | B70: =RAND() -> 0.02903359357 | C70: Divide | D70: Hard | E70: 125 | F70: Divide by writing down a sum: | G70: =I70*RANDBETWEEN(1001/I70,9999/I70) -> 7413 | H70: ÷ | I70: =RANDBETWEEN(6,9) -> 7 | S70: =RANDBETWEEN(4,9) -> 4 | T70: =CONCATENATE(F70," ",G70," ",H70," ",I70," ",J70," ",K70," ",L70," ",M70," ",N70," ",O70," ",P70," ",Q70," ",R70) -> Divide by writing down a sum: 7413 ÷ 7 | U70: =G70/I70 -> 1059 | W70: =IF(INT(U70)<>U70,NA(),"") ->  | AD70: =IF(OR(ISNA(U70),ISNA(V70),ISNA(W70),ISNA(X70),ISNA(Y70),ISNA(Z70),ISNA(AA70),ISNA(AB70),ISNA(AC70)),NA(),CONCATENATE(U70,V70,W70,X70,Y70,Z70,AA70,AB70)) -> 1059 | AE70: =IF(ISNA(AD70),FALSE,IF(C70=$B$1,Worksheet!$B$3,IF(C70=$C$1,Worksheet!$B$4,IF(C70=$D$1,Worksheet!$B$5,IF(C70=$E$1,Worksheet!$B$6,IF(C70=$B$2,Worksheet!$B$7,IF(C70=$C$2,Worksheet!$D$3,IF(C70=$D$2,Worksheet!$D$4,IF(C70=$E$2,Worksheet!$D$5,IF(C70=$C$3,Worksheet!$D$6,IF(C70=$B$3,Worksheet!$D$7,IF(C70=$D$3,Worksheet!$B$10,IF(C70=$E$3,Worksheet!$D$10,FALSE))))))))))))) -> TRUE | AF70: =IF(AE70,D70,"") -> Hard | AG70: =IF(AE70,COUNTIF($AF$5:AF70,AF70),"X") -> 19 | AH70: =CONCATENATE(AE70,AF70) -> TRUEHard
A71: =CONCATENATE(AE71,D71,AG71) -> TRUEHard20 | B71: =RAND() -> 0.09818584526 | C71: Divide | D71: Hard | E71: 117 | F71: What is half of | G71: =RANDBETWEEN(1,4)*2000+RANDBETWEEN(5,9)*200 -> 3200 | H71: ? | T71: =CONCATENATE(F71," ",G71," ",H71," ",I71," ",J71," ",K71," ",L71," ",M71," ",N71," ",O71," ",P71," ",Q71," ",R71) -> What is half of 3200 ? | U71: =G71/2 -> 1600 | AD71: =IF(OR(ISNA(U71),ISNA(V71),ISNA(W71),ISNA(X71),ISNA(Y71),ISNA(Z71),ISNA(AA71),ISNA(AB71),ISNA(AC71)),NA(),CONCATENATE(U71,V71,W71,X71,Y71,Z71,AA71,AB71)) -> 1600 | AE71: =IF(ISNA(AD71),FALSE,IF(C71=$B$1,Worksheet!$B$3,IF(C71=$C$1,Worksheet!$B$4,IF(C71=$D$1,Worksheet!$B$5,IF(C71=$E$1,Worksheet!$B$6,IF(C71=$B$2,Worksheet!$B$7,IF(C71=$C$2,Worksheet!$D$3,IF(C71=$D$2,Worksheet!$D$4,IF(C71=$E$2,Worksheet!$D$5,IF(C71=$C$3,Worksheet!$D$6,IF(C71=$B$3,Worksheet!$D$7,IF(C71=$D$3,Worksheet!$B$10,IF(C71=$E$3,Worksheet!$D$10,FALSE))))))))))))) -> TRUE | AF71: =IF(AE71,D71,"") -> Hard | AG71: =IF(AE71,COUNTIF($AF$5:AF71,AF71),"X") -> 20 | AH71: =CONCATENATE(AE71,AF71) -> TRUEHard
A72: =CONCATENATE(AE72,D72,AG72) -> TRUEEasy18 | B72: =RAND() -> 0.5246418402 | C72: Dec | D72: Easy | E72: 234 | F72: Add: | G72: =RANDBETWEEN(11,90) -> 15 | H72: + | I72: 0.1 | T72: =CONCATENATE(F72," ",G72," ",H72," ",I72," ",J72," ",K72," ",L72," ",M72," ",N72," ",O72," ",P72," ",Q72," ",R72) -> Add: 15 + 0.1 | U72: =G72+0.1 -> 15.1 | AD72: =IF(OR(ISNA(U72),ISNA(V72),ISNA(W72),ISNA(X72),ISNA(Y72),ISNA(Z72),ISNA(AA72),ISNA(AB72),ISNA(AC72)),NA(),CONCATENATE(U72,V72,W72,X72,Y72,Z72,AA72,AB72)) -> 15.1 | AE72: =IF(ISNA(AD72),FALSE,IF(C72=$B$1,Worksheet!$B$3,IF(C72=$C$1,Worksheet!$B$4,IF(C72=$D$1,Worksheet!$B$5,IF(C72=$E$1,Worksheet!$B$6,IF(C72=$B$2,Worksheet!$B$7,IF(C72=$C$2,Worksheet!$D$3,IF(C72=$D$2,Worksheet!$D$4,IF(C72=$E$2,Worksheet!$D$5,IF(C72=$C$3,Worksheet!$D$6,IF(C72=$B$3,Worksheet!$D$7,IF(C72=$D$3,Worksheet!$B$10,IF(C72=$E$3,Worksheet!$D$10,FALSE))))))))))))) -> TRUE | AF72: =IF(AE72,D72,"") -> Easy | AG72: =IF(AE72,COUNTIF($AF$5:AF72,AF72),"X") -> 18 | AH72: =CONCATENATE(AE72,AF72) -> TRUEEasy
A73: =CONCATENATE(AE73,D73,AG73) -> TRUEMedium27 | B73: =RAND() -> 0.768452369 | C73: Dec | D73: Medium | E73: 224 | F73: Write the decimal number | G73: =(RANDBETWEEN(1,9))/100 -> 0.06 | H73: as a fraction | T73: =CONCATENATE(F73," ",G73," ",H73," ",I73," ",J73," ",K73," ",L73," ",M73," ",N73," ",O73," ",P73," ",Q73," ",R73) -> Write the decimal number 0.06 as a fraction | U73: =G73*100 -> 6 | V73: /100 | AD73: =IF(OR(ISNA(U73),ISNA(V73),ISNA(W73),ISNA(X73),ISNA(Y73),ISNA(Z73),ISNA(AA73),ISNA(AB73),ISNA(AC73)),NA(),CONCATENATE(U73,V73,W73,X73,Y73,Z73,AA73,AB73)) -> 6/100 | AE73: =IF(ISNA(AD73),FALSE,IF(C73=$B$1,Worksheet!$B$3,IF(C73=$C$1,Worksheet!$B$4,IF(C73=$D$1,Worksheet!$B$5,IF(C73=$E$1,Worksheet!$B$6,IF(C73=$B$2,Worksheet!$B$7,IF(C73=$C$2,Worksheet!$D$3,IF(C73=$D$2,Worksheet!$D$4,IF(C73=$E$2,Worksheet!$D$5,IF(C73=$C$3,Worksheet!$D$6,IF(C73=$B$3,Worksheet!$D$7,IF(C73=$D$3,Worksheet!$B$10,IF(C73=$E$3,Worksheet!$D$10,FALSE))))))))))))) -> TRUE | AF73: =IF(AE73,D73,"") -> Medium | AG73: =IF(AE73,COUNTIF($AF$5:AF73,AF73),"X") -> 27 | AH73: =CONCATENATE(AE73,AF73) -> TRUEMedium
A74: =CONCATENATE(AE74,D74,AG74) -> TRUEHard21 | B74: =RAND() -> 0.1919865015 | C74: Dec | D74: Hard | E74: 265 | F74: Write the number | G74: =RANDBETWEEN(1,10) -> 8 | H74: =CHOOSE(RANDBETWEEN(1,2),"¼","¾") -> ¼ | I74: as a number with a decimal point | T74: =CONCATENATE(F74," ",G74,"",H74," ",I74," ",J74," ",K74," ",L74," ",M74," ",N74," ",O74," ",P74," ",Q74," ",R74) -> Write the number 8¼ as a number with a decimal point | U74: =G74+IF(H74="¼",0.25,0.75) -> 8.25 | W74: =IF(AND(G74=G73,H74=H73),NA(),"") ->  | AD74: =IF(OR(ISNA(U74),ISNA(V74),ISNA(W74),ISNA(X74),ISNA(Y74),ISNA(Z74),ISNA(AA74),ISNA(AB74),ISNA(AC74)),NA(),CONCATENATE(U74,V74,W74,X74,Y74,Z74,AA74,AB74)) -> 8.25 | AE74: =IF(ISNA(AD74),FALSE,IF(C74=$B$1,Worksheet!$B$3,IF(C74=$C$1,Worksheet!$B$4,IF(C74=$D$1,Worksheet!$B$5,IF(C74=$E$1,Worksheet!$B$6,IF(C74=$B$2,Worksheet!$B$7,IF(C74=$C$2,Worksheet!$D$3,IF(C74=$D$2,Worksheet!$D$4,IF(C74=$E$2,Worksheet!$D$5,IF(C74=$C$3,Worksheet!$D$6,IF(C74=$B$3,Worksheet!$D$7,IF(C74=$D$3,Worksheet!$B$10,IF(C74=$E$3,Worksheet!$D$10,FALSE))))))))))))) -> TRUE | AF74: =IF(AE74,D74,"") -> Hard | AG74: =IF(AE74,COUNTIF($AF$5:AF74,AF74),"X") -> 21 | AH74: =CONCATENATE(AE74,AF74) -> TRUEHard
A75: =CONCATENATE(AE75,D75,AG75) -> TRUEMedium28 | B75: =RAND() -> 0.5565101852 | C75: Dec | D75: Medium | E75: 249 | F75: What number is half way between | G75: =RANDBETWEEN(1,9)+RANDBETWEEN(0,9)/10 -> 2.1 | H75: and | I75: =G75+0.1 -> 2.2 | J75: ? | T75: =CONCATENATE(F75," ",G75," ",H75," ",I75," ",J75," ",K75," ",L75," ",M75," ",N75," ",O75," ",P75," ",Q75," ",R75) -> What number is half way between 2.1 and 2.2 ? | U75: =G75+0.05 -> 2.15 | AD75: =IF(OR(ISNA(U75),ISNA(V75),ISNA(W75),ISNA(X75),ISNA(Y75),ISNA(Z75),ISNA(AA75),ISNA(AB75),ISNA(AC75)),NA(),CONCATENATE(U75,V75,W75,X75,Y75,Z75,AA75,AB75)) -> 2.15 | AE75: =IF(ISNA(AD75),FALSE,IF(C75=$B$1,Worksheet!$B$3,IF(C75=$C$1,Worksheet!$B$4,IF(C75=$D$1,Worksheet!$B$5,IF(C75=$E$1,Worksheet!$B$6,IF(C75=$B$2,Worksheet!$B$7,IF(C75=$C$2,Worksheet!$D$3,IF(C75=$D$2,Worksheet!$D$4,IF(C75=$E$2,Worksheet!$D$5,IF(C75=$C$3,Worksheet!$D$6,IF(C75=$B$3,Worksheet!$D$7,IF(C75=$D$3,Worksheet!$B$10,IF(C75=$E$3,Worksheet!$D$10,FALSE))))))))))))) -> TRUE | AF75: =IF(AE75,D75,"") -> Medium | AG75: =IF(AE75,COUNTIF($AF$5:AF75,AF75),"X") -> 28 | AH75: =CONCATENATE(AE75,AF75) -> TRUEMedium
A76: =CONCATENATE(AE76,D76,AG76) -> TRUEHard22 | B76: =RAND() -> 0.7809226984 | C76: Frac | D76: Hard | E76: 169 | F76: Fractions. Write down a sum to work out | G76: =CHOOSE(RANDBETWEEN(1,3),"2/5","3/5","4/5") -> 4/5 | H76: of | I76: =5*RANDBETWEEN(20,50) -> 245 | J76: ? | T76: =CONCATENATE(F76," ",G76," ",H76," ",I76," ",J76," ",K76," ",L76," ",M76," ",N76," ",O76," ",P76," ",Q76," ",R76) -> Fractions. Write down a sum to work out 4/5 of 245 ? | U76: =I76/5*IF(G76="2/5",2,IF(G76="3/5",3,4)) -> 196 | Y76: =IF(INT(U76)<>U76,NA(),"") ->  | AD76: =IF(OR(ISNA(U76),ISNA(V76),ISNA(W76),ISNA(X76),ISNA(Y76),ISNA(Z76),ISNA(AA76),ISNA(AB76),ISNA(AC76)),NA(),CONCATENATE(U76,V76,W76,X76,Y76,Z76,AA76,AB76)) -> 196 | AE76: =IF(ISNA(AD76),FALSE,IF(C76=$B$1,Worksheet!$B$3,IF(C76=$C$1,Worksheet!$B$4,IF(C76=$D$1,Worksheet!$B$5,IF(C76=$E$1,Worksheet!$B$6,IF(C76=$B$2,Worksheet!$B$7,IF(C76=$C$2,Worksheet!$D$3,IF(C76=$D$2,Worksheet!$D$4,IF(C76=$E$2,Worksheet!$D$5,IF(C76=$C$3,Worksheet!$D$6,IF(C76=$B$3,Worksheet!$D$7,IF(C76=$D$3,Worksheet!$B$10,IF(C76=$E$3,Worksheet!$D$10,FALSE))))))))))))) -> TRUE | AF76: =IF(AE76,D76,"") -> Hard | AG76: =IF(AE76,COUNTIF($AF$5:AF76,AF76),"X") -> 22 | AH76: =CONCATENATE(AE76,AF76) -> TRUEHard
A77: =CONCATENATE(AE77,D77,AG77) -> FALSEMediumX | B77: =RAND() -> 0.9758038976 | C77: Alg | D77: Medium | E77: 376 | F77: Fill in the box with one of the symbols < > or = : | H77: =RANDBETWEEN(1,100) -> 20 | I77: _____ | J77: =H77+RANDBETWEEN(-2,2) -> 19 | T77: =CONCATENATE(F77," ",G77," ",H77," ",I77," ",J77," ",K77," ",L77," ",M77," ",N77," ",O77," ",P77," ",Q77," ",R77) -> Fill in the box with one of the symbols < > or = : 20 _____ 19 | U77: =IF(J77>H77,"<",IF(H77>J77,">","=")) -> > | AD77: =IF(OR(ISNA(U77),ISNA(V77),ISNA(W77),ISNA(X77),ISNA(Y77),ISNA(Z77),ISNA(AA77),ISNA(AB77),ISNA(AC77)),NA(),CONCATENATE(U77,V77,W77,X77,Y77,Z77,AA77,AB77)) -> > | AE77: =IF(ISNA(AD77),FALSE,IF(C77=$B$1,Worksheet!$B$3,IF(C77=$C$1,Worksheet!$B$4,IF(C77=$D$1,Worksheet!$B$5,IF(C77=$E$1,Worksheet!$B$6,IF(C77=$B$2,Worksheet!$B$7,IF(C77=$C$2,Worksheet!$D$3,IF(C77=$D$2,Worksheet!$D$4,IF(C77=$E$2,Worksheet!$D$5,IF(C77=$C$3,Worksheet!$D$6,IF(C77=$B$3,Worksheet!$D$7,IF(C77=$D$3,Worksheet!$B$10,IF(C77=$E$3,Worksheet!$D$10,FALSE))))))))))))) -> FALSE | AF77: =IF(AE77,D77,"") ->  | AG77: =IF(AE77,COUNTIF($AF$5:AF77,AF77),"X") -> X | AH77: =CONCATENATE(AE77,AF77) -> FALSE
A78: =CONCATENATE(AE78,D78,AG78) -> TRUEHard23 | B78: =RAND() -> 0.5323607814 | C78: +- | D78: Hard | E78: 49 | F78: Add by writing down a sum: | G78: =RANDBETWEEN(1,9)*10000+RANDBETWEEN(1,9999) -> 95890 | H78: + | I78: =RANDBETWEEN(1,9)*10000+RANDBETWEEN(1,9999) -> 35122 | T78: =CONCATENATE(F78," ",G78," ",H78," ",I78," ",J78," ",K78," ",L78," ",M78," ",N78," ",O78," ",P78," ",Q78," ",R78) -> Add by writing down a sum: 95890 + 35122 | U78: =G78+I78 -> 131012 | AD78: =IF(OR(ISNA(U78),ISNA(V78),ISNA(W78),ISNA(X78),ISNA(Y78),ISNA(Z78),ISNA(AA78),ISNA(AB78),ISNA(AC78)),NA(),CONCATENATE(U78,V78,W78,X78,Y78,Z78,AA78,AB78)) -> 131012 | AE78: =IF(ISNA(AD78),FALSE,IF(C78=$B$1,Worksheet!$B$3,IF(C78=$C$1,Worksheet!$B$4,IF(C78=$D$1,Worksheet!$B$5,IF(C78=$E$1,Worksheet!$B$6,IF(C78=$B$2,Worksheet!$B$7,IF(C78=$C$2,Worksheet!$D$3,IF(C78=$D$2,Worksheet!$D$4,IF(C78=$E$2,Worksheet!$D$5,IF(C78=$C$3,Worksheet!$D$6,IF(C78=$B$3,Worksheet!$D$7,IF(C78=$D$3,Worksheet!$B$10,IF(C78=$E$3,Worksheet!$D$10,FALSE))))))))))))) -> TRUE | AF78: =IF(AE78,D78,"") -> Hard | AG78: =IF(AE78,COUNTIF($AF$5:AF78,AF78),"X") -> 23 | AH78: =CONCATENATE(AE78,AF78) -> TRUEHard
A79: =CONCATENATE(AE79,D79,AG79) -> TRUEMedium29 | B79: =RAND() -> 0.812249027 | C79: +- | D79: Medium | E79: 41 | F79: Take away: | G79: =RANDBETWEEN(3,9)*100 -> 500 | H79: – | I79: =RANDBETWEEN(6,9)*10+RANDBETWEEN(1,(INT(G79/100)-1))*100 -> 470 | T79: =CONCATENATE(F79," ",G79," ",H79," ",I79," ",J79," ",K79," ",L79," ",M79," ",N79," ",O79," ",P79," ",Q79," ",R79) -> Take away: 500 – 470 | U79: =G79-I79 -> 30 | AD79: =IF(OR(ISNA(U79),ISNA(V79),ISNA(W79),ISNA(X79),ISNA(Y79),ISNA(Z79),ISNA(AA79),ISNA(AB79),ISNA(AC79)),NA(),CONCATENATE(U79,V79,W79,X79,Y79,Z79,AA79,AB79)) -> 30 | AE79: =IF(ISNA(AD79),FALSE,IF(C79=$B$1,Worksheet!$B$3,IF(C79=$C$1,Worksheet!$B$4,IF(C79=$D$1,Worksheet!$B$5,IF(C79=$E$1,Worksheet!$B$6,IF(C79=$B$2,Worksheet!$B$7,IF(C79=$C$2,Worksheet!$D$3,IF(C79=$D$2,Worksheet!$D$4,IF(C79=$E$2,Worksheet!$D$5,IF(C79=$C$3,Worksheet!$D$6,IF(C79=$B$3,Worksheet!$D$7,IF(C79=$D$3,Worksheet!$B$10,IF(C79=$E$3,Worksheet!$D$10,FALSE))))))))))))) -> TRUE | AF79: =IF(AE79,D79,"") -> Medium | AG79: =IF(AE79,COUNTIF($AF$5:AF79,AF79),"X") -> 29 | AH79: =CONCATENATE(AE79,AF79) -> TRUEMedium
A80: =CONCATENATE(AE80,D80,AG80) -> TRUEEasy19 | B80: =RAND() -> 0.1455131146 | C80: Mult | D80: Easy | E80: 91 | F80: Multiply: | G80: =RANDBETWEEN(1,9)*10+RANDBETWEEN(1,9) -> 58 | H80: × | I80: 10 | T80: =CONCATENATE(F80," ",G80," ",H80," ",I80," ",J80," ",K80," ",L80," ",M80," ",N80," ",O80," ",P80," ",Q80," ",R80) -> Multiply: 58 × 10 | U80: =G80*10 -> 580 | AD80: =IF(OR(ISNA(U80),ISNA(V80),ISNA(W80),ISNA(X80),ISNA(Y80),ISNA(Z80),ISNA(AA80),ISNA(AB80),ISNA(AC80)),NA(),CONCATENATE(U80,V80,W80,X80,Y80,Z80,AA80,AB80)) -> 580 | AE80: =IF(ISNA(AD80),FALSE,IF(C80=$B$1,Worksheet!$B$3,IF(C80=$C$1,Worksheet!$B$4,IF(C80=$D$1,Worksheet!$B$5,IF(C80=$E$1,Worksheet!$B$6,IF(C80=$B$2,Worksheet!$B$7,IF(C80=$C$2,Worksheet!$D$3,IF(C80=$D$2,Worksheet!$D$4,IF(C80=$E$2,Worksheet!$D$5,IF(C80=$C$3,Worksheet!$D$6,IF(C80=$B$3,Worksheet!$D$7,IF(C80=$D$3,Worksheet!$B$10,IF(C80=$E$3,Worksheet!$D$10,FALSE))))))))))))) -> TRUE | AF80: =IF(AE80,D80,"") -> Easy | AG80: =IF(AE80,COUNTIF($AF$5:AF80,AF80),"X") -> 19 | AH80: =CONCATENATE(AE80,AF80) -> TRUEEasy
A81: =CONCATENATE(AE81,D81,AG81) -> TRUEMedium30 | B81: =RAND() -> 0.5888579329 | C81: Mult | D81: Medium | E81: 88 | F81: Write down all three factors of | G81: =CHOOSE(RANDBETWEEN(1,3),25,49,9) -> 49 | T81: =CONCATENATE(F81," ",G81," ",H81," ",I81," ",J81," ",K81," ",L81," ",M81," ",N81," ",O81," ",P81," ",Q81," ",R81) -> Write down all three factors of 49 | U81: =IF(G81=9,"1, 3 and 9",IF(G81=25,"1, 5 and 25","1, 7 and 49")) -> 1, 7 and 49 | AD81: =IF(OR(ISNA(U81),ISNA(V81),ISNA(W81),ISNA(X81),ISNA(Y81),ISNA(Z81),ISNA(AA81),ISNA(AB81),ISNA(AC81)),NA(),CONCATENATE(U81,V81,W81,X81,Y81,Z81,AA81,AB81)) -> 1, 7 and 49 | AE81: =IF(ISNA(AD81),FALSE,IF(C81=$B$1,Worksheet!$B$3,IF(C81=$C$1,Worksheet!$B$4,IF(C81=$D$1,Worksheet!$B$5,IF(C81=$E$1,Worksheet!$B$6,IF(C81=$B$2,Worksheet!$B$7,IF(C81=$C$2,Worksheet!$D$3,IF(C81=$D$2,Worksheet!$D$4,IF(C81=$E$2,Worksheet!$D$5,IF(C81=$C$3,Worksheet!$D$6,IF(C81=$B$3,Worksheet!$D$7,IF(C81=$D$3,Worksheet!$B$10,IF(C81=$E$3,Worksheet!$D$10,FALSE))))))))))))) -> TRUE | AF81: =IF(AE81,D81,"") -> Medium | AG81: =IF(AE81,COUNTIF($AF$5:AF81,AF81),"X") -> 30 | AH81: =CONCATENATE(AE81,AF81) -> TRUEMedium
A82: =CONCATENATE(AE82,D82,AG82) -> TRUEHard24 | B82: =RAND() -> 0.1687271382 | C82: % | D82: Hard | E82: 302 | F82: What is | G82: =RANDBETWEEN(1,9)/10 -> 0.1 | H82: as a percentage? | T82: =CONCATENATE(F82," ",G82," ",H82," ",I82," ",J82," ",K82," ",L82," ",M82," ",N82," ",O82," ",P82," ",Q82," ",R82) -> What is 0.1 as a percentage? | U82: =G82*100 -> 10 | V82: % | AD82: =IF(OR(ISNA(U82),ISNA(V82),ISNA(W82),ISNA(X82),ISNA(Y82),ISNA(Z82),ISNA(AA82),ISNA(AB82),ISNA(AC82)),NA(),CONCATENATE(U82,V82,W82,X82,Y82,Z82,AA82,AB82)) -> 10% | AE82: =IF(ISNA(AD82),FALSE,IF(C82=$B$1,Worksheet!$B$3,IF(C82=$C$1,Worksheet!$B$4,IF(C82=$D$1,Worksheet!$B$5,IF(C82=$E$1,Worksheet!$B$6,IF(C82=$B$2,Worksheet!$B$7,IF(C82=$C$2,Worksheet!$D$3,IF(C82=$D$2,Worksheet!$D$4,IF(C82=$E$2,Worksheet!$D$5,IF(C82=$C$3,Worksheet!$D$6,IF(C82=$B$3,Worksheet!$D$7,IF(C82=$D$3,Worksheet!$B$10,IF(C82=$E$3,Worksheet!$D$10,FALSE))))))))))))) -> TRUE | AF82: =IF(AE82,D82,"") -> Hard | AG82: =IF(AE82,COUNTIF($AF$5:AF82,AF82),"X") -> 24 | AH82: =CONCATENATE(AE82,AF82) -> TRUEHard
A83: =CONCATENATE(AE83,D83,AG83) -> TRUEEasy20 | B83: =RAND() -> 0.1891233878 | C83: +- | D83: Easy | E83: 26 | F83: What do you add on to | G83: =RANDBETWEEN(1,9)+RANDBETWEEN(1,9)*10 -> 11 | H83: to make 100? | T83: =CONCATENATE(F83," ",G83," ",H83," ",I83," ",J83," ",K83," ",L83," ",M83," ",N83," ",O83," ",P83," ",Q83," ",R83) -> What do you add on to 11 to make 100? | U83: =100-G83 -> 89 | AD83: =IF(OR(ISNA(U83),ISNA(V83),ISNA(W83),ISNA(X83),ISNA(Y83),ISNA(Z83),ISNA(AA83),ISNA(AB83),ISNA(AC83)),NA(),CONCATENATE(U83,V83,W83,X83,Y83,Z83,AA83,AB83)) -> 89 | AE83: =IF(ISNA(AD83),FALSE,IF(C83=$B$1,Worksheet!$B$3,IF(C83=$C$1,Worksheet!$B$4,IF(C83=$D$1,Worksheet!$B$5,IF(C83=$E$1,Worksheet!$B$6,IF(C83=$B$2,Worksheet!$B$7,IF(C83=$C$2,Worksheet!$D$3,IF(C83=$D$2,Worksheet!$D$4,IF(C83=$E$2,Worksheet!$D$5,IF(C83=$C$3,Worksheet!$D$6,IF(C83=$B$3,Worksheet!$D$7,IF(C83=$D$3,Worksheet!$B$10,IF(C83=$E$3,Worksheet!$D$10,FALSE))))))))))))) -> TRUE | AF83: =IF(AE83,D83,"") -> Easy | AG83: =IF(AE83,COUNTIF($AF$5:AF83,AF83),"X") -> 20 | AH83: =CONCATENATE(AE83,AF83) -> TRUEEasy
A84: =CONCATENATE(AE84,D84,AG84) -> TRUEHard25 | B84: =RAND() -> 0.1229570539 | C84: Dec | D84: Hard | E84: 227 | F84: In the number | G84: =RANDBETWEEN(1,9) -> 5 | H84: =SMALL(IF(G84={1,2,3,4,5,6,7,8,9},"",{1,2,3,4,5,6,7,8,9}),RANDBETWEEN(1,8)) -> 6 | I84: =SMALL(IF(G84={1,2,3,4,5,6,7,8,9},"",IF(H84={1,2,3,4,5,6,7,8,9},"",{1,2,3,4,5,6,7,8,9})),RANDBETWEEN(1,7)) -> 4 | J84: =SMALL(IF(G84={1,2,3,4,5,6,7,8,9},"",IF(H84={1,2,3,4,5,6,7,8,9},"",IF(I84={1,2,3,4,5,6,7,8,9},"",{1,2,3,4,5,6,7,8,9}))),RANDBETWEEN(1,6)) -> 9 | K84: =SMALL(IF(G84={1,2,3,4,5,6,7,8,9},"",IF(H84={1,2,3,4,5,6,7,8,9},"",IF(I84={1,2,3,4,5,6,7,8,9},"",IF(J84={1,2,3,4,5,6,7,8,9},"",{1,2,3,4,5,6,7,8,9})))),RANDBETWEEN(1,5)) -> 8 | M84: , what does the | N84: =CHOOSE(S84,J84,I84,H84) -> 6 | O84: stand for? | S84: =RANDBETWEEN(1,3) -> 3 | T84: =CONCATENATE(F84," ",G84,"",H84,"•",I84,"",J84,"",K84,"",L84," ",M84," ",N84," ",O84," ",P84," ",Q84," ",R84) -> In the number 56•498 , what does the 6 stand for? | U84: =IF(S84=1,J84/100,IF(S84=2,J84/10,J2148)) -> 0 | AD84: =IF(OR(ISNA(U84),ISNA(V84),ISNA(W84),ISNA(X84),ISNA(Y84),ISNA(Z84),ISNA(AA84),ISNA(AB84),ISNA(AC84)),NA(),CONCATENATE(U84,V84,W84,X84,Y84,Z84,AA84,AB84)) -> 0 | AE84: =IF(ISNA(AD84),FALSE,IF(C84=$B$1,Worksheet!$B$3,IF(C84=$C$1,Worksheet!$B$4,IF(C84=$D$1,Worksheet!$B$5,IF(C84=$E$1,Worksheet!$B$6,IF(C84=$B$2,Worksheet!$B$7,IF(C84=$C$2,Worksheet!$D$3,IF(C84=$D$2,Worksheet!$D$4,IF(C84=$E$2,Worksheet!$D$5,IF(C84=$C$3,Worksheet!$D$6,IF(C84=$B$3,Worksheet!$D$7,IF(C84=$D$3,Worksheet!$B$10,IF(C84=$E$3,Worksheet!$D$10,FALSE))))))))))))) -> TRUE | AF84: =IF(AE84,D84,"") -> Hard | AG84: =IF(AE84,COUNTIF($AF$5:AF84,AF84),"X") -> 25 | AH84: =CONCATENATE(AE84,AF84) -> TRUEHard
A85: =CONCATENATE(AE85,D85,AG85) -> TRUEMedium31 | B85: =RAND() -> 0.8336956941 | C85: % | D85: Medium | E85: 320 | F85: What is | G85: 75 | H85: % of £ | I85: =4*RANDBETWEEN(1,10) -> 16 | J85: ? | T85: =CONCATENATE(F85," ",G85,"",H85,"",I85," ",J85," ",K85," ",L85," ",M85," ",N85," ",O85," ",P85," ",Q85," ",R85) -> What is 75% of £16 ? | U85: £ | V85: =I85/4*3 -> 12 | AD85: =IF(OR(ISNA(U85),ISNA(V85),ISNA(W85),ISNA(X85),ISNA(Y85),ISNA(Z85),ISNA(AA85),ISNA(AB85),ISNA(AC85)),NA(),CONCATENATE(U85,V85,W85,X85,Y85,Z85,AA85,AB85)) -> £12 | AE85: =IF(ISNA(AD85),FALSE,IF(C85=$B$1,Worksheet!$B$3,IF(C85=$C$1,Worksheet!$B$4,IF(C85=$D$1,Worksheet!$B$5,IF(C85=$E$1,Worksheet!$B$6,IF(C85=$B$2,Worksheet!$B$7,IF(C85=$C$2,Worksheet!$D$3,IF(C85=$D$2,Worksheet!$D$4,IF(C85=$E$2,Worksheet!$D$5,IF(C85=$C$3,Worksheet!$D$6,IF(C85=$B$3,Worksheet!$D$7,IF(C85=$D$3,Worksheet!$B$10,IF(C85=$E$3,Worksheet!$D$10,FALSE))))))))))))) -> TRUE | AF85: =IF(AE85,D85,"") -> Medium | AG85: =IF(AE85,COUNTIF($AF$5:AF85,AF85),"X") -> 31 | AH85: =CONCATENATE(AE85,AF85) -> TRUEMedium
A86: =CONCATENATE(AE86,D86,AG86) -> TRUEEasy21 | B86: =RAND() -> 0.6402862995 | C86: Num | D86: Easy | E86: 14 | F86: Write these numbers in order from | G86: =CHOOSE(RANDBETWEEN(1,2),"smallest to biggest:","biggest to smallest:") -> biggest to smallest: | H86: =IF($O86=1,$P86*1000,IF($O86=2,$Q86*1000,IF($O86=3,$R86*1000,$S86*1000)))+IF(RAND()<0.5,$R86,$S86)*100+IF(RAND()<0.5,$P86,$Q86)*10+CHOOSE(RANDBETWEEN(1,4),$P86,$Q86,$R86,$S86) -> 4455 | I86: =IF($O86=1,$P86*1000,IF($O86=2,$Q86*1000,IF($O86=3,$R86*1000,$S86*1000)))+IF(RAND()<0.5,$R86,$S86)*100+IF(RAND()<0.5,$P86,$Q86)*10+CHOOSE(RANDBETWEEN(1,4),$P86,$Q86,$R86,$S86) -> 4551 | J86: =IF($O86=1,$P86*1000,IF($O86=2,$Q86*1000,IF($O86=3,$R86*1000,$S86*1000)))+IF(RAND()<0.5,$R86,$S86)*100+IF(RAND()<0.5,$P86,$Q86)*10+CHOOSE(RANDBETWEEN(1,4),$P86,$Q86,$R86,$S86) -> 4515 | K86: =IF($O86=1,$P86*1000,IF($O86=2,$Q86*1000,IF($O86=3,$R86*1000,$S86*1000)))+IF(RAND()<0.5,$R86,$S86)*100+IF(RAND()<0.5,$P86,$Q86)*10+CHOOSE(RANDBETWEEN(1,4),$P86,$Q86,$R86,$S86) -> 4511 | O86: =RANDBETWEEN(1,9) -> 8 | P86: =RANDBETWEEN(0,9) -> 5 | Q86: =RANDBETWEEN(0,9) -> 1 | R86: =RANDBETWEEN(0,9) -> 5 | S86: =RANDBETWEEN(1,9) -> 4 | T86: =CONCATENATE(F86," ",G86," ",H86,", ",I86,", ",J86,", ",K86," ",L86," ",M86," ",N86) -> Write these numbers in order from biggest to smallest: 4455, 4551, 4515, 4511 | U86: =IF($G86="smallest to biggest:",LARGE($H86:$K86,4),LARGE($H86:$K86,1)) -> 4551 | V86: =IF($G86="smallest to biggest:",LARGE($H86:$K86,3),LARGE($H86:$K86,2)) -> 4515 | W86: =IF($G86="smallest to biggest:",LARGE($H86:$K86,2),LARGE($H86:$K86,3)) -> 4511 | X86: =IF($G86="smallest to biggest:",LARGE($H86:$K86,1),LARGE($H86:$K86,4)) -> 4455 | Z86: =IF(OR(H86=I86,H86=J86,H86=K86,I86=J86,I86=K86,J86=K86),NA(),"") ->  | AD86: =IF(OR(ISNA(U86),ISNA(V86),ISNA(W86),ISNA(X86),ISNA(Y86),ISNA(Z86),ISNA(AA86),ISNA(AB86),ISNA(AC86)),NA(),CONCATENATE(U86,", ",V86,", ",W86,", ",X86,Y86,Z86,AA86,AB86)) -> 4551, 4515, 4511, 4455 | AE86: =IF(ISNA(AD86),FALSE,IF(C86=$B$1,Worksheet!$B$3,IF(C86=$C$1,Worksheet!$B$4,IF(C86=$D$1,Worksheet!$B$5,IF(C86=$E$1,Worksheet!$B$6,IF(C86=$B$2,Worksheet!$B$7,IF(C86=$C$2,Worksheet!$D$3,IF(C86=$D$2,Worksheet!$D$4,IF(C86=$E$2,Worksheet!$D$5,IF(C86=$C$3,Worksheet!$D$6,IF(C86=$B$3,Worksheet!$D$7,IF(C86=$D$3,Worksheet!$B$10,IF(C86=$E$3,Worksheet!$D$10,FALSE))))))))))))) -> TRUE | AF86: =IF(AE86,D86,"") -> Easy | AG86: =IF(AE86,COUNTIF($AF$5:AF86,AF86),"X") -> 21 | AH86: =CONCATENATE(AE86,AF86) -> TRUEEasy
A87: =CONCATENATE(AE87,D87,AG87) -> TRUEHard26 | B87: =RAND() -> 0.6266040534 | C87: Frac | D87: Hard | E87: 167 | F87: Fractions. Write down a sum to work out | G87: 2/3 | H87: of | I87: =3*RANDBETWEEN(20,50) -> 132 | J87: ? | T87: =CONCATENATE(F87," ",G87," ",H87," ",I87," ",J87," ",K87," ",L87," ",M87," ",N87," ",O87," ",P87," ",Q87," ",R87) -> Fractions. Write down a sum to work out 2/3 of 132 ? | U87: =I87/3*2 -> 88 | Y87: =IF(INT(U87)<>U87,NA(),"") ->  | AD87: =IF(OR(ISNA(U87),ISNA(V87),ISNA(W87),ISNA(X87),ISNA(Y87),ISNA(Z87),ISNA(AA87),ISNA(AB87),ISNA(AC87)),NA(),CONCATENATE(U87,V87,W87,X87,Y87,Z87,AA87,AB87)) -> 88 | AE87: =IF(ISNA(AD87),FALSE,IF(C87=$B$1,Worksheet!$B$3,IF(C87=$C$1,Worksheet!$B$4,IF(C87=$D$1,Worksheet!$B$5,IF(C87=$E$1,Worksheet!$B$6,IF(C87=$B$2,Worksheet!$B$7,IF(C87=$C$2,Worksheet!$D$3,IF(C87=$D$2,Worksheet!$D$4,IF(C87=$E$2,Worksheet!$D$5,IF(C87=$C$3,Worksheet!$D$6,IF(C87=$B$3,Worksheet!$D$7,IF(C87=$D$3,Worksheet!$B$10,IF(C87=$E$3,Worksheet!$D$10,FALSE))))))))))))) -> TRUE | AF87: =IF(AE87,D87,"") -> Hard | AG87: =IF(AE87,COUNTIF($AF$5:AF87,AF87),"X") -> 26 | AH87: =CONCATENATE(AE87,AF87) -> TRUEHard
A88: =CONCATENATE(AE88,D88,AG88) -> TRUEHard27 | B88: =RAND() -> 0.1103770734 | C88: Num | D88: Hard | E88: 7 | F88: Write the number " | G88: =CHOOSE(RANDBETWEEN(1,9),"one","two","three","four","five","six","seven","eight","nine") -> four | H88: hundred thousand, and | I88: =CHOOSE(RANDBETWEEN(1,9),"ten","twenty","thirty","forty","fifty","sixty","seventy","eighty","ninety") -> thirty | J88: " in figures | T88: =CONCATENATE(F88," ",G88," ",H88," ",I88," ",J88," ",K88," ",L88," ",M88," ",N88," ",O88," ",P88," ",Q88," ",R88) -> Write the number " four hundred thousand, and thirty " in figures | U88: =IF(G88="one",1,IF(G88="two",2,IF(G88="three",3,IF(G88="four",4,IF(G88="five",5,IF(G88="six",6,IF(G88="seven",7,IF(G88="eight",8,9)))))))) -> 4 | V88: 00,0 | W88: =IF(I88="ten",1,IF(I88="twenty",2,IF(I88="thirty",3,IF(I88="forty",4,IF(I88="fifty",5,IF(I88="sixty",6,IF(I88="seventy",7,IF(I88="eighty",8,9)))))))) -> 3 | X88: 0 | AD88: =IF(OR(ISNA(U88),ISNA(V88),ISNA(W88),ISNA(X88),ISNA(Y88),ISNA(Z88),ISNA(AA88),ISNA(AB88),ISNA(AC88)),NA(),CONCATENATE(U88,V88,W88,X88,Y88,Z88,AA88,AB88)) -> 400,030 | AE88: =IF(ISNA(AD88),FALSE,IF(C88=$B$1,Worksheet!$B$3,IF(C88=$C$1,Worksheet!$B$4,IF(C88=$D$1,Worksheet!$B$5,IF(C88=$E$1,Worksheet!$B$6,IF(C88=$B$2,Worksheet!$B$7,IF(C88=$C$2,Worksheet!$D$3,IF(C88=$D$2,Worksheet!$D$4,IF(C88=$E$2,Worksheet!$D$5,IF(C88=$C$3,Worksheet!$D$6,IF(C88=$B$3,Worksheet!$D$7,IF(C88=$D$3,Worksheet!$B$10,IF(C88=$E$3,Worksheet!$D$10,FALSE))))))))))))) -> TRUE | AF88: =IF(AE88,D88,"") -> Hard | AG88: =IF(AE88,COUNTIF($AF$5:AF88,AF88),"X") -> 27 | AH88: =CONCATENATE(AE88,AF88) -> TRUEHard
A89: =CONCATENATE(AE89,D89,AG89) -> TRUEMedium32 | B89: =RAND() -> 0.9953451964 | C89: Frac | D89: Medium | E89: 184 | F89: True or False? The fraction | G89: =RANDBETWEEN(2,I89-1) -> 10 | H89: / | I89: =2*RANDBETWEEN(5,15)-1 -> 25 | J89: is | K89: =IF(RAND()<0.5,"smaller","bigger") -> bigger | L89: than ½ | T89: =CONCATENATE(F89," ",G89,"",H89,"",I89," ",J89," ",K89," ",L89," ",M89," ",N89," ",O89," ",P89," ",Q89," ",R89) -> True or False? The fraction 10/25 is bigger than ½ | U89: =IF(K89="bigger",IF(G89>I89/2,TRUE,FALSE),IF(G89>I89/2,FALSE,TRUE)) -> FALSE | AD89: =IF(OR(ISNA(U89),ISNA(V89),ISNA(W89),ISNA(X89),ISNA(Y89),ISNA(Z89),ISNA(AA89),ISNA(AB89),ISNA(AC89)),NA(),CONCATENATE(U89,V89,W89,X89,Y89,Z89,AA89,AB89)) -> FALSE | AE89: =IF(ISNA(AD89),FALSE,IF(C89=$B$1,Worksheet!$B$3,IF(C89=$C$1,Worksheet!$B$4,IF(C89=$D$1,Worksheet!$B$5,IF(C89=$E$1,Worksheet!$B$6,IF(C89=$B$2,Worksheet!$B$7,IF(C89=$C$2,Worksheet!$D$3,IF(C89=$D$2,Worksheet!$D$4,IF(C89=$E$2,Worksheet!$D$5,IF(C89=$C$3,Worksheet!$D$6,IF(C89=$B$3,Worksheet!$D$7,IF(C89=$D$3,Worksheet!$B$10,IF(C89=$E$3,Worksheet!$D$10,FALSE))))))))))))) -> TRUE | AF89: =IF(AE89,D89,"") -> Medium | AG89: =IF(AE89,COUNTIF($AF$5:AF89,AF89),"X") -> 32 | AH89: =CONCATENATE(AE89,AF89) -> TRUEMedium
A90: =CONCATENATE(AE90,D90,AG90) -> TRUEMedium33 | B90: =RAND() -> 0.3315306231 | C90: Frac | D90: Medium | E90: 178 | F90: Write the fraction | G90: =2*RANDBETWEEN(1,I90/2-1) -> 14 | H90: / | I90: =2*RANDBETWEEN(3,15) -> 24 | J90: in its simplest form | T90: =CONCATENATE(F90," ",G90,"",H90,"",I90," ",J90," ",K90," ",L90," ",M90," ",N90," ",O90," ",P90," ",Q90," ",R90) -> Write the fraction 14/24 in its simplest form | U90: =G90/GCD(G90,I90) -> 7 | V90: / | W90: =I90/GCD(G90,I90) -> 12 | AD90: =IF(OR(ISNA(U90),ISNA(V90),ISNA(W90),ISNA(X90),ISNA(Y90),ISNA(Z90),ISNA(AA90),ISNA(AB90),ISNA(AC90)),NA(),CONCATENATE(U90,V90,W90,X90,Y90,Z90,AA90,AB90)) -> 7/12 | AE90: =IF(ISNA(AD90),FALSE,IF(C90=$B$1,Worksheet!$B$3,IF(C90=$C$1,Worksheet!$B$4,IF(C90=$D$1,Worksheet!$B$5,IF(C90=$E$1,Worksheet!$B$6,IF(C90=$B$2,Worksheet!$B$7,IF(C90=$C$2,Worksheet!$D$3,IF(C90=$D$2,Worksheet!$D$4,IF(C90=$E$2,Worksheet!$D$5,IF(C90=$C$3,Worksheet!$D$6,IF(C90=$B$3,Worksheet!$D$7,IF(C90=$D$3,Worksheet!$B$10,IF(C90=$E$3,Worksheet!$D$10,FALSE))))))))))))) -> TRUE | AF90: =IF(AE90,D90,"") -> Medium | AG90: =IF(AE90,COUNTIF($AF$5:AF90,AF90),"X") -> 33 | AH90: =CONCATENATE(AE90,AF90) -> TRUEMedium
A91: =CONCATENATE(AE91,D91,AG91) -> TRUEMedium34 | B91: =RAND() -> 0.383714293 | C91: Neg | D91: Medium | E91: 356 | F91: Continue the pattern for three more numbers: | G91: =RANDBETWEEN(-5,-3)*2 -> -10 | H91: =G91+S91 -> -8 | I91: =H91+S91 -> -6 | J91: =I91+S91 -> -4 | K91: ____ | L91: ____ | M91: ____ | S91: 2 | T91: =CONCATENATE(F91," ",G91,", ",H91,", ",I91,", ",J91,", ",K91,", ",L91,", ",M91," ",N91," ",O91," ",P91," ",Q91," ",R91) -> Continue the pattern for three more numbers: -10, -8, -6, -4, ____, ____, ____ | U91: =J91+S91 -> -2 | V91: =U91+S91 -> 0 | W91: =V91+S91 -> 2 | AD91: =IF(OR(ISNA(U91),ISNA(V91),ISNA(W91),ISNA(X91),ISNA(Y91),ISNA(Z91),ISNA(AA91),ISNA(AB91),ISNA(AC91)),NA(),CONCATENATE(U91,", ",V91,", ",W91,X91,Y91,Z91,AA91,AB91)) -> -2, 0, 2 | AE91: =IF(ISNA(AD91),FALSE,IF(C91=$B$1,Worksheet!$B$3,IF(C91=$C$1,Worksheet!$B$4,IF(C91=$D$1,Worksheet!$B$5,IF(C91=$E$1,Worksheet!$B$6,IF(C91=$B$2,Worksheet!$B$7,IF(C91=$C$2,Worksheet!$D$3,IF(C91=$D$2,Worksheet!$D$4,IF(C91=$E$2,Worksheet!$D$5,IF(C91=$C$3,Worksheet!$D$6,IF(C91=$B$3,Worksheet!$D$7,IF(C91=$D$3,Worksheet!$B$10,IF(C91=$E$3,Worksheet!$D$10,FALSE))))))))))))) -> TRUE | AF91: =IF(AE91,D91,"") -> Medium | AG91: =IF(AE91,COUNTIF($AF$5:AF91,AF91),"X") -> 34 | AH91: =CONCATENATE(AE91,AF91) -> TRUEMedium
A92: =CONCATENATE(AE92,D92,AG92) -> FALSEMediumX | B92: =RAND() -> 0.7717822611 | C92: Alg | D92: Medium | E92: 374 | F92: Fill in the box with one of the symbols < > or = : | H92: =RANDBETWEEN(1,100) -> 95 | I92: _____ | J92: =H92+RANDBETWEEN(-2,2) -> 94 | T92: =CONCATENATE(F92," ",G92," ",H92," ",I92," ",J92," ",K92," ",L92," ",M92," ",N92," ",O92," ",P92," ",Q92," ",R92) -> Fill in the box with one of the symbols < > or = : 95 _____ 94 | U92: =IF(J92>H92,"<",IF(H92>J92,">","=")) -> > | AD92: =IF(OR(ISNA(U92),ISNA(V92),ISNA(W92),ISNA(X92),ISNA(Y92),ISNA(Z92),ISNA(AA92),ISNA(AB92),ISNA(AC92)),NA(),CONCATENATE(U92,V92,W92,X92,Y92,Z92,AA92,AB92)) -> > | AE92: =IF(ISNA(AD92),FALSE,IF(C92=$B$1,Worksheet!$B$3,IF(C92=$C$1,Worksheet!$B$4,IF(C92=$D$1,Worksheet!$B$5,IF(C92=$E$1,Worksheet!$B$6,IF(C92=$B$2,Worksheet!$B$7,IF(C92=$C$2,Worksheet!$D$3,IF(C92=$D$2,Worksheet!$D$4,IF(C92=$E$2,Worksheet!$D$5,IF(C92=$C$3,Worksheet!$D$6,IF(C92=$B$3,Worksheet!$D$7,IF(C92=$D$3,Worksheet!$B$10,IF(C92=$E$3,Worksheet!$D$10,FALSE))))))))))))) -> FALSE | AF92: =IF(AE92,D92,"") ->  | AG92: =IF(AE92,COUNTIF($AF$5:AF92,AF92),"X") -> X | AH92: =CONCATENATE(AE92,AF92) -> FALSE
A93: =CONCATENATE(AE93,D93,AG93) -> TRUEMedium35 | B93: =RAND() -> 0.8372150579 | C93: Dec | D93: Medium | E93: 213 | F93: Write the fraction | G93: =RANDBETWEEN(1,9) -> 8 | H93: /10 | I93: as a decimal | T93: =CONCATENATE(F93," ",G93,"",H93," ",I93," ",J93," ",K93," ",L93," ",M93," ",N93," ",O93," ",P93," ",Q93," ",R93) -> Write the fraction 8/10 as a decimal | U93: =G93/10 -> 0.8 | AD93: =IF(OR(ISNA(U93),ISNA(V93),ISNA(W93),ISNA(X93),ISNA(Y93),ISNA(Z93),ISNA(AA93),ISNA(AB93),ISNA(AC93)),NA(),CONCATENATE(U93,V93,W93,X93,Y93,Z93,AA93,AB93)) -> 0.8 | AE93: =IF(ISNA(AD93),FALSE,IF(C93=$B$1,Worksheet!$B$3,IF(C93=$C$1,Worksheet!$B$4,IF(C93=$D$1,Worksheet!$B$5,IF(C93=$E$1,Worksheet!$B$6,IF(C93=$B$2,Worksheet!$B$7,IF(C93=$C$2,Worksheet!$D$3,IF(C93=$D$2,Worksheet!$D$4,IF(C93=$E$2,Worksheet!$D$5,IF(C93=$C$3,Worksheet!$D$6,IF(C93=$B$3,Worksheet!$D$7,IF(C93=$D$3,Worksheet!$B$10,IF(C93=$E$3,Worksheet!$D$10,FALSE))))))))))))) -> TRUE | AF93: =IF(AE93,D93,"") -> Medium | AG93: =IF(AE93,COUNTIF($AF$5:AF93,AF93),"X") -> 35 | AH93: =CONCATENATE(AE93,AF93) -> TRUEMedium
A94: =CONCATENATE(AE94,D94,AG94) -> TRUEHard28 | B94: =RAND() -> 0.9117102931 | C94: Dec | D94: Hard | E94: 279 | F94: Multiply: 10 × | G94: =RANDBETWEEN(1,9)*10+RANDBETWEEN(0,9)+RANDBETWEEN(1,9)/10 -> 67.3 | T94: =CONCATENATE(F94," ",G94," ",H94," ",I94," ",J94," ",K94," ",L94," ",M94," ",N94," ",O94," ",P94," ",Q94," ",R94) -> Multiply: 10 × 67.3 | U94: =G94*10 -> 673 | AD94: =IF(OR(ISNA(U94),ISNA(V94),ISNA(W94),ISNA(X94),ISNA(Y94),ISNA(Z94),ISNA(AA94),ISNA(AB94),ISNA(AC94)),NA(),CONCATENATE(U94,V94,W94,X94,Y94,Z94,AA94,AB94)) -> 673 | AE94: =IF(ISNA(AD94),FALSE,IF(C94=$B$1,Worksheet!$B$3,IF(C94=$C$1,Worksheet!$B$4,IF(C94=$D$1,Worksheet!$B$5,IF(C94=$E$1,Worksheet!$B$6,IF(C94=$B$2,Worksheet!$B$7,IF(C94=$C$2,Worksheet!$D$3,IF(C94=$D$2,Worksheet!$D$4,IF(C94=$E$2,Worksheet!$D$5,IF(C94=$C$3,Worksheet!$D$6,IF(C94=$B$3,Worksheet!$D$7,IF(C94=$D$3,Worksheet!$B$10,IF(C94=$E$3,Worksheet!$D$10,FALSE))))))))))))) -> TRUE | AF94: =IF(AE94,D94,"") -> Hard | AG94: =IF(AE94,COUNTIF($AF$5:AF94,AF94),"X") -> 28 | AH94: =CONCATENATE(AE94,AF94) -> TRUEHard
A95: =CONCATENATE(AE95,D95,AG95) -> TRUEMedium36 | B95: =RAND() -> 0.3963731873 | C95: Frac | D95: Medium | E95: 177 | F95: Fractions. Choose the number that makes the fractions equivalent: | G95: =IF(I95=3,2,IF(I95=4,3,RANDBETWEEN(2,4))) -> 3 | H95: / | I95: =RANDBETWEEN(3,5) -> 4 | J95: = | K95: =G95*S95 -> 30 | L95: / | M95: ___ | S95: =RANDBETWEEN(2,10) -> 10 | T95: =CONCATENATE(F95," ",G95,"",H95,"",I95," ",J95," ",K95,"",L95,"",M95," ",N95," ",O95," ",P95," ",Q95," ",R95) -> Fractions. Choose the number that makes the fractions equivalent: 3/4 = 30/___ | U95: =CONCATENATE(G95,H95,I95," = ",G95*S95,L95,I95*S95) -> 3/4 = 30/40 | AD95: =IF(OR(ISNA(U95),ISNA(V95),ISNA(W95),ISNA(X95),ISNA(Y95),ISNA(Z95),ISNA(AA95),ISNA(AB95),ISNA(AC95)),NA(),CONCATENATE(U95,V95,W95,X95,Y95,Z95,AA95,AB95)) -> 3/4 = 30/40 | AE95: =IF(ISNA(AD95),FALSE,IF(C95=$B$1,Worksheet!$B$3,IF(C95=$C$1,Worksheet!$B$4,IF(C95=$D$1,Worksheet!$B$5,IF(C95=$E$1,Worksheet!$B$6,IF(C95=$B$2,Worksheet!$B$7,IF(C95=$C$2,Worksheet!$D$3,IF(C95=$D$2,Worksheet!$D$4,IF(C95=$E$2,Worksheet!$D$5,IF(C95=$C$3,Worksheet!$D$6,IF(C95=$B$3,Worksheet!$D$7,IF(C95=$D$3,Worksheet!$B$10,IF(C95=$E$3,Worksheet!$D$10,FALSE))))))))))))) -> TRUE | AF95: =IF(AE95,D95,"") -> Medium | AG95: =IF(AE95,COUNTIF($AF$5:AF95,AF95),"X") -> 36 | AH95: =CONCATENATE(AE95,AF95) -> TRUEMedium
A96: =CONCATENATE(AE96,D96,AG96) -> FALSEHardX | B96: =RAND() -> 0.8354651247 | C96: Alg | D96: Hard | E96: 373 | F96: Algebra. If | G96: =CHOOSE(RANDBETWEEN(1,10),"a","x","y","b","m","p","x","y","k","f") -> a | H96: = | I96: =RANDBETWEEN(2,10) -> 5 | J96: , what is | L96: =RANDBETWEEN(4,10)*10 -> 50 | M96: – | N96: =RANDBETWEEN(2,10) -> 8 | O96: =G96 -> a | P96: ? | T96: =CONCATENATE(F96," ",G96," ",H96," ",I96,"",J96,"",K96," ",L96," ",M96," ",N96,"",O96," ",P96," ",Q96," ",R96) -> Algebra. If a = 5, what is 50 – 8a ? | U96: =L96-N96*I96 -> 10 | AD96: =IF(OR(ISNA(U96),ISNA(V96),ISNA(W96),ISNA(X96),ISNA(Y96),ISNA(Z96),ISNA(AA96),ISNA(AB96),ISNA(AC96)),NA(),CONCATENATE(U96,V96,W96,X96,Y96,Z96,AA96,AB96)) -> 10 | AE96: =IF(ISNA(AD96),FALSE,IF(C96=$B$1,Worksheet!$B$3,IF(C96=$C$1,Worksheet!$B$4,IF(C96=$D$1,Worksheet!$B$5,IF(C96=$E$1,Worksheet!$B$6,IF(C96=$B$2,Worksheet!$B$7,IF(C96=$C$2,Worksheet!$D$3,IF(C96=$D$2,Worksheet!$D$4,IF(C96=$E$2,Worksheet!$D$5,IF(C96=$C$3,Worksheet!$D$6,IF(C96=$B$3,Worksheet!$D$7,IF(C96=$D$3,Worksheet!$B$10,IF(C96=$E$3,Worksheet!$D$10,FALSE))))))))))))) -> FALSE | AF96: =IF(AE96,D96,"") ->  | AG96: =IF(AE96,COUNTIF($AF$5:AF96,AF96),"X") -> X | AH96: =CONCATENATE(AE96,AF96) -> FALSE
A97: =CONCATENATE(AE97,D97,AG97) -> TRUEHard29 | B97: =RAND() -> 0.1695695307 | C97: Mult | D97: Hard | E97: 63 | F97: Multiply: | G97: =CHOOSE(RANDBETWEEN(1,5),2,3,4,5,10) -> 3 | H97: × | I97: =CHOOSE(RANDBETWEEN(1,5),2,3,4,5,10) -> 10 | J97: × | K97: =CHOOSE(RANDBETWEEN(1,5),2,3,4,5,10) -> 5 | T97: =CONCATENATE(F97," ",G97," ",H97," ",I97," ",J97," ",K97," ",L97," ",M97," ",N97," ",O97," ",P97," ",Q97," ",R97) -> Multiply: 3 × 10 × 5 | U97: =G97*I97*K97 -> 150 | AD97: =IF(OR(ISNA(U97),ISNA(V97),ISNA(W97),ISNA(X97),ISNA(Y97),ISNA(Z97),ISNA(AA97),ISNA(AB97),ISNA(AC97)),NA(),CONCATENATE(U97,V97,W97,X97,Y97,Z97,AA97,AB97)) -> 150 | AE97: =IF(ISNA(AD97),FALSE,IF(C97=$B$1,Worksheet!$B$3,IF(C97=$C$1,Worksheet!$B$4,IF(C97=$D$1,Worksheet!$B$5,IF(C97=$E$1,Worksheet!$B$6,IF(C97=$B$2,Worksheet!$B$7,IF(C97=$C$2,Worksheet!$D$3,IF(C97=$D$2,Worksheet!$D$4,IF(C97=$E$2,Worksheet!$D$5,IF(C97=$C$3,Worksheet!$D$6,IF(C97=$B$3,Worksheet!$D$7,IF(C97=$D$3,Worksheet!$B$10,IF(C97=$E$3,Worksheet!$D$10,FALSE))))))))))))) -> TRUE | AF97: =IF(AE97,D97,"") -> Hard | AG97: =IF(AE97,COUNTIF($AF$5:AF97,AF97),"X") -> 29 | AH97: =CONCATENATE(AE97,AF97) -> TRUEHard
A98: =CONCATENATE(AE98,D98,AG98) -> TRUEEasy22 | B98: =RAND() -> 0.5678663796 | C98: Dec | D98: Easy | E98: 243 | F98: Add: | G98: =RANDBETWEEN(1,6)+RANDBETWEEN(1,4)/10 -> 1.1 | H98: + | I98: =RANDBETWEEN(0,6)+RANDBETWEEN(1,4)/10 -> 1.3 | T98: =CONCATENATE(F98," ",G98," ",H98," ",I98," ",J98," ",K98," ",L98," ",M98," ",N98," ",O98," ",P98," ",Q98," ",R98) -> Add: 1.1 + 1.3 | U98: =G98+I98 -> 2.4 | AD98: =IF(OR(ISNA(U98),ISNA(V98),ISNA(W98),ISNA(X98),ISNA(Y98),ISNA(Z98),ISNA(AA98),ISNA(AB98),ISNA(AC98)),NA(),CONCATENATE(U98,V98,W98,X98,Y98,Z98,AA98,AB98)) -> 2.4 | AE98: =IF(ISNA(AD98),FALSE,IF(C98=$B$1,Worksheet!$B$3,IF(C98=$C$1,Worksheet!$B$4,IF(C98=$D$1,Worksheet!$B$5,IF(C98=$E$1,Worksheet!$B$6,IF(C98=$B$2,Worksheet!$B$7,IF(C98=$C$2,Worksheet!$D$3,IF(C98=$D$2,Worksheet!$D$4,IF(C98=$E$2,Worksheet!$D$5,IF(C98=$C$3,Worksheet!$D$6,IF(C98=$B$3,Worksheet!$D$7,IF(C98=$D$3,Worksheet!$B$10,IF(C98=$E$3,Worksheet!$D$10,FALSE))))))))))))) -> TRUE | AF98: =IF(AE98,D98,"") -> Easy | AG98: =IF(AE98,COUNTIF($AF$5:AF98,AF98),"X") -> 22 | AH98: =CONCATENATE(AE98,AF98) -> TRUEEasy
A99: =CONCATENATE(AE99,D99,AG99) -> TRUEEasy23 | B99: =RAND() -> 0.9432367032 | C99: Mult | D99: Easy | E99: 74 | F99: What is double | G99: =RANDBETWEEN(1,4)*100+RANDBETWEEN(1,5)*10 -> 120 | H99: ? | T99: =CONCATENATE(F99," ",G99," ",H99," ",I99," ",J99," ",K99," ",L99," ",M99," ",N99," ",O99," ",P99," ",Q99," ",R99) -> What is double 120 ? | U99: =2*G99 -> 240 | AD99: =IF(OR(ISNA(U99),ISNA(V99),ISNA(W99),ISNA(X99),ISNA(Y99),ISNA(Z99),ISNA(AA99),ISNA(AB99),ISNA(AC99)),NA(),CONCATENATE(U99,V99,W99,X99,Y99,Z99,AA99,AB99)) -> 240 | AE99: =IF(ISNA(AD99),FALSE,IF(C99=$B$1,Worksheet!$B$3,IF(C99=$C$1,Worksheet!$B$4,IF(C99=$D$1,Worksheet!$B$5,IF(C99=$E$1,Worksheet!$B$6,IF(C99=$B$2,Worksheet!$B$7,IF(C99=$C$2,Worksheet!$D$3,IF(C99=$D$2,Worksheet!$D$4,IF(C99=$E$2,Worksheet!$D$5,IF(C99=$C$3,Worksheet!$D$6,IF(C99=$B$3,Worksheet!$D$7,IF(C99=$D$3,Worksheet!$B$10,IF(C99=$E$3,Worksheet!$D$10,FALSE))))))))))))) -> TRUE | AF99: =IF(AE99,D99,"") -> Easy | AG99: =IF(AE99,COUNTIF($AF$5:AF99,AF99),"X") -> 23 | AH99: =CONCATENATE(AE99,AF99) -> TRUEEasy
A100: =CONCATENATE(AE100,D100,AG100) -> TRUEHard30 | B100: =RAND() -> 0.3894939962 | C100: Mult | D100: Hard | E100: 69 | F100: What is: | G100: =RANDBETWEEN(2,10) -> 3 | H100: × | I100: =RANDBETWEEN(2,10) -> 2 | J100: + | K100: =RANDBETWEEN(2,10) -> 8 | L100: × | M100: =RANDBETWEEN(2,10) -> 8 | N100: ? | T100: =CONCATENATE(F100," ",G100," ",H100," ",I100," ",J100," ",K100," ",L100," ",M100," ",N100," ",O100," ",P100," ",Q100," ",R100) -> What is: 3 × 2 + 8 × 8 ? | U100: =G100*I100+K100*M100 -> 70 | AD100: =IF(OR(ISNA(U100),ISNA(V100),ISNA(W100),ISNA(X100),ISNA(Y100),ISNA(Z100),ISNA(AA100),ISNA(AB100),ISNA(AC100)),NA(),CONCATENATE(U100,V100,W100,X100,Y100,Z100,AA100,AB100)) -> 70 | AE100: =IF(ISNA(AD100),FALSE,IF(C100=$B$1,Worksheet!$B$3,IF(C100=$C$1,Worksheet!$B$4,IF(C100=$D$1,Worksheet!$B$5,IF(C100=$E$1,Worksheet!$B$6,IF(C100=$B$2,Worksheet!$B$7,IF(C100=$C$2,Worksheet!$D$3,IF(C100=$D$2,Worksheet!$D$4,IF(C100=$E$2,Worksheet!$D$5,IF(C100=$C$3,Worksheet!$D$6,IF(C100=$B$3,Worksheet!$D$7,IF(C100=$D$3,Worksheet!$B$10,IF(C100=$E$3,Worksheet!$D$10,FALSE))))))))))))) -> TRUE | AF100: =IF(AE100,D100,"") -> Hard | AG100: =IF(AE100,COUNTIF($AF$5:AF100,AF100),"X") -> 30 | AH100: =CONCATENATE(AE100,AF100) -> TRUEHard
A101: =CONCATENATE(AE101,D101,AG101) -> TRUEEasy24 | B101: =RAND() -> 0.7643995561 | C101: Dec | D101: Easy | E101: 248 | F101: What number is half way between | G101: =RANDBETWEEN(10,90) -> 73 | H101: and | I101: =G101+1 -> 74 | J101: ? | T101: =CONCATENATE(F101," ",G101," ",H101," ",I101," ",J101," ",K101," ",L101," ",M101," ",N101," ",O101," ",P101," ",Q101," ",R101) -> What number is half way between 73 and 74 ? | U101: =G101+0.5 -> 73.5 | V101: or | W101: =CONCATENATE(G101,"½") -> 73½ | AD101: =IF(OR(ISNA(U101),ISNA(V101),ISNA(W101),ISNA(X101),ISNA(Y101),ISNA(Z101),ISNA(AA101),ISNA(AB101),ISNA(AC101)),NA(),CONCATENATE(U101,V101,W101,X101,Y101,Z101,AA101,AB101)) -> 73.5 or 73½ | AE101: =IF(ISNA(AD101),FALSE,IF(C101=$B$1,Worksheet!$B$3,IF(C101=$C$1,Worksheet!$B$4,IF(C101=$D$1,Worksheet!$B$5,IF(C101=$E$1,Worksheet!$B$6,IF(C101=$B$2,Worksheet!$B$7,IF(C101=$C$2,Worksheet!$D$3,IF(C101=$D$2,Worksheet!$D$4,IF(C101=$E$2,Worksheet!$D$5,IF(C101=$C$3,Worksheet!$D$6,IF(C101=$B$3,Worksheet!$D$7,IF(C101=$D$3,Worksheet!$B$10,IF(C101=$E$3,Worksheet!$D$10,FALSE))))))))))))) -> TRUE | AF101: =IF(AE101,D101,"") -> Easy | AG101: =IF(AE101,COUNTIF($AF$5:AF101,AF101),"X") -> 24 | AH101: =CONCATENATE(AE101,AF101) -> TRUEEasy
A102: =CONCATENATE(AE102,D102,AG102) -> TRUEEasy25 | B102: =RAND() -> 0.2870634634 | C102: % | D102: Easy | E102: 307 | F102: What is | G102: 50 | H102: % as a fraction in its simplest form? | T102: =CONCATENATE(F102," ",G102,"",H102," ",I102," ",J102," ",K102," ",L102," ",M102," ",N102," ",O102," ",P102," ",Q102," ",R102) -> What is 50% as a fraction in its simplest form? | U102: 1/2 | AD102: =IF(OR(ISNA(U102),ISNA(V102),ISNA(W102),ISNA(X102),ISNA(Y102),ISNA(Z102),ISNA(AA102),ISNA(AB102),ISNA(AC102)),NA(),CONCATENATE(U102,V102,W102,X102,Y102,Z102,AA102,AB102)) -> 1/2 | AE102: =IF(ISNA(AD102),FALSE,IF(C102=$B$1,Worksheet!$B$3,IF(C102=$C$1,Worksheet!$B$4,IF(C102=$D$1,Worksheet!$B$5,IF(C102=$E$1,Worksheet!$B$6,IF(C102=$B$2,Worksheet!$B$7,IF(C102=$C$2,Worksheet!$D$3,IF(C102=$D$2,Worksheet!$D$4,IF(C102=$E$2,Worksheet!$D$5,IF(C102=$C$3,Worksheet!$D$6,IF(C102=$B$3,Worksheet!$D$7,IF(C102=$D$3,Worksheet!$B$10,IF(C102=$E$3,Worksheet!$D$10,FALSE))))))))))))) -> TRUE | AF102: =IF(AE102,D102,"") -> Easy | AG102: =IF(AE102,COUNTIF($AF$5:AF102,AF102),"X") -> 25 | AH102: =CONCATENATE(AE102,AF102) -> TRUEEasy
A103: =CONCATENATE(AE103,D103,AG103) -> TRUEMedium37 | B103: =RAND() -> 0.6062082716 | C103: Frac | D103: Medium | E103: 188 | F103: Add the fractions: | G103: 1/3 | H103: + | I103: 1/3 | T103: =CONCATENATE(F103," ",G103," ",H103," ",I103," ",J103," ",K103," ",L103," ",M103," ",N103," ",O103," ",P103," ",Q103," ",R103) -> Add the fractions: 1/3 + 1/3 | U103: 2/3 | AD103: =IF(OR(ISNA(U103),ISNA(V103),ISNA(W103),ISNA(X103),ISNA(Y103),ISNA(Z103),ISNA(AA103),ISNA(AB103),ISNA(AC103)),NA(),CONCATENATE(U103,V103,W103,X103,Y103,Z103,AA103,AB103)) -> 2/3 | AE103: =IF(ISNA(AD103),FALSE,IF(C103=$B$1,Worksheet!$B$3,IF(C103=$C$1,Worksheet!$B$4,IF(C103=$D$1,Worksheet!$B$5,IF(C103=$E$1,Worksheet!$B$6,IF(C103=$B$2,Worksheet!$B$7,IF(C103=$C$2,Worksheet!$D$3,IF(C103=$D$2,Worksheet!$D$4,IF(C103=$E$2,Worksheet!$D$5,IF(C103=$C$3,Worksheet!$D$6,IF(C103=$B$3,Worksheet!$D$7,IF(C103=$D$3,Worksheet!$B$10,IF(C103=$E$3,Worksheet!$D$10,FALSE))))))))))))) -> TRUE | AF103: =IF(AE103,D103,"") -> Medium | AG103: =IF(AE103,COUNTIF($AF$5:AF103,AF103),"X") -> 37 | AH103: =CONCATENATE(AE103,AF103) -> TRUEMedium
A104: =CONCATENATE(AE104,D104,AG104) -> TRUEMedium38 | B104: =RAND() -> 0.3962322397 | C104: Num | D104: Medium | E104: 9 | F104: In the number | G104: =RANDBETWEEN(1,9) -> 7 | H104: =SMALL(IF(G104={1,2,3,4,5,6,7,8,9},"",{1,2,3,4,5,6,7,8,9}),RANDBETWEEN(1,8)) -> 5 | I104: =SMALL(IF(G104={1,2,3,4,5,6,7,8,9},"",IF(H104={1,2,3,4,5,6,7,8,9},"",{1,2,3,4,5,6,7,8,9})),RANDBETWEEN(1,7)) -> 1 | J104: =SMALL(IF(G104={1,2,3,4,5,6,7,8,9},"",IF(H104={1,2,3,4,5,6,7,8,9},"",IF(I104={1,2,3,4,5,6,7,8,9},"",{1,2,3,4,5,6,7,8,9}))),RANDBETWEEN(1,6)) -> 9 | K104: =SMALL(IF(G104={1,2,3,4,5,6,7,8,9},"",IF(H104={1,2,3,4,5,6,7,8,9},"",IF(I104={1,2,3,4,5,6,7,8,9},"",IF(J104={1,2,3,4,5,6,7,8,9},"",{1,2,3,4,5,6,7,8,9})))),RANDBETWEEN(1,5)) -> 2 | L104: , what does the | M104: =CHOOSE(S104,J104,I104,H104,G104) -> 9 | N104: stand for? | S104: =RANDBETWEEN(1,4) -> 1 | T104: =CONCATENATE(F104," ",G104,"",H104,",",I104,"",J104,"",K104," ",L104," ",M104," ",N104," ",O104," ",P104," ",Q104," ",R104) -> In the number 75,192 , what does the 9 stand for? | U104: =TEXT(M104*10^S104,"#,###") -> 90 | AD104: =IF(OR(ISNA(U104),ISNA(V104),ISNA(W104),ISNA(X104),ISNA(Y104),ISNA(Z104),ISNA(AA104),ISNA(AB104),ISNA(AC104)),NA(),CONCATENATE(U104,V104,W104,X104,Y104,Z104,AA104,AB104)) -> 90 | AE104: =IF(ISNA(AD104),FALSE,IF(C104=$B$1,Worksheet!$B$3,IF(C104=$C$1,Worksheet!$B$4,IF(C104=$D$1,Worksheet!$B$5,IF(C104=$E$1,Worksheet!$B$6,IF(C104=$B$2,Worksheet!$B$7,IF(C104=$C$2,Worksheet!$D$3,IF(C104=$D$2,Worksheet!$D$4,IF(C104=$E$2,Worksheet!$D$5,IF(C104=$C$3,Worksheet!$D$6,IF(C104=$B$3,Worksheet!$D$7,IF(C104=$D$3,Worksheet!$B$10,IF(C104=$E$3,Worksheet!$D$10,FALSE))))))))))))) -> TRUE | AF104: =IF(AE104,D104,"") -> Medium | AG104: =IF(AE104,COUNTIF($AF$5:AF104,AF104),"X") -> 38 | AH104: =CONCATENATE(AE104,AF104) -> TRUEMedium
A105: =CONCATENATE(AE105,D105,AG105) -> TRUEHard31 | B105: =RAND() -> 0.6835560017 | C105: +- | D105: Hard | E105: 34 | F105: Fill in the missing number: | G105: =RANDBETWEEN(1,8)*1000+RANDBETWEEN(1,8)*100+RANDBETWEEN(1,8)*10+RANDBETWEEN(1,9) -> 1359 | H105: + ____ = | I105: =INT((G105+1000)/1000)*1000 -> 2000 | T105: =CONCATENATE(F105," ",G105," ",H105," ",I105," ",J105," ",K105," ",L105," ",M105," ",N105," ",O105," ",P105," ",Q105," ",R105) -> Fill in the missing number: 1359 + ____ = 2000 | U105: =I105-G105 -> 641 | AD105: =IF(OR(ISNA(U105),ISNA(V105),ISNA(W105),ISNA(X105),ISNA(Y105),ISNA(Z105),ISNA(AA105),ISNA(AB105),ISNA(AC105)),NA(),CONCATENATE(U105,V105,W105,X105,Y105,Z105,AA105,AB105)) -> 641 | AE105: =IF(ISNA(AD105),FALSE,IF(C105=$B$1,Worksheet!$B$3,IF(C105=$C$1,Worksheet!$B$4,IF(C105=$D$1,Worksheet!$B$5,IF(C105=$E$1,Worksheet!$B$6,IF(C105=$B$2,Worksheet!$B$7,IF(C105=$C$2,Worksheet!$D$3,IF(C105=$D$2,Worksheet!$D$4,IF(C105=$E$2,Worksheet!$D$5,IF(C105=$C$3,Worksheet!$D$6,IF(C105=$B$3,Worksheet!$D$7,IF(C105=$D$3,Worksheet!$B$10,IF(C105=$E$3,Worksheet!$D$10,FALSE))))))))))))) -> TRUE | AF105: =IF(AE105,D105,"") -> Hard | AG105: =IF(AE105,COUNTIF($AF$5:AF105,AF105),"X") -> 31 | AH105: =CONCATENATE(AE105,AF105) -> TRUEHard
A106: =CONCATENATE(AE106,D106,AG106) -> TRUEHard32 | B106: =RAND() -> 0.601692571 | C106: Frac | D106: Hard | E106: 198 | F106: Take away the fraction: | G106: 1 | H106: – | I106: 2/3 | T106: =CONCATENATE(F106," ",G106," ",H106," ",I106," ",J106," ",K106," ",L106," ",M106," ",N106," ",O106," ",P106," ",Q106," ",R106) -> Take away the fraction: 1 – 2/3 | U106: 1/3 | AD106: =IF(OR(ISNA(U106),ISNA(V106),ISNA(W106),ISNA(X106),ISNA(Y106),ISNA(Z106),ISNA(AA106),ISNA(AB106),ISNA(AC106)),NA(),CONCATENATE(U106,V106,W106,X106,Y106,Z106,AA106,AB106)) -> 1/3 | AE106: =IF(ISNA(AD106),FALSE,IF(C106=$B$1,Worksheet!$B$3,IF(C106=$C$1,Worksheet!$B$4,IF(C106=$D$1,Worksheet!$B$5,IF(C106=$E$1,Worksheet!$B$6,IF(C106=$B$2,Worksheet!$B$7,IF(C106=$C$2,Worksheet!$D$3,IF(C106=$D$2,Worksheet!$D$4,IF(C106=$E$2,Worksheet!$D$5,IF(C106=$C$3,Worksheet!$D$6,IF(C106=$B$3,Worksheet!$D$7,IF(C106=$D$3,Worksheet!$B$10,IF(C106=$E$3,Worksheet!$D$10,FALSE))))))))))))) -> TRUE | AF106: =IF(AE106,D106,"") -> Hard | AG106: =IF(AE106,COUNTIF($AF$5:AF106,AF106),"X") -> 32 | AH106: =CONCATENATE(AE106,AF106) -> TRUEHard
A107: =CONCATENATE(AE107,D107,AG107) -> TRUEMedium39 | B107: =RAND() -> 0.1510708725 | C107: % | D107: Medium | E107: 298 | F107: Write | G107: =RANDBETWEEN(1,99) -> 43 | H107: % as a fraction | T107: =CONCATENATE(F107," ",G107,"",H107," ",I107," ",J107," ",K107," ",L107," ",M107," ",N107," ",O107," ",P107," ",Q107," ",R107) -> Write 43% as a fraction | U107: =G107 -> 43 | V107: /100 | AD107: =IF(OR(ISNA(U107),ISNA(V107),ISNA(W107),ISNA(X107),ISNA(Y107),ISNA(Z107),ISNA(AA107),ISNA(AB107),ISNA(AC107)),NA(),CONCATENATE(U107,V107,W107,X107,Y107,Z107,AA107,AB107)) -> 43/100 | AE107: =IF(ISNA(AD107),FALSE,IF(C107=$B$1,Worksheet!$B$3,IF(C107=$C$1,Worksheet!$B$4,IF(C107=$D$1,Worksheet!$B$5,IF(C107=$E$1,Worksheet!$B$6,IF(C107=$B$2,Worksheet!$B$7,IF(C107=$C$2,Worksheet!$D$3,IF(C107=$D$2,Worksheet!$D$4,IF(C107=$E$2,Worksheet!$D$5,IF(C107=$C$3,Worksheet!$D$6,IF(C107=$B$3,Worksheet!$D$7,IF(C107=$D$3,Worksheet!$B$10,IF(C107=$E$3,Worksheet!$D$10,FALSE))))))))))))) -> TRUE | AF107: =IF(AE107,D107,"") -> Medium | AG107: =IF(AE107,COUNTIF($AF$5:AF107,AF107),"X") -> 39 | AH107: =CONCATENATE(AE107,AF107) -> TRUEMedium
A108: =CONCATENATE(AE108,D108,AG108) -> TRUEEasy26 | B108: =RAND() -> 0.9923793488 | C108: Dec | D108: Easy | E108: 211 | F108: Three of these numbers are the same. Cirle the number that is NOT the same: | G108: =IF(S108=1,R108/10,TEXT(R108,"0.0")) -> 3.0 | H108: =IF(S108=2,R108/10,R108) -> 0.3 | I108: =IF(S108=3,R108/10,TEXT(R108,"0.00")) -> 3.00 | J108: =IF(S108=4,R108/10,IF(S108=2,R108,IF(S108=1,TEXT(R108,"0.0"),TEXT(R108,"0.00")))) -> 3 | R108: =RANDBETWEEN(1,9) -> 3 | S108: =RANDBETWEEN(1,4) -> 2 | T108: =CONCATENATE(F108," ",G108,", ",H108,", ",I108,", ",J108," ",K108," ",L108," ",M108," ",N108," ",O108," ",P108," ",Q108) -> Three of these numbers are the same. Cirle the number that is NOT the same: 3.0, 0.3, 3.00, 3 | U108: =R108/10 -> 0.3 | AD108: =IF(OR(ISNA(U108),ISNA(V108),ISNA(W108),ISNA(X108),ISNA(Y108),ISNA(Z108),ISNA(AA108),ISNA(AB108),ISNA(AC108)),NA(),CONCATENATE(U108,V108,W108,X108,Y108,Z108,AA108,AB108)) -> 0.3 | AE108: =IF(ISNA(AD108),FALSE,IF(C108=$B$1,Worksheet!$B$3,IF(C108=$C$1,Worksheet!$B$4,IF(C108=$D$1,Worksheet!$B$5,IF(C108=$E$1,Worksheet!$B$6,IF(C108=$B$2,Worksheet!$B$7,IF(C108=$C$2,Worksheet!$D$3,IF(C108=$D$2,Worksheet!$D$4,IF(C108=$E$2,Worksheet!$D$5,IF(C108=$C$3,Worksheet!$D$6,IF(C108=$B$3,Worksheet!$D$7,IF(C108=$D$3,Worksheet!$B$10,IF(C108=$E$3,Worksheet!$D$10,FALSE))))))))))))) -> TRUE | AF108: =IF(AE108,D108,"") -> Easy | AG108: =IF(AE108,COUNTIF($AF$5:AF108,AF108),"X") -> 26 | AH108: =CONCATENATE(AE108,AF108) -> TRUEEasy
A109: =CONCATENATE(AE109,D109,AG109) -> TRUEHard33 | B109: =RAND() -> 0.1825360416 | C109: Frac | D109: Hard | E109: 175 | F109: Fractions. Choose the number that makes the fractions equivalent: | G109: =IF(I109=5,RANDBETWEEN(2,4),IF(I109=6,5,IF(I109=7,RANDBETWEEN(2,5),IF(I109=8,CHOOSE(RANDBETWEEN(1,3),3,5,7),IF(I109=9,CHOOSE(RANDBETWEEN(1,4),2,4,5,7),CHOOSE(RANDBETWEEN(1,3),3,7,9)))))) -> 5 | H109: / | I109: =RANDBETWEEN(5,10) -> 8 | J109: = | K109: ___ | L109: / | M109: =I109*S109 -> 40 | S109: =RANDBETWEEN(2,10) -> 5 | T109: =CONCATENATE(F109," ",G109,"",H109,"",I109," ",J109," ",K109,"",L109,"",M109," ",N109," ",O109," ",P109," ",Q109," ",R109) -> Fractions. Choose the number that makes the fractions equivalent: 5/8 = ___/40 | U109: =CONCATENATE(G109,H109,I109," = ",G109*S109,L109,I109*S109) -> 5/8 = 25/40 | AD109: =IF(OR(ISNA(U109),ISNA(V109),ISNA(W109),ISNA(X109),ISNA(Y109),ISNA(Z109),ISNA(AA109),ISNA(AB109),ISNA(AC109)),NA(),CONCATENATE(U109,V109,W109,X109,Y109,Z109,AA109,AB109)) -> 5/8 = 25/40 | AE109: =IF(ISNA(AD109),FALSE,IF(C109=$B$1,Worksheet!$B$3,IF(C109=$C$1,Worksheet!$B$4,IF(C109=$D$1,Worksheet!$B$5,IF(C109=$E$1,Worksheet!$B$6,IF(C109=$B$2,Worksheet!$B$7,IF(C109=$C$2,Worksheet!$D$3,IF(C109=$D$2,Worksheet!$D$4,IF(C109=$E$2,Worksheet!$D$5,IF(C109=$C$3,Worksheet!$D$6,IF(C109=$B$3,Worksheet!$D$7,IF(C109=$D$3,Worksheet!$B$10,IF(C109=$E$3,Worksheet!$D$10,FALSE))))))))))))) -> TRUE | AF109: =IF(AE109,D109,"") -> Hard | AG109: =IF(AE109,COUNTIF($AF$5:AF109,AF109),"X") -> 33 | AH109: =CONCATENATE(AE109,AF109) -> TRUEHard
A110: =CONCATENATE(AE110,D110,AG110) -> TRUEEasy27 | B110: =RAND() -> 0.9035063668 | C110: Dec | D110: Easy | E110: 203 | F110: Continue the pattern for three more numbers: | G110: =RANDBETWEEN(1,40)+RANDBETWEEN(4,5)*0.1 -> 22.5 | H110: =G110+S110 -> 22.4 | I110: =H110+S110 -> 22.3 | J110: =I110+S110 -> 22.2 | K110: ____ | L110: ____ | M110: ____ | S110: -0.1 | T110: =CONCATENATE(F110," ",G110,", ",H110,", ",I110,", ",J110,", ",K110,", ",L110,", ",M110," ",N110," ",O110," ",P110," ",Q110," ",R110) -> Continue the pattern for three more numbers: 22.5, 22.4, 22.3, 22.2, ____, ____, ____ | U110: =J110+S110 -> 22.1 | V110: =U110+S110 -> 22 | W110: =V110+S110 -> 21.9 | AD110: =IF(OR(ISNA(U110),ISNA(V110),ISNA(W110),ISNA(X110),ISNA(Y110),ISNA(Z110),ISNA(AA110),ISNA(AB110),ISNA(AC110)),NA(),CONCATENATE(U110,", ",V110,", ",W110,X110,Y110,Z110,AA110,AB110)) -> 22.1, 22, 21.9 | AE110: =IF(ISNA(AD110),FALSE,IF(C110=$B$1,Worksheet!$B$3,IF(C110=$C$1,Worksheet!$B$4,IF(C110=$D$1,Worksheet!$B$5,IF(C110=$E$1,Worksheet!$B$6,IF(C110=$B$2,Worksheet!$B$7,IF(C110=$C$2,Worksheet!$D$3,IF(C110=$D$2,Worksheet!$D$4,IF(C110=$E$2,Worksheet!$D$5,IF(C110=$C$3,Worksheet!$D$6,IF(C110=$B$3,Worksheet!$D$7,IF(C110=$D$3,Worksheet!$B$10,IF(C110=$E$3,Worksheet!$D$10,FALSE))))))))))))) -> TRUE | AF110: =IF(AE110,D110,"") -> Easy | AG110: =IF(AE110,COUNTIF($AF$5:AF110,AF110),"X") -> 27 | AH110: =CONCATENATE(AE110,AF110) -> TRUEEasy
A111: =CONCATENATE(AE111,D111,AG111) -> TRUEEasy28 | B111: =RAND() -> 0.6419076411 | C111: +- | D111: Easy | E111: 39 | F111: Add: | G111: =RANDBETWEEN(3,8)*100+RANDBETWEEN(5,9)*10 -> 870 | H111: + | I111: =RANDBETWEEN(6,9)*10 -> 80 | T111: =CONCATENATE(F111," ",G111," ",H111," ",I111," ",J111," ",K111," ",L111," ",M111," ",N111," ",O111," ",P111," ",Q111," ",R111) -> Add: 870 + 80 | U111: =G111+I111 -> 950 | AD111: =IF(OR(ISNA(U111),ISNA(V111),ISNA(W111),ISNA(X111),ISNA(Y111),ISNA(Z111),ISNA(AA111),ISNA(AB111),ISNA(AC111)),NA(),CONCATENATE(U111,V111,W111,X111,Y111,Z111,AA111,AB111)) -> 950 | AE111: =IF(ISNA(AD111),FALSE,IF(C111=$B$1,Worksheet!$B$3,IF(C111=$C$1,Worksheet!$B$4,IF(C111=$D$1,Worksheet!$B$5,IF(C111=$E$1,Worksheet!$B$6,IF(C111=$B$2,Worksheet!$B$7,IF(C111=$C$2,Worksheet!$D$3,IF(C111=$D$2,Worksheet!$D$4,IF(C111=$E$2,Worksheet!$D$5,IF(C111=$C$3,Worksheet!$D$6,IF(C111=$B$3,Worksheet!$D$7,IF(C111=$D$3,Worksheet!$B$10,IF(C111=$E$3,Worksheet!$D$10,FALSE))))))))))))) -> TRUE | AF111: =IF(AE111,D111,"") -> Easy | AG111: =IF(AE111,COUNTIF($AF$5:AF111,AF111),"X") -> 28 | AH111: =CONCATENATE(AE111,AF111) -> TRUEEasy
A112: =CONCATENATE(AE112,D112,AG112) -> TRUEHard34 | B112: =RAND() -> 0.1016362624 | C112: Divide | D112: Hard | E112: 127 | F112: Divide by writing down a sum: | G112: =I112*RANDBETWEEN(1001/I112,9999/I112) -> 5292 | H112: ÷ | I112: =RANDBETWEEN(6,9) -> 6 | S112: =RANDBETWEEN(4,9) -> 5 | T112: =CONCATENATE(F112," ",G112," ",H112," ",I112," ",J112," ",K112," ",L112," ",M112," ",N112," ",O112," ",P112," ",Q112," ",R112) -> Divide by writing down a sum: 5292 ÷ 6 | U112: =G112/I112 -> 882 | W112: =IF(INT(U112)<>U112,NA(),"") ->  | AD112: =IF(OR(ISNA(U112),ISNA(V112),ISNA(W112),ISNA(X112),ISNA(Y112),ISNA(Z112),ISNA(AA112),ISNA(AB112),ISNA(AC112)),NA(),CONCATENATE(U112,V112,W112,X112,Y112,Z112,AA112,AB112)) -> 882 | AE112: =IF(ISNA(AD112),FALSE,IF(C112=$B$1,Worksheet!$B$3,IF(C112=$C$1,Worksheet!$B$4,IF(C112=$D$1,Worksheet!$B$5,IF(C112=$E$1,Worksheet!$B$6,IF(C112=$B$2,Worksheet!$B$7,IF(C112=$C$2,Worksheet!$D$3,IF(C112=$D$2,Worksheet!$D$4,IF(C112=$E$2,Worksheet!$D$5,IF(C112=$C$3,Worksheet!$D$6,IF(C112=$B$3,Worksheet!$D$7,IF(C112=$D$3,Worksheet!$B$10,IF(C112=$E$3,Worksheet!$D$10,FALSE))))))))))))) -> TRUE | AF112: =IF(AE112,D112,"") -> Hard | AG112: =IF(AE112,COUNTIF($AF$5:AF112,AF112),"X") -> 34 | AH112: =CONCATENATE(AE112,AF112) -> TRUEHard
A113: =CONCATENATE(AE113,D113,AG113) -> TRUEMedium40 | B113: =RAND() -> 0.9313742332 | C113: Frac | D113: Medium | E113: 194 | F113: Take away the fractions: | G113: =RANDBETWEEN(3,4) -> 4 | H113: /5 | I113: – | J113: =RANDBETWEEN(1,G113-1) -> 1 | K113: /5 | T113: =CONCATENATE(F113," ",G113,"",H113," ",I113," ",J113,"",K113," ",L113," ",M113," ",N113," ",O113," ",P113," ",Q113," ",R113) -> Take away the fractions: 4/5 – 1/5 | U113: =IF(G113-J113=0,0,CONCATENATE(G113-J113,"/5")) -> 3/5 | AD113: =IF(OR(ISNA(U113),ISNA(V113),ISNA(W113),ISNA(X113),ISNA(Y113),ISNA(Z113),ISNA(AA113),ISNA(AB113),ISNA(AC113)),NA(),CONCATENATE(U113,V113,W113,X113,Y113,Z113,AA113,AB113)) -> 3/5 | AE113: =IF(ISNA(AD113),FALSE,IF(C113=$B$1,Worksheet!$B$3,IF(C113=$C$1,Worksheet!$B$4,IF(C113=$D$1,Worksheet!$B$5,IF(C113=$E$1,Worksheet!$B$6,IF(C113=$B$2,Worksheet!$B$7,IF(C113=$C$2,Worksheet!$D$3,IF(C113=$D$2,Worksheet!$D$4,IF(C113=$E$2,Worksheet!$D$5,IF(C113=$C$3,Worksheet!$D$6,IF(C113=$B$3,Worksheet!$D$7,IF(C113=$D$3,Worksheet!$B$10,IF(C113=$E$3,Worksheet!$D$10,FALSE))))))))))))) -> TRUE | AF113: =IF(AE113,D113,"") -> Medium | AG113: =IF(AE113,COUNTIF($AF$5:AF113,AF113),"X") -> 40 | AH113: =CONCATENATE(AE113,AF113) -> TRUEMedium
A114: =CONCATENATE(AE114,D114,AG114) -> TRUEEasy29 | B114: =RAND() -> 0.2620137635 | C114: Dec | D114: Easy | E114: 205 | F114: Continue the pattern for three more numbers: | G114: =RANDBETWEEN(6,40) -> 28 | H114: =G114+S114 -> 27.5 | I114: =H114+S114 -> 27 | J114: =I114+S114 -> 26.5 | K114: ____ | L114: ____ | M114: ____ | S114: -0.5 | T114: =CONCATENATE(F114," ",G114,", ",H114,", ",I114,", ",J114,", ",K114,", ",L114,", ",M114," ",N114," ",O114," ",P114," ",Q114," ",R114) -> Continue the pattern for three more numbers: 28, 27.5, 27, 26.5, ____, ____, ____ | U114: =J114+S114 -> 26 | V114: =U114+S114 -> 25.5 | W114: =V114+S114 -> 25 | AD114: =IF(OR(ISNA(U114),ISNA(V114),ISNA(W114),ISNA(X114),ISNA(Y114),ISNA(Z114),ISNA(AA114),ISNA(AB114),ISNA(AC114)),NA(),CONCATENATE(U114,", ",V114,", ",W114,X114,Y114,Z114,AA114,AB114)) -> 26, 25.5, 25 | AE114: =IF(ISNA(AD114),FALSE,IF(C114=$B$1,Worksheet!$B$3,IF(C114=$C$1,Worksheet!$B$4,IF(C114=$D$1,Worksheet!$B$5,IF(C114=$E$1,Worksheet!$B$6,IF(C114=$B$2,Worksheet!$B$7,IF(C114=$C$2,Worksheet!$D$3,IF(C114=$D$2,Worksheet!$D$4,IF(C114=$E$2,Worksheet!$D$5,IF(C114=$C$3,Worksheet!$D$6,IF(C114=$B$3,Worksheet!$D$7,IF(C114=$D$3,Worksheet!$B$10,IF(C114=$E$3,Worksheet!$D$10,FALSE))))))))))))) -> TRUE | AF114: =IF(AE114,D114,"") -> Easy | AG114: =IF(AE114,COUNTIF($AF$5:AF114,AF114),"X") -> 29 | AH114: =CONCATENATE(AE114,AF114) -> TRUEEasy
A115: =CONCATENATE(AE115,D115,AG115) -> TRUEEasy30 | B115: =RAND() -> 0.1270811685 | C115: Divide | D115: Easy | E115: 130 | F115: Divide: | G115: =TEXT(RANDBETWEEN(1,9)*1000+RANDBETWEEN(1,9)*100,"#,###") -> 2,700 | H115: ÷ | I115: 100 | T115: =CONCATENATE(F115," ",G115," ",H115," ",I115," ",J115," ",K115," ",L115," ",M115," ",N115," ",O115," ",P115," ",Q115," ",R115) -> Divide: 2,700 ÷ 100 | U115: =G115/I115 -> 27 | W115: =IF(INT(U115)<>U115,NA(),"") ->  | AD115: =IF(OR(ISNA(U115),ISNA(V115),ISNA(W115),ISNA(X115),ISNA(Y115),ISNA(Z115),ISNA(AA115),ISNA(AB115),ISNA(AC115)),NA(),CONCATENATE(U115,V115,W115,X115,Y115,Z115,AA115,AB115)) -> 27 | AE115: =IF(ISNA(AD115),FALSE,IF(C115=$B$1,Worksheet!$B$3,IF(C115=$C$1,Worksheet!$B$4,IF(C115=$D$1,Worksheet!$B$5,IF(C115=$E$1,Worksheet!$B$6,IF(C115=$B$2,Worksheet!$B$7,IF(C115=$C$2,Worksheet!$D$3,IF(C115=$D$2,Worksheet!$D$4,IF(C115=$E$2,Worksheet!$D$5,IF(C115=$C$3,Worksheet!$D$6,IF(C115=$B$3,Worksheet!$D$7,IF(C115=$D$3,Worksheet!$B$10,IF(C115=$E$3,Worksheet!$D$10,FALSE))))))))))))) -> TRUE | AF115: =IF(AE115,D115,"") -> Easy | AG115: =IF(AE115,COUNTIF($AF$5:AF115,AF115),"X") -> 30 | AH115: =CONCATENATE(AE115,AF115) -> TRUEEasy
A116: =CONCATENATE(AE116,D116,AG116) -> TRUEMedium41 | B116: =RAND() -> 0.08101433289 | C116: % | D116: Medium | E116: 304 | F116: What is | G116: =RANDBETWEEN(1,9)/100 -> 0.06 | H116: as a percentage? | T116: =CONCATENATE(F116," ",G116," ",H116," ",I116," ",J116," ",K116," ",L116," ",M116," ",N116," ",O116," ",P116," ",Q116," ",R116) -> What is 0.06 as a percentage? | U116: =G116*100 -> 6 | V116: % | AD116: =IF(OR(ISNA(U116),ISNA(V116),ISNA(W116),ISNA(X116),ISNA(Y116),ISNA(Z116),ISNA(AA116),ISNA(AB116),ISNA(AC116)),NA(),CONCATENATE(U116,V116,W116,X116,Y116,Z116,AA116,AB116)) -> 6% | AE116: =IF(ISNA(AD116),FALSE,IF(C116=$B$1,Worksheet!$B$3,IF(C116=$C$1,Worksheet!$B$4,IF(C116=$D$1,Worksheet!$B$5,IF(C116=$E$1,Worksheet!$B$6,IF(C116=$B$2,Worksheet!$B$7,IF(C116=$C$2,Worksheet!$D$3,IF(C116=$D$2,Worksheet!$D$4,IF(C116=$E$2,Worksheet!$D$5,IF(C116=$C$3,Worksheet!$D$6,IF(C116=$B$3,Worksheet!$D$7,IF(C116=$D$3,Worksheet!$B$10,IF(C116=$E$3,Worksheet!$D$10,FALSE))))))))))))) -> TRUE | AF116: =IF(AE116,D116,"") -> Medium | AG116: =IF(AE116,COUNTIF($AF$5:AF116,AF116),"X") -> 41 | AH116: =CONCATENATE(AE116,AF116) -> TRUEMedium
A117: =CONCATENATE(AE117,D117,AG117) -> TRUEMedium42 | B117: =RAND() -> 0.9711713778 | C117: Frac | D117: Medium | E117: 153 | F117: Fractions. What is | G117: =CHOOSE(RANDBETWEEN(1,3),"2/5","3/5","4/5") -> 4/5 | H117: of | I117: =5*RANDBETWEEN(2,10) -> 50 | J117: ? | T117: =CONCATENATE(F117," ",G117," ",H117," ",I117," ",J117," ",K117," ",L117," ",M117," ",N117," ",O117," ",P117," ",Q117," ",R117) -> Fractions. What is 4/5 of 50 ? | U117: =I117/5*IF(G117="2/5",2,IF(G117="3/5",3,4)) -> 40 | W117: =IF(AND(G117=G116,I117=I116),NA(),"") ->  | Y117: =IF(INT(U117)<>U117,NA(),"") ->  | AD117: =IF(OR(ISNA(U117),ISNA(V117),ISNA(W117),ISNA(X117),ISNA(Y117),ISNA(Z117),ISNA(AA117),ISNA(AB117),ISNA(AC117)),NA(),CONCATENATE(U117,V117,W117,X117,Y117,Z117,AA117,AB117)) -> 40 | AE117: =IF(ISNA(AD117),FALSE,IF(C117=$B$1,Worksheet!$B$3,IF(C117=$C$1,Worksheet!$B$4,IF(C117=$D$1,Worksheet!$B$5,IF(C117=$E$1,Worksheet!$B$6,IF(C117=$B$2,Worksheet!$B$7,IF(C117=$C$2,Worksheet!$D$3,IF(C117=$D$2,Worksheet!$D$4,IF(C117=$E$2,Worksheet!$D$5,IF(C117=$C$3,Worksheet!$D$6,IF(C117=$B$3,Worksheet!$D$7,IF(C117=$D$3,Worksheet!$B$10,IF(C117=$E$3,Worksheet!$D$10,FALSE))))))))))))) -> TRUE | AF117: =IF(AE117,D117,"") -> Medium | AG117: =IF(AE117,COUNTIF($AF$5:AF117,AF117),"X") -> 42 | AH117: =CONCATENATE(AE117,AF117) -> TRUEMedium
A118: =CONCATENATE(AE118,D118,AG118) -> TRUEMedium43 | B118: =RAND() -> 0.9518682451 | C118: Divide | D118: Medium | E118: 124 | F118: Divide by writing down a sum: | G118: =I118*RANDBETWEEN(1001/I118,9999/I118) -> 5848 | H118: ÷ | I118: =RANDBETWEEN(3,5) -> 4 | S118: =RANDBETWEEN(4,9) -> 5 | T118: =CONCATENATE(F118," ",G118," ",H118," ",I118," ",J118," ",K118," ",L118," ",M118," ",N118," ",O118," ",P118," ",Q118," ",R118) -> Divide by writing down a sum: 5848 ÷ 4 | U118: =G118/I118 -> 1462 | W118: =IF(INT(U118)<>U118,NA(),"") ->  | AD118: =IF(OR(ISNA(U118),ISNA(V118),ISNA(W118),ISNA(X118),ISNA(Y118),ISNA(Z118),ISNA(AA118),ISNA(AB118),ISNA(AC118)),NA(),CONCATENATE(U118,V118,W118,X118,Y118,Z118,AA118,AB118)) -> 1462 | AE118: =IF(ISNA(AD118),FALSE,IF(C118=$B$1,Worksheet!$B$3,IF(C118=$C$1,Worksheet!$B$4,IF(C118=$D$1,Worksheet!$B$5,IF(C118=$E$1,Worksheet!$B$6,IF(C118=$B$2,Worksheet!$B$7,IF(C118=$C$2,Worksheet!$D$3,IF(C118=$D$2,Worksheet!$D$4,IF(C118=$E$2,Worksheet!$D$5,IF(C118=$C$3,Worksheet!$D$6,IF(C118=$B$3,Worksheet!$D$7,IF(C118=$D$3,Worksheet!$B$10,IF(C118=$E$3,Worksheet!$D$10,FALSE))))))))))))) -> TRUE | AF118: =IF(AE118,D118,"") -> Medium | AG118: =IF(AE118,COUNTIF($AF$5:AF118,AF118),"X") -> 43 | AH118: =CONCATENATE(AE118,AF118) -> TRUEMedium
A119: =CONCATENATE(AE119,D119,AG119) -> TRUEMedium44 | B119: =RAND() -> 0.1415149661 | C119: Neg | D119: Medium | E119: 357 | F119: Continue the pattern for three more numbers: | G119: =RANDBETWEEN(2,4)*2 -> 4 | H119: =G119+S119 -> 2 | I119: =H119+S119 -> 0 | J119: =I119+S119 -> -2 | K119: ____ | L119: ____ | M119: ____ | S119: -2 | T119: =CONCATENATE(F119," ",G119,", ",H119,", ",I119,", ",J119,", ",K119,", ",L119,", ",M119," ",N119," ",O119," ",P119," ",Q119," ",R119) -> Continue the pattern for three more numbers: 4, 2, 0, -2, ____, ____, ____ | U119: =J119+S119 -> -4 | V119: =U119+S119 -> -6 | W119: =V119+S119 -> -8 | AD119: =IF(OR(ISNA(U119),ISNA(V119),ISNA(W119),ISNA(X119),ISNA(Y119),ISNA(Z119),ISNA(AA119),ISNA(AB119),ISNA(AC119)),NA(),CONCATENATE(U119,", ",V119,", ",W119,X119,Y119,Z119,AA119,AB119)) -> -4, -6, -8 | AE119: =IF(ISNA(AD119),FALSE,IF(C119=$B$1,Worksheet!$B$3,IF(C119=$C$1,Worksheet!$B$4,IF(C119=$D$1,Worksheet!$B$5,IF(C119=$E$1,Worksheet!$B$6,IF(C119=$B$2,Worksheet!$B$7,IF(C119=$C$2,Worksheet!$D$3,IF(C119=$D$2,Worksheet!$D$4,IF(C119=$E$2,Worksheet!$D$5,IF(C119=$C$3,Worksheet!$D$6,IF(C119=$B$3,Worksheet!$D$7,IF(C119=$D$3,Worksheet!$B$10,IF(C119=$E$3,Worksheet!$D$10,FALSE))))))))))))) -> TRUE | AF119: =IF(AE119,D119,"") -> Medium | AG119: =IF(AE119,COUNTIF($AF$5:AF119,AF119),"X") -> 44 | AH119: =CONCATENATE(AE119,AF119) -> TRUEMedium
A120: =CONCATENATE(AE120,D120,AG120) -> FALSEEasyX | B120: =RAND() -> 0.09352759273 | C120: Neg | D120: Easy | E120: 343 | F120: Rewrite the numbers in order from | G120: =IF(RAND()<0.5,"smallest to biggest: ","biggest to smallest: ") -> smallest to biggest: | H120: =RANDBETWEEN(-10,-1) -> -8 | I120: =RANDBETWEEN(-100,100) -> -72 | J120: =RANDBETWEEN(-100,100) -> -8 | K120: =RANDBETWEEN(0,10) -> 2 | L120: =RANDBETWEEN(-100,100) -> -7 | N120: =L120 -> -7 | O120: =H120 -> -8 | P120: =I120 -> -72 | Q120: =J120 -> -8 | R120: =K120 -> 2 | S120: =RANDBETWEEN(2,8) -> 2 | T120: =CONCATENATE(F120," ",G120," ",H120,", ",I120,", ",J120,", ",K120,", ",L120," ",M120) -> Rewrite the numbers in order from smallest to biggest: -8, -72, -8, 2, -7 | U120: =IF(LARGE($N120:$R120,IF($G120="biggest to smallest: ",1,5))=$O120,$H120,IF(LARGE($N120:$R120,IF($G120="biggest to smallest: ",1,5))=$P120,$I120,IF(LARGE($N120:$R120,IF($G120="biggest to smallest: ",1,5))=$Q120,$J120,IF(LARGE($N120:$R120,IF($G120="biggest to smallest: ",1,5))=$R120,$K120,$L120)))) -> -72 | V120: =IF(LARGE($N120:$R120,IF($G120="biggest to smallest: ",2,4))=$O120,$H120,IF(LARGE($N120:$R120,IF($G120="biggest to smallest: ",2,4))=$P120,$I120,IF(LARGE($N120:$R120,IF($G120="biggest to smallest: ",2,4))=$Q120,$J120,IF(LARGE($N120:$R120,IF($G120="biggest to smallest: ",2,4))=$R120,$K120,$L120)))) -> -8 | W120: =IF(LARGE($N120:$R120,IF($G120="biggest to smallest: ",3,3))=$O120,$H120,IF(LARGE($N120:$R120,IF($G120="biggest to smallest: ",3,3))=$P120,$I120,IF(LARGE($N120:$R120,IF($G120="biggest to smallest: ",3,3))=$Q120,$J120,IF(LARGE($N120:$R120,IF($G120="biggest to smallest: ",3,3))=$R120,$K120,$L120)))) -> -8 | X120: =IF(LARGE($N120:$R120,IF($G120="biggest to smallest: ",4,2))=$O120,$H120,IF(LARGE($N120:$R120,IF($G120="biggest to smallest: ",4,2))=$P120,$I120,IF(LARGE($N120:$R120,IF($G120="biggest to smallest: ",4,2))=$Q120,$J120,IF(LARGE($N120:$R120,IF($G120="biggest to smallest: ",4,2))=$R120,$K120,$L120)))) -> -7 | Y120: =IF(LARGE($N120:$R120,IF($G120="biggest to smallest: ",5,1))=$O120,$H120,IF(LARGE($N120:$R120,IF($G120="biggest to smallest: ",5,1))=$P120,$I120,IF(LARGE($N120:$R120,IF($G120="biggest to smallest: ",5,1))=$Q120,$J120,IF(LARGE($N120:$R120,IF($G120="biggest to smallest: ",5,1))=$R120,$K120,$L120)))) -> 2 | Z120: =IF(OR(H120=I120,H120=J120,H120=K120,H120=L120,I120=J120,I120=K120,I120=L120,J120=K120,J120=L120,K120=L120),NA(),"") ->  | AA120: =IF(IF(L120>0,1,0)+IF(K120>0,1,0)+IF(J120>0,1,0)+IF(I120>0,1,0)+IF(H120>0,1,0)>3,NA(),"") ->  | AB120: =IF(OR(H120=L120,I120=L120,J120=L120,K120=L120,I120=J120,I120=K120),NA(),"") ->  | AC120: =IF(ISERROR(T120),NA(),"") ->  | AD120: =IF(OR(ISNA(U120),ISNA(V120),ISNA(W120),ISNA(X120),ISNA(Y120)),NA(),CONCATENATE(U120,", ",V120,", ",W120,", ",X120,", ",Y120,Z120,AA120,AB120,AC120)) ->  | AE120: =IF(ISNA(AD120),FALSE,IF(C120=$B$1,Worksheet!$B$3,IF(C120=$C$1,Worksheet!$B$4,IF(C120=$D$1,Worksheet!$B$5,IF(C120=$E$1,Worksheet!$B$6,IF(C120=$B$2,Worksheet!$B$7,IF(C120=$C$2,Worksheet!$D$3,IF(C120=$D$2,Worksheet!$D$4,IF(C120=$E$2,Worksheet!$D$5,IF(C120=$C$3,Worksheet!$D$6,IF(C120=$B$3,Worksheet!$D$7,IF(C120=$D$3,Worksheet!$B$10,IF(C120=$E$3,Worksheet!$D$10,FALSE))))))))))))) -> FALSE | AF120: =IF(AE120,D120,"") ->  | AG120: =IF(AE120,COUNTIF($AF$5:AF120,AF120),"X") -> X | AH120: =CONCATENATE(AE120,AF120) -> FALSE
A121: =CONCATENATE(AE121,D121,AG121) -> TRUEEasy31 | B121: =RAND() -> 0.5416249429 | C121: Round | D121: Easy | E121: 338 | F121: Round | G121: =RANDBETWEEN(0,9)+RANDBETWEEN(1,9)/10 -> 8.9 | H121: to the nearest whole number | T121: =CONCATENATE(F121," ",G121," ",H121," ",I121," ",J121," ",K121," ",L121," ",M121," ",N121," ",O121," ",P121," ",Q121," ",R121) -> Round 8.9 to the nearest whole number | U121: =MROUND(G121,1) -> 9 | AD121: =IF(OR(ISNA(U121),ISNA(V121),ISNA(W121),ISNA(X121),ISNA(Y121),ISNA(Z121),ISNA(AA121),ISNA(AB121),ISNA(AC121)),NA(),CONCATENATE(U121,V121,W121,X121,Y121,Z121,AA121,AB121)) -> 9 | AE121: =IF(ISNA(AD121),FALSE,IF(C121=$B$1,Worksheet!$B$3,IF(C121=$C$1,Worksheet!$B$4,IF(C121=$D$1,Worksheet!$B$5,IF(C121=$E$1,Worksheet!$B$6,IF(C121=$B$2,Worksheet!$B$7,IF(C121=$C$2,Worksheet!$D$3,IF(C121=$D$2,Worksheet!$D$4,IF(C121=$E$2,Worksheet!$D$5,IF(C121=$C$3,Worksheet!$D$6,IF(C121=$B$3,Worksheet!$D$7,IF(C121=$D$3,Worksheet!$B$10,IF(C121=$E$3,Worksheet!$D$10,FALSE))))))))))))) -> TRUE | AF121: =IF(AE121,D121,"") -> Easy | AG121: =IF(AE121,COUNTIF($AF$5:AF121,AF121),"X") -> 31 | AH121: =CONCATENATE(AE121,AF121) -> TRUEEasy
A122: =CONCATENATE(AE122,D122,AG122) -> TRUEEasy32 | B122: =RAND() -> 0.2407493583 | C122: Mult | D122: Easy | E122: 56 | F122: Write out all the numbers in the | G122: =RANDBETWEEN(6,9) -> 8 | H122: times table going backwards: | I122: =CONCATENATE(10*G122,", ",G122*9,", ",G122*8) -> 80, 72, 64 | J122: , ___, ___, ___, ___, ___, ___, ___ | T122: =CONCATENATE(F122," ",G122," ",H122," ",I122," ",J122," ",K122," ",L122," ",M122," ",N122," ",O122," ",P122," ",Q122," ",R122) -> Write out all the numbers in the 8 times table going backwards: 80, 72, 64 , ___, ___, ___, ___, ___, ___, ___ | U122: =CONCATENATE(G122*4,", ",G122*5,", ",G122*6,", ",G122*7,", ",G122*8,", ",G122*9,", ",G122*10) -> 32, 40, 48, 56, 64, 72, 80 | AD122: =IF(OR(ISNA(U122),ISNA(V122),ISNA(W122),ISNA(X122),ISNA(Y122),ISNA(Z122),ISNA(AA122),ISNA(AB122),ISNA(AC122)),NA(),CONCATENATE(U122,V122,W122,X122,Y122,Z122,AA122,AB122)) -> 32, 40, 48, 56, 64, 72, 80 | AE122: =IF(ISNA(AD122),FALSE,IF(C122=$B$1,Worksheet!$B$3,IF(C122=$C$1,Worksheet!$B$4,IF(C122=$D$1,Worksheet!$B$5,IF(C122=$E$1,Worksheet!$B$6,IF(C122=$B$2,Worksheet!$B$7,IF(C122=$C$2,Worksheet!$D$3,IF(C122=$D$2,Worksheet!$D$4,IF(C122=$E$2,Worksheet!$D$5,IF(C122=$C$3,Worksheet!$D$6,IF(C122=$B$3,Worksheet!$D$7,IF(C122=$D$3,Worksheet!$B$10,IF(C122=$E$3,Worksheet!$D$10,FALSE))))))))))))) -> TRUE | AF122: =IF(AE122,D122,"") -> Easy | AG122: =IF(AE122,COUNTIF($AF$5:AF122,AF122),"X") -> 32 | AH122: =CONCATENATE(AE122,AF122) -> TRUEEasy
A123: =CONCATENATE(AE123,D123,AG123) -> TRUEHard35 | B123: =RAND() -> 0.4306278186 | C123: +- | D123: Hard | E123: 35 | F123: Fill in the missing number: | G123: ____ + | H123: =RANDBETWEEN(1,8)*1000+RANDBETWEEN(1,8)*100+RANDBETWEEN(1,8)*10+RANDBETWEEN(1,9) -> 7672 | I123: = | J123: =INT((H123+1000)/1000)*1000 -> 8000 | T123: =CONCATENATE(F123," ",G123," ",H123," ",I123," ",J123," ",K123," ",L123," ",M123," ",N123," ",O123," ",P123," ",Q123," ",R123) -> Fill in the missing number: ____ + 7672 = 8000 | U123: =J123-H123 -> 328 | AD123: =IF(OR(ISNA(U123),ISNA(V123),ISNA(W123),ISNA(X123),ISNA(Y123),ISNA(Z123),ISNA(AA123),ISNA(AB123),ISNA(AC123)),NA(),CONCATENATE(U123,V123,W123,X123,Y123,Z123,AA123,AB123)) -> 328 | AE123: =IF(ISNA(AD123),FALSE,IF(C123=$B$1,Worksheet!$B$3,IF(C123=$C$1,Worksheet!$B$4,IF(C123=$D$1,Worksheet!$B$5,IF(C123=$E$1,Worksheet!$B$6,IF(C123=$B$2,Worksheet!$B$7,IF(C123=$C$2,Worksheet!$D$3,IF(C123=$D$2,Worksheet!$D$4,IF(C123=$E$2,Worksheet!$D$5,IF(C123=$C$3,Worksheet!$D$6,IF(C123=$B$3,Worksheet!$D$7,IF(C123=$D$3,Worksheet!$B$10,IF(C123=$E$3,Worksheet!$D$10,FALSE))))))))))))) -> TRUE | AF123: =IF(AE123,D123,"") -> Hard | AG123: =IF(AE123,COUNTIF($AF$5:AF123,AF123),"X") -> 35 | AH123: =CONCATENATE(AE123,AF123) -> TRUEHard
A124: =CONCATENATE(AE124,D124,AG124) -> TRUEMedium45 | B124: =RAND() -> 0.5242896707 | C124: Divide | D124: Medium | E124: 132 | F124: Divide: | G124: =TEXT((RANDBETWEEN(1,9)*10+RANDBETWEEN(1,9))*10^RANDBETWEEN(4,5),"#,###") -> 6,200,000 | H124: ÷ | I124: =10^RANDBETWEEN(2,3) -> 100 | T124: =CONCATENATE(F124," ",G124," ",H124," ",I124," ",J124," ",K124," ",L124," ",M124," ",N124," ",O124," ",P124," ",Q124," ",R124) -> Divide: 6,200,000 ÷ 100 | U124: =TEXT(G124/I124,"#,###") -> 62,000 | AD124: =IF(OR(ISNA(U124),ISNA(V124),ISNA(W124),ISNA(X124),ISNA(Y124),ISNA(Z124),ISNA(AA124),ISNA(AB124),ISNA(AC124)),NA(),CONCATENATE(U124,V124,W124,X124,Y124,Z124,AA124,AB124)) -> 62,000 | AE124: =IF(ISNA(AD124),FALSE,IF(C124=$B$1,Worksheet!$B$3,IF(C124=$C$1,Worksheet!$B$4,IF(C124=$D$1,Worksheet!$B$5,IF(C124=$E$1,Worksheet!$B$6,IF(C124=$B$2,Worksheet!$B$7,IF(C124=$C$2,Worksheet!$D$3,IF(C124=$D$2,Worksheet!$D$4,IF(C124=$E$2,Worksheet!$D$5,IF(C124=$C$3,Worksheet!$D$6,IF(C124=$B$3,Worksheet!$D$7,IF(C124=$D$3,Worksheet!$B$10,IF(C124=$E$3,Worksheet!$D$10,FALSE))))))))))))) -> TRUE | AF124: =IF(AE124,D124,"") -> Medium | AG124: =IF(AE124,COUNTIF($AF$5:AF124,AF124),"X") -> 45 | AH124: =CONCATENATE(AE124,AF124) -> TRUEMedium
A125: =CONCATENATE(AE125,D125,AG125) -> TRUEHard36 | B125: =RAND() -> 0.859719798 | C125: Mult | D125: Hard | E125: 89 | F125: Write down all six factors of | G125: =CHOOSE(RANDBETWEEN(1,3),12,18,50) -> 18 | T125: =CONCATENATE(F125," ",G125," ",H125," ",I125," ",J125," ",K125," ",L125," ",M125," ",N125," ",O125," ",P125," ",Q125," ",R125) -> Write down all six factors of 18 | U125: =IF(G125=12,"1, 2, 3, 4, 6 and 12",IF(G125=18,"1, 2, 3, 6, 8 and 18","1, 2, 5, 10, 25 and 50")) -> 1, 2, 3, 6, 8 and 18 | AD125: =IF(OR(ISNA(U125),ISNA(V125),ISNA(W125),ISNA(X125),ISNA(Y125),ISNA(Z125),ISNA(AA125),ISNA(AB125),ISNA(AC125)),NA(),CONCATENATE(U125,V125,W125,X125,Y125,Z125,AA125,AB125)) -> 1, 2, 3, 6, 8 and 18 | AE125: =IF(ISNA(AD125),FALSE,IF(C125=$B$1,Worksheet!$B$3,IF(C125=$C$1,Worksheet!$B$4,IF(C125=$D$1,Worksheet!$B$5,IF(C125=$E$1,Worksheet!$B$6,IF(C125=$B$2,Worksheet!$B$7,IF(C125=$C$2,Worksheet!$D$3,IF(C125=$D$2,Worksheet!$D$4,IF(C125=$E$2,Worksheet!$D$5,IF(C125=$C$3,Worksheet!$D$6,IF(C125=$B$3,Worksheet!$D$7,IF(C125=$D$3,Worksheet!$B$10,IF(C125=$E$3,Worksheet!$D$10,FALSE))))))))))))) -> TRUE | AF125: =IF(AE125,D125,"") -> Hard | AG125: =IF(AE125,COUNTIF($AF$5:AF125,AF125),"X") -> 36 | AH125: =CONCATENATE(AE125,AF125) -> TRUEHard
A126: =CONCATENATE(AE126,D126,AG126) -> TRUEMedium46 | B126: =RAND() -> 0.3927940434 | C126: Dec | D126: Medium | E126: 252 | F126: Continue the pattern for three more numbers: | G126: =RANDBETWEEN(1,40)+RANDBETWEEN(0,8)*0.1+0.06 -> 14.26 | H126: =G126+S126 -> 14.27 | I126: =H126+S126 -> 14.28 | J126: =I126+S126 -> 14.29 | K126: ____ | L126: ____ | M126: ____ | S126: 0.01 | T126: =CONCATENATE(F126," ",G126,", ",H126,", ",I126,", ",J126,", ",K126,", ",L126,", ",M126," ",N126," ",O126," ",P126," ",Q126," ",R126) -> Continue the pattern for three more numbers: 14.26, 14.27, 14.28, 14.29, ____, ____, ____ | U126: =J126+S126 -> 14.3 | V126: =U126+S126 -> 14.31 | W126: =V126+S126 -> 14.32 | AD126: =IF(OR(ISNA(U126),ISNA(V126),ISNA(W126),ISNA(X126),ISNA(Y126),ISNA(Z126),ISNA(AA126),ISNA(AB126),ISNA(AC126)),NA(),CONCATENATE(U126,", ",V126,", ",W126,X126,Y126,Z126,AA126,AB126)) -> 14.3, 14.31, 14.32 | AE126: =IF(ISNA(AD126),FALSE,IF(C126=$B$1,Worksheet!$B$3,IF(C126=$C$1,Worksheet!$B$4,IF(C126=$D$1,Worksheet!$B$5,IF(C126=$E$1,Worksheet!$B$6,IF(C126=$B$2,Worksheet!$B$7,IF(C126=$C$2,Worksheet!$D$3,IF(C126=$D$2,Worksheet!$D$4,IF(C126=$E$2,Worksheet!$D$5,IF(C126=$C$3,Worksheet!$D$6,IF(C126=$B$3,Worksheet!$D$7,IF(C126=$D$3,Worksheet!$B$10,IF(C126=$E$3,Worksheet!$D$10,FALSE))))))))))))) -> TRUE | AF126: =IF(AE126,D126,"") -> Medium | AG126: =IF(AE126,COUNTIF($AF$5:AF126,AF126),"X") -> 46 | AH126: =CONCATENATE(AE126,AF126) -> TRUEMedium
A127: =CONCATENATE(AE127,D127,AG127) -> TRUEHard37 | B127: =RAND() -> 0.3502004103 | C127: Frac | D127: Hard | E127: 181 | F127: If it can be simplified, write the fraction | G127: =RANDBETWEEN(2,0.75*I127) -> 4 | H127: / | I127: =RANDBETWEEN(5,10)*RANDBETWEEN(2,5) -> 30 | J127: in its simplest form | T127: =CONCATENATE(F127," ",G127,"",H127,"",I127," ",J127," ",K127," ",L127," ",M127," ",N127," ",O127," ",P127," ",Q127," ",R127) -> If it can be simplified, write the fraction 4/30 in its simplest form | U127: =G127/GCD(G127,I127) -> 2 | V127: / | W127: =I127/GCD(G127,I127) -> 15 | AD127: =IF(OR(ISNA(U127),ISNA(V127),ISNA(W127),ISNA(X127),ISNA(Y127),ISNA(Z127),ISNA(AA127),ISNA(AB127),ISNA(AC127)),NA(),CONCATENATE(U127,V127,W127,X127,Y127,Z127,AA127,AB127)) -> 2/15 | AE127: =IF(ISNA(AD127),FALSE,IF(C127=$B$1,Worksheet!$B$3,IF(C127=$C$1,Worksheet!$B$4,IF(C127=$D$1,Worksheet!$B$5,IF(C127=$E$1,Worksheet!$B$6,IF(C127=$B$2,Worksheet!$B$7,IF(C127=$C$2,Worksheet!$D$3,IF(C127=$D$2,Worksheet!$D$4,IF(C127=$E$2,Worksheet!$D$5,IF(C127=$C$3,Worksheet!$D$6,IF(C127=$B$3,Worksheet!$D$7,IF(C127=$D$3,Worksheet!$B$10,IF(C127=$E$3,Worksheet!$D$10,FALSE))))))))))))) -> TRUE | AF127: =IF(AE127,D127,"") -> Hard | AG127: =IF(AE127,COUNTIF($AF$5:AF127,AF127),"X") -> 37 | AH127: =CONCATENATE(AE127,AF127) -> TRUEHard
A128: =CONCATENATE(AE128,D128,AG128) -> TRUEMedium47 | B128: =RAND() -> 0.2486235 | C128: Divide | D128: Medium | E128: 119 | F128: Divide: | G128: =U128*I128 -> 63 | H128: ÷ | I128: =RANDBETWEEN(6,9) -> 9 | T128: =CONCATENATE(F128," ",G128," ",H128," ",I128," ",J128," ",K128," ",L128," ",M128," ",N128," ",O128," ",P128," ",Q128," ",R128) -> Divide: 63 ÷ 9 | U128: =RANDBETWEEN(6,9) -> 7 | AD128: =IF(OR(ISNA(U128),ISNA(V128),ISNA(W128),ISNA(X128),ISNA(Y128),ISNA(Z128),ISNA(AA128),ISNA(AB128),ISNA(AC128)),NA(),CONCATENATE(U128,V128,W128,X128,Y128,Z128,AA128,AB128)) -> 7 | AE128: =IF(ISNA(AD128),FALSE,IF(C128=$B$1,Worksheet!$B$3,IF(C128=$C$1,Worksheet!$B$4,IF(C128=$D$1,Worksheet!$B$5,IF(C128=$E$1,Worksheet!$B$6,IF(C128=$B$2,Worksheet!$B$7,IF(C128=$C$2,Worksheet!$D$3,IF(C128=$D$2,Worksheet!$D$4,IF(C128=$E$2,Worksheet!$D$5,IF(C128=$C$3,Worksheet!$D$6,IF(C128=$B$3,Worksheet!$D$7,IF(C128=$D$3,Worksheet!$B$10,IF(C128=$E$3,Worksheet!$D$10,FALSE))))))))))))) -> TRUE | AF128: =IF(AE128,D128,"") -> Medium | AG128: =IF(AE128,COUNTIF($AF$5:AF128,AF128),"X") -> 47 | AH128: =CONCATENATE(AE128,AF128) -> TRUEMedium
A129: =CONCATENATE(AE129,D129,AG129) -> TRUEHard38 | B129: =RAND() -> 0.7463050528 | C129: Dec | D129: Hard | E129: 271 | F129: Write these numbers in order from | G129: =CHOOSE(RANDBETWEEN(1,2),"smallest to biggest:","biggest to smallest:") -> biggest to smallest: | H129: =S129+0.1+R129/100 -> 7.18 | I129: =S129*1.1 -> 7.7 | J129: =S129+R129/10 -> 7.8 | K129: =S129+R129/100 -> 7.08 | R129: =SMALL(IF(S129={1,2,3,4,5,6,7,8,9},"",{1,2,3,4,5,6,7,8,9}),RANDBETWEEN(1,8)) -> 8 | S129: =RANDBETWEEN(1,9) -> 7 | T129: =CONCATENATE(F129," ",G129," ",H129,", ",I129,", ",J129,", ",K129," ",L129," ",M129," ",N129) -> Write these numbers in order from biggest to smallest: 7.18, 7.7, 7.8, 7.08 | U129: =IF($G129="smallest to biggest:",LARGE($H129:$K129,4),LARGE($H129:$K129,1)) -> 7.8 | V129: =IF($G129="smallest to biggest:",LARGE($H129:$K129,3),LARGE($H129:$K129,2)) -> 7.7 | W129: =IF($G129="smallest to biggest:",LARGE($H129:$K129,2),LARGE($H129:$K129,3)) -> 7.18 | X129: =IF($G129="smallest to biggest:",LARGE($H129:$K129,1),LARGE($H129:$K129,4)) -> 7.08 | Z129: =IF(OR(H129=I129,H129=J129,H129=K129,I129=J129,I129=K129,J129=K129),NA(),"") ->  | AD129: =IF(OR(ISNA(U129),ISNA(V129),ISNA(W129),ISNA(X129),ISNA(Y129),ISNA(Z129),ISNA(AA129),ISNA(AB129),ISNA(AC129)),NA(),CONCATENATE(U129,", ",V129,", ",W129,", ",X129,Y129,Z129,AA129,AB129)) -> 7.8, 7.7, 7.18, 7.08 | AE129: =IF(ISNA(AD129),FALSE,IF(C129=$B$1,Worksheet!$B$3,IF(C129=$C$1,Worksheet!$B$4,IF(C129=$D$1,Worksheet!$B$5,IF(C129=$E$1,Worksheet!$B$6,IF(C129=$B$2,Worksheet!$B$7,IF(C129=$C$2,Worksheet!$D$3,IF(C129=$D$2,Worksheet!$D$4,IF(C129=$E$2,Worksheet!$D$5,IF(C129=$C$3,Worksheet!$D$6,IF(C129=$B$3,Worksheet!$D$7,IF(C129=$D$3,Worksheet!$B$10,IF(C129=$E$3,Worksheet!$D$10,FALSE))))))))))))) -> TRUE | AF129: =IF(AE129,D129,"") -> Hard | AG129: =IF(AE129,COUNTIF($AF$5:AF129,AF129),"X") -> 38 | AH129: =CONCATENATE(AE129,AF129) -> TRUEHard
A130: =CONCATENATE(AE130,D130,AG130) -> TRUEHard39 | B130: =RAND() -> 0.4110327723 | C130: Dec | D130: Hard | E130: 287 | F130: Take away by writing down a sum: | G130: =RANDBETWEEN(20,99)+RANDBETWEEN(1,9)/100+RANDBETWEEN(1,9)/10 -> 55.67 | H130: – | I130: =RANDBETWEEN(10,INT(G130)-1)+RANDBETWEEN(0,9)/10+RANDBETWEEN(1,9)/100 -> 50.62 | T130: =CONCATENATE(F130," ",G130," ",H130," ",I130," ",J130," ",K130," ",L130," ",M130," ",N130," ",O130," ",P130," ",Q130," ",R130) -> Take away by writing down a sum: 55.67 – 50.62 | U130: =G130-I130 -> 5.05 | AD130: =IF(OR(ISNA(U130),ISNA(V130),ISNA(W130),ISNA(X130),ISNA(Y130),ISNA(Z130),ISNA(AA130),ISNA(AB130),ISNA(AC130)),NA(),CONCATENATE(U130,V130,W130,X130,Y130,Z130,AA130,AB130)) -> 5.05 | AE130: =IF(ISNA(AD130),FALSE,IF(C130=$B$1,Worksheet!$B$3,IF(C130=$C$1,Worksheet!$B$4,IF(C130=$D$1,Worksheet!$B$5,IF(C130=$E$1,Worksheet!$B$6,IF(C130=$B$2,Worksheet!$B$7,IF(C130=$C$2,Worksheet!$D$3,IF(C130=$D$2,Worksheet!$D$4,IF(C130=$E$2,Worksheet!$D$5,IF(C130=$C$3,Worksheet!$D$6,IF(C130=$B$3,Worksheet!$D$7,IF(C130=$D$3,Worksheet!$B$10,IF(C130=$E$3,Worksheet!$D$10,FALSE))))))))))))) -> TRUE | AF130: =IF(AE130,D130,"") -> Hard | AG130: =IF(AE130,COUNTIF($AF$5:AF130,AF130),"X") -> 39 | AH130: =CONCATENATE(AE130,AF130) -> TRUEHard
A131: =CONCATENATE(AE131,D131,AG131) -> TRUEMedium48 | B131: =RAND() -> 0.3291804965 | C131: Mult | D131: Medium | E131: 94 | F131: Multiply: | G131: =10^RANDBETWEEN(2,3) -> 100 | H131: × | I131: =RANDBETWEEN(1,9)*10+RANDBETWEEN(1,9) -> 38 | T131: =CONCATENATE(F131," ",G131," ",H131," ",I131," ",J131," ",K131," ",L131," ",M131," ",N131," ",O131," ",P131," ",Q131," ",R131) -> Multiply: 100 × 38 | U131: =G131*I131 -> 3800 | AD131: =IF(OR(ISNA(U131),ISNA(V131),ISNA(W131),ISNA(X131),ISNA(Y131),ISNA(Z131),ISNA(AA131),ISNA(AB131),ISNA(AC131)),NA(),CONCATENATE(U131,V131,W131,X131,Y131,Z131,AA131,AB131)) -> 3800 | AE131: =IF(ISNA(AD131),FALSE,IF(C131=$B$1,Worksheet!$B$3,IF(C131=$C$1,Worksheet!$B$4,IF(C131=$D$1,Worksheet!$B$5,IF(C131=$E$1,Worksheet!$B$6,IF(C131=$B$2,Worksheet!$B$7,IF(C131=$C$2,Worksheet!$D$3,IF(C131=$D$2,Worksheet!$D$4,IF(C131=$E$2,Worksheet!$D$5,IF(C131=$C$3,Worksheet!$D$6,IF(C131=$B$3,Worksheet!$D$7,IF(C131=$D$3,Worksheet!$B$10,IF(C131=$E$3,Worksheet!$D$10,FALSE))))))))))))) -> TRUE | AF131: =IF(AE131,D131,"") -> Medium | AG131: =IF(AE131,COUNTIF($AF$5:AF131,AF131),"X") -> 48 | AH131: =CONCATENATE(AE131,AF131) -> TRUEMedium
A132: =CONCATENATE(AE132,D132,AG132) -> TRUEMedium49 | B132: =RAND() -> 0.4442077042 | C132: Dec | D132: Medium | E132: 276 | F132: Multiply: | G132: =RANDBETWEEN(1,9)+RANDBETWEEN(1,9)/10 -> 1.4 | H132: × 10 | T132: =CONCATENATE(F132," ",G132," ",H132," ",I132," ",J132," ",K132," ",L132," ",M132," ",N132," ",O132," ",P132," ",Q132," ",R132) -> Multiply: 1.4 × 10 | U132: =G132*10 -> 14 | AD132: =IF(OR(ISNA(U132),ISNA(V132),ISNA(W132),ISNA(X132),ISNA(Y132),ISNA(Z132),ISNA(AA132),ISNA(AB132),ISNA(AC132)),NA(),CONCATENATE(U132,V132,W132,X132,Y132,Z132,AA132,AB132)) -> 14 | AE132: =IF(ISNA(AD132),FALSE,IF(C132=$B$1,Worksheet!$B$3,IF(C132=$C$1,Worksheet!$B$4,IF(C132=$D$1,Worksheet!$B$5,IF(C132=$E$1,Worksheet!$B$6,IF(C132=$B$2,Worksheet!$B$7,IF(C132=$C$2,Worksheet!$D$3,IF(C132=$D$2,Worksheet!$D$4,IF(C132=$E$2,Worksheet!$D$5,IF(C132=$C$3,Worksheet!$D$6,IF(C132=$B$3,Worksheet!$D$7,IF(C132=$D$3,Worksheet!$B$10,IF(C132=$E$3,Worksheet!$D$10,FALSE))))))))))))) -> TRUE | AF132: =IF(AE132,D132,"") -> Medium | AG132: =IF(AE132,COUNTIF($AF$5:AF132,AF132),"X") -> 49 | AH132: =CONCATENATE(AE132,AF132) -> TRUEMedium
A133: =CONCATENATE(AE133,D133,AG133) -> TRUEHard40 | B133: =RAND() -> 0.4443195312 | C133: Mult | D133: Hard | E133: 72 | F133: What is: | G133: =RANDBETWEEN(2,10) -> 9 | H133: × | I133: =RANDBETWEEN(2,10) -> 10 | J133: – | K133: =RANDBETWEEN(2,10) -> 6 | L133: × | M133: =RANDBETWEEN(2,10) -> 4 | N133: ? | T133: =CONCATENATE(F133," ",G133," ",H133," ",I133," ",J133," ",K133," ",L133," ",M133," ",N133," ",O133," ",P133," ",Q133," ",R133) -> What is: 9 × 10 – 6 × 4 ? | U133: =G133*I133-K133*M133 -> 66 | V133: =IF(U133<0,NA(),"") ->  | AD133: =IF(OR(ISNA(U133),ISNA(V133),ISNA(W133),ISNA(X133),ISNA(Y133),ISNA(Z133),ISNA(AA133),ISNA(AB133),ISNA(AC133)),NA(),CONCATENATE(U133,V133,W133,X133,Y133,Z133,AA133,AB133)) -> 66 | AE133: =IF(ISNA(AD133),FALSE,IF(C133=$B$1,Worksheet!$B$3,IF(C133=$C$1,Worksheet!$B$4,IF(C133=$D$1,Worksheet!$B$5,IF(C133=$E$1,Worksheet!$B$6,IF(C133=$B$2,Worksheet!$B$7,IF(C133=$C$2,Worksheet!$D$3,IF(C133=$D$2,Worksheet!$D$4,IF(C133=$E$2,Worksheet!$D$5,IF(C133=$C$3,Worksheet!$D$6,IF(C133=$B$3,Worksheet!$D$7,IF(C133=$D$3,Worksheet!$B$10,IF(C133=$E$3,Worksheet!$D$10,FALSE))))))))))))) -> TRUE | AF133: =IF(AE133,D133,"") -> Hard | AG133: =IF(AE133,COUNTIF($AF$5:AF133,AF133),"X") -> 40 | AH133: =CONCATENATE(AE133,AF133) -> TRUEHard
A134: =CONCATENATE(AE134,D134,AG134) -> TRUEEasy33 | B134: =RAND() -> 0.6864278792 | C134: Dec | D134: Easy | E134: 219 | F134: Write the decimal number | G134: =CHOOSE(RANDBETWEEN(1,4),1,3,7,9)/10 -> 0.3 | H134: as a fraction | T134: =CONCATENATE(F134," ",G134," ",H134," ",I134," ",J134," ",K134," ",L134," ",M134," ",N134," ",O134," ",P134," ",Q134," ",R134) -> Write the decimal number 0.3 as a fraction | U134: =G134*10 -> 3 | V134: /10 | AD134: =IF(OR(ISNA(U134),ISNA(V134),ISNA(W134),ISNA(X134),ISNA(Y134),ISNA(Z134),ISNA(AA134),ISNA(AB134),ISNA(AC134)),NA(),CONCATENATE(U134,V134,W134,X134,Y134,Z134,AA134,AB134)) -> 3/10 | AE134: =IF(ISNA(AD134),FALSE,IF(C134=$B$1,Worksheet!$B$3,IF(C134=$C$1,Worksheet!$B$4,IF(C134=$D$1,Worksheet!$B$5,IF(C134=$E$1,Worksheet!$B$6,IF(C134=$B$2,Worksheet!$B$7,IF(C134=$C$2,Worksheet!$D$3,IF(C134=$D$2,Worksheet!$D$4,IF(C134=$E$2,Worksheet!$D$5,IF(C134=$C$3,Worksheet!$D$6,IF(C134=$B$3,Worksheet!$D$7,IF(C134=$D$3,Worksheet!$B$10,IF(C134=$E$3,Worksheet!$D$10,FALSE))))))))))))) -> TRUE | AF134: =IF(AE134,D134,"") -> Easy | AG134: =IF(AE134,COUNTIF($AF$5:AF134,AF134),"X") -> 33 | AH134: =CONCATENATE(AE134,AF134) -> TRUEEasy
A135: =CONCATENATE(AE135,D135,AG135) -> TRUEMedium50 | B135: =RAND() -> 0.3063045887 | C135: % | D135: Medium | E135: 311 | F135: What is | G135: 10 | H135: % as a fraction in its simplest form? | T135: =CONCATENATE(F135," ",G135,"",H135," ",I135," ",J135," ",K135," ",L135," ",M135," ",N135," ",O135," ",P135," ",Q135," ",R135) -> What is 10% as a fraction in its simplest form? | U135: 1/10 | AD135: =IF(OR(ISNA(U135),ISNA(V135),ISNA(W135),ISNA(X135),ISNA(Y135),ISNA(Z135),ISNA(AA135),ISNA(AB135),ISNA(AC135)),NA(),CONCATENATE(U135,V135,W135,X135,Y135,Z135,AA135,AB135)) -> 1/10 | AE135: =IF(ISNA(AD135),FALSE,IF(C135=$B$1,Worksheet!$B$3,IF(C135=$C$1,Worksheet!$B$4,IF(C135=$D$1,Worksheet!$B$5,IF(C135=$E$1,Worksheet!$B$6,IF(C135=$B$2,Worksheet!$B$7,IF(C135=$C$2,Worksheet!$D$3,IF(C135=$D$2,Worksheet!$D$4,IF(C135=$E$2,Worksheet!$D$5,IF(C135=$C$3,Worksheet!$D$6,IF(C135=$B$3,Worksheet!$D$7,IF(C135=$D$3,Worksheet!$B$10,IF(C135=$E$3,Worksheet!$D$10,FALSE))))))))))))) -> TRUE | AF135: =IF(AE135,D135,"") -> Medium | AG135: =IF(AE135,COUNTIF($AF$5:AF135,AF135),"X") -> 50 | AH135: =CONCATENATE(AE135,AF135) -> TRUEMedium
A136: =CONCATENATE(AE136,D136,AG136) -> TRUEMedium51 | B136: =RAND() -> 0.1243243387 | C136: Mult | D136: Medium | E136: 101 | F136: Multiply: | G136: =RANDBETWEEN(2,5)*10 -> 30 | H136: × | I136: =RANDBETWEEN(2,5)*10 -> 20 | T136: =CONCATENATE(F136," ",G136," ",H136," ",I136," ",J136," ",K136," ",L136," ",M136," ",N136," ",O136," ",P136," ",Q136," ",R136) -> Multiply: 30 × 20 | U136: =TEXT(G136*I136,"#,###") -> 600 | AD136: =IF(OR(ISNA(U136),ISNA(V136),ISNA(W136),ISNA(X136),ISNA(Y136),ISNA(Z136),ISNA(AA136),ISNA(AB136),ISNA(AC136)),NA(),CONCATENATE(U136,V136,W136,X136,Y136,Z136,AA136,AB136)) -> 600 | AE136: =IF(ISNA(AD136),FALSE,IF(C136=$B$1,Worksheet!$B$3,IF(C136=$C$1,Worksheet!$B$4,IF(C136=$D$1,Worksheet!$B$5,IF(C136=$E$1,Worksheet!$B$6,IF(C136=$B$2,Worksheet!$B$7,IF(C136=$C$2,Worksheet!$D$3,IF(C136=$D$2,Worksheet!$D$4,IF(C136=$E$2,Worksheet!$D$5,IF(C136=$C$3,Worksheet!$D$6,IF(C136=$B$3,Worksheet!$D$7,IF(C136=$D$3,Worksheet!$B$10,IF(C136=$E$3,Worksheet!$D$10,FALSE))))))))))))) -> TRUE | AF136: =IF(AE136,D136,"") -> Medium | AG136: =IF(AE136,COUNTIF($AF$5:AF136,AF136),"X") -> 51 | AH136: =CONCATENATE(AE136,AF136) -> TRUEMedium
A137: =CONCATENATE(AE137,D137,AG137) -> TRUEMedium52 | B137: =RAND() -> 0.9480192989 | C137: % | D137: Medium | E137: 300 | F137: What is | G137: =RANDBETWEEN(1,99) -> 2 | H137: /100 | I137: as a percentage? | T137: =CONCATENATE(F137," ",G137,"",H137," ",I137," ",J137," ",K137," ",L137," ",M137," ",N137," ",O137," ",P137," ",Q137," ",R137) -> What is 2/100 as a percentage? | U137: =G137*1 -> 2 | V137: % | AD137: =IF(OR(ISNA(U137),ISNA(V137),ISNA(W137),ISNA(X137),ISNA(Y137),ISNA(Z137),ISNA(AA137),ISNA(AB137),ISNA(AC137)),NA(),CONCATENATE(U137,V137,W137,X137,Y137,Z137,AA137,AB137)) -> 2% | AE137: =IF(ISNA(AD137),FALSE,IF(C137=$B$1,Worksheet!$B$3,IF(C137=$C$1,Worksheet!$B$4,IF(C137=$D$1,Worksheet!$B$5,IF(C137=$E$1,Worksheet!$B$6,IF(C137=$B$2,Worksheet!$B$7,IF(C137=$C$2,Worksheet!$D$3,IF(C137=$D$2,Worksheet!$D$4,IF(C137=$E$2,Worksheet!$D$5,IF(C137=$C$3,Worksheet!$D$6,IF(C137=$B$3,Worksheet!$D$7,IF(C137=$D$3,Worksheet!$B$10,IF(C137=$E$3,Worksheet!$D$10,FALSE))))))))))))) -> TRUE | AF137: =IF(AE137,D137,"") -> Medium | AG137: =IF(AE137,COUNTIF($AF$5:AF137,AF137),"X") -> 52 | AH137: =CONCATENATE(AE137,AF137) -> TRUEMedium
A138: =CONCATENATE(AE138,D138,AG138) -> TRUEHard41 | B138: =RAND() -> 0.8416865099 | C138: Frac | D138: Hard | E138: 197 | F138: Take away the fraction: | G138: 1 | H138: – | I138: 1/3 | T138: =CONCATENATE(F138," ",G138," ",H138," ",I138," ",J138," ",K138," ",L138," ",M138," ",N138," ",O138," ",P138," ",Q138," ",R138) -> Take away the fraction: 1 – 1/3 | U138: 2/3 | AD138: =IF(OR(ISNA(U138),ISNA(V138),ISNA(W138),ISNA(X138),ISNA(Y138),ISNA(Z138),ISNA(AA138),ISNA(AB138),ISNA(AC138)),NA(),CONCATENATE(U138,V138,W138,X138,Y138,Z138,AA138,AB138)) -> 2/3 | AE138: =IF(ISNA(AD138),FALSE,IF(C138=$B$1,Worksheet!$B$3,IF(C138=$C$1,Worksheet!$B$4,IF(C138=$D$1,Worksheet!$B$5,IF(C138=$E$1,Worksheet!$B$6,IF(C138=$B$2,Worksheet!$B$7,IF(C138=$C$2,Worksheet!$D$3,IF(C138=$D$2,Worksheet!$D$4,IF(C138=$E$2,Worksheet!$D$5,IF(C138=$C$3,Worksheet!$D$6,IF(C138=$B$3,Worksheet!$D$7,IF(C138=$D$3,Worksheet!$B$10,IF(C138=$E$3,Worksheet!$D$10,FALSE))))))))))))) -> TRUE | AF138: =IF(AE138,D138,"") -> Hard | AG138: =IF(AE138,COUNTIF($AF$5:AF138,AF138),"X") -> 41 | AH138: =CONCATENATE(AE138,AF138) -> TRUEHard
A139: =CONCATENATE(AE139,D139,AG139) -> TRUEHard42 | B139: =RAND() -> 0.7738833236 | C139: Neg | D139: Hard | E139: 349 | F139: Add: | G139: =RANDBETWEEN(10,28) -> 20 | H139: + (– | I139: =RANDBETWEEN(G139,30) -> 27 | J139: ) | T139: =CONCATENATE(F139," ",G139," ",H139,"",I139,"",J139,"",K139," ",L139," ",M139," ",N139," ",O139," ",P139," ",Q139," ",R139) -> Add: 20 + (–27) | U139: =G139-I139 -> -7 | AC139: =IF(ISERROR(T139),NA(),"") ->  | AD139: =IF(OR(ISNA(U139),ISNA(V139),ISNA(W139),ISNA(X139),ISNA(Y139),ISNA(Z139),ISNA(AA139),ISNA(AB139),ISNA(AC139)),NA(),CONCATENATE(U139,V139,W139,X139,Y139,Z139,AA139,AB139)) -> -7 | AE139: =IF(ISNA(AD139),FALSE,IF(C139=$B$1,Worksheet!$B$3,IF(C139=$C$1,Worksheet!$B$4,IF(C139=$D$1,Worksheet!$B$5,IF(C139=$E$1,Worksheet!$B$6,IF(C139=$B$2,Worksheet!$B$7,IF(C139=$C$2,Worksheet!$D$3,IF(C139=$D$2,Worksheet!$D$4,IF(C139=$E$2,Worksheet!$D$5,IF(C139=$C$3,Worksheet!$D$6,IF(C139=$B$3,Worksheet!$D$7,IF(C139=$D$3,Worksheet!$B$10,IF(C139=$E$3,Worksheet!$D$10,FALSE))))))))))))) -> TRUE | AF139: =IF(AE139,D139,"") -> Hard | AG139: =IF(AE139,COUNTIF($AF$5:AF139,AF139),"X") -> 42 | AH139: =CONCATENATE(AE139,AF139) -> TRUEHard
A140: =CONCATENATE(AE140,D140,AG140) -> TRUEMedium53 | B140: =RAND() -> 0.8806195829 | C140: Frac | D140: Medium | E140: 180 | F140: Write the fraction | G140: =3*RANDBETWEEN(1,I140/3-1) -> 6 | H140: / | I140: =3*RANDBETWEEN(3,8) -> 9 | J140: in its simplest form | T140: =CONCATENATE(F140," ",G140,"",H140,"",I140," ",J140," ",K140," ",L140," ",M140," ",N140," ",O140," ",P140," ",Q140," ",R140) -> Write the fraction 6/9 in its simplest form | U140: =G140/GCD(G140,I140) -> 2 | V140: / | W140: =I140/GCD(G140,I140) -> 3 | AD140: =IF(OR(ISNA(U140),ISNA(V140),ISNA(W140),ISNA(X140),ISNA(Y140),ISNA(Z140),ISNA(AA140),ISNA(AB140),ISNA(AC140)),NA(),CONCATENATE(U140,V140,W140,X140,Y140,Z140,AA140,AB140)) -> 2/3 | AE140: =IF(ISNA(AD140),FALSE,IF(C140=$B$1,Worksheet!$B$3,IF(C140=$C$1,Worksheet!$B$4,IF(C140=$D$1,Worksheet!$B$5,IF(C140=$E$1,Worksheet!$B$6,IF(C140=$B$2,Worksheet!$B$7,IF(C140=$C$2,Worksheet!$D$3,IF(C140=$D$2,Worksheet!$D$4,IF(C140=$E$2,Worksheet!$D$5,IF(C140=$C$3,Worksheet!$D$6,IF(C140=$B$3,Worksheet!$D$7,IF(C140=$D$3,Worksheet!$B$10,IF(C140=$E$3,Worksheet!$D$10,FALSE))))))))))))) -> TRUE | AF140: =IF(AE140,D140,"") -> Medium | AG140: =IF(AE140,COUNTIF($AF$5:AF140,AF140),"X") -> 53 | AH140: =CONCATENATE(AE140,AF140) -> TRUEMedium
A141: =CONCATENATE(AE141,D141,AG141) -> TRUEHard43 | B141: =RAND() -> 0.7842883783 | C141: Dec | D141: Hard | E141: 277 | F141: Multiply: | G141: =RANDBETWEEN(1,9)*10+RANDBETWEEN(0,9)+RANDBETWEEN(1,9)/10 -> 92.5 | H141: × 10 | T141: =CONCATENATE(F141," ",G141," ",H141," ",I141," ",J141," ",K141," ",L141," ",M141," ",N141," ",O141," ",P141," ",Q141," ",R141) -> Multiply: 92.5 × 10 | U141: =G141*10 -> 925 | AD141: =IF(OR(ISNA(U141),ISNA(V141),ISNA(W141),ISNA(X141),ISNA(Y141),ISNA(Z141),ISNA(AA141),ISNA(AB141),ISNA(AC141)),NA(),CONCATENATE(U141,V141,W141,X141,Y141,Z141,AA141,AB141)) -> 925 | AE141: =IF(ISNA(AD141),FALSE,IF(C141=$B$1,Worksheet!$B$3,IF(C141=$C$1,Worksheet!$B$4,IF(C141=$D$1,Worksheet!$B$5,IF(C141=$E$1,Worksheet!$B$6,IF(C141=$B$2,Worksheet!$B$7,IF(C141=$C$2,Worksheet!$D$3,IF(C141=$D$2,Worksheet!$D$4,IF(C141=$E$2,Worksheet!$D$5,IF(C141=$C$3,Worksheet!$D$6,IF(C141=$B$3,Worksheet!$D$7,IF(C141=$D$3,Worksheet!$B$10,IF(C141=$E$3,Worksheet!$D$10,FALSE))))))))))))) -> TRUE | AF141: =IF(AE141,D141,"") -> Hard | AG141: =IF(AE141,COUNTIF($AF$5:AF141,AF141),"X") -> 43 | AH141: =CONCATENATE(AE141,AF141) -> TRUEHard
A142: =CONCATENATE(AE142,D142,AG142) -> TRUEHard44 | B142: =RAND() -> 0.3403545446 | C142: Frac | D142: Hard | E142: 158 | F142: Fractions. What is | G142: =CHOOSE(RANDBETWEEN(1,3),"3/8","5/8","7/8") -> 3/8 | H142: of | I142: =8*RANDBETWEEN(4,11) -> 88 | J142: ? | T142: =CONCATENATE(F142," ",G142," ",H142," ",I142," ",J142," ",K142," ",L142," ",M142," ",N142," ",O142," ",P142," ",Q142," ",R142) -> Fractions. What is 3/8 of 88 ? | U142: =I142/8*IF(G142="3/8",3,IF(G142="5/8",5,7)) -> 33 | Y142: =IF(INT(U142)<>U142,NA(),"") ->  | AD142: =IF(OR(ISNA(U142),ISNA(V142),ISNA(W142),ISNA(X142),ISNA(Y142),ISNA(Z142),ISNA(AA142),ISNA(AB142),ISNA(AC142)),NA(),CONCATENATE(U142,V142,W142,X142,Y142,Z142,AA142,AB142)) -> 33 | AE142: =IF(ISNA(AD142),FALSE,IF(C142=$B$1,Worksheet!$B$3,IF(C142=$C$1,Worksheet!$B$4,IF(C142=$D$1,Worksheet!$B$5,IF(C142=$E$1,Worksheet!$B$6,IF(C142=$B$2,Worksheet!$B$7,IF(C142=$C$2,Worksheet!$D$3,IF(C142=$D$2,Worksheet!$D$4,IF(C142=$E$2,Worksheet!$D$5,IF(C142=$C$3,Worksheet!$D$6,IF(C142=$B$3,Worksheet!$D$7,IF(C142=$D$3,Worksheet!$B$10,IF(C142=$E$3,Worksheet!$D$10,FALSE))))))))))))) -> TRUE | AF142: =IF(AE142,D142,"") -> Hard | AG142: =IF(AE142,COUNTIF($AF$5:AF142,AF142),"X") -> 44 | AH142: =CONCATENATE(AE142,AF142) -> TRUEHard
A143: =CONCATENATE(AE143,D143,AG143) -> TRUEEasy34 | B143: =RAND() -> 0.5772520206 | C143: Num | D143: Easy | E143: 8 | F143: In the number | G143: =RANDBETWEEN(1,9) -> 1 | H143: =SMALL(IF(G143={1,2,3,4,5,6,7,8,9},"",{1,2,3,4,5,6,7,8,9}),RANDBETWEEN(1,8)) -> 6 | I143: =SMALL(IF(G143={1,2,3,4,5,6,7,8,9},"",IF(H143={1,2,3,4,5,6,7,8,9},"",{1,2,3,4,5,6,7,8,9})),RANDBETWEEN(1,7)) -> 3 | J143: =SMALL(IF(G143={1,2,3,4,5,6,7,8,9},"",IF(H143={1,2,3,4,5,6,7,8,9},"",IF(I143={1,2,3,4,5,6,7,8,9},"",{1,2,3,4,5,6,7,8,9}))),RANDBETWEEN(1,6)) -> 7 | K143: , what does the | L143: =CHOOSE(S143,J143,I143,H143,G143) -> 1 | M143: stand for? | S143: =RANDBETWEEN(1,4) -> 4 | T143: =CONCATENATE(F143," ",G143,",",H143,"",I143,"",J143,"",K143," ",L143," ",M143," ",N143," ",O143," ",P143," ",Q143," ",R143) -> In the number 1,637, what does the 1 stand for? | U143: =TEXT(L143*10^(S143-1),"#,###") -> 1,000 | AD143: =IF(OR(ISNA(U143),ISNA(V143),ISNA(W143),ISNA(X143),ISNA(Y143),ISNA(Z143),ISNA(AA143),ISNA(AB143),ISNA(AC143)),NA(),CONCATENATE(U143,V143,W143,X143,Y143,Z143,AA143,AB143)) -> 1,000 | AE143: =IF(ISNA(AD143),FALSE,IF(C143=$B$1,Worksheet!$B$3,IF(C143=$C$1,Worksheet!$B$4,IF(C143=$D$1,Worksheet!$B$5,IF(C143=$E$1,Worksheet!$B$6,IF(C143=$B$2,Worksheet!$B$7,IF(C143=$C$2,Worksheet!$D$3,IF(C143=$D$2,Worksheet!$D$4,IF(C143=$E$2,Worksheet!$D$5,IF(C143=$C$3,Worksheet!$D$6,IF(C143=$B$3,Worksheet!$D$7,IF(C143=$D$3,Worksheet!$B$10,IF(C143=$E$3,Worksheet!$D$10,FALSE))))))))))))) -> TRUE | AF143: =IF(AE143,D143,"") -> Easy | AG143: =IF(AE143,COUNTIF($AF$5:AF143,AF143),"X") -> 34 | AH143: =CONCATENATE(AE143,AF143) -> TRUEEasy
A144: =CONCATENATE(AE144,D144,AG144) -> TRUEMedium54 | B144: =RAND() -> 0.4822308035 | C144: Dec | D144: Medium | E144: 229 | F144: In the number | G144: =RANDBETWEEN(1,9) -> 8 | H144: =SMALL(IF(G144={1,2,3,4,5,6,7,8,9},"",{1,2,3,4,5,6,7,8,9}),RANDBETWEEN(1,8)) -> 3 | I144: =SMALL(IF(G144={1,2,3,4,5,6,7,8,9},"",IF(H144={1,2,3,4,5,6,7,8,9},"",{1,2,3,4,5,6,7,8,9})),RANDBETWEEN(1,7)) -> 7 | J144: =SMALL(IF(G144={1,2,3,4,5,6,7,8,9},"",IF(H144={1,2,3,4,5,6,7,8,9},"",IF(I144={1,2,3,4,5,6,7,8,9},"",{1,2,3,4,5,6,7,8,9}))),RANDBETWEEN(1,6)) -> 9 | K144: =SMALL(IF(G144={1,2,3,4,5,6,7,8,9},"",IF(H144={1,2,3,4,5,6,7,8,9},"",IF(I144={1,2,3,4,5,6,7,8,9},"",IF(J144={1,2,3,4,5,6,7,8,9},"",{1,2,3,4,5,6,7,8,9})))),RANDBETWEEN(1,5)) -> 4 | M144: , which digit represents the TENTHS? | S144: =RANDBETWEEN(1,3) -> 2 | T144: =CONCATENATE(F144," ",G144,"",H144,"•",I144,"",J144,"",K144,"",L144," ",M144," ",N144," ",O144," ",P144," ",Q144," ",R144) -> In the number 83•794 , which digit represents the TENTHS? | U144: =I144 -> 7 | AD144: =IF(OR(ISNA(U144),ISNA(V144),ISNA(W144),ISNA(X144),ISNA(Y144),ISNA(Z144),ISNA(AA144),ISNA(AB144),ISNA(AC144)),NA(),CONCATENATE(U144,V144,W144,X144,Y144,Z144,AA144,AB144)) -> 7 | AE144: =IF(ISNA(AD144),FALSE,IF(C144=$B$1,Worksheet!$B$3,IF(C144=$C$1,Worksheet!$B$4,IF(C144=$D$1,Worksheet!$B$5,IF(C144=$E$1,Worksheet!$B$6,IF(C144=$B$2,Worksheet!$B$7,IF(C144=$C$2,Worksheet!$D$3,IF(C144=$D$2,Worksheet!$D$4,IF(C144=$E$2,Worksheet!$D$5,IF(C144=$C$3,Worksheet!$D$6,IF(C144=$B$3,Worksheet!$D$7,IF(C144=$D$3,Worksheet!$B$10,IF(C144=$E$3,Worksheet!$D$10,FALSE))))))))))))) -> TRUE | AF144: =IF(AE144,D144,"") -> Medium | AG144: =IF(AE144,COUNTIF($AF$5:AF144,AF144),"X") -> 54 | AH144: =CONCATENATE(AE144,AF144) -> TRUEMedium
A145: =CONCATENATE(AE145,D145,AG145) -> TRUEHard45 | B145: =RAND() -> 0.6911899551 | C145: Mult | D145: Hard | E145: 96 | F145: Multiply: | G145: =10^RANDBETWEEN(2,3) -> 100 | H145: × | I145: =RANDBETWEEN(2,9)*100 -> 300 | T145: =CONCATENATE(F145," ",G145," ",H145," ",I145," ",J145," ",K145," ",L145," ",M145," ",N145," ",O145," ",P145," ",Q145," ",R145) -> Multiply: 100 × 300 | U145: =TEXT(G145*I145,"#,###") -> 30,000 | AD145: =IF(OR(ISNA(U145),ISNA(V145),ISNA(W145),ISNA(X145),ISNA(Y145),ISNA(Z145),ISNA(AA145),ISNA(AB145),ISNA(AC145)),NA(),CONCATENATE(U145,V145,W145,X145,Y145,Z145,AA145,AB145)) -> 30,000 | AE145: =IF(ISNA(AD145),FALSE,IF(C145=$B$1,Worksheet!$B$3,IF(C145=$C$1,Worksheet!$B$4,IF(C145=$D$1,Worksheet!$B$5,IF(C145=$E$1,Worksheet!$B$6,IF(C145=$B$2,Worksheet!$B$7,IF(C145=$C$2,Worksheet!$D$3,IF(C145=$D$2,Worksheet!$D$4,IF(C145=$E$2,Worksheet!$D$5,IF(C145=$C$3,Worksheet!$D$6,IF(C145=$B$3,Worksheet!$D$7,IF(C145=$D$3,Worksheet!$B$10,IF(C145=$E$3,Worksheet!$D$10,FALSE))))))))))))) -> TRUE | AF145: =IF(AE145,D145,"") -> Hard | AG145: =IF(AE145,COUNTIF($AF$5:AF145,AF145),"X") -> 45 | AH145: =CONCATENATE(AE145,AF145) -> TRUEHard
A146: =CONCATENATE(AE146,D146,AG146) -> FALSEMediumX | B146: =RAND() -> 0.5540011191 | C146: Alg | D146: Medium | E146: 369 | F146: Algebra. If | G146: =CHOOSE(RANDBETWEEN(1,3),"a","x","p") -> p | H146: = | I146: =RANDBETWEEN(2,10) -> 2 | J146: and | K146: =IF(G146="x","y",IF(G146="a","b","q")) -> q | L146: = | M146: =RANDBETWEEN(2,5) -> 5 | N146: , what is | O146: =RANDBETWEEN(2,5) -> 2 | P146: =CONCATENATE(G146," – ") -> p – | Q146: =RANDBETWEEN(2,5) -> 3 | R146: =CONCATENATE(K146," ?") -> q ? | T146: =CONCATENATE(F146," ",G146," ",H146," ",I146," ",J146," ",K146," ",L146," ",M146," ",N146," ",O146,"",P146," ",Q146,"",R146) -> Algebra. If p = 2 and q = 5 , what is 2p – 3q ? | U146: =O146*I146-Q146*M146 -> -11 | W146: =IF(U146<0,NA(),"") ->  | AD146: =IF(OR(ISNA(U146),ISNA(V146),ISNA(W146),ISNA(X146),ISNA(Y146),ISNA(Z146),ISNA(AA146),ISNA(AB146),ISNA(AC146)),NA(),CONCATENATE(U146,V146,W146,X146,Y146,Z146,AA146,AB146)) ->  | AE146: =IF(ISNA(AD146),FALSE,IF(C146=$B$1,Worksheet!$B$3,IF(C146=$C$1,Worksheet!$B$4,IF(C146=$D$1,Worksheet!$B$5,IF(C146=$E$1,Worksheet!$B$6,IF(C146=$B$2,Worksheet!$B$7,IF(C146=$C$2,Worksheet!$D$3,IF(C146=$D$2,Worksheet!$D$4,IF(C146=$E$2,Worksheet!$D$5,IF(C146=$C$3,Worksheet!$D$6,IF(C146=$B$3,Worksheet!$D$7,IF(C146=$D$3,Worksheet!$B$10,IF(C146=$E$3,Worksheet!$D$10,FALSE))))))))))))) -> FALSE | AF146: =IF(AE146,D146,"") ->  | AG146: =IF(AE146,COUNTIF($AF$5:AF146,AF146),"X") -> X | AH146: =CONCATENATE(AE146,AF146) -> FALSE
A147: =CONCATENATE(AE147,D147,AG147) -> TRUEMedium55 | B147: =RAND() -> 0.1278086415 | C147: Choose | D147: Medium | E147: 147 | F147: =CHOOSE(RANDBETWEEN(1,5),"Gary","Josh","James","Robbie","Jack") -> Josh | G147: is saving money to buy a new car. The car costs £ | H147: =RANDBETWEEN(4,8)*1000 -> 4000 | I147: . So far, | J147: =F147 -> Josh | K147: has saved £ | L147: =RANDBETWEEN(11,H147/100-1)*100+RANDBETWEEN(1,9)*10 -> 3130 | M147: . How much more money does he need? | T147: =CONCATENATE(F147," ",G147,"",H147," ",I147," ",J147," ",K147,"",L147,"",M147," ",N147," ",O147," ",P147," ",Q147," ",R147) -> Josh is saving money to buy a new car. The car costs £4000 . So far, Josh has saved £3130. How much more money does he need? | U147: £ | V147: =H147-L147 -> 870 | AD147: =IF(OR(ISNA(U147),ISNA(V147),ISNA(W147),ISNA(X147),ISNA(Y147),ISNA(Z147),ISNA(AA147),ISNA(AB147),ISNA(AC147)),NA(),CONCATENATE(U147,V147,W147,X147,Y147,Z147,AA147,AB147)) -> £870 | AE147: =IF(ISNA(AD147),FALSE,IF(C147=$B$1,Worksheet!$B$3,IF(C147=$C$1,Worksheet!$B$4,IF(C147=$D$1,Worksheet!$B$5,IF(C147=$E$1,Worksheet!$B$6,IF(C147=$B$2,Worksheet!$B$7,IF(C147=$C$2,Worksheet!$D$3,IF(C147=$D$2,Worksheet!$D$4,IF(C147=$E$2,Worksheet!$D$5,IF(C147=$C$3,Worksheet!$D$6,IF(C147=$B$3,Worksheet!$D$7,IF(C147=$D$3,Worksheet!$B$10,IF(C147=$E$3,Worksheet!$D$10,FALSE))))))))))))) -> TRUE | AF147: =IF(AE147,D147,"") -> Medium | AG147: =IF(AE147,COUNTIF($AF$5:AF147,AF147),"X") -> 55 | AH147: =CONCATENATE(AE147,AF147) -> TRUEMedium
A148: =CONCATENATE(AE148,D148,AG148) -> TRUEMedium56 | B148: =RAND() -> 0.5649801157 | C148: Round | D148: Medium | E148: 337 | F148: Round | G148: =RANDBETWEEN(1,9)*10000+RANDBETWEEN(1,9999) -> 38167 | H148: to the nearest thousand | T148: =CONCATENATE(F148," ",TEXT(G148,"#,###")," ",H148," ",I148," ",J148," ",K148," ",L148," ",M148," ",N148," ",O148," ",P148," ",Q148," ",R148) -> Round 38,167 to the nearest thousand | U148: =TEXT(MROUND(G148,1000),"#,###") -> 38,000 | AD148: =IF(OR(ISNA(U148),ISNA(V148),ISNA(W148),ISNA(X148),ISNA(Y148),ISNA(Z148),ISNA(AA148),ISNA(AB148),ISNA(AC148)),NA(),CONCATENATE(U148,V148,W148,X148,Y148,Z148,AA148,AB148)) -> 38,000 | AE148: =IF(ISNA(AD148),FALSE,IF(C148=$B$1,Worksheet!$B$3,IF(C148=$C$1,Worksheet!$B$4,IF(C148=$D$1,Worksheet!$B$5,IF(C148=$E$1,Worksheet!$B$6,IF(C148=$B$2,Worksheet!$B$7,IF(C148=$C$2,Worksheet!$D$3,IF(C148=$D$2,Worksheet!$D$4,IF(C148=$E$2,Worksheet!$D$5,IF(C148=$C$3,Worksheet!$D$6,IF(C148=$B$3,Worksheet!$D$7,IF(C148=$D$3,Worksheet!$B$10,IF(C148=$E$3,Worksheet!$D$10,FALSE))))))))))))) -> TRUE | AF148: =IF(AE148,D148,"") -> Medium | AG148: =IF(AE148,COUNTIF($AF$5:AF148,AF148),"X") -> 56 | AH148: =CONCATENATE(AE148,AF148) -> TRUEMedium
A149: =CONCATENATE(AE149,D149,AG149) -> FALSEEasyX | B149: =RAND() -> 0.02732525674 | C149: Neg | D149: Easy | E149: 344 | F149: Rewrite the numbers in order from | G149: =IF(RAND()<0.5,"smallest to biggest: ","biggest to smallest: ") -> smallest to biggest: | H149: 0 | I149: =RANDBETWEEN(-20,10) -> -8 | J149: =RANDBETWEEN(-20,10) -> 0 | K149: =RANDBETWEEN(0,10) -> 7 | L149: =RANDBETWEEN(-20,0) -> -14 | N149: =L149 -> -14 | O149: =H149 -> 0 | P149: =I149 -> -8 | Q149: =J149 -> 0 | R149: =K149 -> 7 | S149: =RANDBETWEEN(2,8) -> 6 | T149: =CONCATENATE(F149," ",G149," ",H149,", ",I149,", ",J149,", ",K149,", ",L149," ",M149) -> Rewrite the numbers in order from smallest to biggest: 0, -8, 0, 7, -14 | U149: =IF(LARGE($N149:$R149,IF($G149="biggest to smallest: ",1,5))=$O149,$H149,IF(LARGE($N149:$R149,IF($G149="biggest to smallest: ",1,5))=$P149,$I149,IF(LARGE($N149:$R149,IF($G149="biggest to smallest: ",1,5))=$Q149,$J149,IF(LARGE($N149:$R149,IF($G149="biggest to smallest: ",1,5))=$R149,$K149,$L149)))) -> -14 | V149: =IF(LARGE($N149:$R149,IF($G149="biggest to smallest: ",2,4))=$O149,$H149,IF(LARGE($N149:$R149,IF($G149="biggest to smallest: ",2,4))=$P149,$I149,IF(LARGE($N149:$R149,IF($G149="biggest to smallest: ",2,4))=$Q149,$J149,IF(LARGE($N149:$R149,IF($G149="biggest to smallest: ",2,4))=$R149,$K149,$L149)))) -> -8 | W149: =IF(LARGE($N149:$R149,IF($G149="biggest to smallest: ",3,3))=$O149,$H149,IF(LARGE($N149:$R149,IF($G149="biggest to smallest: ",3,3))=$P149,$I149,IF(LARGE($N149:$R149,IF($G149="biggest to smallest: ",3,3))=$Q149,$J149,IF(LARGE($N149:$R149,IF($G149="biggest to smallest: ",3,3))=$R149,$K149,$L149)))) -> 0 | X149: =IF(LARGE($N149:$R149,IF($G149="biggest to smallest: ",4,2))=$O149,$H149,IF(LARGE($N149:$R149,IF($G149="biggest to smallest: ",4,2))=$P149,$I149,IF(LARGE($N149:$R149,IF($G149="biggest to smallest: ",4,2))=$Q149,$J149,IF(LARGE($N149:$R149,IF($G149="biggest to smallest: ",4,2))=$R149,$K149,$L149)))) -> 0 | Y149: =IF(LARGE($N149:$R149,IF($G149="biggest to smallest: ",5,1))=$O149,$H149,IF(LARGE($N149:$R149,IF($G149="biggest to smallest: ",5,1))=$P149,$I149,IF(LARGE($N149:$R149,IF($G149="biggest to smallest: ",5,1))=$Q149,$J149,IF(LARGE($N149:$R149,IF($G149="biggest to smallest: ",5,1))=$R149,$K149,$L149)))) -> 7 | Z149: =IF(OR(H149=I149,H149=J149,H149=K149,H149=L149,I149=J149,I149=K149,I149=L149,J149=K149,J149=L149,K149=L149),NA(),"") ->  | AB149: =IF(OR(H149=L149,I149=L149,J149=L149,K149=L149,I149=J149,I149=K149),NA(),"") ->  | AC149: =IF(ISERROR(T149),NA(),"") ->  | AD149: =IF(OR(ISNA(U149),ISNA(V149),ISNA(W149),ISNA(X149),ISNA(Y149)),NA(),CONCATENATE(U149,", ",V149,", ",W149,", ",X149,", ",Y149,Z149,AA149,AB149,AC149)) ->  | AE149: =IF(ISNA(AD149),FALSE,IF(C149=$B$1,Worksheet!$B$3,IF(C149=$C$1,Worksheet!$B$4,IF(C149=$D$1,Worksheet!$B$5,IF(C149=$E$1,Worksheet!$B$6,IF(C149=$B$2,Worksheet!$B$7,IF(C149=$C$2,Worksheet!$D$3,IF(C149=$D$2,Worksheet!$D$4,IF(C149=$E$2,Worksheet!$D$5,IF(C149=$C$3,Worksheet!$D$6,IF(C149=$B$3,Worksheet!$D$7,IF(C149=$D$3,Worksheet!$B$10,IF(C149=$E$3,Worksheet!$D$10,FALSE))))))))))))) -> FALSE | AF149: =IF(AE149,D149,"") ->  | AG149: =IF(AE149,COUNTIF($AF$5:AF149,AF149),"X") -> X | AH149: =CONCATENATE(AE149,AF149) -> FALSE
A150: =CONCATENATE(AE150,D150,AG150) -> TRUEEasy35 | B150: =RAND() -> 0.2653242332 | C150: Choose | D150: Easy | E150: 137 | F150: =CHOOSE(RANDBETWEEN(1,5),"Jenny","Arran","Cassie","Emily","Gordon") -> Emily | G150: went out shopping with £ | H150: =RANDBETWEEN(1,2)*100+RANDBETWEEN(1,9)*10 -> 120 | I150: . She spent £ | J150: =RANDBETWEEN(50,H150-10) -> 82 | K150: . How much money did she have left? | T150: =CONCATENATE(F150," ",G150,"",H150,"",I150," ",J150,"",K150," ",L150," ",M150," ",N150," ",O150," ",P150," ",Q150," ",R150) -> Emily went out shopping with £120. She spent £ 82. How much money did she have left? | U150: £ | V150: =H150-J150 -> 38 | AD150: =IF(OR(ISNA(U150),ISNA(V150),ISNA(W150),ISNA(X150),ISNA(Y150),ISNA(Z150),ISNA(AA150),ISNA(AB150),ISNA(AC150)),NA(),CONCATENATE(U150,V150,W150,X150,Y150,Z150,AA150,AB150)) -> £38 | AE150: =IF(ISNA(AD150),FALSE,IF(C150=$B$1,Worksheet!$B$3,IF(C150=$C$1,Worksheet!$B$4,IF(C150=$D$1,Worksheet!$B$5,IF(C150=$E$1,Worksheet!$B$6,IF(C150=$B$2,Worksheet!$B$7,IF(C150=$C$2,Worksheet!$D$3,IF(C150=$D$2,Worksheet!$D$4,IF(C150=$E$2,Worksheet!$D$5,IF(C150=$C$3,Worksheet!$D$6,IF(C150=$B$3,Worksheet!$D$7,IF(C150=$D$3,Worksheet!$B$10,IF(C150=$E$3,Worksheet!$D$10,FALSE))))))))))))) -> TRUE | AF150: =IF(AE150,D150,"") -> Easy | AG150: =IF(AE150,COUNTIF($AF$5:AF150,AF150),"X") -> 35 | AH150: =CONCATENATE(AE150,AF150) -> TRUEEasy
A151: =CONCATENATE(AE151,D151,AG151) -> TRUEHard46 | B151: =RAND() -> 0.7861330459 | C151: % | D151: Hard | E151: 327 | F151: What is | G151: 10 | H151: % of £ | I151: =10*RANDBETWEEN(11,99)*10^RANDBETWEEN(0,1) -> 120 | J151: ? | T151: =CONCATENATE(F151," ",G151,"",H151,"",I151," ",J151," ",K151," ",L151," ",M151," ",N151," ",O151," ",P151," ",Q151," ",R151) -> What is 10% of £120 ? | U151: £ | V151: =I151/10 -> 12 | AD151: =IF(OR(ISNA(U151),ISNA(V151),ISNA(W151),ISNA(X151),ISNA(Y151),ISNA(Z151),ISNA(AA151),ISNA(AB151),ISNA(AC151)),NA(),CONCATENATE(U151,V151,W151,X151,Y151,Z151,AA151,AB151)) -> £12 | AE151: =IF(ISNA(AD151),FALSE,IF(C151=$B$1,Worksheet!$B$3,IF(C151=$C$1,Worksheet!$B$4,IF(C151=$D$1,Worksheet!$B$5,IF(C151=$E$1,Worksheet!$B$6,IF(C151=$B$2,Worksheet!$B$7,IF(C151=$C$2,Worksheet!$D$3,IF(C151=$D$2,Worksheet!$D$4,IF(C151=$E$2,Worksheet!$D$5,IF(C151=$C$3,Worksheet!$D$6,IF(C151=$B$3,Worksheet!$D$7,IF(C151=$D$3,Worksheet!$B$10,IF(C151=$E$3,Worksheet!$D$10,FALSE))))))))))))) -> TRUE | AF151: =IF(AE151,D151,"") -> Hard | AG151: =IF(AE151,COUNTIF($AF$5:AF151,AF151),"X") -> 46 | AH151: =CONCATENATE(AE151,AF151) -> TRUEHard
A152: =CONCATENATE(AE152,D152,AG152) -> TRUEEasy36 | B152: =RAND() -> 0.5805501032 | C152: Mult | D152: Easy | E152: 80 | F152: Circle the number that is a multiple of 10: | G152: =IF($S152=1,RANDBETWEEN(2,10)*10,RANDBETWEEN(1,9)*10+RANDBETWEEN(1,9)) -> 60 | H152: =IF($S152=2,RANDBETWEEN(2,10)*10,RANDBETWEEN(1,9)*10+RANDBETWEEN(1,9)) -> 47 | I152: =IF($S152=3,RANDBETWEEN(2,10)*10,RANDBETWEEN(1,9)*10+RANDBETWEEN(1,9)) -> 62 | J152: =IF($S152=4,RANDBETWEEN(2,10)*10,RANDBETWEEN(1,9)*10+RANDBETWEEN(1,9)) -> 18 | S152: =RANDBETWEEN(1,4) -> 1 | T152: =CONCATENATE(F152," ",G152," ",H152," ",I152," ",J152," ",K152," ",L152," ",M152," ",N152," ",O152," ",P152," ",Q152," ",R152) -> Circle the number that is a multiple of 10: 60 47 62 18 | U152: =IF(S152=1,G152,IF(S152=2,H152,IF(S152=3,I152,J152))) -> 60 | V152: =IF(OR(G152=H152,G152=I152,G152=J152,H152=I152,H152=J152,I152=J152),NA(),"") ->  | AD152: =IF(OR(ISNA(U152),ISNA(V152),ISNA(W152),ISNA(X152),ISNA(Y152),ISNA(Z152),ISNA(AA152),ISNA(AB152),ISNA(AC152)),NA(),CONCATENATE(U152,V152,W152,X152,Y152,Z152,AA152,AB152)) -> 60 | AE152: =IF(ISNA(AD152),FALSE,IF(C152=$B$1,Worksheet!$B$3,IF(C152=$C$1,Worksheet!$B$4,IF(C152=$D$1,Worksheet!$B$5,IF(C152=$E$1,Worksheet!$B$6,IF(C152=$B$2,Worksheet!$B$7,IF(C152=$C$2,Worksheet!$D$3,IF(C152=$D$2,Worksheet!$D$4,IF(C152=$E$2,Worksheet!$D$5,IF(C152=$C$3,Worksheet!$D$6,IF(C152=$B$3,Worksheet!$D$7,IF(C152=$D$3,Worksheet!$B$10,IF(C152=$E$3,Worksheet!$D$10,FALSE))))))))))))) -> TRUE | AF152: =IF(AE152,D152,"") -> Easy | AG152: =IF(AE152,COUNTIF($AF$5:AF152,AF152),"X") -> 36 | AH152: =CONCATENATE(AE152,AF152) -> TRUEEasy
A153: =CONCATENATE(AE153,D153,AG153) -> TRUEMedium57 | B153: =RAND() -> 0.3722143913 | C153: Dec | D153: Medium | E153: 261 | F153: Write the fraction | G153: 1/4 | H153: as a decimal | T153: =CONCATENATE(F153," ",G153," ",H153," ",I153," ",J153," ",K153," ",L153," ",M153," ",N153," ",O153," ",P153," ",Q153," ",R153) -> Write the fraction 1/4 as a decimal | U153: 0.25 | AD153: =IF(OR(ISNA(U153),ISNA(V153),ISNA(W153),ISNA(X153),ISNA(Y153),ISNA(Z153),ISNA(AA153),ISNA(AB153),ISNA(AC153)),NA(),CONCATENATE(U153,V153,W153,X153,Y153,Z153,AA153,AB153)) -> 0.25 | AE153: =IF(ISNA(AD153),FALSE,IF(C153=$B$1,Worksheet!$B$3,IF(C153=$C$1,Worksheet!$B$4,IF(C153=$D$1,Worksheet!$B$5,IF(C153=$E$1,Worksheet!$B$6,IF(C153=$B$2,Worksheet!$B$7,IF(C153=$C$2,Worksheet!$D$3,IF(C153=$D$2,Worksheet!$D$4,IF(C153=$E$2,Worksheet!$D$5,IF(C153=$C$3,Worksheet!$D$6,IF(C153=$B$3,Worksheet!$D$7,IF(C153=$D$3,Worksheet!$B$10,IF(C153=$E$3,Worksheet!$D$10,FALSE))))))))))))) -> TRUE | AF153: =IF(AE153,D153,"") -> Medium | AG153: =IF(AE153,COUNTIF($AF$5:AF153,AF153),"X") -> 57 | AH153: =CONCATENATE(AE153,AF153) -> TRUEMedium
A154: =CONCATENATE(AE154,D154,AG154) -> TRUEMedium58 | B154: =RAND() -> 0.4792046628 | C154: Frac | D154: Medium | E154: 193 | F154: Add the fractions: | G154: =RANDBETWEEN(2,7) -> 4 | H154: /9 | I154: + | J154: =RANDBETWEEN(1,9-G154) -> 4 | K154: /9 | T154: =CONCATENATE(F154," ",G154,"",H154," ",I154," ",J154,"",K154," ",L154," ",M154," ",N154," ",O154," ",P154," ",Q154," ",R154) -> Add the fractions: 4/9 + 4/9 | U154: =IF(G154+J154=9,1,CONCATENATE(G154+J154,"/9")) -> 8/9 | AD154: =IF(OR(ISNA(U154),ISNA(V154),ISNA(W154),ISNA(X154),ISNA(Y154),ISNA(Z154),ISNA(AA154),ISNA(AB154),ISNA(AC154)),NA(),CONCATENATE(U154,V154,W154,X154,Y154,Z154,AA154,AB154)) -> 8/9 | AE154: =IF(ISNA(AD154),FALSE,IF(C154=$B$1,Worksheet!$B$3,IF(C154=$C$1,Worksheet!$B$4,IF(C154=$D$1,Worksheet!$B$5,IF(C154=$E$1,Worksheet!$B$6,IF(C154=$B$2,Worksheet!$B$7,IF(C154=$C$2,Worksheet!$D$3,IF(C154=$D$2,Worksheet!$D$4,IF(C154=$E$2,Worksheet!$D$5,IF(C154=$C$3,Worksheet!$D$6,IF(C154=$B$3,Worksheet!$D$7,IF(C154=$D$3,Worksheet!$B$10,IF(C154=$E$3,Worksheet!$D$10,FALSE))))))))))))) -> TRUE | AF154: =IF(AE154,D154,"") -> Medium | AG154: =IF(AE154,COUNTIF($AF$5:AF154,AF154),"X") -> 58 | AH154: =CONCATENATE(AE154,AF154) -> TRUEMedium
A155: =CONCATENATE(AE155,D155,AG155) -> TRUEHard47 | B155: =RAND() -> 0.5029317646 | C155: Dec | D155: Hard | E155: 283 | F155: Add without writing down a sum: | G155: =RANDBETWEEN(1,9)+RANDBETWEEN(1,5)/10 -> 1.1 | H155: + | I155: =RANDBETWEEN(2,5)+RANDBETWEEN(1,5)/10+RANDBETWEEN(1,9)/100 -> 3.42 | T155: =CONCATENATE(F155," ",G155," ",H155," ",I155," ",J155," ",K155," ",L155," ",M155," ",N155," ",O155," ",P155," ",Q155," ",R155) -> Add without writing down a sum: 1.1 + 3.42 | U155: =G155+I155 -> 4.52 | AD155: =IF(OR(ISNA(U155),ISNA(V155),ISNA(W155),ISNA(X155),ISNA(Y155),ISNA(Z155),ISNA(AA155),ISNA(AB155),ISNA(AC155)),NA(),CONCATENATE(U155,V155,W155,X155,Y155,Z155,AA155,AB155)) -> 4.52 | AE155: =IF(ISNA(AD155),FALSE,IF(C155=$B$1,Worksheet!$B$3,IF(C155=$C$1,Worksheet!$B$4,IF(C155=$D$1,Worksheet!$B$5,IF(C155=$E$1,Worksheet!$B$6,IF(C155=$B$2,Worksheet!$B$7,IF(C155=$C$2,Worksheet!$D$3,IF(C155=$D$2,Worksheet!$D$4,IF(C155=$E$2,Worksheet!$D$5,IF(C155=$C$3,Worksheet!$D$6,IF(C155=$B$3,Worksheet!$D$7,IF(C155=$D$3,Worksheet!$B$10,IF(C155=$E$3,Worksheet!$D$10,FALSE))))))))))))) -> TRUE | AF155: =IF(AE155,D155,"") -> Hard | AG155: =IF(AE155,COUNTIF($AF$5:AF155,AF155),"X") -> 47 | AH155: =CONCATENATE(AE155,AF155) -> TRUEHard
A156: =CONCATENATE(AE156,D156,AG156) -> TRUEHard48 | B156: =RAND() -> 0.5571620548 | C156: Frac | D156: Hard | E156: 187 | F156: Complete the sequence with the next two numbers: | G156: 1 | H156: ¾ | I156: ½ | J156: ___ | K156: ___ | T156: =CONCATENATE(F156," ",G156,", ",H156,", ",I156,", ",J156,", ",K156," ",L156," ",M156," ",N156," ",O156," ",P156," ",Q156," ",R156) -> Complete the sequence with the next two numbers: 1, ¾, ½, ___, ___ | U156: 1/4 | V156: , 0 | AD156: =IF(OR(ISNA(U156),ISNA(V156),ISNA(W156),ISNA(X156),ISNA(Y156),ISNA(Z156),ISNA(AA156),ISNA(AB156),ISNA(AC156)),NA(),CONCATENATE(U156,V156,W156,X156,Y156,Z156,AA156,AB156)) -> 1/4, 0 | AE156: =IF(ISNA(AD156),FALSE,IF(C156=$B$1,Worksheet!$B$3,IF(C156=$C$1,Worksheet!$B$4,IF(C156=$D$1,Worksheet!$B$5,IF(C156=$E$1,Worksheet!$B$6,IF(C156=$B$2,Worksheet!$B$7,IF(C156=$C$2,Worksheet!$D$3,IF(C156=$D$2,Worksheet!$D$4,IF(C156=$E$2,Worksheet!$D$5,IF(C156=$C$3,Worksheet!$D$6,IF(C156=$B$3,Worksheet!$D$7,IF(C156=$D$3,Worksheet!$B$10,IF(C156=$E$3,Worksheet!$D$10,FALSE))))))))))))) -> TRUE | AF156: =IF(AE156,D156,"") -> Hard | AG156: =IF(AE156,COUNTIF($AF$5:AF156,AF156),"X") -> 48 | AH156: =CONCATENATE(AE156,AF156) -> TRUEHard
A157: =CONCATENATE(AE157,D157,AG157) -> TRUEEasy37 | B157: =RAND() -> 0.3418619765 | C157: Dec | D157: Easy | E157: 240 | F157: Take away: | G157: =RANDBETWEEN(11,90)+RANDBETWEEN(1,9)/10 -> 59.2 | H157: – | I157: 1 | T157: =CONCATENATE(F157," ",G157," ",H157," ",I157," ",J157," ",K157," ",L157," ",M157," ",N157," ",O157," ",P157," ",Q157," ",R157) -> Take away: 59.2 – 1 | U157: =G157-1 -> 58.2 | AD157: =IF(OR(ISNA(U157),ISNA(V157),ISNA(W157),ISNA(X157),ISNA(Y157),ISNA(Z157),ISNA(AA157),ISNA(AB157),ISNA(AC157)),NA(),CONCATENATE(U157,V157,W157,X157,Y157,Z157,AA157,AB157)) -> 58.2 | AE157: =IF(ISNA(AD157),FALSE,IF(C157=$B$1,Worksheet!$B$3,IF(C157=$C$1,Worksheet!$B$4,IF(C157=$D$1,Worksheet!$B$5,IF(C157=$E$1,Worksheet!$B$6,IF(C157=$B$2,Worksheet!$B$7,IF(C157=$C$2,Worksheet!$D$3,IF(C157=$D$2,Worksheet!$D$4,IF(C157=$E$2,Worksheet!$D$5,IF(C157=$C$3,Worksheet!$D$6,IF(C157=$B$3,Worksheet!$D$7,IF(C157=$D$3,Worksheet!$B$10,IF(C157=$E$3,Worksheet!$D$10,FALSE))))))))))))) -> TRUE | AF157: =IF(AE157,D157,"") -> Easy | AG157: =IF(AE157,COUNTIF($AF$5:AF157,AF157),"X") -> 37 | AH157: =CONCATENATE(AE157,AF157) -> TRUEEasy
A158: =CONCATENATE(AE158,D158,AG158) -> FALSEMediumX | B158: =RAND() -> 0.4284560131 | C158: Alg | D158: Medium | E158: 370 | F158: Algebra. If | G158: =CHOOSE(RANDBETWEEN(1,3),"a","x","p") -> a | H158: = | I158: =RANDBETWEEN(2,10) -> 4 | J158: and | K158: =IF(G158="x","y",IF(G158="a","b","q")) -> b | L158: = | M158: =RANDBETWEEN(2,5) -> 3 | N158: , what is | O158: =RANDBETWEEN(2,5) -> 2 | P158: =CONCATENATE(G158," – ") -> a – | Q158: =RANDBETWEEN(2,5) -> 3 | R158: =CONCATENATE(K158," ?") -> b ? | T158: =CONCATENATE(F158," ",G158," ",H158," ",I158," ",J158," ",K158," ",L158," ",M158," ",N158," ",O158,"",P158," ",Q158,"",R158) -> Algebra. If a = 4 and b = 3 , what is 2a – 3b ? | U158: =O158*I158-Q158*M158 -> -1 | W158: =IF(U158<0,NA(),"") ->  | AD158: =IF(OR(ISNA(U158),ISNA(V158),ISNA(W158),ISNA(X158),ISNA(Y158),ISNA(Z158),ISNA(AA158),ISNA(AB158),ISNA(AC158)),NA(),CONCATENATE(U158,V158,W158,X158,Y158,Z158,AA158,AB158)) ->  | AE158: =IF(ISNA(AD158),FALSE,IF(C158=$B$1,Worksheet!$B$3,IF(C158=$C$1,Worksheet!$B$4,IF(C158=$D$1,Worksheet!$B$5,IF(C158=$E$1,Worksheet!$B$6,IF(C158=$B$2,Worksheet!$B$7,IF(C158=$C$2,Worksheet!$D$3,IF(C158=$D$2,Worksheet!$D$4,IF(C158=$E$2,Worksheet!$D$5,IF(C158=$C$3,Worksheet!$D$6,IF(C158=$B$3,Worksheet!$D$7,IF(C158=$D$3,Worksheet!$B$10,IF(C158=$E$3,Worksheet!$D$10,FALSE))))))))))))) -> FALSE | AF158: =IF(AE158,D158,"") ->  | AG158: =IF(AE158,COUNTIF($AF$5:AF158,AF158),"X") -> X | AH158: =CONCATENATE(AE158,AF158) -> FALSE
A159: =CONCATENATE(AE159,D159,AG159) -> TRUEHard49 | B159: =RAND() -> 0.01555836031 | C159: Mult | D159: Hard | E159: 99 | F159: Multiply: | G159: =RANDBETWEEN(2,5)*10 -> 20 | H159: × | I159: =RANDBETWEEN(11,15) -> 14 | T159: =CONCATENATE(F159," ",G159," ",H159," ",I159," ",J159," ",K159," ",L159," ",M159," ",N159," ",O159," ",P159," ",Q159," ",R159) -> Multiply: 20 × 14 | U159: =TEXT(G159*I159,"#,###") -> 280 | AD159: =IF(OR(ISNA(U159),ISNA(V159),ISNA(W159),ISNA(X159),ISNA(Y159),ISNA(Z159),ISNA(AA159),ISNA(AB159),ISNA(AC159)),NA(),CONCATENATE(U159,V159,W159,X159,Y159,Z159,AA159,AB159)) -> 280 | AE159: =IF(ISNA(AD159),FALSE,IF(C159=$B$1,Worksheet!$B$3,IF(C159=$C$1,Worksheet!$B$4,IF(C159=$D$1,Worksheet!$B$5,IF(C159=$E$1,Worksheet!$B$6,IF(C159=$B$2,Worksheet!$B$7,IF(C159=$C$2,Worksheet!$D$3,IF(C159=$D$2,Worksheet!$D$4,IF(C159=$E$2,Worksheet!$D$5,IF(C159=$C$3,Worksheet!$D$6,IF(C159=$B$3,Worksheet!$D$7,IF(C159=$D$3,Worksheet!$B$10,IF(C159=$E$3,Worksheet!$D$10,FALSE))))))))))))) -> TRUE | AF159: =IF(AE159,D159,"") -> Hard | AG159: =IF(AE159,COUNTIF($AF$5:AF159,AF159),"X") -> 49 | AH159: =CONCATENATE(AE159,AF159) -> TRUEHard
A160: =CONCATENATE(AE160,D160,AG160) -> TRUEEasy38 | B160: =RAND() -> 0.1351464303 | C160: Num | D160: Easy | E160: 3 | F160: Write the number " | G160: =CHOOSE(RANDBETWEEN(1,10),"ten","eleven","twelve","thirteen","fourteen","fifteen","sixteen","seventeen","eighteen","nineteen") -> eleven | H160: thousand, | I160: =CHOOSE(RANDBETWEEN(1,9),"one","two","three","four","five","six","seven","eight","nine") -> four | J160: hundred and | K160: =CHOOSE(S160,CHOOSE(RANDBETWEEN(1,10),"ten","eleven","twelve","thirteen","fourteen","fifteen","sixteen","seventeen","eighteen","nineteen"),"twenty","thirty","forty","fifty","sixty","seventy","eighty","ninety") -> forty | L160: =IF(S160=1,"",CHOOSE(RANDBETWEEN(1,9),"one","two","three","four","five","six","seven","eight","nine")) -> six | M160: " in figures | S160: =RANDBETWEEN(1,9) -> 4 | T160: =CONCATENATE(F160," ",G160," ",H160," ",I160," ",J160," ",K160," ",L160," ",M160," ",N160," ",O160," ",P160," ",Q160," ",R160) -> Write the number " eleven thousand, four hundred and forty six " in figures | U160: =IF(G160="ten",10,IF(G160="eleven",11,IF(G160="twelve",12,IF(G160="thirteen",13,IF(G160="fourteen",14,IF(G160="fifteen",15,IF(G160="sixteen",16,IF(G160="seventeen",17,IF(G160="eighteen",18,19))))))))) -> 11 | V160: , | W160: =IF(I160="one",1,IF(I160="two",2,IF(I160="three",3,IF(I160="four",4,IF(I160="five",5,IF(I160="six",6,IF(I160="seven",7,IF(I160="eight",8,9)))))))) -> 4 | X160: =S160 -> 4 | Y160: =IF(S160=1,IF(K160="ten",0,IF(K160="eleven",1,IF(K160="twelve",2,IF(K160="thirteen",3,IF(K160="fourteen",4,IF(K160="fifteen",5,IF(K160="sixteen",6,IF(K160="seventeen",7,IF(K160="eighteen",8,9))))))))),"") ->  | Z160: =IF(L160="","",IF(L160="one",1,IF(L160="two",2,IF(L160="three",3,IF(L160="four",4,IF(L160="five",5,IF(L160="six",6,IF(L160="seven",7,IF(L160="eight",8,9))))))))) -> 6 | AD160: =IF(OR(ISNA(U160),ISNA(V160),ISNA(W160),ISNA(X160),ISNA(Y160),ISNA(Z160),ISNA(AA160),ISNA(AB160),ISNA(AC160)),NA(),CONCATENATE(U160,V160,W160,X160,Y160,Z160,AA160,AB160)) -> 11,446 | AE160: =IF(ISNA(AD160),FALSE,IF(C160=$B$1,Worksheet!$B$3,IF(C160=$C$1,Worksheet!$B$4,IF(C160=$D$1,Worksheet!$B$5,IF(C160=$E$1,Worksheet!$B$6,IF(C160=$B$2,Worksheet!$B$7,IF(C160=$C$2,Worksheet!$D$3,IF(C160=$D$2,Worksheet!$D$4,IF(C160=$E$2,Worksheet!$D$5,IF(C160=$C$3,Worksheet!$D$6,IF(C160=$B$3,Worksheet!$D$7,IF(C160=$D$3,Worksheet!$B$10,IF(C160=$E$3,Worksheet!$D$10,FALSE))))))))))))) -> TRUE | AF160: =IF(AE160,D160,"") -> Easy | AG160: =IF(AE160,COUNTIF($AF$5:AF160,AF160),"X") -> 38 | AH160: =CONCATENATE(AE160,AF160) -> TRUEEasy
A161: =CONCATENATE(AE161,D161,AG161) -> TRUEHard50 | B161: =RAND() -> 0.3224690136 | C161: Mult | D161: Hard | E161: 103 | F161: Multiply: | G161: =RANDBETWEEN(2,5)*10 -> 20 | H161: × | I161: =RANDBETWEEN(2,5)*10 -> 50 | T161: =CONCATENATE(F161," ",G161," ",H161," ",I161," ",J161," ",K161," ",L161," ",M161," ",N161," ",O161," ",P161," ",Q161," ",R161) -> Multiply: 20 × 50 | U161: =TEXT(G161*I161,"#,###") -> 1,000 | X161: =IF(AND(G161=G160,I161=I160),NA(),"") ->  | AD161: =IF(OR(ISNA(U161),ISNA(V161),ISNA(W161),ISNA(X161),ISNA(Y161),ISNA(Z161),ISNA(AA161),ISNA(AB161),ISNA(AC161)),NA(),CONCATENATE(U161,V161,W161,X161,Y161,Z161,AA161,AB161)) -> 1,000 | AE161: =IF(ISNA(AD161),FALSE,IF(C161=$B$1,Worksheet!$B$3,IF(C161=$C$1,Worksheet!$B$4,IF(C161=$D$1,Worksheet!$B$5,IF(C161=$E$1,Worksheet!$B$6,IF(C161=$B$2,Worksheet!$B$7,IF(C161=$C$2,Worksheet!$D$3,IF(C161=$D$2,Worksheet!$D$4,IF(C161=$E$2,Worksheet!$D$5,IF(C161=$C$3,Worksheet!$D$6,IF(C161=$B$3,Worksheet!$D$7,IF(C161=$D$3,Worksheet!$B$10,IF(C161=$E$3,Worksheet!$D$10,FALSE))))))))))))) -> TRUE | AF161: =IF(AE161,D161,"") -> Hard | AG161: =IF(AE161,COUNTIF($AF$5:AF161,AF161),"X") -> 50 | AH161: =CONCATENATE(AE161,AF161) -> TRUEHard
A162: =CONCATENATE(AE162,D162,AG162) -> TRUEEasy39 | B162: =RAND() -> 0.3419448528 | C162: Dec | D162: Easy | E162: 241 | F162: Fill in the number to complete the sum: | G162: =RANDBETWEEN(1,9)+RANDBETWEEN(1,9)/10 -> 4.6 | H162: + _____ = | I162: =ROUNDUP(G162,0) -> 5 | T162: =CONCATENATE(F162," ",G162," ",H162," ",I162," ",J162," ",K162," ",L162," ",M162," ",N162," ",O162," ",P162," ",Q162," ",R162) -> Fill in the number to complete the sum: 4.6 + _____ = 5 | U162: =I162-G162 -> 0.4 | AD162: =IF(OR(ISNA(U162),ISNA(V162),ISNA(W162),ISNA(X162),ISNA(Y162),ISNA(Z162),ISNA(AA162),ISNA(AB162),ISNA(AC162)),NA(),CONCATENATE(U162,V162,W162,X162,Y162,Z162,AA162,AB162)) -> 0.4 | AE162: =IF(ISNA(AD162),FALSE,IF(C162=$B$1,Worksheet!$B$3,IF(C162=$C$1,Worksheet!$B$4,IF(C162=$D$1,Worksheet!$B$5,IF(C162=$E$1,Worksheet!$B$6,IF(C162=$B$2,Worksheet!$B$7,IF(C162=$C$2,Worksheet!$D$3,IF(C162=$D$2,Worksheet!$D$4,IF(C162=$E$2,Worksheet!$D$5,IF(C162=$C$3,Worksheet!$D$6,IF(C162=$B$3,Worksheet!$D$7,IF(C162=$D$3,Worksheet!$B$10,IF(C162=$E$3,Worksheet!$D$10,FALSE))))))))))))) -> TRUE | AF162: =IF(AE162,D162,"") -> Easy | AG162: =IF(AE162,COUNTIF($AF$5:AF162,AF162),"X") -> 39 | AH162: =CONCATENATE(AE162,AF162) -> TRUEEasy
A163: =CONCATENATE(AE163,D163,AG163) -> TRUEHard51 | B163: =RAND() -> 0.5702805781 | C163: Frac | D163: Hard | E163: 200 | F163: Take away the fraction: | G163: 1 | H163: – | I163: =RANDBETWEEN(1,6) -> 3 | J163: /7 | T163: =CONCATENATE(F163," ",G163," ",H163," ",I163,"",J163," ",K163," ",L163," ",M163," ",N163," ",O163," ",P163," ",Q163," ",R163) -> Take away the fraction: 1 – 3/7 | U163: =7-I163 -> 4 | V163: /7 | AD163: =IF(OR(ISNA(U163),ISNA(V163),ISNA(W163),ISNA(X163),ISNA(Y163),ISNA(Z163),ISNA(AA163),ISNA(AB163),ISNA(AC163)),NA(),CONCATENATE(U163,V163,W163,X163,Y163,Z163,AA163,AB163)) -> 4/7 | AE163: =IF(ISNA(AD163),FALSE,IF(C163=$B$1,Worksheet!$B$3,IF(C163=$C$1,Worksheet!$B$4,IF(C163=$D$1,Worksheet!$B$5,IF(C163=$E$1,Worksheet!$B$6,IF(C163=$B$2,Worksheet!$B$7,IF(C163=$C$2,Worksheet!$D$3,IF(C163=$D$2,Worksheet!$D$4,IF(C163=$E$2,Worksheet!$D$5,IF(C163=$C$3,Worksheet!$D$6,IF(C163=$B$3,Worksheet!$D$7,IF(C163=$D$3,Worksheet!$B$10,IF(C163=$E$3,Worksheet!$D$10,FALSE))))))))))))) -> TRUE | AF163: =IF(AE163,D163,"") -> Hard | AG163: =IF(AE163,COUNTIF($AF$5:AF163,AF163),"X") -> 51 | AH163: =CONCATENATE(AE163,AF163) -> TRUEHard
A164: =CONCATENATE(AE164,D164,AG164) -> TRUEEasy40 | B164: =RAND() -> 0.7773421289 | C164: Neg | D164: Easy | E164: 350 | F164: Circle the number that is LARGEST: | G164: =RANDBETWEEN(-8,-2) -> -4 | H164: =G164+1 -> -3 | I164: =G164-1 -> -5 | T164: =CONCATENATE(F164," ",G164,", ",H164,", ",I164,", ",J164," ",K164," ",L164," ",M164," ",N164," ",O164," ",P164," ",Q164," ",R164) -> Circle the number that is LARGEST: -4, -3, -5, | U164: =MAX(G164:I164) -> -3 | AC164: =IF(ISERROR(T164),NA(),"") ->  | AD164: =IF(OR(ISNA(U164),ISNA(V164),ISNA(W164),ISNA(X164),ISNA(Y164),ISNA(Z164),ISNA(AA164),ISNA(AB164),ISNA(AC164)),NA(),CONCATENATE(U164,V164,W164,X164,Y164,Z164,AA164,AB164)) -> -3 | AE164: =IF(ISNA(AD164),FALSE,IF(C164=$B$1,Worksheet!$B$3,IF(C164=$C$1,Worksheet!$B$4,IF(C164=$D$1,Worksheet!$B$5,IF(C164=$E$1,Worksheet!$B$6,IF(C164=$B$2,Worksheet!$B$7,IF(C164=$C$2,Worksheet!$D$3,IF(C164=$D$2,Worksheet!$D$4,IF(C164=$E$2,Worksheet!$D$5,IF(C164=$C$3,Worksheet!$D$6,IF(C164=$B$3,Worksheet!$D$7,IF(C164=$D$3,Worksheet!$B$10,IF(C164=$E$3,Worksheet!$D$10,FALSE))))))))))))) -> TRUE | AF164: =IF(AE164,D164,"") -> Easy | AG164: =IF(AE164,COUNTIF($AF$5:AF164,AF164),"X") -> 40 | AH164: =CONCATENATE(AE164,AF164) -> TRUEEasy
A165: =CONCATENATE(AE165,D165,AG165) -> TRUEEasy41 | B165: =RAND() -> 0.3735986391 | C165: Num | D165: Easy | E165: 16 | F165: Write these numbers in order from | G165: =CHOOSE(RANDBETWEEN(1,2),"smallest to biggest:","biggest to smallest:") -> biggest to smallest: | H165: =IF($O165=1,$P165*1000,IF($O165=2,$Q165*1000,IF($O165=3,$R165*1000,$S165*1000)))+IF(RAND()<0.5,$R165,$S165)*100+IF(RAND()<0.5,$P165,$Q165)*10+CHOOSE(RANDBETWEEN(1,4),$P165,$Q165,$R165,$S165) -> 1699 | I165: =IF($O165=1,$P165*1000,IF($O165=2,$Q165*1000,IF($O165=3,$R165*1000,$S165*1000)))+IF(RAND()<0.5,$R165,$S165)*100+IF(RAND()<0.5,$P165,$Q165)*10+CHOOSE(RANDBETWEEN(1,4),$P165,$Q165,$R165,$S165) -> 1991 | J165: =IF($O165=1,$P165*1000,IF($O165=2,$Q165*1000,IF($O165=3,$R165*1000,$S165*1000)))+IF(RAND()<0.5,$R165,$S165)*100+IF(RAND()<0.5,$P165,$Q165)*10+CHOOSE(RANDBETWEEN(1,4),$P165,$Q165,$R165,$S165) -> 1911 | K165: =IF($O165=1,$P165*1000,IF($O165=2,$Q165*1000,IF($O165=3,$R165*1000,$S165*1000)))+IF(RAND()<0.5,$R165,$S165)*100+IF(RAND()<0.5,$P165,$Q165)*10+CHOOSE(RANDBETWEEN(1,4),$P165,$Q165,$R165,$S165) -> 1691 | O165: =RANDBETWEEN(1,9) -> 2 | P165: =RANDBETWEEN(0,9) -> 9 | Q165: =RANDBETWEEN(0,9) -> 1 | R165: =RANDBETWEEN(0,9) -> 6 | S165: =RANDBETWEEN(1,9) -> 9 | T165: =CONCATENATE(F165," ",G165," ",H165,", ",I165,", ",J165,", ",K165," ",L165," ",M165," ",N165) -> Write these numbers in order from biggest to smallest: 1699, 1991, 1911, 1691 | U165: =IF($G165="smallest to biggest:",LARGE($H165:$K165,4),LARGE($H165:$K165,1)) -> 1991 | V165: =IF($G165="smallest to biggest:",LARGE($H165:$K165,3),LARGE($H165:$K165,2)) -> 1911 | W165: =IF($G165="smallest to biggest:",LARGE($H165:$K165,2),LARGE($H165:$K165,3)) -> 1699 | X165: =IF($G165="smallest to biggest:",LARGE($H165:$K165,1),LARGE($H165:$K165,4)) -> 1691 | Z165: =IF(OR(H165=I165,H165=J165,H165=K165,I165=J165,I165=K165,J165=K165),NA(),"") ->  | AD165: =IF(OR(ISNA(U165),ISNA(V165),ISNA(W165),ISNA(X165),ISNA(Y165),ISNA(Z165),ISNA(AA165),ISNA(AB165),ISNA(AC165)),NA(),CONCATENATE(U165,", ",V165,", ",W165,", ",X165,Y165,Z165,AA165,AB165)) -> 1991, 1911, 1699, 1691 | AE165: =IF(ISNA(AD165),FALSE,IF(C165=$B$1,Worksheet!$B$3,IF(C165=$C$1,Worksheet!$B$4,IF(C165=$D$1,Worksheet!$B$5,IF(C165=$E$1,Worksheet!$B$6,IF(C165=$B$2,Worksheet!$B$7,IF(C165=$C$2,Worksheet!$D$3,IF(C165=$D$2,Worksheet!$D$4,IF(C165=$E$2,Worksheet!$D$5,IF(C165=$C$3,Worksheet!$D$6,IF(C165=$B$3,Worksheet!$D$7,IF(C165=$D$3,Worksheet!$B$10,IF(C165=$E$3,Worksheet!$D$10,FALSE))))))))))))) -> TRUE | AF165: =IF(AE165,D165,"") -> Easy | AG165: =IF(AE165,COUNTIF($AF$5:AF165,AF165),"X") -> 41 | AH165: =CONCATENATE(AE165,AF165) -> TRUEEasy
A166: =CONCATENATE(AE166,D166,AG166) -> TRUEMedium59 | B166: =RAND() -> 0.2964201869 | C166: % | D166: Medium | E166: 321 | F166: What is | G166: 20 | H166: % of £ | I166: =5*RANDBETWEEN(1,10) -> 40 | J166: ? | T166: =CONCATENATE(F166," ",G166,"",H166,"",I166," ",J166," ",K166," ",L166," ",M166," ",N166," ",O166," ",P166," ",Q166," ",R166) -> What is 20% of £40 ? | U166: £ | V166: =I166/5 -> 8 | AD166: =IF(OR(ISNA(U166),ISNA(V166),ISNA(W166),ISNA(X166),ISNA(Y166),ISNA(Z166),ISNA(AA166),ISNA(AB166),ISNA(AC166)),NA(),CONCATENATE(U166,V166,W166,X166,Y166,Z166,AA166,AB166)) -> £8 | AE166: =IF(ISNA(AD166),FALSE,IF(C166=$B$1,Worksheet!$B$3,IF(C166=$C$1,Worksheet!$B$4,IF(C166=$D$1,Worksheet!$B$5,IF(C166=$E$1,Worksheet!$B$6,IF(C166=$B$2,Worksheet!$B$7,IF(C166=$C$2,Worksheet!$D$3,IF(C166=$D$2,Worksheet!$D$4,IF(C166=$E$2,Worksheet!$D$5,IF(C166=$C$3,Worksheet!$D$6,IF(C166=$B$3,Worksheet!$D$7,IF(C166=$D$3,Worksheet!$B$10,IF(C166=$E$3,Worksheet!$D$10,FALSE))))))))))))) -> TRUE | AF166: =IF(AE166,D166,"") -> Medium | AG166: =IF(AE166,COUNTIF($AF$5:AF166,AF166),"X") -> 59 | AH166: =CONCATENATE(AE166,AF166) -> TRUEMedium
A167: =CONCATENATE(AE167,D167,AG167) -> TRUEHard52 | B167: =RAND() -> 0.2348343663 | C167: Dec | D167: Hard | E167: 280 | F167: Divide: | G167: =RANDBETWEEN(1,9)+RANDBETWEEN(1,9)*10 -> 69 | H167: ÷ 10 | T167: =CONCATENATE(F167," ",G167," ",H167," ",I167," ",J167," ",K167," ",L167," ",M167," ",N167," ",O167," ",P167," ",Q167," ",R167) -> Divide: 69 ÷ 10 | U167: =G167/10 -> 6.9 | AD167: =IF(OR(ISNA(U167),ISNA(V167),ISNA(W167),ISNA(X167),ISNA(Y167),ISNA(Z167),ISNA(AA167),ISNA(AB167),ISNA(AC167)),NA(),CONCATENATE(U167,V167,W167,X167,Y167,Z167,AA167,AB167)) -> 6.9 | AE167: =IF(ISNA(AD167),FALSE,IF(C167=$B$1,Worksheet!$B$3,IF(C167=$C$1,Worksheet!$B$4,IF(C167=$D$1,Worksheet!$B$5,IF(C167=$E$1,Worksheet!$B$6,IF(C167=$B$2,Worksheet!$B$7,IF(C167=$C$2,Worksheet!$D$3,IF(C167=$D$2,Worksheet!$D$4,IF(C167=$E$2,Worksheet!$D$5,IF(C167=$C$3,Worksheet!$D$6,IF(C167=$B$3,Worksheet!$D$7,IF(C167=$D$3,Worksheet!$B$10,IF(C167=$E$3,Worksheet!$D$10,FALSE))))))))))))) -> TRUE | AF167: =IF(AE167,D167,"") -> Hard | AG167: =IF(AE167,COUNTIF($AF$5:AF167,AF167),"X") -> 52 | AH167: =CONCATENATE(AE167,AF167) -> TRUEHard
A168: =CONCATENATE(AE168,D168,AG168) -> TRUEMedium60 | B168: =RAND() -> 0.6957708447 | C168: Mult | D168: Medium | E168: 59 | F168: What is | G168: =RANDBETWEEN(6,9) -> 9 | H168: × | I168: =RANDBETWEEN(6,9) -> 6 | J168: ? | T168: =CONCATENATE(F168," ",G168," ",H168," ",I168," ",J168," ",K168," ",L168," ",M168," ",N168," ",O168," ",P168," ",Q168," ",R168) -> What is 9 × 6 ? | U168: =G168*I168 -> 54 | AD168: =IF(OR(ISNA(U168),ISNA(V168),ISNA(W168),ISNA(X168),ISNA(Y168),ISNA(Z168),ISNA(AA168),ISNA(AB168),ISNA(AC168)),NA(),CONCATENATE(U168,V168,W168,X168,Y168,Z168,AA168,AB168)) -> 54 | AE168: =IF(ISNA(AD168),FALSE,IF(C168=$B$1,Worksheet!$B$3,IF(C168=$C$1,Worksheet!$B$4,IF(C168=$D$1,Worksheet!$B$5,IF(C168=$E$1,Worksheet!$B$6,IF(C168=$B$2,Worksheet!$B$7,IF(C168=$C$2,Worksheet!$D$3,IF(C168=$D$2,Worksheet!$D$4,IF(C168=$E$2,Worksheet!$D$5,IF(C168=$C$3,Worksheet!$D$6,IF(C168=$B$3,Worksheet!$D$7,IF(C168=$D$3,Worksheet!$B$10,IF(C168=$E$3,Worksheet!$D$10,FALSE))))))))))))) -> TRUE | AF168: =IF(AE168,D168,"") -> Medium | AG168: =IF(AE168,COUNTIF($AF$5:AF168,AF168),"X") -> 60 | AH168: =CONCATENATE(AE168,AF168) -> TRUEMedium
A169: =CONCATENATE(AE169,D169,AG169) -> TRUEEasy42 | B169: =RAND() -> 0.2785440705 | C169: +- | D169: Easy | E169: 50 | F169: Take away by writing down a sum: | G169: =RANDBETWEEN(2,9)*100+RANDBETWEEN(1,99) -> 851 | H169: – | I169: =RANDBETWEEN(101,G169) -> 843 | T169: =CONCATENATE(F169," ",G169," ",H169," ",I169," ",J169," ",K169," ",L169," ",M169," ",N169," ",O169," ",P169," ",Q169," ",R169) -> Take away by writing down a sum: 851 – 843 | U169: =G169-I169 -> 8 | AD169: =IF(OR(ISNA(U169),ISNA(V169),ISNA(W169),ISNA(X169),ISNA(Y169),ISNA(Z169),ISNA(AA169),ISNA(AB169),ISNA(AC169)),NA(),CONCATENATE(U169,V169,W169,X169,Y169,Z169,AA169,AB169)) -> 8 | AE169: =IF(ISNA(AD169),FALSE,IF(C169=$B$1,Worksheet!$B$3,IF(C169=$C$1,Worksheet!$B$4,IF(C169=$D$1,Worksheet!$B$5,IF(C169=$E$1,Worksheet!$B$6,IF(C169=$B$2,Worksheet!$B$7,IF(C169=$C$2,Worksheet!$D$3,IF(C169=$D$2,Worksheet!$D$4,IF(C169=$E$2,Worksheet!$D$5,IF(C169=$C$3,Worksheet!$D$6,IF(C169=$B$3,Worksheet!$D$7,IF(C169=$D$3,Worksheet!$B$10,IF(C169=$E$3,Worksheet!$D$10,FALSE))))))))))))) -> TRUE | AF169: =IF(AE169,D169,"") -> Easy | AG169: =IF(AE169,COUNTIF($AF$5:AF169,AF169),"X") -> 42 | AH169: =CONCATENATE(AE169,AF169) -> TRUEEasy
A170: =CONCATENATE(AE170,D170,AG170) -> TRUEMedium61 | B170: =RAND() -> 0.7920621375 | C170: Dec | D170: Medium | E170: 212 | F170: Three of these numbers are the same. Cirle the number that is NOT the same: | G170: =IF(S170=1,0.05,0.5) -> 0.5 | H170: =IF(S170=2,0.05,"one half") -> one half | I170: =IF(S170=3,0.05,TEXT(0.5,"0.00")) -> 0.50 | J170: =IF(S170=4,0.05,IF(S170=2,"one half",IF(S170=1,0.5,TEXT(0.5,"0.00")))) -> 0.05 | R170: =RANDBETWEEN(1,9) -> 8 | S170: =RANDBETWEEN(1,4) -> 4 | T170: =CONCATENATE(F170," ",G170,", ",H170,", ",I170,", ",J170," ",K170," ",L170," ",M170," ",N170," ",O170," ",P170," ",Q170) -> Three of these numbers are the same. Cirle the number that is NOT the same: 0.5, one half, 0.50, 0.05 | U170: 0.05 | AD170: =IF(OR(ISNA(U170),ISNA(V170),ISNA(W170),ISNA(X170),ISNA(Y170),ISNA(Z170),ISNA(AA170),ISNA(AB170),ISNA(AC170)),NA(),CONCATENATE(U170,V170,W170,X170,Y170,Z170,AA170,AB170)) -> 0.05 | AE170: =IF(ISNA(AD170),FALSE,IF(C170=$B$1,Worksheet!$B$3,IF(C170=$C$1,Worksheet!$B$4,IF(C170=$D$1,Worksheet!$B$5,IF(C170=$E$1,Worksheet!$B$6,IF(C170=$B$2,Worksheet!$B$7,IF(C170=$C$2,Worksheet!$D$3,IF(C170=$D$2,Worksheet!$D$4,IF(C170=$E$2,Worksheet!$D$5,IF(C170=$C$3,Worksheet!$D$6,IF(C170=$B$3,Worksheet!$D$7,IF(C170=$D$3,Worksheet!$B$10,IF(C170=$E$3,Worksheet!$D$10,FALSE))))))))))))) -> TRUE | AF170: =IF(AE170,D170,"") -> Medium | AG170: =IF(AE170,COUNTIF($AF$5:AF170,AF170),"X") -> 61 | AH170: =CONCATENATE(AE170,AF170) -> TRUEMedium
A171: =CONCATENATE(AE171,D171,AG171) -> TRUEMedium62 | B171: =RAND() -> 0.7302402663 | C171: Num | D171: Medium | E171: 4 | F171: Write the number " | G171: =CHOOSE(RANDBETWEEN(1,9),"one","two","three","four","five","six","seven","eight","nine") -> four | H171: and a half thousand | I171: " in figures | T171: =CONCATENATE(F171," ",G171," ",H171," ",I171," ",J171," ",K171," ",L171," ",M171," ",N171," ",O171," ",P171," ",Q171," ",R171) -> Write the number " four and a half thousand " in figures | U171: =IF(G171="one",1,IF(G171="two",2,IF(G171="three",3,IF(G171="four",4,IF(G171="five",5,IF(G171="six",6,IF(G171="seven",7,IF(G171="eight",8,9)))))))) -> 4 | V171: ,500 | AD171: =IF(OR(ISNA(U171),ISNA(V171),ISNA(W171),ISNA(X171),ISNA(Y171),ISNA(Z171),ISNA(AA171),ISNA(AB171),ISNA(AC171)),NA(),CONCATENATE(U171,V171,W171,X171,Y171,Z171,AA171,AB171)) -> 4,500 | AE171: =IF(ISNA(AD171),FALSE,IF(C171=$B$1,Worksheet!$B$3,IF(C171=$C$1,Worksheet!$B$4,IF(C171=$D$1,Worksheet!$B$5,IF(C171=$E$1,Worksheet!$B$6,IF(C171=$B$2,Worksheet!$B$7,IF(C171=$C$2,Worksheet!$D$3,IF(C171=$D$2,Worksheet!$D$4,IF(C171=$E$2,Worksheet!$D$5,IF(C171=$C$3,Worksheet!$D$6,IF(C171=$B$3,Worksheet!$D$7,IF(C171=$D$3,Worksheet!$B$10,IF(C171=$E$3,Worksheet!$D$10,FALSE))))))))))))) -> TRUE | AF171: =IF(AE171,D171,"") -> Medium | AG171: =IF(AE171,COUNTIF($AF$5:AF171,AF171),"X") -> 62 | AH171: =CONCATENATE(AE171,AF171) -> TRUEMedium
A172: =CONCATENATE(AE172,D172,AG172) -> TRUEHard53 | B172: =RAND() -> 0.9199527005 | C172: Round | D172: Hard | E172: 342 | F172: Round | G172: =RANDBETWEEN(101,999)+RANDBETWEEN(1,99)/100 -> 848.02 | H172: to one decimal place | T172: =CONCATENATE(F172," ",G172," ",H172," ",I172," ",J172," ",K172," ",L172," ",M172," ",N172," ",O172," ",P172," ",Q172," ",R172) -> Round 848.02 to one decimal place | U172: =MROUND(G172,0.1) -> 848 | AD172: =IF(OR(ISNA(U172),ISNA(V172),ISNA(W172),ISNA(X172),ISNA(Y172),ISNA(Z172),ISNA(AA172),ISNA(AB172),ISNA(AC172)),NA(),CONCATENATE(U172,V172,W172,X172,Y172,Z172,AA172,AB172)) -> 848 | AE172: =IF(ISNA(AD172),FALSE,IF(C172=$B$1,Worksheet!$B$3,IF(C172=$C$1,Worksheet!$B$4,IF(C172=$D$1,Worksheet!$B$5,IF(C172=$E$1,Worksheet!$B$6,IF(C172=$B$2,Worksheet!$B$7,IF(C172=$C$2,Worksheet!$D$3,IF(C172=$D$2,Worksheet!$D$4,IF(C172=$E$2,Worksheet!$D$5,IF(C172=$C$3,Worksheet!$D$6,IF(C172=$B$3,Worksheet!$D$7,IF(C172=$D$3,Worksheet!$B$10,IF(C172=$E$3,Worksheet!$D$10,FALSE))))))))))))) -> TRUE | AF172: =IF(AE172,D172,"") -> Hard | AG172: =IF(AE172,COUNTIF($AF$5:AF172,AF172),"X") -> 53 | AH172: =CONCATENATE(AE172,AF172) -> TRUEHard
A173: =CONCATENATE(AE173,D173,AG173) -> TRUEMedium63 | B173: =RAND() -> 0.6926569955 | C173: Num | D173: Medium | E173: 209 | F173: Continue the pattern for three more numbers: | G173: =RANDBETWEEN(11,95)*1000+600+RANDBETWEEN(1,99) -> 17647 | H173: =G173+S173 -> 17747 | I173: =H173+S173 -> 17847 | J173: =I173+S173 -> 17947 | K173: ____ | L173: ____ | M173: ____ | S173: 100 | T173: =CONCATENATE(F173," ",G173,", ",H173,", ",I173,", ",J173,", ",K173,", ",L173,", ",M173," ",N173," ",O173," ",P173," ",Q173," ",R173) -> Continue the pattern for three more numbers: 17647, 17747, 17847, 17947, ____, ____, ____ | U173: =J173+S173 -> 18047 | V173: =U173+S173 -> 18147 | W173: =V173+S173 -> 18247 | AD173: =IF(OR(ISNA(U173),ISNA(V173),ISNA(W173),ISNA(X173),ISNA(Y173),ISNA(Z173),ISNA(AA173),ISNA(AB173),ISNA(AC173)),NA(),CONCATENATE(U173,", ",V173,", ",W173,X173,Y173,Z173,AA173,AB173)) -> 18047, 18147, 18247 | AE173: =IF(ISNA(AD173),FALSE,IF(C173=$B$1,Worksheet!$B$3,IF(C173=$C$1,Worksheet!$B$4,IF(C173=$D$1,Worksheet!$B$5,IF(C173=$E$1,Worksheet!$B$6,IF(C173=$B$2,Worksheet!$B$7,IF(C173=$C$2,Worksheet!$D$3,IF(C173=$D$2,Worksheet!$D$4,IF(C173=$E$2,Worksheet!$D$5,IF(C173=$C$3,Worksheet!$D$6,IF(C173=$B$3,Worksheet!$D$7,IF(C173=$D$3,Worksheet!$B$10,IF(C173=$E$3,Worksheet!$D$10,FALSE))))))))))))) -> TRUE | AF173: =IF(AE173,D173,"") -> Medium | AG173: =IF(AE173,COUNTIF($AF$5:AF173,AF173),"X") -> 63 | AH173: =CONCATENATE(AE173,AF173) -> TRUEMedium
A174: =CONCATENATE(AE174,D174,AG174) -> TRUEHard54 | B174: =RAND() -> 0.7408416452 | C174: Dec | D174: Hard | E174: 266 | F174: Fill in the number to complete the sum: | G174: =RANDBETWEEN(1,9)+RANDBETWEEN(1,9)/100+S174/10 -> 7.34 | H174: – _____ = | I174: =G174-S174/10 -> 7.04 | S174: =RANDBETWEEN(1,9) -> 3 | T174: =CONCATENATE(F174," ",G174," ",H174," ",I174," ",J174," ",K174," ",L174," ",M174," ",N174," ",O174," ",P174," ",Q174," ",R174) -> Fill in the number to complete the sum: 7.34 – _____ = 7.04 | U174: =MROUND(G174-I174,0.1) -> 0.3 | AD174: =IF(OR(ISNA(U174),ISNA(V174),ISNA(W174),ISNA(X174),ISNA(Y174),ISNA(Z174),ISNA(AA174),ISNA(AB174),ISNA(AC174)),NA(),CONCATENATE(U174,V174,W174,X174,Y174,Z174,AA174,AB174)) -> 0.3 | AE174: =IF(ISNA(AD174),FALSE,IF(C174=$B$1,Worksheet!$B$3,IF(C174=$C$1,Worksheet!$B$4,IF(C174=$D$1,Worksheet!$B$5,IF(C174=$E$1,Worksheet!$B$6,IF(C174=$B$2,Worksheet!$B$7,IF(C174=$C$2,Worksheet!$D$3,IF(C174=$D$2,Worksheet!$D$4,IF(C174=$E$2,Worksheet!$D$5,IF(C174=$C$3,Worksheet!$D$6,IF(C174=$B$3,Worksheet!$D$7,IF(C174=$D$3,Worksheet!$B$10,IF(C174=$E$3,Worksheet!$D$10,FALSE))))))))))))) -> TRUE | AF174: =IF(AE174,D174,"") -> Hard | AG174: =IF(AE174,COUNTIF($AF$5:AF174,AF174),"X") -> 54 | AH174: =CONCATENATE(AE174,AF174) -> TRUEHard
A175: =CONCATENATE(AE175,D175,AG175) -> TRUEMedium64 | B175: =RAND() -> 0.9878620763 | C175: % | D175: Medium | E175: 293 | F175: Write | G175: =RANDBETWEEN(1,9)+RANDBETWEEN(1,9)*10 -> 17 | H175: % as a decimal | T175: =CONCATENATE(F175," ",G175,"",H175," ",I175," ",J175," ",K175," ",L175," ",M175," ",N175," ",O175," ",P175," ",Q175," ",R175) -> Write 17% as a decimal | U175: =G175/100 -> 0.17 | AD175: =IF(OR(ISNA(U175),ISNA(V175),ISNA(W175),ISNA(X175),ISNA(Y175),ISNA(Z175),ISNA(AA175),ISNA(AB175),ISNA(AC175)),NA(),CONCATENATE(U175,V175,W175,X175,Y175,Z175,AA175,AB175)) -> 0.17 | AE175: =IF(ISNA(AD175),FALSE,IF(C175=$B$1,Worksheet!$B$3,IF(C175=$C$1,Worksheet!$B$4,IF(C175=$D$1,Worksheet!$B$5,IF(C175=$E$1,Worksheet!$B$6,IF(C175=$B$2,Worksheet!$B$7,IF(C175=$C$2,Worksheet!$D$3,IF(C175=$D$2,Worksheet!$D$4,IF(C175=$E$2,Worksheet!$D$5,IF(C175=$C$3,Worksheet!$D$6,IF(C175=$B$3,Worksheet!$D$7,IF(C175=$D$3,Worksheet!$B$10,IF(C175=$E$3,Worksheet!$D$10,FALSE))))))))))))) -> TRUE | AF175: =IF(AE175,D175,"") -> Medium | AG175: =IF(AE175,COUNTIF($AF$5:AF175,AF175),"X") -> 64 | AH175: =CONCATENATE(AE175,AF175) -> TRUEMedium
A176: =CONCATENATE(AE176,D176,AG176) -> TRUEMedium65 | B176: =RAND() -> 0.8940384266 | C176: Dec | D176: Medium | E176: 228 | F176: In the number | G176: =RANDBETWEEN(1,9) -> 7 | H176: =SMALL(IF(G176={1,2,3,4,5,6,7,8,9},"",{1,2,3,4,5,6,7,8,9}),RANDBETWEEN(1,8)) -> 2 | I176: =SMALL(IF(G176={1,2,3,4,5,6,7,8,9},"",IF(H176={1,2,3,4,5,6,7,8,9},"",{1,2,3,4,5,6,7,8,9})),RANDBETWEEN(1,7)) -> 9 | J176: =SMALL(IF(G176={1,2,3,4,5,6,7,8,9},"",IF(H176={1,2,3,4,5,6,7,8,9},"",IF(I176={1,2,3,4,5,6,7,8,9},"",{1,2,3,4,5,6,7,8,9}))),RANDBETWEEN(1,6)) -> 8 | K176: =SMALL(IF(G176={1,2,3,4,5,6,7,8,9},"",IF(H176={1,2,3,4,5,6,7,8,9},"",IF(I176={1,2,3,4,5,6,7,8,9},"",IF(J176={1,2,3,4,5,6,7,8,9},"",{1,2,3,4,5,6,7,8,9})))),RANDBETWEEN(1,5)) -> 3 | M176: , which digit represents the UNITS? | S176: =RANDBETWEEN(1,3) -> 1 | T176: =CONCATENATE(F176," ",G176,"",H176,"•",I176,"",J176,"",K176,"",L176," ",M176," ",N176," ",O176," ",P176," ",Q176," ",R176) -> In the number 72•983 , which digit represents the UNITS? | U176: =H176 -> 2 | AD176: =IF(OR(ISNA(U176),ISNA(V176),ISNA(W176),ISNA(X176),ISNA(Y176),ISNA(Z176),ISNA(AA176),ISNA(AB176),ISNA(AC176)),NA(),CONCATENATE(U176,V176,W176,X176,Y176,Z176,AA176,AB176)) -> 2 | AE176: =IF(ISNA(AD176),FALSE,IF(C176=$B$1,Worksheet!$B$3,IF(C176=$C$1,Worksheet!$B$4,IF(C176=$D$1,Worksheet!$B$5,IF(C176=$E$1,Worksheet!$B$6,IF(C176=$B$2,Worksheet!$B$7,IF(C176=$C$2,Worksheet!$D$3,IF(C176=$D$2,Worksheet!$D$4,IF(C176=$E$2,Worksheet!$D$5,IF(C176=$C$3,Worksheet!$D$6,IF(C176=$B$3,Worksheet!$D$7,IF(C176=$D$3,Worksheet!$B$10,IF(C176=$E$3,Worksheet!$D$10,FALSE))))))))))))) -> TRUE | AF176: =IF(AE176,D176,"") -> Medium | AG176: =IF(AE176,COUNTIF($AF$5:AF176,AF176),"X") -> 65 | AH176: =CONCATENATE(AE176,AF176) -> TRUEMedium
A177: =CONCATENATE(AE177,D177,AG177) -> TRUEMedium66 | B177: =RAND() -> 0.5844939315 | C177: Frac | D177: Medium | E177: 171 | F177: Fractions. | G177: =IF(I177=5,RANDBETWEEN(2,4),IF(I177=6,5,IF(I177=7,RANDBETWEEN(2,5),IF(I177=8,CHOOSE(RANDBETWEEN(1,3),3,5,7),IF(I177=9,CHOOSE(RANDBETWEEN(1,4),2,4,5,7),CHOOSE(RANDBETWEEN(1,3),3,7,9)))))) -> 4 | H177: / | I177: =RANDBETWEEN(5,10) -> 5 | J177: of the people in | K177: =CHOOSE(RANDBETWEEN(1,5),"Mrs Brown's","Mr Wilson's","Miss Forbes'","Mr Jackson's","Miss Black's") -> Miss Black's | L177: class are right-handed. The rest are left-handed. What fraction is left-handed? | T177: =CONCATENATE(F177," ",G177,"",H177,"",I177," ",J177," ",K177,"",L177," ",M177," ",N177," ",O177,"",P177," ",Q177," ",R177) -> Fractions. 4/5 of the people in Miss Black'sclass are right-handed. The rest are left-handed. What fraction is left-handed? | U177: =I177-G177 -> 1 | V177: / | W177: =I177 -> 5 | Y177: =IF(AND(U177=U176,W177=W176),NA(),"") ->  | AD177: =IF(OR(ISNA(U177),ISNA(V177),ISNA(W177),ISNA(X177),ISNA(Y177),ISNA(Z177),ISNA(AA177),ISNA(AB177),ISNA(AC177)),NA(),CONCATENATE(U177,V177,W177,X177,Y177,Z177,AA177,AB177)) -> 1/5 | AE177: =IF(ISNA(AD177),FALSE,IF(C177=$B$1,Worksheet!$B$3,IF(C177=$C$1,Worksheet!$B$4,IF(C177=$D$1,Worksheet!$B$5,IF(C177=$E$1,Worksheet!$B$6,IF(C177=$B$2,Worksheet!$B$7,IF(C177=$C$2,Worksheet!$D$3,IF(C177=$D$2,Worksheet!$D$4,IF(C177=$E$2,Worksheet!$D$5,IF(C177=$C$3,Worksheet!$D$6,IF(C177=$B$3,Worksheet!$D$7,IF(C177=$D$3,Worksheet!$B$10,IF(C177=$E$3,Worksheet!$D$10,FALSE))))))))))))) -> TRUE | AF177: =IF(AE177,D177,"") -> Medium | AG177: =IF(AE177,COUNTIF($AF$5:AF177,AF177),"X") -> 66 | AH177: =CONCATENATE(AE177,AF177) -> TRUEMedium
A178: =CONCATENATE(AE178,D178,AG178) -> TRUEMedium67 | B178: =RAND() -> 0.2651834957 | C178: Dec | D178: Medium | E178: 292 | F178: Divide by writing down a sum: | G178: =TEXT(U178*I178,"0.0") -> 16.5 | H178: ÷ | I178: =RANDBETWEEN(2,5) -> 3 | T178: =CONCATENATE(F178," ",G178," ",H178," ",I178," ",J178," ",K178," ",L178," ",M178," ",N178," ",O178," ",P178," ",Q178," ",R178) -> Divide by writing down a sum: 16.5 ÷ 3 | U178: =RANDBETWEEN(2,7)+RANDBETWEEN(1,9)/10 -> 5.5 | AD178: =IF(OR(ISNA(U178),ISNA(V178),ISNA(W178),ISNA(X178),ISNA(Y178),ISNA(Z178),ISNA(AA178),ISNA(AB178),ISNA(AC178)),NA(),CONCATENATE(U178,V178,W178,X178,Y178,Z178,AA178,AB178)) -> 5.5 | AE178: =IF(ISNA(AD178),FALSE,IF(C178=$B$1,Worksheet!$B$3,IF(C178=$C$1,Worksheet!$B$4,IF(C178=$D$1,Worksheet!$B$5,IF(C178=$E$1,Worksheet!$B$6,IF(C178=$B$2,Worksheet!$B$7,IF(C178=$C$2,Worksheet!$D$3,IF(C178=$D$2,Worksheet!$D$4,IF(C178=$E$2,Worksheet!$D$5,IF(C178=$C$3,Worksheet!$D$6,IF(C178=$B$3,Worksheet!$D$7,IF(C178=$D$3,Worksheet!$B$10,IF(C178=$E$3,Worksheet!$D$10,FALSE))))))))))))) -> TRUE | AF178: =IF(AE178,D178,"") -> Medium | AG178: =IF(AE178,COUNTIF($AF$5:AF178,AF178),"X") -> 67 | AH178: =CONCATENATE(AE178,AF178) -> TRUEMedium
A179: =CONCATENATE(AE179,D179,AG179) -> TRUEMedium68 | B179: =RAND() -> 0.07940904668 | C179: Frac | D179: Medium | E179: 191 | F179: Add the fractions: | G179: =RANDBETWEEN(1,4) -> 3 | H179: /5 | I179: + | J179: =RANDBETWEEN(1,5-G179) -> 1 | K179: /5 | T179: =CONCATENATE(F179," ",G179,"",H179," ",I179," ",J179,"",K179," ",L179," ",M179," ",N179," ",O179," ",P179," ",Q179," ",R179) -> Add the fractions: 3/5 + 1/5 | U179: =IF(G179+J179=5,1,CONCATENATE(G179+J179,"/5")) -> 4/5 | AD179: =IF(OR(ISNA(U179),ISNA(V179),ISNA(W179),ISNA(X179),ISNA(Y179),ISNA(Z179),ISNA(AA179),ISNA(AB179),ISNA(AC179)),NA(),CONCATENATE(U179,V179,W179,X179,Y179,Z179,AA179,AB179)) -> 4/5 | AE179: =IF(ISNA(AD179),FALSE,IF(C179=$B$1,Worksheet!$B$3,IF(C179=$C$1,Worksheet!$B$4,IF(C179=$D$1,Worksheet!$B$5,IF(C179=$E$1,Worksheet!$B$6,IF(C179=$B$2,Worksheet!$B$7,IF(C179=$C$2,Worksheet!$D$3,IF(C179=$D$2,Worksheet!$D$4,IF(C179=$E$2,Worksheet!$D$5,IF(C179=$C$3,Worksheet!$D$6,IF(C179=$B$3,Worksheet!$D$7,IF(C179=$D$3,Worksheet!$B$10,IF(C179=$E$3,Worksheet!$D$10,FALSE))))))))))))) -> TRUE | AF179: =IF(AE179,D179,"") -> Medium | AG179: =IF(AE179,COUNTIF($AF$5:AF179,AF179),"X") -> 68 | AH179: =CONCATENATE(AE179,AF179) -> TRUEMedium
A180: =CONCATENATE(AE180,D180,AG180) -> TRUEMedium69 | B180: =RAND() -> 0.8218429075 | C180: Divide | D180: Medium | E180: 115 | F180: What is half of | G180: =10*(2*RANDBETWEEN(5,24)+1) -> 150 | H180: ? | T180: =CONCATENATE(F180," ",G180," ",H180," ",I180," ",J180," ",K180," ",L180," ",M180," ",N180," ",O180," ",P180," ",Q180," ",R180) -> What is half of 150 ? | U180: =G180/2 -> 75 | AD180: =IF(OR(ISNA(U180),ISNA(V180),ISNA(W180),ISNA(X180),ISNA(Y180),ISNA(Z180),ISNA(AA180),ISNA(AB180),ISNA(AC180)),NA(),CONCATENATE(U180,V180,W180,X180,Y180,Z180,AA180,AB180)) -> 75 | AE180: =IF(ISNA(AD180),FALSE,IF(C180=$B$1,Worksheet!$B$3,IF(C180=$C$1,Worksheet!$B$4,IF(C180=$D$1,Worksheet!$B$5,IF(C180=$E$1,Worksheet!$B$6,IF(C180=$B$2,Worksheet!$B$7,IF(C180=$C$2,Worksheet!$D$3,IF(C180=$D$2,Worksheet!$D$4,IF(C180=$E$2,Worksheet!$D$5,IF(C180=$C$3,Worksheet!$D$6,IF(C180=$B$3,Worksheet!$D$7,IF(C180=$D$3,Worksheet!$B$10,IF(C180=$E$3,Worksheet!$D$10,FALSE))))))))))))) -> TRUE | AF180: =IF(AE180,D180,"") -> Medium | AG180: =IF(AE180,COUNTIF($AF$5:AF180,AF180),"X") -> 69 | AH180: =CONCATENATE(AE180,AF180) -> TRUEMedium
A181: =CONCATENATE(AE181,D181,AG181) -> TRUEEasy43 | B181: =RAND() -> 0.1029774484 | C181: Dec | D181: Easy | E181: 260 | F181: Write the fraction | G181: 1/4 | H181: as a decimal | T181: =CONCATENATE(F181," ",G181," ",H181," ",I181," ",J181," ",K181," ",L181," ",M181," ",N181," ",O181," ",P181," ",Q181," ",R181) -> Write the fraction 1/4 as a decimal | U181: 0.25 | AD181: =IF(OR(ISNA(U181),ISNA(V181),ISNA(W181),ISNA(X181),ISNA(Y181),ISNA(Z181),ISNA(AA181),ISNA(AB181),ISNA(AC181)),NA(),CONCATENATE(U181,V181,W181,X181,Y181,Z181,AA181,AB181)) -> 0.25 | AE181: =IF(ISNA(AD181),FALSE,IF(C181=$B$1,Worksheet!$B$3,IF(C181=$C$1,Worksheet!$B$4,IF(C181=$D$1,Worksheet!$B$5,IF(C181=$E$1,Worksheet!$B$6,IF(C181=$B$2,Worksheet!$B$7,IF(C181=$C$2,Worksheet!$D$3,IF(C181=$D$2,Worksheet!$D$4,IF(C181=$E$2,Worksheet!$D$5,IF(C181=$C$3,Worksheet!$D$6,IF(C181=$B$3,Worksheet!$D$7,IF(C181=$D$3,Worksheet!$B$10,IF(C181=$E$3,Worksheet!$D$10,FALSE))))))))))))) -> TRUE | AF181: =IF(AE181,D181,"") -> Easy | AG181: =IF(AE181,COUNTIF($AF$5:AF181,AF181),"X") -> 43 | AH181: =CONCATENATE(AE181,AF181) -> TRUEEasy
A182: =CONCATENATE(AE182,D182,AG182) -> FALSEHardX | B182: =RAND() -> 0.6202679892 | C182: Alg | D182: Hard | E182: 375 | F182: Fill in the box with one of the symbols < > or = : | H182: =RANDBETWEEN(1,1000) -> 10 | I182: _____ | J182: =H182+RANDBETWEEN(-2,2) -> 9 | T182: =CONCATENATE(F182," ",G182," ",H182," ",I182," ",J182," ",K182," ",L182," ",M182," ",N182," ",O182," ",P182," ",Q182," ",R182) -> Fill in the box with one of the symbols < > or = : 10 _____ 9 | U182: =IF(J182>H182,"<",IF(H182>J182,">","=")) -> > | AD182: =IF(OR(ISNA(U182),ISNA(V182),ISNA(W182),ISNA(X182),ISNA(Y182),ISNA(Z182),ISNA(AA182),ISNA(AB182),ISNA(AC182)),NA(),CONCATENATE(U182,V182,W182,X182,Y182,Z182,AA182,AB182)) -> > | AE182: =IF(ISNA(AD182),FALSE,IF(C182=$B$1,Worksheet!$B$3,IF(C182=$C$1,Worksheet!$B$4,IF(C182=$D$1,Worksheet!$B$5,IF(C182=$E$1,Worksheet!$B$6,IF(C182=$B$2,Worksheet!$B$7,IF(C182=$C$2,Worksheet!$D$3,IF(C182=$D$2,Worksheet!$D$4,IF(C182=$E$2,Worksheet!$D$5,IF(C182=$C$3,Worksheet!$D$6,IF(C182=$B$3,Worksheet!$D$7,IF(C182=$D$3,Worksheet!$B$10,IF(C182=$E$3,Worksheet!$D$10,FALSE))))))))))))) -> FALSE | AF182: =IF(AE182,D182,"") ->  | AG182: =IF(AE182,COUNTIF($AF$5:AF182,AF182),"X") -> X | AH182: =CONCATENATE(AE182,AF182) -> FALSE
A183: =CONCATENATE(AE183,D183,AG183) -> FALSEMediumX | B183: =RAND() -> 0.04347577438 | C183: Alg | D183: Medium | E183: 365 | F183: Algebra. If | G183: =CHOOSE(RANDBETWEEN(1,10),"a","x","y","b","m","p","x","y","k","f") -> x | H183: = | I183: =RANDBETWEEN(2,10) -> 9 | J183: , what is | L183: =RANDBETWEEN(2,10) -> 3 | M183: =G183 -> x | N183: – | O183: =RANDBETWEEN(1,10) -> 7 | P183: ? | T183: =CONCATENATE(F183," ",G183," ",H183," ",I183,"",J183,"",K183," ",L183,"",M183," ",N183," ",O183," ",P183," ",Q183," ",R183) -> Algebra. If x = 9, what is 3x – 7 ? | U183: =I183*L183-O183 -> 20 | W183: =IF(U183<0,NA(),"") ->  | AD183: =IF(OR(ISNA(U183),ISNA(V183),ISNA(W183),ISNA(X183),ISNA(Y183),ISNA(Z183),ISNA(AA183),ISNA(AB183),ISNA(AC183)),NA(),CONCATENATE(U183,V183,W183,X183,Y183,Z183,AA183,AB183)) -> 20 | AE183: =IF(ISNA(AD183),FALSE,IF(C183=$B$1,Worksheet!$B$3,IF(C183=$C$1,Worksheet!$B$4,IF(C183=$D$1,Worksheet!$B$5,IF(C183=$E$1,Worksheet!$B$6,IF(C183=$B$2,Worksheet!$B$7,IF(C183=$C$2,Worksheet!$D$3,IF(C183=$D$2,Worksheet!$D$4,IF(C183=$E$2,Worksheet!$D$5,IF(C183=$C$3,Worksheet!$D$6,IF(C183=$B$3,Worksheet!$D$7,IF(C183=$D$3,Worksheet!$B$10,IF(C183=$E$3,Worksheet!$D$10,FALSE))))))))))))) -> FALSE | AF183: =IF(AE183,D183,"") ->  | AG183: =IF(AE183,COUNTIF($AF$5:AF183,AF183),"X") -> X | AH183: =CONCATENATE(AE183,AF183) -> FALSE
A184: =CONCATENATE(AE184,D184,AG184) -> TRUEMedium70 | B184: =RAND() -> 0.1969019855 | C184: Frac | D184: Medium | E184: 192 | F184: Add the fractions: | G184: =RANDBETWEEN(1,6) -> 3 | H184: /7 | I184: + | J184: =RANDBETWEEN(1,7-G184) -> 3 | K184: /7 | T184: =CONCATENATE(F184," ",G184,"",H184," ",I184," ",J184,"",K184," ",L184," ",M184," ",N184," ",O184," ",P184," ",Q184," ",R184) -> Add the fractions: 3/7 + 3/7 | U184: =IF(G184+J184=7,1,CONCATENATE(G184+J184,"/7")) -> 6/7 | AD184: =IF(OR(ISNA(U184),ISNA(V184),ISNA(W184),ISNA(X184),ISNA(Y184),ISNA(Z184),ISNA(AA184),ISNA(AB184),ISNA(AC184)),NA(),CONCATENATE(U184,V184,W184,X184,Y184,Z184,AA184,AB184)) -> 6/7 | AE184: =IF(ISNA(AD184),FALSE,IF(C184=$B$1,Worksheet!$B$3,IF(C184=$C$1,Worksheet!$B$4,IF(C184=$D$1,Worksheet!$B$5,IF(C184=$E$1,Worksheet!$B$6,IF(C184=$B$2,Worksheet!$B$7,IF(C184=$C$2,Worksheet!$D$3,IF(C184=$D$2,Worksheet!$D$4,IF(C184=$E$2,Worksheet!$D$5,IF(C184=$C$3,Worksheet!$D$6,IF(C184=$B$3,Worksheet!$D$7,IF(C184=$D$3,Worksheet!$B$10,IF(C184=$E$3,Worksheet!$D$10,FALSE))))))))))))) -> TRUE | AF184: =IF(AE184,D184,"") -> Medium | AG184: =IF(AE184,COUNTIF($AF$5:AF184,AF184),"X") -> 70 | AH184: =CONCATENATE(AE184,AF184) -> TRUEMedium
A185: =CONCATENATE(AE185,D185,AG185) -> TRUEHard55 | B185: =RAND() -> 0.6697201342 | C185: Divide | D185: Hard | E185: 113 | F185: What is half of | G185: =RANDBETWEEN(5,15)*20+RANDBETWEEN(6,9)*2 -> 174 | H185: ? | T185: =CONCATENATE(F185," ",G185," ",H185," ",I185," ",J185," ",K185," ",L185," ",M185," ",N185," ",O185," ",P185," ",Q185," ",R185) -> What is half of 174 ? | U185: =G185/2 -> 87 | AD185: =IF(OR(ISNA(U185),ISNA(V185),ISNA(W185),ISNA(X185),ISNA(Y185),ISNA(Z185),ISNA(AA185),ISNA(AB185),ISNA(AC185)),NA(),CONCATENATE(U185,V185,W185,X185,Y185,Z185,AA185,AB185)) -> 87 | AE185: =IF(ISNA(AD185),FALSE,IF(C185=$B$1,Worksheet!$B$3,IF(C185=$C$1,Worksheet!$B$4,IF(C185=$D$1,Worksheet!$B$5,IF(C185=$E$1,Worksheet!$B$6,IF(C185=$B$2,Worksheet!$B$7,IF(C185=$C$2,Worksheet!$D$3,IF(C185=$D$2,Worksheet!$D$4,IF(C185=$E$2,Worksheet!$D$5,IF(C185=$C$3,Worksheet!$D$6,IF(C185=$B$3,Worksheet!$D$7,IF(C185=$D$3,Worksheet!$B$10,IF(C185=$E$3,Worksheet!$D$10,FALSE))))))))))))) -> TRUE | AF185: =IF(AE185,D185,"") -> Hard | AG185: =IF(AE185,COUNTIF($AF$5:AF185,AF185),"X") -> 55 | AH185: =CONCATENATE(AE185,AF185) -> TRUEHard
A186: =CONCATENATE(AE186,D186,AG186) -> TRUEHard56 | B186: =RAND() -> 0.8181823703 | C186: Dec | D186: Hard | E186: 262 | F186: Write the fraction | G186: 3/4 | H186: as a decimal | T186: =CONCATENATE(F186," ",G186," ",H186," ",I186," ",J186," ",K186," ",L186," ",M186," ",N186," ",O186," ",P186," ",Q186," ",R186) -> Write the fraction 3/4 as a decimal | U186: 0.75 | AD186: =IF(OR(ISNA(U186),ISNA(V186),ISNA(W186),ISNA(X186),ISNA(Y186),ISNA(Z186),ISNA(AA186),ISNA(AB186),ISNA(AC186)),NA(),CONCATENATE(U186,V186,W186,X186,Y186,Z186,AA186,AB186)) -> 0.75 | AE186: =IF(ISNA(AD186),FALSE,IF(C186=$B$1,Worksheet!$B$3,IF(C186=$C$1,Worksheet!$B$4,IF(C186=$D$1,Worksheet!$B$5,IF(C186=$E$1,Worksheet!$B$6,IF(C186=$B$2,Worksheet!$B$7,IF(C186=$C$2,Worksheet!$D$3,IF(C186=$D$2,Worksheet!$D$4,IF(C186=$E$2,Worksheet!$D$5,IF(C186=$C$3,Worksheet!$D$6,IF(C186=$B$3,Worksheet!$D$7,IF(C186=$D$3,Worksheet!$B$10,IF(C186=$E$3,Worksheet!$D$10,FALSE))))))))))))) -> TRUE | AF186: =IF(AE186,D186,"") -> Hard | AG186: =IF(AE186,COUNTIF($AF$5:AF186,AF186),"X") -> 56 | AH186: =CONCATENATE(AE186,AF186) -> TRUEHard
A187: =CONCATENATE(AE187,D187,AG187) -> TRUEHard57 | B187: =RAND() -> 0.8721868304 | C187: Num | D187: Hard | E187: 5 | F187: Write the number " | G187: =CHOOSE(S187,CHOOSE(RANDBETWEEN(1,10),"ten","eleven","twelve","thirteen","fourteen","fifteen","sixteen","seventeen","eighteen","nineteen"),"twenty","thirty","forty","fifty","sixty","seventy","eighty","ninety") -> fifty | H187: and a half thousand | I187: " in figures | S187: =RANDBETWEEN(1,9) -> 5 | T187: =CONCATENATE(F187," ",G187," ",H187," ",I187," ",J187," ",K187," ",L187," ",M187," ",N187," ",O187," ",P187," ",Q187," ",R187) -> Write the number " fifty and a half thousand " in figures | U187: =S187 -> 5 | V187: =IF(G187="eleven",1,IF(G187="twelve",2,IF(G187="thirteen",3,IF(G187="fourteen",4,IF(G187="fifteen",5,IF(G187="sixteen",6,IF(G187="seventeen",7,IF(G187="eighteen",8,IF(G187="nineteen",9,0))))))))) -> 0 | W187: ,500 | AD187: =IF(OR(ISNA(U187),ISNA(V187),ISNA(W187),ISNA(X187),ISNA(Y187),ISNA(Z187),ISNA(AA187),ISNA(AB187),ISNA(AC187)),NA(),CONCATENATE(U187,V187,W187,X187,Y187,Z187,AA187,AB187)) -> 50,500 | AE187: =IF(ISNA(AD187),FALSE,IF(C187=$B$1,Worksheet!$B$3,IF(C187=$C$1,Worksheet!$B$4,IF(C187=$D$1,Worksheet!$B$5,IF(C187=$E$1,Worksheet!$B$6,IF(C187=$B$2,Worksheet!$B$7,IF(C187=$C$2,Worksheet!$D$3,IF(C187=$D$2,Worksheet!$D$4,IF(C187=$E$2,Worksheet!$D$5,IF(C187=$C$3,Worksheet!$D$6,IF(C187=$B$3,Worksheet!$D$7,IF(C187=$D$3,Worksheet!$B$10,IF(C187=$E$3,Worksheet!$D$10,FALSE))))))))))))) -> TRUE | AF187: =IF(AE187,D187,"") -> Hard | AG187: =IF(AE187,COUNTIF($AF$5:AF187,AF187),"X") -> 57 | AH187: =CONCATENATE(AE187,AF187) -> TRUEHard
A188: =CONCATENATE(AE188,D188,AG188) -> TRUEMedium71 | B188: =RAND() -> 0.1112609929 | C188: Mult | D188: Medium | E188: 68 | F188: What is: | G188: =RANDBETWEEN(2,5) -> 2 | H188: × | I188: =RANDBETWEEN(2,5) -> 3 | J188: + | K188: =RANDBETWEEN(2,5) -> 2 | L188: × | M188: =RANDBETWEEN(2,5) -> 2 | N188: ? | T188: =CONCATENATE(F188," ",G188," ",H188," ",I188," ",J188," ",K188," ",L188," ",M188," ",N188," ",O188," ",P188," ",Q188," ",R188) -> What is: 2 × 3 + 2 × 2 ? | U188: =G188*I188+K188*M188 -> 10 | AD188: =IF(OR(ISNA(U188),ISNA(V188),ISNA(W188),ISNA(X188),ISNA(Y188),ISNA(Z188),ISNA(AA188),ISNA(AB188),ISNA(AC188)),NA(),CONCATENATE(U188,V188,W188,X188,Y188,Z188,AA188,AB188)) -> 10 | AE188: =IF(ISNA(AD188),FALSE,IF(C188=$B$1,Worksheet!$B$3,IF(C188=$C$1,Worksheet!$B$4,IF(C188=$D$1,Worksheet!$B$5,IF(C188=$E$1,Worksheet!$B$6,IF(C188=$B$2,Worksheet!$B$7,IF(C188=$C$2,Worksheet!$D$3,IF(C188=$D$2,Worksheet!$D$4,IF(C188=$E$2,Worksheet!$D$5,IF(C188=$C$3,Worksheet!$D$6,IF(C188=$B$3,Worksheet!$D$7,IF(C188=$D$3,Worksheet!$B$10,IF(C188=$E$3,Worksheet!$D$10,FALSE))))))))))))) -> TRUE | AF188: =IF(AE188,D188,"") -> Medium | AG188: =IF(AE188,COUNTIF($AF$5:AF188,AF188),"X") -> 71 | AH188: =CONCATENATE(AE188,AF188) -> TRUEMedium
A189: =CONCATENATE(AE189,D189,AG189) -> TRUEMedium72 | B189: =RAND() -> 0.1869358112 | C189: % | D189: Medium | E189: 297 | F189: Write | G189: =RANDBETWEEN(1,99) -> 19 | H189: % as a fraction | T189: =CONCATENATE(F189," ",G189,"",H189," ",I189," ",J189," ",K189," ",L189," ",M189," ",N189," ",O189," ",P189," ",Q189," ",R189) -> Write 19% as a fraction | U189: =G189 -> 19 | V189: /100 | X189: =IF(G189=G190,NA(),"") ->  | AD189: =IF(OR(ISNA(U189),ISNA(V189),ISNA(W189),ISNA(X189),ISNA(Y189),ISNA(Z189),ISNA(AA189),ISNA(AB189),ISNA(AC189)),NA(),CONCATENATE(U189,V189,W189,X189,Y189,Z189,AA189,AB189)) -> 19/100 | AE189: =IF(ISNA(AD189),FALSE,IF(C189=$B$1,Worksheet!$B$3,IF(C189=$C$1,Worksheet!$B$4,IF(C189=$D$1,Worksheet!$B$5,IF(C189=$E$1,Worksheet!$B$6,IF(C189=$B$2,Worksheet!$B$7,IF(C189=$C$2,Worksheet!$D$3,IF(C189=$D$2,Worksheet!$D$4,IF(C189=$E$2,Worksheet!$D$5,IF(C189=$C$3,Worksheet!$D$6,IF(C189=$B$3,Worksheet!$D$7,IF(C189=$D$3,Worksheet!$B$10,IF(C189=$E$3,Worksheet!$D$10,FALSE))))))))))))) -> TRUE | AF189: =IF(AE189,D189,"") -> Medium | AG189: =IF(AE189,COUNTIF($AF$5:AF189,AF189),"X") -> 72 | AH189: =CONCATENATE(AE189,AF189) -> TRUEMedium
A190: =CONCATENATE(AE190,D190,AG190) -> TRUEMedium73 | B190: =RAND() -> 0.05598362918 | C190: % | D190: Medium | E190: 318 | F190: What is | G190: 50 | H190: % of £ | I190: =2*RANDBETWEEN(1,10)+1 -> 21 | J190: ? | T190: =CONCATENATE(F190," ",G190,"",H190,"",I190," ",J190," ",K190," ",L190," ",M190," ",N190," ",O190," ",P190," ",Q190," ",R190) -> What is 50% of £21 ? | U190: £ | V190: =TEXT(I190/2,"0.00") -> 10.50 | AD190: =IF(OR(ISNA(U190),ISNA(V190),ISNA(W190),ISNA(X190),ISNA(Y190),ISNA(Z190),ISNA(AA190),ISNA(AB190),ISNA(AC190)),NA(),CONCATENATE(U190,V190,W190,X190,Y190,Z190,AA190,AB190)) -> £10.50 | AE190: =IF(ISNA(AD190),FALSE,IF(C190=$B$1,Worksheet!$B$3,IF(C190=$C$1,Worksheet!$B$4,IF(C190=$D$1,Worksheet!$B$5,IF(C190=$E$1,Worksheet!$B$6,IF(C190=$B$2,Worksheet!$B$7,IF(C190=$C$2,Worksheet!$D$3,IF(C190=$D$2,Worksheet!$D$4,IF(C190=$E$2,Worksheet!$D$5,IF(C190=$C$3,Worksheet!$D$6,IF(C190=$B$3,Worksheet!$D$7,IF(C190=$D$3,Worksheet!$B$10,IF(C190=$E$3,Worksheet!$D$10,FALSE))))))))))))) -> TRUE | AF190: =IF(AE190,D190,"") -> Medium | AG190: =IF(AE190,COUNTIF($AF$5:AF190,AF190),"X") -> 73 | AH190: =CONCATENATE(AE190,AF190) -> TRUEMedium
A191: =CONCATENATE(AE191,D191,AG191) -> TRUEMedium74 | B191: =RAND() -> 0.8665925761 | C191: Dec | D191: Medium | E191: 238 | F191: Add: | G191: =RANDBETWEEN(11,90)+0.9 -> 51.9 | H191: + | I191: 0.1 | T191: =CONCATENATE(F191," ",G191," ",H191," ",I191," ",J191," ",K191," ",L191," ",M191," ",N191," ",O191," ",P191," ",Q191," ",R191) -> Add: 51.9 + 0.1 | U191: =G191+0.1 -> 52 | AD191: =IF(OR(ISNA(U191),ISNA(V191),ISNA(W191),ISNA(X191),ISNA(Y191),ISNA(Z191),ISNA(AA191),ISNA(AB191),ISNA(AC191)),NA(),CONCATENATE(U191,V191,W191,X191,Y191,Z191,AA191,AB191)) -> 52 | AE191: =IF(ISNA(AD191),FALSE,IF(C191=$B$1,Worksheet!$B$3,IF(C191=$C$1,Worksheet!$B$4,IF(C191=$D$1,Worksheet!$B$5,IF(C191=$E$1,Worksheet!$B$6,IF(C191=$B$2,Worksheet!$B$7,IF(C191=$C$2,Worksheet!$D$3,IF(C191=$D$2,Worksheet!$D$4,IF(C191=$E$2,Worksheet!$D$5,IF(C191=$C$3,Worksheet!$D$6,IF(C191=$B$3,Worksheet!$D$7,IF(C191=$D$3,Worksheet!$B$10,IF(C191=$E$3,Worksheet!$D$10,FALSE))))))))))))) -> TRUE | AF191: =IF(AE191,D191,"") -> Medium | AG191: =IF(AE191,COUNTIF($AF$5:AF191,AF191),"X") -> 74 | AH191: =CONCATENATE(AE191,AF191) -> TRUEMedium
A192: =CONCATENATE(AE192,D192,AG192) -> TRUEMedium75 | B192: =RAND() -> 0.7878611406 | C192: Round | D192: Medium | E192: 340 | F192: Round | G192: =RANDBETWEEN(0,9)+RANDBETWEEN(1,99)/100 -> 1.26 | H192: to one decimal place | T192: =CONCATENATE(F192," ",G192," ",H192," ",I192," ",J192," ",K192," ",L192," ",M192," ",N192," ",O192," ",P192," ",Q192," ",R192) -> Round 1.26 to one decimal place | U192: =MROUND(G192,0.1) -> 1.3 | AD192: =IF(OR(ISNA(U192),ISNA(V192),ISNA(W192),ISNA(X192),ISNA(Y192),ISNA(Z192),ISNA(AA192),ISNA(AB192),ISNA(AC192)),NA(),CONCATENATE(U192,V192,W192,X192,Y192,Z192,AA192,AB192)) -> 1.3 | AE192: =IF(ISNA(AD192),FALSE,IF(C192=$B$1,Worksheet!$B$3,IF(C192=$C$1,Worksheet!$B$4,IF(C192=$D$1,Worksheet!$B$5,IF(C192=$E$1,Worksheet!$B$6,IF(C192=$B$2,Worksheet!$B$7,IF(C192=$C$2,Worksheet!$D$3,IF(C192=$D$2,Worksheet!$D$4,IF(C192=$E$2,Worksheet!$D$5,IF(C192=$C$3,Worksheet!$D$6,IF(C192=$B$3,Worksheet!$D$7,IF(C192=$D$3,Worksheet!$B$10,IF(C192=$E$3,Worksheet!$D$10,FALSE))))))))))))) -> TRUE | AF192: =IF(AE192,D192,"") -> Medium | AG192: =IF(AE192,COUNTIF($AF$5:AF192,AF192),"X") -> 75 | AH192: =CONCATENATE(AE192,AF192) -> TRUEMedium
A193: =CONCATENATE(AE193,D193,AG193) -> TRUEHard58 | B193: =RAND() -> 0.01642703937 | C193: Dec | D193: Hard | E193: 267 | F193: Fill in the number to complete the sum: | G193: =RANDBETWEEN(1,9)+RANDBETWEEN(1,9)/10+S193/100 -> 2.94 | H193: – _____ = | I193: =G193-S193/100 -> 2.9 | S193: =RANDBETWEEN(1,9) -> 4 | T193: =CONCATENATE(F193," ",G193," ",H193," ",I193," ",J193," ",K193," ",L193," ",M193," ",N193," ",O193," ",P193," ",Q193," ",R193) -> Fill in the number to complete the sum: 2.94 – _____ = 2.9 | U193: =MROUND(G193-I193,"0.01") -> 0.04 | AD193: =IF(OR(ISNA(U193),ISNA(V193),ISNA(W193),ISNA(X193),ISNA(Y193),ISNA(Z193),ISNA(AA193),ISNA(AB193),ISNA(AC193)),NA(),CONCATENATE(U193,V193,W193,X193,Y193,Z193,AA193,AB193)) -> 0.04 | AE193: =IF(ISNA(AD193),FALSE,IF(C193=$B$1,Worksheet!$B$3,IF(C193=$C$1,Worksheet!$B$4,IF(C193=$D$1,Worksheet!$B$5,IF(C193=$E$1,Worksheet!$B$6,IF(C193=$B$2,Worksheet!$B$7,IF(C193=$C$2,Worksheet!$D$3,IF(C193=$D$2,Worksheet!$D$4,IF(C193=$E$2,Worksheet!$D$5,IF(C193=$C$3,Worksheet!$D$6,IF(C193=$B$3,Worksheet!$D$7,IF(C193=$D$3,Worksheet!$B$10,IF(C193=$E$3,Worksheet!$D$10,FALSE))))))))))))) -> TRUE | AF193: =IF(AE193,D193,"") -> Hard | AG193: =IF(AE193,COUNTIF($AF$5:AF193,AF193),"X") -> 58 | AH193: =CONCATENATE(AE193,AF193) -> TRUEHard
A194: =CONCATENATE(AE194,D194,AG194) -> TRUEMedium76 | B194: =RAND() -> 0.1189498192 | C194: Frac | D194: Medium | E194: 195 | F194: Take away the fractions: | G194: =RANDBETWEEN(3,6) -> 3 | H194: /7 | I194: – | J194: =RANDBETWEEN(1,G194-1) -> 2 | K194: /5 | T194: =CONCATENATE(F194," ",G194,"",H194," ",I194," ",J194,"",K194," ",L194," ",M194," ",N194," ",O194," ",P194," ",Q194," ",R194) -> Take away the fractions: 3/7 – 2/5 | U194: =IF(G194-J194=0,0,CONCATENATE(G194-J194,"/7")) -> 1/7 | AD194: =IF(OR(ISNA(U194),ISNA(V194),ISNA(W194),ISNA(X194),ISNA(Y194),ISNA(Z194),ISNA(AA194),ISNA(AB194),ISNA(AC194)),NA(),CONCATENATE(U194,V194,W194,X194,Y194,Z194,AA194,AB194)) -> 1/7 | AE194: =IF(ISNA(AD194),FALSE,IF(C194=$B$1,Worksheet!$B$3,IF(C194=$C$1,Worksheet!$B$4,IF(C194=$D$1,Worksheet!$B$5,IF(C194=$E$1,Worksheet!$B$6,IF(C194=$B$2,Worksheet!$B$7,IF(C194=$C$2,Worksheet!$D$3,IF(C194=$D$2,Worksheet!$D$4,IF(C194=$E$2,Worksheet!$D$5,IF(C194=$C$3,Worksheet!$D$6,IF(C194=$B$3,Worksheet!$D$7,IF(C194=$D$3,Worksheet!$B$10,IF(C194=$E$3,Worksheet!$D$10,FALSE))))))))))))) -> TRUE | AF194: =IF(AE194,D194,"") -> Medium | AG194: =IF(AE194,COUNTIF($AF$5:AF194,AF194),"X") -> 76 | AH194: =CONCATENATE(AE194,AF194) -> TRUEMedium
A195: =CONCATENATE(AE195,D195,AG195) -> TRUEHard59 | B195: =RAND() -> 0.005873510458 | C195: % | D195: Hard | E195: 325 | F195: What is | G195: 20 | H195: % of £ | I195: =5*RANDBETWEEN(1,10)*10 -> 150 | J195: ? | T195: =CONCATENATE(F195," ",G195,"",H195,"",I195," ",J195," ",K195," ",L195," ",M195," ",N195," ",O195," ",P195," ",Q195," ",R195) -> What is 20% of £150 ? | U195: £ | V195: =I195/5 -> 30 | AD195: =IF(OR(ISNA(U195),ISNA(V195),ISNA(W195),ISNA(X195),ISNA(Y195),ISNA(Z195),ISNA(AA195),ISNA(AB195),ISNA(AC195)),NA(),CONCATENATE(U195,V195,W195,X195,Y195,Z195,AA195,AB195)) -> £30 | AE195: =IF(ISNA(AD195),FALSE,IF(C195=$B$1,Worksheet!$B$3,IF(C195=$C$1,Worksheet!$B$4,IF(C195=$D$1,Worksheet!$B$5,IF(C195=$E$1,Worksheet!$B$6,IF(C195=$B$2,Worksheet!$B$7,IF(C195=$C$2,Worksheet!$D$3,IF(C195=$D$2,Worksheet!$D$4,IF(C195=$E$2,Worksheet!$D$5,IF(C195=$C$3,Worksheet!$D$6,IF(C195=$B$3,Worksheet!$D$7,IF(C195=$D$3,Worksheet!$B$10,IF(C195=$E$3,Worksheet!$D$10,FALSE))))))))))))) -> TRUE | AF195: =IF(AE195,D195,"") -> Hard | AG195: =IF(AE195,COUNTIF($AF$5:AF195,AF195),"X") -> 59 | AH195: =CONCATENATE(AE195,AF195) -> TRUEHard
A196: =CONCATENATE(AE196,D196,AG196) -> TRUEHard60 | B196: =RAND() -> 0.2759020842 | C196: Dec | D196: Hard | E196: 258 | F196: Continue the pattern for three more numbers: | G196: =RANDBETWEEN(10,50)+0.6+RANDBETWEEN(1,9)/100 -> 18.65 | H196: =G196+S196 -> 18.75 | I196: =H196+S196 -> 18.85 | J196: =I196+S196 -> 18.95 | K196: ____ | L196: ____ | M196: ____ | S196: 0.1 | T196: =CONCATENATE(F196," ",G196,", ",H196,", ",I196,", ",J196,", ",K196,", ",L196,", ",M196," ",N196," ",O196," ",P196," ",Q196," ",R196) -> Continue the pattern for three more numbers: 18.65, 18.75, 18.85, 18.95, ____, ____, ____ | U196: =J196+S196 -> 19.05 | V196: =U196+S196 -> 19.15 | W196: =V196+S196 -> 19.25 | AD196: =IF(OR(ISNA(U196),ISNA(V196),ISNA(W196),ISNA(X196),ISNA(Y196),ISNA(Z196),ISNA(AA196),ISNA(AB196),ISNA(AC196)),NA(),CONCATENATE(U196,", ",V196,", ",W196,X196,Y196,Z196,AA196,AB196)) -> 19.05, 19.15, 19.25 | AE196: =IF(ISNA(AD196),FALSE,IF(C196=$B$1,Worksheet!$B$3,IF(C196=$C$1,Worksheet!$B$4,IF(C196=$D$1,Worksheet!$B$5,IF(C196=$E$1,Worksheet!$B$6,IF(C196=$B$2,Worksheet!$B$7,IF(C196=$C$2,Worksheet!$D$3,IF(C196=$D$2,Worksheet!$D$4,IF(C196=$E$2,Worksheet!$D$5,IF(C196=$C$3,Worksheet!$D$6,IF(C196=$B$3,Worksheet!$D$7,IF(C196=$D$3,Worksheet!$B$10,IF(C196=$E$3,Worksheet!$D$10,FALSE))))))))))))) -> TRUE | AF196: =IF(AE196,D196,"") -> Hard | AG196: =IF(AE196,COUNTIF($AF$5:AF196,AF196),"X") -> 60 | AH196: =CONCATENATE(AE196,AF196) -> TRUEHard
A197: =CONCATENATE(AE197,D197,AG197) -> TRUEMedium77 | B197: =RAND() -> 0.003042157736 | C197: Dec | D197: Medium | E197: 263 | F197: Write the fraction | G197: 3/4 | H197: as a decimal | T197: =CONCATENATE(F197," ",G197," ",H197," ",I197," ",J197," ",K197," ",L197," ",M197," ",N197," ",O197," ",P197," ",Q197," ",R197) -> Write the fraction 3/4 as a decimal | U197: 0.75 | AD197: =IF(OR(ISNA(U197),ISNA(V197),ISNA(W197),ISNA(X197),ISNA(Y197),ISNA(Z197),ISNA(AA197),ISNA(AB197),ISNA(AC197)),NA(),CONCATENATE(U197,V197,W197,X197,Y197,Z197,AA197,AB197)) -> 0.75 | AE197: =IF(ISNA(AD197),FALSE,IF(C197=$B$1,Worksheet!$B$3,IF(C197=$C$1,Worksheet!$B$4,IF(C197=$D$1,Worksheet!$B$5,IF(C197=$E$1,Worksheet!$B$6,IF(C197=$B$2,Worksheet!$B$7,IF(C197=$C$2,Worksheet!$D$3,IF(C197=$D$2,Worksheet!$D$4,IF(C197=$E$2,Worksheet!$D$5,IF(C197=$C$3,Worksheet!$D$6,IF(C197=$B$3,Worksheet!$D$7,IF(C197=$D$3,Worksheet!$B$10,IF(C197=$E$3,Worksheet!$D$10,FALSE))))))))))))) -> TRUE | AF197: =IF(AE197,D197,"") -> Medium | AG197: =IF(AE197,COUNTIF($AF$5:AF197,AF197),"X") -> 77 | AH197: =CONCATENATE(AE197,AF197) -> TRUEMedium
A198: =CONCATENATE(AE198,D198,AG198) -> TRUEHard61 | B198: =RAND() -> 0.9626540418 | C198: Dec | D198: Hard | E198: 291 | F198: Divide by writing down a sum: | G198: =TEXT(U198*I198,"0.00") -> 3.92 | H198: ÷ | I198: =RANDBETWEEN(2,5) -> 4 | T198: =CONCATENATE(F198," ",G198," ",H198," ",I198," ",J198," ",K198," ",L198," ",M198," ",N198," ",O198," ",P198," ",Q198," ",R198) -> Divide by writing down a sum: 3.92 ÷ 4 | U198: =RANDBETWEEN(0,5)+RANDBETWEEN(1,99)/100 -> 0.98 | AD198: =IF(OR(ISNA(U198),ISNA(V198),ISNA(W198),ISNA(X198),ISNA(Y198),ISNA(Z198),ISNA(AA198),ISNA(AB198),ISNA(AC198)),NA(),CONCATENATE(U198,V198,W198,X198,Y198,Z198,AA198,AB198)) -> 0.98 | AE198: =IF(ISNA(AD198),FALSE,IF(C198=$B$1,Worksheet!$B$3,IF(C198=$C$1,Worksheet!$B$4,IF(C198=$D$1,Worksheet!$B$5,IF(C198=$E$1,Worksheet!$B$6,IF(C198=$B$2,Worksheet!$B$7,IF(C198=$C$2,Worksheet!$D$3,IF(C198=$D$2,Worksheet!$D$4,IF(C198=$E$2,Worksheet!$D$5,IF(C198=$C$3,Worksheet!$D$6,IF(C198=$B$3,Worksheet!$D$7,IF(C198=$D$3,Worksheet!$B$10,IF(C198=$E$3,Worksheet!$D$10,FALSE))))))))))))) -> TRUE | AF198: =IF(AE198,D198,"") -> Hard | AG198: =IF(AE198,COUNTIF($AF$5:AF198,AF198),"X") -> 61 | AH198: =CONCATENATE(AE198,AF198) -> TRUEHard
A199: =CONCATENATE(AE199,D199,AG199) -> TRUEMedium78 | B199: =RAND() -> 0.5144911641 | C199: % | D199: Medium | E199: 313 | F199: What is | G199: 1/4 | H199: as a percentage? | T199: =CONCATENATE(F199," ",G199," ",H199," ",I199," ",J199," ",K199," ",L199," ",M199," ",N199," ",O199," ",P199," ",Q199," ",R199) -> What is 1/4 as a percentage? | U199: 25 | V199: % | AD199: =IF(OR(ISNA(U199),ISNA(V199),ISNA(W199),ISNA(X199),ISNA(Y199),ISNA(Z199),ISNA(AA199),ISNA(AB199),ISNA(AC199)),NA(),CONCATENATE(U199,V199,W199,X199,Y199,Z199,AA199,AB199)) -> 25% | AE199: =IF(ISNA(AD199),FALSE,IF(C199=$B$1,Worksheet!$B$3,IF(C199=$C$1,Worksheet!$B$4,IF(C199=$D$1,Worksheet!$B$5,IF(C199=$E$1,Worksheet!$B$6,IF(C199=$B$2,Worksheet!$B$7,IF(C199=$C$2,Worksheet!$D$3,IF(C199=$D$2,Worksheet!$D$4,IF(C199=$E$2,Worksheet!$D$5,IF(C199=$C$3,Worksheet!$D$6,IF(C199=$B$3,Worksheet!$D$7,IF(C199=$D$3,Worksheet!$B$10,IF(C199=$E$3,Worksheet!$D$10,FALSE))))))))))))) -> TRUE | AF199: =IF(AE199,D199,"") -> Medium | AG199: =IF(AE199,COUNTIF($AF$5:AF199,AF199),"X") -> 78 | AH199: =CONCATENATE(AE199,AF199) -> TRUEMedium
A200: =CONCATENATE(AE200,D200,AG200) -> TRUEEasy44 | B200: =RAND() -> 0.8861208018 | C200: Dec | D200: Easy | E200: 290 | F200: Multiply by writing down a sum: | G200: =RANDBETWEEN(1,9)+RANDBETWEEN(1,9)/10 -> 5.9 | H200: × | I200: =RANDBETWEEN(2,5) -> 4 | T200: =CONCATENATE(F200," ",G200," ",H200," ",I200," ",J200," ",K200," ",L200," ",M200," ",N200," ",O200," ",P200," ",Q200," ",R200) -> Multiply by writing down a sum: 5.9 × 4 | U200: =G200*I200 -> 23.6 | AD200: =IF(OR(ISNA(U200),ISNA(V200),ISNA(W200),ISNA(X200),ISNA(Y200),ISNA(Z200),ISNA(AA200),ISNA(AB200),ISNA(AC200)),NA(),CONCATENATE(U200,V200,W200,X200,Y200,Z200,AA200,AB200)) -> 23.6 | AE200: =IF(ISNA(AD200),FALSE,IF(C200=$B$1,Worksheet!$B$3,IF(C200=$C$1,Worksheet!$B$4,IF(C200=$D$1,Worksheet!$B$5,IF(C200=$E$1,Worksheet!$B$6,IF(C200=$B$2,Worksheet!$B$7,IF(C200=$C$2,Worksheet!$D$3,IF(C200=$D$2,Worksheet!$D$4,IF(C200=$E$2,Worksheet!$D$5,IF(C200=$C$3,Worksheet!$D$6,IF(C200=$B$3,Worksheet!$D$7,IF(C200=$D$3,Worksheet!$B$10,IF(C200=$E$3,Worksheet!$D$10,FALSE))))))))))))) -> TRUE | AF200: =IF(AE200,D200,"") -> Easy | AG200: =IF(AE200,COUNTIF($AF$5:AF200,AF200),"X") -> 44 | AH200: =CONCATENATE(AE200,AF200) -> TRUEEasy
... 181 more rows
